Workbook

Sheet General
B1: Módulo de Ingreso de Información
B5: Código | C5: 3
B6: Nombre | C6: Prueba 1 | E6: Permisos Ambiental obtenida | F6: NO
B7: Fecha Radicación | C7: 2022-02-08
B8: Hora Radicación | C8: 12:35:00
B9: Capacidad (MW) | C9: 50
B10: Tecnología | C10: Eólico Onshore | E10: Costo Activos de Uso ($COP) | F10: 0
B11: Barra 1 | C11: Chinú | E11: Delta pérdidas (GWh) | F11: 100
B12: Código Asociado | E12: Reducción Marginal VPN ($COP) | F12: 1000000
B13: FPO | C13: 2025-12-31
B14: FPO 2 | C14: 2026-12-31
B15: Obligaciones | C15: NO
B16: Requiere Expansión | C16: NO
B17: Área Eléctrica | C17: Antioquia

Sheet Tablas
B1: Tecnologia | C1: Factor de planta | D1: Iflex | E1: IE-RP | F1: Factor ENFICC | G1: Factor emisiones | H1: Oferta promedio | I1: Comentarios | J1: Area Eléctrica | N1: FPO | P1: Fecha Radicacion | Q1: Hora Radicacion | S1: Gestion Ambiental | U1: Consulta Previa | W1: Permiso Arquelogico
B2: Solar FV | C2: 0.26 | D2: 0 | E2: 0.3190502279 | F2: 0.15 | G2: 0 | H2: 83577.2 | I2: Los parámetros fueron calculados conforme a la metodología presentada en la Circular UPME 057 de 2022. | J2: Altántico | L2: SI | N2: 2023-01-01 | P2: 2022-01-01 | Q2: 00:00:00 | S2: No hay avances | U2: No hay avances | W2: No hay avances
B3: Eólico Onshore | C3: 0.57 | D3: 0 | E3: 0.3190502279 | F3: 0.06 | G3: 0 | H3: 83577.2 | I3: Los parámetros fueron calculados conforme a la metodología presentada en la Circular UPME 057 de 2022. | J3: Bolívar | L3: NO | N3: 2037-12-31 | P3: 2022-03-31 | Q3: 23:59:59 | S3: EIA | U3: Resolución. No Procede | W3: Aprobado
B4: Eólico Offshore | C4: 0.57 | D4: 0 | E4: 0.3190502279 | F4: 0.06 | G4: 0 | H4: 83577.2 | I4: Los parámetros fueron calculados conforme a la metodología presentada en la Circular UPME 057 de 2022. | J4: Córdoba - Sucre, Chinú | S4: LA | U4: Resolución. Si Procede | W4: No Aplica
B5: Biomasa y Residuos | C5: 0.7 | D5: 0.25 | E5: 0.3190502279 | F5: 0.83 | G5: 0.37 | H5: 83577.2 | I5: Los parámetros fueron calculados conforme a la metodología presentada en la Circular UPME 057 de 2022. | J5: Córdoba - Sucre, Cerromatoso | S5: PA | U5: Finalizada
B6: Geotérmica | C6: 0.8 | D6: 0.25 | E6: 0.3190502279 | F6: 0.7 | G6: 0 | H6: 83577.2 | I6: Los parámetros fueron calculados conforme a la metodología presentada en la Circular UPME 057 de 2022. | J6: Guajira - Cesar - Madgalena | S6: No Aplica
B7: PCH | C7: 0.54 | D7: 0.61 | E7: 0.1550930337 | F7: 0.15 | G7: 0 | H7: 158280.5 | I7: Los parámetros fueron calculados conforme a la metodología presentada en la Circular UPME 057 de 2022. | J7: Santander
B8: Termica - Ciclo abierto | C8: 0.85 | D8: 0.4 | E8: -0.5761741581 | F8: 0.83 | G8: 0.95 | H8: 267152.5 | I8: Los parámetros fueron calculados conforme a la metodología presentada en la Circular UPME 057 de 2022. | J8: Norte de Santander
B9: Termica - Ciclo combinado | C9: 0.85 | D9: 0.27 | E9: -0.5761741581 | F9: 0.83 | G9: 0.95 | H9: 267152.5 | I9: Los parámetros fueron calculados conforme a la metodología presentada en la Circular UPME 057 de 2022. | J9: Boyacá - Casanare
B10: Termica a vapor | C10: 0.85 | D10: 0.25 | E10: -0.5761741581 | F10: 0.83 | G10: 0.37 | H10: 267152.5 | I10: Los parámetros fueron calculados conforme a la metodología presentada en la Circular UPME 057 de 2022. | J10: Arauca
B11: Termica - diesel | C11: 0.85 | D11: 0.6 | E11: -4.282826571 | F11: 0.83 | G11: 0.77 | H11: 709472.9 | I11: Los parámetros fueron calculados conforme a la metodología presentada en la Circular UPME 057 de 2022. | J11: Antioquia
B12: Hidraulica | C12: 0.6 | D12: 0.61 | E12: 0.1550930337 | F12: 0.31 | G12: 0 | H12: 158280.5 | I12: Los parámetros fueron calculados conforme a la metodología presentada en la Circular UPME 057 de 2022. | J12: Chocó
B13: Cogeneracion | C13: 0.85 | D13: 0.1 | E13: 0.3190502279 | F13: 0.83 | G13: 0.37 | H13: 83577.2 | I13: Los parámetros fueron calculados conforme a la metodología presentada en la Circular UPME 057 de 2022. | J13: Bogotá
J14: Meta - Guaviare
J15: Caldas - Quidio - Risaralda
J16: Valle
J17: Cauca - Nariño
J18: Tolima - Huila Caquetá
J19: Putumayo

Sheet InfoPro
A1: Código | B1: Nombre | C1: Fecha Radicación | D1: Hora Radicación | E1: Capacidad | F1: Tipo | G1: Barra 1 | H1: Código Asociado | I1: FPO | J1: FPO 2 | K1: Obligaciones | L1: Requiere Expansión | M1: Area Eléctrica | N1: Permisos Ambiental obtenida | O1: Costo Activos de Uso | P1: Pérdidas STN
A2: SC_7_A2 | B2: PSFV TONCHALÁ 19.9MW | C2: 2022-01-04 | D2: 07:34:00 | E2: 19.9 | F2: Solar FV | G2: Tonchalá 115 kV | H2: SC_7 | I2: 2026-12-31 | J2: 2026-12-31 | K2: NO | L2: NO | M2: Norte de Santander | N2: NO | O2: 0 | P2: -9.416898 | Q2: 2022-01-04T07:34:00
A3: SC_7_A1 | B3: PSFV TONCHALÁ 19.9MW | C3: 2022-01-04 | D3: 07:34:00 | E3: 19.9 | F3: Solar FV | G3: Tonchalá 34,5 kV | H3: SC_7 | I3: 2026-12-31 | J3: 2026-12-31 | K3: NO | L3: NO | M3: Norte de Santander | N3: NO | O3: 0 | P3: -9.416898 | Q3: 2022-01-04T07:34:00
A4: SC_38_A2 | B4: SOLENERGY NORTE | C4: 2022-03-25 | D4: 22:55:00 | E4: 40 | F4: Solar FV | G4: San Mateo 115 | H4: SC_38 | I4: 2025-12-31 | J4: 2025-12-31 | K4: NO | L4: NO | M4: Norte de Santander | N4: NO | O4: 0 | P4: -3.37298 | Q4: 2022-03-25T22:55:00
A5: SC_38_A1 | B5: SOLENERGY NORTE | C5: 2022-03-25 | D5: 22:55:00 | E5: 40 | F5: Solar FV | G5: Insula 115 | H5: SC_38 | I5: 2025-12-31 | J5: 2025-12-31 | K5: NO | L5: NO | M5: Norte de Santander | N5: NO | O5: 0 | P5: -3.37298 | Q5: 2022-03-25T22:55:00
A6: SC_485_A2 | B6: Pradera - 40 MW | C6: 2022-05-23 | D6: 44704 | E6: 40 | F6: Solar FV | G6: Aguachica 115 kV | H6: SC_485 | I6: 2025-12-31 | J6: 2025-12-31 | K6: NO | L6: NO | M6: Norte de Santander | N6: NO | O6: 0 | P6: -10.845422 | Q6: 2022-05-23T09:41:00
A7: SC_488_A2 | B7: Frontera - 50 MW | C7: 2022-05-23 | D7: 08:50:00 | E7: 50 | F7: Solar FV | G7: Tonchala 115 | H7: SC_488 | I7: 2025-12-31 | J7: 2025-12-31 | K7: NO | L7: NO | M7: Norte de Santander | N7: NO | O7: 0 | P7: -9.416898 | Q7: 2022-05-23T08:50:00
A8: SC_488_A1 | B8: Frontera - 50 MW | C8: 2022-05-23 | D8: 08:50:00 | E8: 50 | F8: Solar FV | G8: Insula 115 | H8: SC_488 | I8: 2025-12-31 | J8: 2025-12-31 | K8: NO | L8: NO | M8: Norte de Santander | N8: NO | O8: 0 | P8: -6.28914 | Q8: 2022-05-23T08:50:00
A9: SC_485_A1 | B9: Pradera - 40 MW | C9: 2022-05-23 | D9: 44704 | E9: 40 | F9: Solar FV | G9: Buturama 115 kV | H9: SC_485 | I9: 2025-12-31 | J9: 2025-12-31 | K9: NO | L9: NO | M9: Norte de Santander | N9: NO | O9: 0 | P9: -10.838454 | Q9: 2022-05-23T09:41:00
A10: SC_767_A2 | B10: Parque Solar Fotovoltaico Alcaraván | C10: 2022-07-06 | D10: 17:26:00 | E10: 79.6 | F10: Solar FV | G10: Ocaña 115 kV | H10: SC_767 | I10: 2025-12-31 | J10: 2025-12-31 | K10: NO | L10: NO | M10: Norte de Santander | N10: NO | O10: 0 | P10: -8.92 | Q10: 2022-07-06T17:26:00
A11: SC_767_A1 | B11: Parque Solar Fotovoltaico Alcaraván | C11: 2022-07-06 | D11: 17:26:00 | E11: 79.6 | F11: Solar FV | G11: Ocaña 220 kV | H11: SC_767 | I11: 2025-12-31 | J11: 2025-12-31 | K11: NO | L11: NO | M11: Norte de Santander | N11: NO | O11: 0 | P11: -6.54 | Q11: 2022-07-06T17:26:00
A12: SC_417_A2 | B12: PCH PANACEA II | C12: 2022-07-11 | D12: 18:48:00 | E12: 7 | F12: PCH | G12: Pamplona 34.5 | H12: SC_417 | I12: 2026-12-31 | J12: 2026-12-31 | K12: NO | L12: NO | M12: Norte de Santander | N12: NO | O12: 0 | P12: 0.479 | Q12: 2022-07-11T18:48:00
A13: SC_966_A1 | B13: PROYECTO SOLAR FOTOVOLTAICA MORITAS DE 9,9MW | C13: 2022-07-12 | D13: 44754 | E13: 9.9 | F13: Solar FV | G13: Buturama 34.5 kV | H13: SC_966 | I13: 2026-12-31 | J13: 2026-12-31 | K13: NO | L13: NO | M13: Norte de Santander | N13: NO | O13: 0 | P13: -1.14 | Q13: 2022-07-12T17:26:00
A14: SC_966_A2 | B14: PROYECTO SOLAR FOTOVOLTAICA MORITAS DE 9,9MW | C14: 2022-07-12 | D14: 44754 | E14: 9.9 | F14: Solar FV | G14: Buturama 115 kV | H14: SC_966 | I14: 2026-12-31 | J14: 2026-12-31 | K14: NO | L14: NO | M14: Norte de Santander | N14: NO | O14: 0 | P14: -1.12 | Q14: 2022-07-12T21:16:00
A15: SC_1130_A2 | B15: PROYECTO SOLAR FOTOVOLTAICO MORITAS 9,9 MW | C15: 2022-07-14 | D15: 44756 | E15: 9.9 | F15: Solar FV | G15: Buturama 115 kV | H15: SC_1130 | I15: 2026-12-31 | J15: 2026-12-31 | K15: NO | L15: NO | M15: Norte de Santander | N15: NO | O15: 0 | P15: -1.11 | Q15: 2022-07-14T18:48:00
A16: SC_1130_A1 | B16: PROYECTO SOLAR FOTOVOLTAICO MORITAS 9,9 MW | C16: 2022-07-14 | D16: 44756 | E16: 9.9 | F16: Solar FV | G16: Buturama 34.5 kV | H16: SC_1130 | I16: 2026-12-31 | J16: 2026-12-31 | K16: NO | L16: NO | M16: Norte de Santander | N16: NO | O16: 0 | P16: -1.14 | Q16: 2022-07-14T22:55:00
A17: SC_1024_A1 | B17: Autogenerador CELSIA Solar Cenit Ayacucho | C17: 2022-07-15 | D17: 18:46:00 | E17: 0 | F17: Solar FV | G17: Ayacucho 115 | H17: SC_1024 | I17: 2023-12-31 | J17: 2024-01-01 | K17: NO | L17: NO | M17: Norte de Santander | N17: NO | O17: 0 | P17: -0.23 | Q17: 2022-07-15T18:46:00
A18: SC_1278_A2 | B18: PARQUE SOLAR LAS MARGARITAS de 60MW | C18: 2022-07-17 | D18: 00:23:00 | E18: 60 | F18: Solar FV | G18: Insula 115 | H18: SC_1278 | I18: 2024-12-31 | J18: 2024-12-31 | K18: NO | L18: NO | M18: Norte de Santander | N18: NO | O18: 0 | P18: -0.1176 | Q18: 2022-07-17T00:23:00
A19: SC_1278_A1 | B19: PARQUE SOLAR LAS MARGARITAS de 60MW | C19: 2022-07-17 | D19: 00:23:00 | E19: 60 | F19: Solar FV | G19: Zulia 115 | H19: SC_1278 | I19: 2024-12-31 | J19: 2024-12-31 | K19: NO | L19: NO | M19: Norte de Santander | N19: NO | O19: 0 | P19: -1.311 | Q19: 2022-07-17T00:23:00
A20: SC_1245_A2 | B20: PROYECTO FOTONORTE | C20: 2022-07-17 | D20: 21:16:00 | E20: 99.5 | F20: Solar FV | G20: Belen 220 | H20: SC_1245 | I20: 2025-12-31 | J20: 2025-12-31 | K20: NO | L20: NO | M20: Norte de Santander | N20: NO | O20: 0 | P20: -6.11585 | Q20: 2022-07-17T21:16:00
A21: SC_1245_A1 | B21: PROYECTO FOTONORTE | C21: 2022-07-17 | D21: 21:16:00 | E21: 99.5 | F21: Solar FV | G21: Tasajero 220 | H21: SC_1245 | I21: 2025-12-31 | J21: 2025-12-31 | K21: NO | L21: NO | M21: Norte de Santander | N21: NO | O21: 0 | P21: -6.3625 | Q21: 2022-07-17T21:16:00
A22: SC_1547_A2 | B22: Zulia I | C22: 2022-07-17 | D22: 22:56:00 | E22: 9.9 | F22: Solar FV | G22: Zulia 115 | H22: SC_1547 | I22: 2024-12-31 | J22: 2024-12-31 | K22: NO | L22: NO | M22: Norte de Santander | N22: NO | O22: 0 | P22: -0.258055 | Q22: 2022-07-17T22:56:00
A23: SC_1547_A1 | B23: Zulia I | C23: 2022-07-17 | D23: 22:56:00 | E23: 9.9 | F23: Solar FV | G23: Zulia 34,5 | H23: SC_1547 | I23: 2024-12-31 | J23: 2024-12-31 | K23: NO | L23: NO | M23: Norte de Santander | N23: NO | O23: 0 | P23: 0.02273 | Q23: 2022-07-17T22:56:00
A24: SC_2161_A2 | B24: Aguachica 1, 2, 3 | C24: 2022-07-18 | D24: 23:44:00 | E24: 150 | F24: Solar FV | G24: Buturama 34.5 kV | H24: SC_2161 | I24: 2026-01-31 | J24: 2026-01-31 | K24: NO | L24: NO | M24: Norte de Santander | N24: NO | O24: 0 | P24: -6.43 | Q24: 2022-07-18T23:44:00
A25: SC_2161_A1 | B25: Aguachica 1, 2, 3 | C25: 2022-07-18 | D25: 23:44:00 | E25: 150 | F25: Solar FV | G25: Aguachica 34.5 kV | H25: SC_2161 | I25: 2026-01-31 | J25: 2026-01-31 | K25: NO | L25: NO | M25: Norte de Santander | N25: NO | O25: 0 | P25: -6.733 | Q25: 2022-07-18T23:44:00
A26: SC_2196_A2 | B26: Aguachica 1, 2, 3 | C26: 2022-07-18 | D26: 23:53:00 | E26: 30 | F26: Solar FV | G26: Buturama 34.5 kV | H26: SC_2196 | I26: 2026-01-31 | J26: 2026-01-31 | K26: NO | L26: NO | M26: Norte de Santander | N26: NO | O26: 0 | P26: -6.43 | Q26: 2022-07-18T23:53:00
A27: SC_2196_A1 | B27: Aguachica 1, 2, 3 | C27: 2022-07-18 | D27: 23:53:00 | E27: 30 | F27: Solar FV | G27: Aguachica 34.5 kV | H27: SC_2196 | I27: 2026-01-31 | J27: 2026-01-31 | K27: NO | L27: NO | M27: Norte de Santander | N27: NO | O27: 0 | P27: -6.733 | Q27: 2022-07-18T23:53:00
A28: SC_1626_A1 | B28: Manzanare | C28: 2022-07-21T12:19:00 | D28: 44763.51319 | E28: 9.99 | F28: Solar FV | G28: Buturama 34,5 kV | H28: SC_1626 | I28: 2025-12-31 | J28: 2025-12-31 | K28: NO | L28: NO | M28: Norte de Santander | N28: NO | O28: 0 | P28: -1.04 | Q28: 2022-07-21T21:09:00
A29: SC_1626_A2 | B29: Manzanare | C29: 2022-07-21T12:19:00 | D29: 44763.51319 | E29: 9.99 | F29: Solar FV | G29: Buturama 115 kV | H29: SC_1626 | I29: 2025-12-31 | J29: 2025-12-31 | K29: NO | L29: NO | M29: Norte de Santander | N29: NO | O29: 0 | P29: -1.34 | Q29: 2022-07-22T07:05:00
A30: SC_1842_A2 | B30: KAIROS SOLAR PARK I - 19,9 MW | C30: 2022-08-08 | D30: 11:03:00 | E30: 19.9 | F30: Solar FV | G30: Insula 34,5 kV | H30: SC_1842 | I30: 2023-12-31 | J30: 2023-12-31 | K30: NO | L30: NO | M30: Norte de Santander | N30: SI | O30: 0 | P30: -3.286 | Q30: 2022-08-08T11:03:00
A31: SC_1842_A1 | B31: KAIROS SOLAR PARK I - 19,9 MW | C31: 2022-08-08 | D31: 11:03:00 | E31: 19.9 | F31: Solar FV | G31: Insula 115 kV | H31: SC_1842 | I31: 2023-12-31 | J31: 2023-12-31 | K31: NO | L31: NO | M31: Norte de Santander | N31: SI | O31: 0 | P31: -3.372 | Q31: 2022-08-08T11:03:00
A32: SC_2032_A2 | B32: KAIROS SOLAR PARK_19.9MW | C32: 2022-08-08 | D32: 11:18:00 | E32: 19.9 | F32: Solar FV | G32: Insula 34.5 | H32: SC_2032 | I32: 2023-12-31 | J32: 2023-12-31 | K32: NO | L32: NO | M32: Norte de Santander | N32: SI | O32: 0 | P32: -3.28616 | Q32: 2022-08-08T11:18:00
A33: SC_2032_A1 | B33: KAIROS SOLAR PARK_19.9MW | C33: 2022-08-08 | D33: 11:18:00 | E33: 19.9 | F33: Solar FV | G33: Insula 115 | H33: SC_2032 | I33: 2023-12-31 | J33: 2023-12-31 | K33: NO | L33: NO | M33: Norte de Santander | N33: SI | O33: 0 | P33: -3.37327 | Q33: 2022-08-08T11:18:00
A34: SC_1943_A2 | B34: KAIROS SOLAR PARK V 19.9MW | C34: 2022-08-08 | D34: 11:19:00 | E34: 19.9 | F34: Solar FV | G34: Insula 115 | H34: SC_1943 | I34: 2023-12-31 | J34: 2023-12-31 | K34: NO | L34: NO | M34: Norte de Santander | N34: SI | O34: 0 | P34: -3.37298 | Q34: 2022-08-08T11:19:00
A35: SC_1943_A1 | B35: KAIROS SOLAR PARK V 19.9MW | C35: 2022-08-08 | D35: 11:19:00 | E35: 19.9 | F35: Solar FV | G35: Insula 34.5 | H35: SC_1943 | I35: 2023-12-31 | J35: 2023-12-31 | K35: NO | L35: NO | M35: Norte de Santander | N35: SI | O35: 0 | P35: -3.286 | Q35: 2022-08-08T11:19:00
A36: SC_2033_A2 | B36: KAIROS SOLAR PARK IV19.9 | C36: 2022-08-08 | D36: 11:31:00 | E36: 19.9 | F36: Solar FV | G36: Insula 115 | H36: SC_2033 | I36: 2023-12-31 | J36: 2023-12-31 | K36: NO | L36: NO | M36: Norte de Santander | N36: SI | O36: 0 | P36: -3.37298 | Q36: 2022-08-08T11:31:00
A37: SC_2033_A1 | B37: KAIROS SOLAR PARK IV19.9 | C37: 2022-08-08 | D37: 11:31:00 | E37: 19.9 | F37: Solar FV | G37: Insula 34.5 | H37: SC_2033 | I37: 2023-12-31 | J37: 2023-12-31 | K37: NO | L37: NO | M37: Norte de Santander | N37: SI | O37: 0 | P37: -3.28644 | Q37: 2022-08-08T11:31:00
A38: SC_2257_A2 | B38: Proyecto de generación Eólico Norte | C38: 2022-08-08 | D38: 17:32:00 | E38: 200 | F38: Eólico Onshore | G38: San Mateo 220 kV | H38: SC_2257 | I38: 2026-12-31 | J38: 2026-12-31 | K38: NO | L38: NO | M38: Norte de Santander | N38: NO | O38: 0 | P38: -40.095 | Q38: 2022-08-08T17:32:00
A39: SC_2257_A1 | B39: Proyecto de generación Eólico Norte | C39: 2022-08-08 | D39: 17:32:00 | E39: 200 | F39: Eólico Onshore | G39: Tasajero 220 kV | H39: SC_2257 | I39: 2026-12-31 | J39: 2026-12-31 | K39: NO | L39: NO | M39: Norte de Santander | N39: NO | O39: 0 | P39: -42.782 | Q39: 2022-08-08T17:32:00
A40: SC_2074_A2 | B40: CULEBRA I | C40: 2022-08-09 | D40: 20:29:00 | E40: 5 | F40: Solar FV | G40: Zulia 34,5 | H40: SC_2074 | I40: 2024-12-31 | J40: 2024-12-31 | K40: NO | L40: NO | M40: Norte de Santander | N40: NO | O40: 0 | P40: 0.05218 | Q40: 2022-08-09T20:29:00
A41: SC_2074_A1 | B41: CULEBRA I | C41: 2022-08-09 | D41: 20:29:00 | E41: 5 | F41: Solar FV | G41: Culebra 34.5 | H41: SC_2074 | I41: 2024-12-31 | J41: 2024-12-31 | K41: NO | L41: NO | M41: Norte de Santander | N41: NO | O41: 0 | P41: 0.08513 | Q41: 2022-08-09T20:29:00
A42: SC_2085_A2 | B42: Insula I | C42: 2022-08-09 | D42: 20:33:00 | E42: 19.9 | F42: Solar FV | G42: Insula 115 | H42: SC_2085 | I42: 2025-12-31 | J42: 2025-12-31 | K42: NO | L42: NO | M42: Norte de Santander | N42: NO | O42: 0 | P42: -0.12572 | Q42: 2022-08-09T20:33:00
A43: SC_2085_A1 | B43: Insula I | C43: 2022-08-09 | D43: 20:33:00 | E43: 19.9 | F43: Solar FV | G43: Insula 34.5 | H43: SC_2085 | I43: 2025-12-31 | J43: 2025-12-31 | K43: NO | L43: NO | M43: Norte de Santander | N43: NO | O43: 0 | P43: -0.07628 | Q43: 2022-08-09T20:33:00
A44: SC_1983_A2 | B44: EL TOCHE II | C44: 2022-08-12 | D44: 16:15:00 | E44: 99.9 | F44: Solar FV | G44: Buturama 115 kV | H44: SC_1983 | I44: 2026-12-31 | J44: 2026-12-31 | K44: NO | L44: NO | M44: Norte de Santander | N44: NO | O44: 0 | P44: -4.211 | Q44: 2022-08-12T16:15:00
A45: SC_1983_A1 | B45: EL TOCHE II | C45: 2022-08-12 | D45: 16:15:00 | E45: 99.9 | F45: Solar FV | G45: Ocaña 115 kV | H45: SC_1983 | I45: 2026-12-31 | J45: 2026-12-31 | K45: NO | L45: NO | M45: Norte de Santander | N45: NO | O45: 0 | P45: -4.211 | Q45: =C45+D45 -> 2022-08-12T16:15:00
A46: SC_2079_A2 | B46: PGF Tibú II | C46: 2022-08-12 | D46: 16:51:00 | E46: 99.9 | F46: Solar FV | G46: Tasajero 220 | H46: SC_2079 | I46: 2026-12-31 | J46: 2026-12-31 | K46: NO | L46: NO | M46: Norte de Santander | N46: NO | O46: 0 | P46: -0.971 | Q46: 2022-08-12T16:51:00
A47: SC_2079_A1 | B47: PGF Tibú II | C47: 2022-08-12 | D47: 16:51:00 | E47: 99.9 | F47: Solar FV | G47: Belen 220 | H47: SC_2079 | I47: 2026-12-31 | J47: 2026-12-31 | K47: NO | L47: NO | M47: Norte de Santander | N47: NO | O47: 0 | P47: -0.694 | Q47: 2022-08-12T16:51:00
A48: SC_2013_A2 | B48: PGF TIBÚ I | C48: 2022-08-14 | D48: 10:23:00 | E48: 99.9 | F48: Solar FV | G48: Tasajero 220 | H48: SC_2013 | I48: 2026-12-31 | J48: 2026-12-31 | K48: NO | L48: NO | M48: Norte de Santander | N48: NO | O48: 0 | P48: -0.971 | Q48: 2022-08-14T10:23:00
A49: SC_2013_A1 | B49: PGF TIBÚ I | C49: 2022-08-14 | D49: 10:23:00 | E49: 99.9 | F49: Solar FV | G49: Belen 220 | H49: SC_2013 | I49: 2026-12-31 | J49: 2026-12-31 | K49: NO | L49: NO | M49: Norte de Santander | N49: NO | O49: 0 | P49: -0.694 | Q49: 2022-08-14T10:23:00
A50: SC_1994_A2 | B50: Parque Solar Ábrego de 9,9 MW | C50: 2022-08-17 | D50: 13:53:00 | E50: 9.9 | F50: Solar FV | G50: Ocaña 34.5 | H50: SC_1944 | I50: 2027-12-31 | J50: 2027-12-31 | K50: NO | L50: NO | M50: Norte de Santander | N50: NO | O50: 0 | P50: -0.78 | Q50: 2022-08-17T13:53:00
A51: SC_1994_A1 | B51: Parque Solar Ábrego de 9,9 MW | C51: 2022-08-17 | D51: 13:53:00 | E51: 9.9 | F51: Solar FV | G51: Abrego 34.5 | H51: SC_1944 | I51: 2027-12-31 | J51: 2027-12-31 | K51: NO | L51: NO | M51: Norte de Santander | N51: NO | O51: 0 | P51: -0.79 | Q51: 2022-08-17T13:53:00
A52: SC_2157_A2 | B52: PGF El Toche I 99,9 MW | C52: 2022-08-17 | D52: 15:58:00 | E52: 99.9 | F52: Solar FV | G52: Buturama 115 kV | H52: SC_2157 | I52: 2026-12-31 | J52: 2026-12-31 | K52: NO | L52: NO | M52: Norte de Santander | N52: NO | O52: 0 | P52: -4.21 | Q52: 2022-08-17T15:58:00
A53: SC_2157_A1 | B53: PGF El Toche I 99,9 MW | C53: 2022-08-17 | D53: 15:58:00 | E53: 99.9 | F53: Solar FV | G53: Ocaña 115 kV | H53: SC_2157 | I53: 2026-12-31 | J53: 2026-12-31 | K53: NO | L53: NO | M53: Norte de Santander | N53: NO | O53: 0 | P53: -1.89 | Q53: 2022-08-17T15:58:00
A54: SC_2291_A2 | B54: Termotasajero Solar Tres | C54: 2022-08-22 | D54: 10:32:00 | E54: 3 | F54: Solar FV | G54: Belén 34.5 | H54: SC_2291 | I54: 2024-06-30 | J54: 2024-06-30 | K54: NO | L54: NO | M54: Norte de Santander | N54: NO | O54: 0 | P54: 0.056 | Q54: 2022-08-22T10:32:00
A55: SC_2291_A1 | B55: Termotasajero Solar Tres | C55: 2022-08-22 | D55: 10:32:00 | E55: 3 | F55: Solar FV | G55: Guaduas 34.5 | H55: SC_2291 | I55: 2024-06-30 | J55: 2024-06-30 | K55: NO | L55: NO | M55: Norte de Santander | N55: NO | O55: 0 | P55: 0.011 | Q55: 2022-08-22T10:32:00
A56: SC_2279_A2 | B56: PROYECTO SOLAR FOTOVOLTAICO COCOTAS DE 9,9 MW | C56: 2022-08-29T16:18:00 | D56: 44802.67917 | E56: 9.9 | F56: Solar FV | G56: Buturama 115 kV | H56: SC_2279 | I56: 2026-12-31 | J56: 2026-12-31 | K56: NO | L56: NO | M56: Norte de Santander | N56: NO | O56: 0 | P56: -1.06 | Q56: 2022-08-29T16:41:00
A57: SC_2279_A1 | B57: PROYECTO SOLAR FOTOVOLTAICO COCOTAS DE 9,9 MW | C57: 2022-08-29T16:18:00 | D57: 44802.67917 | E57: 9.9 | F57: Solar FV | G57: Buturama 34.5 kV | H57: SC_2279 | I57: 2026-12-31 | J57: 2026-12-31 | K57: NO | L57: NO | M57: Norte de Santander | N57: NO | O57: 0 | P57: -1.07 | Q57: 2022-08-30T01:08:00
A58: SC_2319_A2 | B58: SOLAR FOTOVOLTAICO MORRISON DE 278,6 MW | C58: 2022-09-01 | D58: 09:47:00 | E58: 278.6 | F58: Solar FV | G58: Ocaña 230 kV | H58: SC_2319 | I58: 2026-12-31 | J58: 2026-12-31 | K58: NO | L58: NO | M58: Norte de Santander | N58: NO | O58: 0 | P58: -51.14 | Q58: 2022-09-01T09:47:00
A59: SC_2319_A1 | B59: SOLAR FOTOVOLTAICO MORRISON DE 278,6 MW | C59: 2022-09-01 | D59: 09:47:00 | E59: 278.6 | F59: Solar FV | G59: Ocaña 500 kV | H59: SC_2319 | I59: 2026-12-31 | J59: 2026-12-31 | K59: NO | L59: NO | M59: Norte de Santander | N59: NO | O59: 0 | P59: -47.208 | Q59: 2022-09-01T09:47:00
A60: SC_1891_A1 | B60: KAIROS SOLAR PARK II - 19,9 MW | C60: 2022-08-08 | D60: 11:16:00 | E60: 19.9 | F60: Solar FV | G60: Insula 115 kV | H60: SC_1891 | I60: 2023-12-31 | J60: 2023-12-31 | K60: NO | L60: NO | M60: Norte de Santander | N60: SI | O60: 0 | P60: -3.372
A61: SC_1891_A2 | B61: KAIROS SOLAR PARK II - 19,9 MW | C61: 2022-08-08 | D61: 11:16:00 | E61: 19.9 | F61: Solar FV | G61: Insula 34,5 kV | H61: SC_1891 | I61: 2023-12-31 | J61: 2023-12-31 | K61: NO | L61: NO | M61: Norte de Santander | N61: SI | O61: 0 | P61: -3.286
A62: SC_2239_A1 | B62: PCH PANACEA III - 9,9 MW | C62: 2022-08-17 | D62: 11:27:00 | E62: 9.9 | F62: PCH | G62: Pamplona 34,5 kV | H62: SC_2239 | I62: 2025-12-31 | J62: 2025-12-31 | K62: NO | L62: NO | M62: Norte de Santander | N62: SI | O62: 0 | P62: -0.023

Sheet IT-TA
B1: Codigo | C1: Nombre | D1: Capacidad | E1: Licencia Ambiental obtenida | F1: Año de entrada | G1: P | H1: Total | J1: Año de Referencia
B2: =IF(ISBLANK(InfoPro!A2),"",InfoPro!A2) -> SC_7_A2 | C2: =IF(ISBLANK(InfoPro!B2),"",InfoPro!B2) -> PSFV TONCHALÁ 19.9MW | D2: =IF(ISBLANK(InfoPro!E2),"",InfoPro!E2) -> 19.9 | E2: =IF(ISBLANK(InfoPro!N2),"",InfoPro!N2) -> NO | F2: =IF(ISBLANK(InfoPro!I2),"",YEAR(InfoPro!I2)-$J$2) -> 3 | G2: =IF(E2="SI",100,IF(E2="NO",0,"")) -> 0 | H2: =IF(G2="","",(G2)) -> 0 | J2: 2023
B3: =IF(ISBLANK(InfoPro!A3),"",InfoPro!A3) -> SC_7_A1 | C3: =IF(ISBLANK(InfoPro!B3),"",InfoPro!B3) -> PSFV TONCHALÁ 19.9MW | D3: =IF(ISBLANK(InfoPro!E3),"",InfoPro!E3) -> 19.9 | E3: =IF(ISBLANK(InfoPro!N3),"",InfoPro!N3) -> NO | F3: =IF(ISBLANK(InfoPro!I3),"",YEAR(InfoPro!I3)-$J$2) -> 3 | G3: =IF(E3="SI",100,IF(E3="NO",0,"")) -> 0 | H3: =IF(G3="","",(G3)) -> 0
B4: =IF(ISBLANK(InfoPro!A4),"",InfoPro!A4) -> SC_38_A2 | C4: =IF(ISBLANK(InfoPro!B4),"",InfoPro!B4) -> SOLENERGY NORTE | D4: =IF(ISBLANK(InfoPro!E4),"",InfoPro!E4) -> 40 | E4: =IF(ISBLANK(InfoPro!N4),"",InfoPro!N4) -> NO | F4: =IF(ISBLANK(InfoPro!I4),"",YEAR(InfoPro!I4)-$J$2) -> 2 | G4: 0 | H4: 0
B5: =IF(ISBLANK(InfoPro!A5),"",InfoPro!A5) -> SC_38_A1 | C5: =IF(ISBLANK(InfoPro!B5),"",InfoPro!B5) -> SOLENERGY NORTE | D5: =IF(ISBLANK(InfoPro!E5),"",InfoPro!E5) -> 40 | E5: =IF(ISBLANK(InfoPro!N5),"",InfoPro!N5) -> NO | F5: =IF(ISBLANK(InfoPro!I5),"",YEAR(InfoPro!I5)-$J$2) -> 2 | G5: 0 | H5: 0
B6: =IF(ISBLANK(InfoPro!A6),"",InfoPro!A6) -> SC_485_A2 | C6: =IF(ISBLANK(InfoPro!B6),"",InfoPro!B6) -> Pradera - 40 MW | D6: =IF(ISBLANK(InfoPro!E6),"",InfoPro!E6) -> 40 | E6: =IF(ISBLANK(InfoPro!N6),"",InfoPro!N6) -> NO | F6: =IF(ISBLANK(InfoPro!I6),"",YEAR(InfoPro!I6)-$J$2) -> 2 | G6: 0 | H6: 0
B7: =IF(ISBLANK(InfoPro!A7),"",InfoPro!A7) -> SC_488_A2 | C7: =IF(ISBLANK(InfoPro!B7),"",InfoPro!B7) -> Frontera - 50 MW | D7: =IF(ISBLANK(InfoPro!E7),"",InfoPro!E7) -> 50 | E7: =IF(ISBLANK(InfoPro!N7),"",InfoPro!N7) -> NO | F7: =IF(ISBLANK(InfoPro!I7),"",YEAR(InfoPro!I7)-$J$2) -> 2 | G7: 0 | H7: 0
B8: =IF(ISBLANK(InfoPro!A8),"",InfoPro!A8) -> SC_488_A1 | C8: =IF(ISBLANK(InfoPro!B8),"",InfoPro!B8) -> Frontera - 50 MW | D8: =IF(ISBLANK(InfoPro!E8),"",InfoPro!E8) -> 50 | E8: =IF(ISBLANK(InfoPro!N8),"",InfoPro!N8) -> NO | F8: =IF(ISBLANK(InfoPro!I8),"",YEAR(InfoPro!I8)-$J$2) -> 2 | G8: 0 | H8: 0
B9: =IF(ISBLANK(InfoPro!A9),"",InfoPro!A9) -> SC_485_A1 | C9: =IF(ISBLANK(InfoPro!B9),"",InfoPro!B9) -> Pradera - 40 MW | D9: =IF(ISBLANK(InfoPro!E9),"",InfoPro!E9) -> 40 | E9: =IF(ISBLANK(InfoPro!N9),"",InfoPro!N9) -> NO | F9: =IF(ISBLANK(InfoPro!I9),"",YEAR(InfoPro!I9)-$J$2) -> 2 | G9: 0 | H9: 0
B10: =IF(ISBLANK(InfoPro!A10),"",InfoPro!A10) -> SC_767_A2 | C10: =IF(ISBLANK(InfoPro!B10),"",InfoPro!B10) -> Parque Solar Fotovoltaico Alcaraván | D10: =IF(ISBLANK(InfoPro!E10),"",InfoPro!E10) -> 79.6 | E10: =IF(ISBLANK(InfoPro!N10),"",InfoPro!N10) -> NO | F10: =IF(ISBLANK(InfoPro!I10),"",YEAR(InfoPro!I10)-$J$2) -> 2 | G10: 0 | H10: 0
B11: =IF(ISBLANK(InfoPro!A11),"",InfoPro!A11) -> SC_767_A1 | C11: =IF(ISBLANK(InfoPro!B11),"",InfoPro!B11) -> Parque Solar Fotovoltaico Alcaraván | D11: =IF(ISBLANK(InfoPro!E11),"",InfoPro!E11) -> 79.6 | E11: =IF(ISBLANK(InfoPro!N11),"",InfoPro!N11) -> NO | F11: =IF(ISBLANK(InfoPro!I11),"",YEAR(InfoPro!I11)-$J$2) -> 2 | G11: 0 | H11: 0
B12: =IF(ISBLANK(InfoPro!A12),"",InfoPro!A12) -> SC_417_A2 | C12: =IF(ISBLANK(InfoPro!B12),"",InfoPro!B12) -> PCH PANACEA II | D12: =IF(ISBLANK(InfoPro!E12),"",InfoPro!E12) -> 7 | E12: =IF(ISBLANK(InfoPro!N12),"",InfoPro!N12) -> NO | F12: =IF(ISBLANK(InfoPro!I12),"",YEAR(InfoPro!I12)-$J$2) -> 3 | G12: 0 | H12: 0
B13: =IF(ISBLANK(InfoPro!A13),"",InfoPro!A13) -> SC_966_A1 | C13: =IF(ISBLANK(InfoPro!B13),"",InfoPro!B13) -> PROYECTO SOLAR FOTOVOLTAICA MORITAS DE 9,9MW | D13: =IF(ISBLANK(InfoPro!E13),"",InfoPro!E13) -> 9.9 | E13: =IF(ISBLANK(InfoPro!N13),"",InfoPro!N13) -> NO | F13: =IF(ISBLANK(InfoPro!I13),"",YEAR(InfoPro!I13)-$J$2) -> 3 | G13: 0 | H13: 0
B14: =IF(ISBLANK(InfoPro!A14),"",InfoPro!A14) -> SC_966_A2 | C14: =IF(ISBLANK(InfoPro!B14),"",InfoPro!B14) -> PROYECTO SOLAR FOTOVOLTAICA MORITAS DE 9,9MW | D14: =IF(ISBLANK(InfoPro!E14),"",InfoPro!E14) -> 9.9 | E14: =IF(ISBLANK(InfoPro!N14),"",InfoPro!N14) -> NO | F14: =IF(ISBLANK(InfoPro!I14),"",YEAR(InfoPro!I14)-$J$2) -> 3 | G14: 0 | H14: 0
B15: =IF(ISBLANK(InfoPro!A15),"",InfoPro!A15) -> SC_1130_A2 | C15: =IF(ISBLANK(InfoPro!B15),"",InfoPro!B15) -> PROYECTO SOLAR FOTOVOLTAICO MORITAS 9,9 MW | D15: =IF(ISBLANK(InfoPro!E15),"",InfoPro!E15) -> 9.9 | E15: =IF(ISBLANK(InfoPro!N15),"",InfoPro!N15) -> NO | F15: =IF(ISBLANK(InfoPro!I15),"",YEAR(InfoPro!I15)-$J$2) -> 3 | G15: 0 | H15: 0
B16: =IF(ISBLANK(InfoPro!A16),"",InfoPro!A16) -> SC_1130_A1 | C16: =IF(ISBLANK(InfoPro!B16),"",InfoPro!B16) -> PROYECTO SOLAR FOTOVOLTAICO MORITAS 9,9 MW | D16: =IF(ISBLANK(InfoPro!E16),"",InfoPro!E16) -> 9.9 | E16: =IF(ISBLANK(InfoPro!N16),"",InfoPro!N16) -> NO | F16: =IF(ISBLANK(InfoPro!I16),"",YEAR(InfoPro!I16)-$J$2) -> 3 | G16: 0 | H16: 0
B17: =IF(ISBLANK(InfoPro!A17),"",InfoPro!A17) -> SC_1024_A1 | C17: =IF(ISBLANK(InfoPro!B17),"",InfoPro!B17) -> Autogenerador CELSIA Solar Cenit Ayacucho | D17: =IF(ISBLANK(InfoPro!E17),"",InfoPro!E17) -> 0 | E17: =IF(ISBLANK(InfoPro!N17),"",InfoPro!N17) -> NO | F17: =IF(ISBLANK(InfoPro!I17),"",YEAR(InfoPro!I17)-$J$2) -> 0 | G17: 0 | H17: 0
B18: =IF(ISBLANK(InfoPro!A18),"",InfoPro!A18) -> SC_1278_A2 | C18: =IF(ISBLANK(InfoPro!B18),"",InfoPro!B18) -> PARQUE SOLAR LAS MARGARITAS de 60MW | D18: =IF(ISBLANK(InfoPro!E18),"",InfoPro!E18) -> 60 | E18: =IF(ISBLANK(InfoPro!N18),"",InfoPro!N18) -> NO | F18: =IF(ISBLANK(InfoPro!I18),"",YEAR(InfoPro!I18)-$J$2) -> 1 | G18: 0 | H18: 0
B19: =IF(ISBLANK(InfoPro!A19),"",InfoPro!A19) -> SC_1278_A1 | C19: =IF(ISBLANK(InfoPro!B19),"",InfoPro!B19) -> PARQUE SOLAR LAS MARGARITAS de 60MW | D19: =IF(ISBLANK(InfoPro!E19),"",InfoPro!E19) -> 60 | E19: =IF(ISBLANK(InfoPro!N19),"",InfoPro!N19) -> NO | F19: =IF(ISBLANK(InfoPro!I19),"",YEAR(InfoPro!I19)-$J$2) -> 1 | G19: 0 | H19: 0
B20: =IF(ISBLANK(InfoPro!A20),"",InfoPro!A20) -> SC_1245_A2 | C20: =IF(ISBLANK(InfoPro!B20),"",InfoPro!B20) -> PROYECTO FOTONORTE | D20: =IF(ISBLANK(InfoPro!E20),"",InfoPro!E20) -> 99.5 | E20: =IF(ISBLANK(InfoPro!N20),"",InfoPro!N20) -> NO | F20: =IF(ISBLANK(InfoPro!I20),"",YEAR(InfoPro!I20)-$J$2) -> 2 | G20: 0 | H20: 0
B21: =IF(ISBLANK(InfoPro!A21),"",InfoPro!A21) -> SC_1245_A1 | C21: =IF(ISBLANK(InfoPro!B21),"",InfoPro!B21) -> PROYECTO FOTONORTE | D21: =IF(ISBLANK(InfoPro!E21),"",InfoPro!E21) -> 99.5 | E21: =IF(ISBLANK(InfoPro!N21),"",InfoPro!N21) -> NO | F21: =IF(ISBLANK(InfoPro!I21),"",YEAR(InfoPro!I21)-$J$2) -> 2 | G21: 0 | H21: 0
B22: =IF(ISBLANK(InfoPro!A22),"",InfoPro!A22) -> SC_1547_A2 | C22: =IF(ISBLANK(InfoPro!B22),"",InfoPro!B22) -> Zulia I | D22: =IF(ISBLANK(InfoPro!E22),"",InfoPro!E22) -> 9.9 | E22: =IF(ISBLANK(InfoPro!N22),"",InfoPro!N22) -> NO | F22: =IF(ISBLANK(InfoPro!I22),"",YEAR(InfoPro!I22)-$J$2) -> 1 | G22: 0 | H22: 0
B23: =IF(ISBLANK(InfoPro!A23),"",InfoPro!A23) -> SC_1547_A1 | C23: =IF(ISBLANK(InfoPro!B23),"",InfoPro!B23) -> Zulia I | D23: =IF(ISBLANK(InfoPro!E23),"",InfoPro!E23) -> 9.9 | E23: =IF(ISBLANK(InfoPro!N23),"",InfoPro!N23) -> NO | F23: =IF(ISBLANK(InfoPro!I23),"",YEAR(InfoPro!I23)-$J$2) -> 1 | G23: 0 | H23: 0
B24: =IF(ISBLANK(InfoPro!A24),"",InfoPro!A24) -> SC_2161_A2 | C24: =IF(ISBLANK(InfoPro!B24),"",InfoPro!B24) -> Aguachica 1, 2, 3 | D24: =IF(ISBLANK(InfoPro!E24),"",InfoPro!E24) -> 150 | E24: =IF(ISBLANK(InfoPro!N24),"",InfoPro!N24) -> NO | F24: =IF(ISBLANK(InfoPro!I24),"",YEAR(InfoPro!I24)-$J$2) -> 3 | G24: 0 | H24: 0
B25: =IF(ISBLANK(InfoPro!A25),"",InfoPro!A25) -> SC_2161_A1 | C25: =IF(ISBLANK(InfoPro!B25),"",InfoPro!B25) -> Aguachica 1, 2, 3 | D25: =IF(ISBLANK(InfoPro!E25),"",InfoPro!E25) -> 150 | E25: =IF(ISBLANK(InfoPro!N25),"",InfoPro!N25) -> NO | F25: =IF(ISBLANK(InfoPro!I25),"",YEAR(InfoPro!I25)-$J$2) -> 3 | G25: 0 | H25: 0
B26: =IF(ISBLANK(InfoPro!A26),"",InfoPro!A26) -> SC_2196_A2 | C26: =IF(ISBLANK(InfoPro!B26),"",InfoPro!B26) -> Aguachica 1, 2, 3 | D26: =IF(ISBLANK(InfoPro!E26),"",InfoPro!E26) -> 30 | E26: =IF(ISBLANK(InfoPro!N26),"",InfoPro!N26) -> NO | F26: =IF(ISBLANK(InfoPro!I26),"",YEAR(InfoPro!I26)-$J$2) -> 3 | G26: 0 | H26: 0
B27: =IF(ISBLANK(InfoPro!A27),"",InfoPro!A27) -> SC_2196_A1 | C27: =IF(ISBLANK(InfoPro!B27),"",InfoPro!B27) -> Aguachica 1, 2, 3 | D27: =IF(ISBLANK(InfoPro!E27),"",InfoPro!E27) -> 30 | E27: =IF(ISBLANK(InfoPro!N27),"",InfoPro!N27) -> NO | F27: =IF(ISBLANK(InfoPro!I27),"",YEAR(InfoPro!I27)-$J$2) -> 3 | G27: 0 | H27: 0
B28: =IF(ISBLANK(InfoPro!A28),"",InfoPro!A28) -> SC_1626_A1 | C28: =IF(ISBLANK(InfoPro!B28),"",InfoPro!B28) -> Manzanare | D28: =IF(ISBLANK(InfoPro!E28),"",InfoPro!E28) -> 9.99 | E28: =IF(ISBLANK(InfoPro!N28),"",InfoPro!N28) -> NO | F28: =IF(ISBLANK(InfoPro!I28),"",YEAR(InfoPro!I28)-$J$2) -> 2 | G28: 0 | H28: 0
B29: =IF(ISBLANK(InfoPro!A29),"",InfoPro!A29) -> SC_1626_A2 | C29: =IF(ISBLANK(InfoPro!B29),"",InfoPro!B29) -> Manzanare | D29: =IF(ISBLANK(InfoPro!E29),"",InfoPro!E29) -> 9.99 | E29: =IF(ISBLANK(InfoPro!N29),"",InfoPro!N29) -> NO | F29: =IF(ISBLANK(InfoPro!I29),"",YEAR(InfoPro!I29)-$J$2) -> 2 | G29: 0 | H29: 0
B30: =IF(ISBLANK(InfoPro!A30),"",InfoPro!A30) -> SC_1842_A2 | C30: =IF(ISBLANK(InfoPro!B30),"",InfoPro!B30) -> KAIROS SOLAR PARK I - 19,9 MW | D30: =IF(ISBLANK(InfoPro!E30),"",InfoPro!E30) -> 19.9 | E30: =IF(ISBLANK(InfoPro!N30),"",InfoPro!N30) -> SI | F30: =IF(ISBLANK(InfoPro!I30),"",YEAR(InfoPro!I30)-$J$2) -> 0 | G30: 100 | H30: 100
B31: =IF(ISBLANK(InfoPro!A31),"",InfoPro!A31) -> SC_1842_A1 | C31: =IF(ISBLANK(InfoPro!B31),"",InfoPro!B31) -> KAIROS SOLAR PARK I - 19,9 MW | D31: =IF(ISBLANK(InfoPro!E31),"",InfoPro!E31) -> 19.9 | E31: =IF(ISBLANK(InfoPro!N31),"",InfoPro!N31) -> SI | F31: =IF(ISBLANK(InfoPro!I31),"",YEAR(InfoPro!I31)-$J$2) -> 0 | G31: 100 | H31: 100
B32: =IF(ISBLANK(InfoPro!A32),"",InfoPro!A32) -> SC_2032_A2 | C32: =IF(ISBLANK(InfoPro!B32),"",InfoPro!B32) -> KAIROS SOLAR PARK_19.9MW | D32: =IF(ISBLANK(InfoPro!E32),"",InfoPro!E32) -> 19.9 | E32: =IF(ISBLANK(InfoPro!N32),"",InfoPro!N32) -> SI | F32: =IF(ISBLANK(InfoPro!I32),"",YEAR(InfoPro!I32)-$J$2) -> 0 | G32: 100 | H32: 100
B33: =IF(ISBLANK(InfoPro!A33),"",InfoPro!A33) -> SC_2032_A1 | C33: =IF(ISBLANK(InfoPro!B33),"",InfoPro!B33) -> KAIROS SOLAR PARK_19.9MW | D33: =IF(ISBLANK(InfoPro!E33),"",InfoPro!E33) -> 19.9 | E33: =IF(ISBLANK(InfoPro!N33),"",InfoPro!N33) -> SI | F33: =IF(ISBLANK(InfoPro!I33),"",YEAR(InfoPro!I33)-$J$2) -> 0 | G33: 100 | H33: 100
B34: =IF(ISBLANK(InfoPro!A34),"",InfoPro!A34) -> SC_1943_A2 | C34: =IF(ISBLANK(InfoPro!B34),"",InfoPro!B34) -> KAIROS SOLAR PARK V 19.9MW | D34: =IF(ISBLANK(InfoPro!E34),"",InfoPro!E34) -> 19.9 | E34: =IF(ISBLANK(InfoPro!N34),"",InfoPro!N34) -> SI | F34: =IF(ISBLANK(InfoPro!I34),"",YEAR(InfoPro!I34)-$J$2) -> 0 | G34: 100 | H34: 100
B35: =IF(ISBLANK(InfoPro!A35),"",InfoPro!A35) -> SC_1943_A1 | C35: =IF(ISBLANK(InfoPro!B35),"",InfoPro!B35) -> KAIROS SOLAR PARK V 19.9MW | D35: =IF(ISBLANK(InfoPro!E35),"",InfoPro!E35) -> 19.9 | E35: =IF(ISBLANK(InfoPro!N35),"",InfoPro!N35) -> SI | F35: =IF(ISBLANK(InfoPro!I35),"",YEAR(InfoPro!I35)-$J$2) -> 0 | G35: 100 | H35: 100
B36: =IF(ISBLANK(InfoPro!A36),"",InfoPro!A36) -> SC_2033_A2 | C36: =IF(ISBLANK(InfoPro!B36),"",InfoPro!B36) -> KAIROS SOLAR PARK IV19.9 | D36: =IF(ISBLANK(InfoPro!E36),"",InfoPro!E36) -> 19.9 | E36: =IF(ISBLANK(InfoPro!N36),"",InfoPro!N36) -> SI | F36: =IF(ISBLANK(InfoPro!I36),"",YEAR(InfoPro!I36)-$J$2) -> 0 | G36: 100 | H36: 100
B37: =IF(ISBLANK(InfoPro!A37),"",InfoPro!A37) -> SC_2033_A1 | C37: =IF(ISBLANK(InfoPro!B37),"",InfoPro!B37) -> KAIROS SOLAR PARK IV19.9 | D37: =IF(ISBLANK(InfoPro!E37),"",InfoPro!E37) -> 19.9 | E37: =IF(ISBLANK(InfoPro!N37),"",InfoPro!N37) -> SI | F37: =IF(ISBLANK(InfoPro!I37),"",YEAR(InfoPro!I37)-$J$2) -> 0 | G37: 100 | H37: 100
B38: =IF(ISBLANK(InfoPro!A38),"",InfoPro!A38) -> SC_2257_A2 | C38: =IF(ISBLANK(InfoPro!B38),"",InfoPro!B38) -> Proyecto de generación Eólico Norte | D38: =IF(ISBLANK(InfoPro!E38),"",InfoPro!E38) -> 200 | E38: =IF(ISBLANK(InfoPro!N38),"",InfoPro!N38) -> NO | F38: =IF(ISBLANK(InfoPro!I38),"",YEAR(InfoPro!I38)-$J$2) -> 3 | G38: 0 | H38: 0
B39: =IF(ISBLANK(InfoPro!A39),"",InfoPro!A39) -> SC_2257_A1 | C39: =IF(ISBLANK(InfoPro!B39),"",InfoPro!B39) -> Proyecto de generación Eólico Norte | D39: =IF(ISBLANK(InfoPro!E39),"",InfoPro!E39) -> 200 | E39: =IF(ISBLANK(InfoPro!N39),"",InfoPro!N39) -> NO | F39: =IF(ISBLANK(InfoPro!I39),"",YEAR(InfoPro!I39)-$J$2) -> 3 | G39: 0 | H39: 0
B40: =IF(ISBLANK(InfoPro!A40),"",InfoPro!A40) -> SC_2074_A2 | C40: =IF(ISBLANK(InfoPro!B40),"",InfoPro!B40) -> CULEBRA I | D40: =IF(ISBLANK(InfoPro!E40),"",InfoPro!E40) -> 5 | E40: =IF(ISBLANK(InfoPro!N40),"",InfoPro!N40) -> NO | F40: =IF(ISBLANK(InfoPro!I40),"",YEAR(InfoPro!I40)-$J$2) -> 1 | G40: 0 | H40: 0
B41: =IF(ISBLANK(InfoPro!A41),"",InfoPro!A41) -> SC_2074_A1 | C41: =IF(ISBLANK(InfoPro!B41),"",InfoPro!B41) -> CULEBRA I | D41: =IF(ISBLANK(InfoPro!E41),"",InfoPro!E41) -> 5 | E41: =IF(ISBLANK(InfoPro!N41),"",InfoPro!N41) -> NO | F41: =IF(ISBLANK(InfoPro!I41),"",YEAR(InfoPro!I41)-$J$2) -> 1 | G41: 0 | H41: 0
B42: =IF(ISBLANK(InfoPro!A42),"",InfoPro!A42) -> SC_2085_A2 | C42: =IF(ISBLANK(InfoPro!B42),"",InfoPro!B42) -> Insula I | D42: =IF(ISBLANK(InfoPro!E42),"",InfoPro!E42) -> 19.9 | E42: =IF(ISBLANK(InfoPro!N42),"",InfoPro!N42) -> NO | F42: =IF(ISBLANK(InfoPro!I42),"",YEAR(InfoPro!I42)-$J$2) -> 2 | G42: 0 | H42: 0
B43: =IF(ISBLANK(InfoPro!A43),"",InfoPro!A43) -> SC_2085_A1 | C43: =IF(ISBLANK(InfoPro!B43),"",InfoPro!B43) -> Insula I | D43: =IF(ISBLANK(InfoPro!E43),"",InfoPro!E43) -> 19.9 | E43: =IF(ISBLANK(InfoPro!N43),"",InfoPro!N43) -> NO | F43: =IF(ISBLANK(InfoPro!I43),"",YEAR(InfoPro!I43)-$J$2) -> 2 | G43: 0 | H43: 0
B44: =IF(ISBLANK(InfoPro!A44),"",InfoPro!A44) -> SC_1983_A2 | C44: =IF(ISBLANK(InfoPro!B44),"",InfoPro!B44) -> EL TOCHE II | D44: =IF(ISBLANK(InfoPro!E44),"",InfoPro!E44) -> 99.9 | E44: =IF(ISBLANK(InfoPro!N44),"",InfoPro!N44) -> NO | F44: =IF(ISBLANK(InfoPro!I44),"",YEAR(InfoPro!I44)-$J$2) -> 3 | G44: 0 | H44: 0
B45: =IF(ISBLANK(InfoPro!A45),"",InfoPro!A45) -> SC_1983_A1 | C45: =IF(ISBLANK(InfoPro!B45),"",InfoPro!B45) -> EL TOCHE II | D45: =IF(ISBLANK(InfoPro!E45),"",InfoPro!E45) -> 99.9 | E45: =IF(ISBLANK(InfoPro!N45),"",InfoPro!N45) -> NO | F45: =IF(ISBLANK(InfoPro!I45),"",YEAR(InfoPro!I45)-$J$2) -> 3 | G45: 0 | H45: 0
B46: =IF(ISBLANK(InfoPro!A46),"",InfoPro!A46) -> SC_2079_A2 | C46: =IF(ISBLANK(InfoPro!B46),"",InfoPro!B46) -> PGF Tibú II | D46: =IF(ISBLANK(InfoPro!E46),"",InfoPro!E46) -> 99.9 | E46: =IF(ISBLANK(InfoPro!N46),"",InfoPro!N46) -> NO | F46: =IF(ISBLANK(InfoPro!I46),"",YEAR(InfoPro!I46)-$J$2) -> 3 | G46: 0 | H46: 0
B47: =IF(ISBLANK(InfoPro!A47),"",InfoPro!A47) -> SC_2079_A1 | C47: =IF(ISBLANK(InfoPro!B47),"",InfoPro!B47) -> PGF Tibú II | D47: =IF(ISBLANK(InfoPro!E47),"",InfoPro!E47) -> 99.9 | E47: =IF(ISBLANK(InfoPro!N47),"",InfoPro!N47) -> NO | F47: =IF(ISBLANK(InfoPro!I47),"",YEAR(InfoPro!I47)-$J$2) -> 3 | G47: 0 | H47: 0
B48: =IF(ISBLANK(InfoPro!A48),"",InfoPro!A48) -> SC_2013_A2 | C48: =IF(ISBLANK(InfoPro!B48),"",InfoPro!B48) -> PGF TIBÚ I | D48: =IF(ISBLANK(InfoPro!E48),"",InfoPro!E48) -> 99.9 | E48: =IF(ISBLANK(InfoPro!N48),"",InfoPro!N48) -> NO | F48: =IF(ISBLANK(InfoPro!I48),"",YEAR(InfoPro!I48)-$J$2) -> 3 | G48: 0 | H48: 0
B49: =IF(ISBLANK(InfoPro!A49),"",InfoPro!A49) -> SC_2013_A1 | C49: =IF(ISBLANK(InfoPro!B49),"",InfoPro!B49) -> PGF TIBÚ I | D49: =IF(ISBLANK(InfoPro!E49),"",InfoPro!E49) -> 99.9 | E49: =IF(ISBLANK(InfoPro!N49),"",InfoPro!N49) -> NO | F49: =IF(ISBLANK(InfoPro!I49),"",YEAR(InfoPro!I49)-$J$2) -> 3 | G49: 0 | H49: 0
B50: =IF(ISBLANK(InfoPro!A50),"",InfoPro!A50) -> SC_1994_A2 | C50: =IF(ISBLANK(InfoPro!B50),"",InfoPro!B50) -> Parque Solar Ábrego de 9,9 MW | D50: =IF(ISBLANK(InfoPro!E50),"",InfoPro!E50) -> 9.9 | E50: =IF(ISBLANK(InfoPro!N50),"",InfoPro!N50) -> NO | F50: =IF(ISBLANK(InfoPro!I50),"",YEAR(InfoPro!I50)-$J$2) -> 4 | G50: 0 | H50: 0
B51: =IF(ISBLANK(InfoPro!A51),"",InfoPro!A51) -> SC_1994_A1 | C51: =IF(ISBLANK(InfoPro!B51),"",InfoPro!B51) -> Parque Solar Ábrego de 9,9 MW | D51: =IF(ISBLANK(InfoPro!E51),"",InfoPro!E51) -> 9.9 | E51: =IF(ISBLANK(InfoPro!N51),"",InfoPro!N51) -> NO | F51: =IF(ISBLANK(InfoPro!I51),"",YEAR(InfoPro!I51)-$J$2) -> 4 | G51: 0 | H51: 0
B52: =IF(ISBLANK(InfoPro!A52),"",InfoPro!A52) -> SC_2157_A2 | C52: =IF(ISBLANK(InfoPro!B52),"",InfoPro!B52) -> PGF El Toche I 99,9 MW | D52: =IF(ISBLANK(InfoPro!E52),"",InfoPro!E52) -> 99.9 | E52: =IF(ISBLANK(InfoPro!N52),"",InfoPro!N52) -> NO | F52: =IF(ISBLANK(InfoPro!I52),"",YEAR(InfoPro!I52)-$J$2) -> 3 | G52: 0 | H52: 0
B53: =IF(ISBLANK(InfoPro!A53),"",InfoPro!A53) -> SC_2157_A1 | C53: =IF(ISBLANK(InfoPro!B53),"",InfoPro!B53) -> PGF El Toche I 99,9 MW | D53: =IF(ISBLANK(InfoPro!E53),"",InfoPro!E53) -> 99.9 | E53: =IF(ISBLANK(InfoPro!N53),"",InfoPro!N53) -> NO | F53: =IF(ISBLANK(InfoPro!I53),"",YEAR(InfoPro!I53)-$J$2) -> 3 | G53: 0 | H53: 0
B54: =IF(ISBLANK(InfoPro!A54),"",InfoPro!A54) -> SC_2291_A2 | C54: =IF(ISBLANK(InfoPro!B54),"",InfoPro!B54) -> Termotasajero Solar Tres | D54: =IF(ISBLANK(InfoPro!E54),"",InfoPro!E54) -> 3 | E54: =IF(ISBLANK(InfoPro!N54),"",InfoPro!N54) -> NO | F54: =IF(ISBLANK(InfoPro!I54),"",YEAR(InfoPro!I54)-$J$2) -> 1 | G54: 0 | H54: 0
B55: =IF(ISBLANK(InfoPro!A55),"",InfoPro!A55) -> SC_2291_A1 | C55: =IF(ISBLANK(InfoPro!B55),"",InfoPro!B55) -> Termotasajero Solar Tres | D55: =IF(ISBLANK(InfoPro!E55),"",InfoPro!E55) -> 3 | E55: =IF(ISBLANK(InfoPro!N55),"",InfoPro!N55) -> NO | F55: =IF(ISBLANK(InfoPro!I55),"",YEAR(InfoPro!I55)-$J$2) -> 1 | G55: 0 | H55: 0
B56: =IF(ISBLANK(InfoPro!A56),"",InfoPro!A56) -> SC_2279_A2 | C56: =IF(ISBLANK(InfoPro!B56),"",InfoPro!B56) -> PROYECTO SOLAR FOTOVOLTAICO COCOTAS DE 9,9 MW | D56: =IF(ISBLANK(InfoPro!E56),"",InfoPro!E56) -> 9.9 | E56: =IF(ISBLANK(InfoPro!N56),"",InfoPro!N56) -> NO | F56: =IF(ISBLANK(InfoPro!I56),"",YEAR(InfoPro!I56)-$J$2) -> 3 | G56: 0 | H56: 0
B57: =IF(ISBLANK(InfoPro!A57),"",InfoPro!A57) -> SC_2279_A1 | C57: =IF(ISBLANK(InfoPro!B57),"",InfoPro!B57) -> PROYECTO SOLAR FOTOVOLTAICO COCOTAS DE 9,9 MW | D57: =IF(ISBLANK(InfoPro!E57),"",InfoPro!E57) -> 9.9 | E57: =IF(ISBLANK(InfoPro!N57),"",InfoPro!N57) -> NO | F57: =IF(ISBLANK(InfoPro!I57),"",YEAR(InfoPro!I57)-$J$2) -> 3 | G57: 0 | H57: 0
B58: =IF(ISBLANK(InfoPro!A58),"",InfoPro!A58) -> SC_2319_A2 | C58: =IF(ISBLANK(InfoPro!B58),"",InfoPro!B58) -> SOLAR FOTOVOLTAICO MORRISON DE 278,6 MW | D58: =IF(ISBLANK(InfoPro!E58),"",InfoPro!E58) -> 278.6 | E58: =IF(ISBLANK(InfoPro!N58),"",InfoPro!N58) -> NO | F58: =IF(ISBLANK(InfoPro!I58),"",YEAR(InfoPro!I58)-$J$2) -> 3 | G58: 0 | H58: 0
B59: =IF(ISBLANK(InfoPro!A59),"",InfoPro!A59) -> SC_2319_A1 | C59: =IF(ISBLANK(InfoPro!B59),"",InfoPro!B59) -> SOLAR FOTOVOLTAICO MORRISON DE 278,6 MW | D59: =IF(ISBLANK(InfoPro!E59),"",InfoPro!E59) -> 278.6 | E59: =IF(ISBLANK(InfoPro!N59),"",InfoPro!N59) -> NO | F59: =IF(ISBLANK(InfoPro!I59),"",YEAR(InfoPro!I59)-$J$2) -> 3 | G59: 0 | H59: 0
B60: =IF(ISBLANK(InfoPro!A60),"",InfoPro!A60) -> SC_1891_A1 | C60: =IF(ISBLANK(InfoPro!B60),"",InfoPro!B60) -> KAIROS SOLAR PARK II - 19,9 MW | D60: =IF(ISBLANK(InfoPro!E60),"",InfoPro!E60) -> 19.9 | E60: =IF(ISBLANK(InfoPro!N60),"",InfoPro!N60) -> SI | F60: =IF(ISBLANK(InfoPro!I60),"",YEAR(InfoPro!I60)-$J$2) -> 0 | G60: =IF(E60="SI",100,IF(E60="NO",0,"")) -> 100 | H60: =IF(G60="","",(G60)) -> 100
B61: =IF(ISBLANK(InfoPro!A61),"",InfoPro!A61) -> SC_1891_A2 | C61: =IF(ISBLANK(InfoPro!B61),"",InfoPro!B61) -> KAIROS SOLAR PARK II - 19,9 MW | D61: =IF(ISBLANK(InfoPro!E61),"",InfoPro!E61) -> 19.9 | E61: =IF(ISBLANK(InfoPro!N61),"",InfoPro!N61) -> SI | F61: =IF(ISBLANK(InfoPro!I61),"",YEAR(InfoPro!I61)-$J$2) -> 0 | G61: 100 | H61: 100
B62: =IF(ISBLANK(InfoPro!A60),"",InfoPro!A60) -> SC_1891_A1 | C62: =IF(ISBLANK(InfoPro!B60),"",InfoPro!B60) -> KAIROS SOLAR PARK II - 19,9 MW | D62: =IF(ISBLANK(InfoPro!E60),"",InfoPro!E60) -> 19.9 | E62: =IF(ISBLANK(InfoPro!N60),"",InfoPro!N60) -> SI | F62: =IF(ISBLANK(InfoPro!I60),"",YEAR(InfoPro!I60)-$J$2) -> 0 | G62: 100 | H62: 100
B63: =IF(ISBLANK(InfoPro!A61),"",InfoPro!A61) -> SC_1891_A2 | C63: =IF(ISBLANK(InfoPro!B61),"",InfoPro!B61) -> KAIROS SOLAR PARK II - 19,9 MW | D63: =IF(ISBLANK(InfoPro!E61),"",InfoPro!E61) -> 19.9 | E63: =IF(ISBLANK(InfoPro!N61),"",InfoPro!N61) -> SI | F63: =IF(ISBLANK(InfoPro!I61),"",YEAR(InfoPro!I61)-$J$2) -> 0 | G63: 100 | H63: 100
B64: =IF(ISBLANK(InfoPro!A62),"",InfoPro!A62) -> SC_2239_A1 | C64: =IF(ISBLANK(InfoPro!B62),"",InfoPro!B62) -> PCH PANACEA III - 9,9 MW | D64: =IF(ISBLANK(InfoPro!E62),"",InfoPro!E62) -> 9.9 | E64: =IF(ISBLANK(InfoPro!N62),"",InfoPro!N62) -> SI | F64: =IF(ISBLANK(InfoPro!I62),"",YEAR(InfoPro!I62)-$J$2) -> 2 | G64: 100 | H64: 100
B65: =IF(ISBLANK(InfoPro!A63),"",InfoPro!A63) ->  | C65: =IF(ISBLANK(InfoPro!B63),"",InfoPro!B63) ->  | D65: =IF(ISBLANK(InfoPro!E63),"",InfoPro!E63) ->  | E65: =IF(ISBLANK(InfoPro!N63),"",InfoPro!N63) ->  | F65: =IF(ISBLANK(InfoPro!I63),"",YEAR(InfoPro!I63)-$J$2) -> 
B66: =IF(ISBLANK(InfoPro!A64),"",InfoPro!A64) ->  | C66: =IF(ISBLANK(InfoPro!B64),"",InfoPro!B64) ->  | D66: =IF(ISBLANK(InfoPro!E64),"",InfoPro!E64) ->  | E66: =IF(ISBLANK(InfoPro!N64),"",InfoPro!N64) ->  | F66: =IF(ISBLANK(InfoPro!I64),"",YEAR(InfoPro!I64)-$J$2) -> 
B67: =IF(ISBLANK(InfoPro!A65),"",InfoPro!A65) ->  | C67: =IF(ISBLANK(InfoPro!B65),"",InfoPro!B65) ->  | D67: =IF(ISBLANK(InfoPro!E65),"",InfoPro!E65) ->  | E67: =IF(ISBLANK(InfoPro!N65),"",InfoPro!N65) ->  | F67: =IF(ISBLANK(InfoPro!I65),"",YEAR(InfoPro!I65)-$J$2) ->  | G67: =IF(E67="SI",100,IF(E67="NO",0,"")) ->  | H67: =IF(G67="","",(G67)) -> 
B68: =IF(ISBLANK(InfoPro!A66),"",InfoPro!A66) ->  | C68: =IF(ISBLANK(InfoPro!B66),"",InfoPro!B66) ->  | D68: =IF(ISBLANK(InfoPro!E66),"",InfoPro!E66) ->  | E68: =IF(ISBLANK(InfoPro!N66),"",InfoPro!N66) ->  | F68: =IF(ISBLANK(InfoPro!I66),"",YEAR(InfoPro!I66)-$J$2) -> 
B69: =IF(ISBLANK(InfoPro!A67),"",InfoPro!A67) ->  | C69: =IF(ISBLANK(InfoPro!B67),"",InfoPro!B67) ->  | D69: =IF(ISBLANK(InfoPro!E67),"",InfoPro!E67) ->  | E69: =IF(ISBLANK(InfoPro!N67),"",InfoPro!N67) ->  | F69: =IF(ISBLANK(InfoPro!I67),"",YEAR(InfoPro!I67)-$J$2) -> 
B70: =IF(ISBLANK(InfoPro!A68),"",InfoPro!A68) ->  | C70: =IF(ISBLANK(InfoPro!B68),"",InfoPro!B68) ->  | D70: =IF(ISBLANK(InfoPro!E68),"",InfoPro!E68) ->  | E70: =IF(ISBLANK(InfoPro!N68),"",InfoPro!N68) ->  | F70: =IF(ISBLANK(InfoPro!I68),"",YEAR(InfoPro!I68)-$J$2) -> 
B71: =IF(ISBLANK(InfoPro!A69),"",InfoPro!A69) ->  | C71: =IF(ISBLANK(InfoPro!B69),"",InfoPro!B69) ->  | D71: =IF(ISBLANK(InfoPro!E69),"",InfoPro!E69) ->  | E71: =IF(ISBLANK(InfoPro!N69),"",InfoPro!N69) ->  | F71: =IF(ISBLANK(InfoPro!I69),"",YEAR(InfoPro!I69)-$J$2) -> 
B72: =IF(ISBLANK(InfoPro!A70),"",InfoPro!A70) ->  | C72: =IF(ISBLANK(InfoPro!B70),"",InfoPro!B70) ->  | D72: =IF(ISBLANK(InfoPro!E70),"",InfoPro!E70) ->  | E72: =IF(ISBLANK(InfoPro!N70),"",InfoPro!N70) ->  | F72: =IF(ISBLANK(InfoPro!I70),"",YEAR(InfoPro!I70)-$J$2) -> 
B73: =IF(ISBLANK(InfoPro!A71),"",InfoPro!A71) ->  | C73: =IF(ISBLANK(InfoPro!B71),"",InfoPro!B71) ->  | D73: =IF(ISBLANK(InfoPro!E71),"",InfoPro!E71) ->  | E73: =IF(ISBLANK(InfoPro!N71),"",InfoPro!N71) ->  | F73: =IF(ISBLANK(InfoPro!I71),"",YEAR(InfoPro!I71)-$J$2) -> 
B74: =IF(ISBLANK(InfoPro!A72),"",InfoPro!A72) ->  | C74: =IF(ISBLANK(InfoPro!B72),"",InfoPro!B72) ->  | D74: =IF(ISBLANK(InfoPro!E72),"",InfoPro!E72) ->  | E74: =IF(ISBLANK(InfoPro!N72),"",InfoPro!N72) ->  | F74: =IF(ISBLANK(InfoPro!I72),"",YEAR(InfoPro!I72)-$J$2) -> 
B75: =IF(ISBLANK(InfoPro!A73),"",InfoPro!A73) ->  | C75: =IF(ISBLANK(InfoPro!B73),"",InfoPro!B73) ->  | D75: =IF(ISBLANK(InfoPro!E73),"",InfoPro!E73) ->  | E75: =IF(ISBLANK(InfoPro!N73),"",InfoPro!N73) ->  | F75: =IF(ISBLANK(InfoPro!I73),"",YEAR(InfoPro!I73)-$J$2) -> 
B76: =IF(ISBLANK(InfoPro!A74),"",InfoPro!A74) ->  | C76: =IF(ISBLANK(InfoPro!B74),"",InfoPro!B74) ->  | D76: =IF(ISBLANK(InfoPro!E74),"",InfoPro!E74) ->  | E76: =IF(ISBLANK(InfoPro!N74),"",InfoPro!N74) ->  | F76: =IF(ISBLANK(InfoPro!I74),"",YEAR(InfoPro!I74)-$J$2) -> 
B77: =IF(ISBLANK(InfoPro!A75),"",InfoPro!A75) ->  | C77: =IF(ISBLANK(InfoPro!B75),"",InfoPro!B75) ->  | D77: =IF(ISBLANK(InfoPro!E75),"",InfoPro!E75) ->  | E77: =IF(ISBLANK(InfoPro!N75),"",InfoPro!N75) ->  | F77: =IF(ISBLANK(InfoPro!I75),"",YEAR(InfoPro!I75)-$J$2) -> 
B78: =IF(ISBLANK(InfoPro!A76),"",InfoPro!A76) ->  | C78: =IF(ISBLANK(InfoPro!B76),"",InfoPro!B76) ->  | D78: =IF(ISBLANK(InfoPro!E76),"",InfoPro!E76) ->  | E78: =IF(ISBLANK(InfoPro!N76),"",InfoPro!N76) ->  | F78: =IF(ISBLANK(InfoPro!I76),"",YEAR(InfoPro!I76)-$J$2) -> 
B79: =IF(ISBLANK(InfoPro!A77),"",InfoPro!A77) ->  | C79: =IF(ISBLANK(InfoPro!B77),"",InfoPro!B77) ->  | D79: =IF(ISBLANK(InfoPro!E77),"",InfoPro!E77) ->  | E79: =IF(ISBLANK(InfoPro!N77),"",InfoPro!N77) ->  | F79: =IF(ISBLANK(InfoPro!I77),"",YEAR(InfoPro!I77)-$J$2) -> 
B80: =IF(ISBLANK(InfoPro!A78),"",InfoPro!A78) ->  | C80: =IF(ISBLANK(InfoPro!B78),"",InfoPro!B78) ->  | D80: =IF(ISBLANK(InfoPro!E78),"",InfoPro!E78) ->  | E80: =IF(ISBLANK(InfoPro!N78),"",InfoPro!N78) ->  | F80: =IF(ISBLANK(InfoPro!I78),"",YEAR(InfoPro!I78)-$J$2) -> 
B81: =IF(ISBLANK(InfoPro!A79),"",InfoPro!A79) ->  | C81: =IF(ISBLANK(InfoPro!B79),"",InfoPro!B79) ->  | D81: =IF(ISBLANK(InfoPro!E79),"",InfoPro!E79) ->  | E81: =IF(ISBLANK(InfoPro!N79),"",InfoPro!N79) ->  | F81: =IF(ISBLANK(InfoPro!I79),"",YEAR(InfoPro!I79)-$J$2) -> 
B82: =IF(ISBLANK(InfoPro!A80),"",InfoPro!A80) ->  | C82: =IF(ISBLANK(InfoPro!B80),"",InfoPro!B80) ->  | D82: =IF(ISBLANK(InfoPro!E80),"",InfoPro!E80) ->  | E82: =IF(ISBLANK(InfoPro!N80),"",InfoPro!N80) ->  | F82: =IF(ISBLANK(InfoPro!I80),"",YEAR(InfoPro!I80)-$J$2) -> 
B83: =IF(ISBLANK(InfoPro!A81),"",InfoPro!A81) ->  | C83: =IF(ISBLANK(InfoPro!B81),"",InfoPro!B81) ->  | D83: =IF(ISBLANK(InfoPro!E81),"",InfoPro!E81) ->  | E83: =IF(ISBLANK(InfoPro!N81),"",InfoPro!N81) ->  | F83: =IF(ISBLANK(InfoPro!I81),"",YEAR(InfoPro!I81)-$J$2) -> 
B84: =IF(ISBLANK(InfoPro!A82),"",InfoPro!A82) ->  | C84: =IF(ISBLANK(InfoPro!B82),"",InfoPro!B82) ->  | D84: =IF(ISBLANK(InfoPro!E82),"",InfoPro!E82) ->  | E84: =IF(ISBLANK(InfoPro!N82),"",InfoPro!N82) ->  | F84: =IF(ISBLANK(InfoPro!I82),"",YEAR(InfoPro!I82)-$J$2) -> 
B85: =IF(ISBLANK(InfoPro!A83),"",InfoPro!A83) ->  | C85: =IF(ISBLANK(InfoPro!B83),"",InfoPro!B83) ->  | D85: =IF(ISBLANK(InfoPro!E83),"",InfoPro!E83) ->  | E85: =IF(ISBLANK(InfoPro!N83),"",InfoPro!N83) ->  | F85: =IF(ISBLANK(InfoPro!I83),"",YEAR(InfoPro!I83)-$J$2) -> 
B86: =IF(ISBLANK(InfoPro!A84),"",InfoPro!A84) ->  | C86: =IF(ISBLANK(InfoPro!B84),"",InfoPro!B84) ->  | D86: =IF(ISBLANK(InfoPro!E84),"",InfoPro!E84) ->  | E86: =IF(ISBLANK(InfoPro!N84),"",InfoPro!N84) ->  | F86: =IF(ISBLANK(InfoPro!I84),"",YEAR(InfoPro!I84)-$J$2) -> 
B87: =IF(ISBLANK(InfoPro!A85),"",InfoPro!A85) ->  | C87: =IF(ISBLANK(InfoPro!B85),"",InfoPro!B85) ->  | D87: =IF(ISBLANK(InfoPro!E85),"",InfoPro!E85) ->  | E87: =IF(ISBLANK(InfoPro!N85),"",InfoPro!N85) ->  | F87: =IF(ISBLANK(InfoPro!I85),"",YEAR(InfoPro!I85)-$J$2) -> 
B88: =IF(ISBLANK(InfoPro!A86),"",InfoPro!A86) ->  | C88: =IF(ISBLANK(InfoPro!B86),"",InfoPro!B86) ->  | D88: =IF(ISBLANK(InfoPro!E86),"",InfoPro!E86) ->  | E88: =IF(ISBLANK(InfoPro!N86),"",InfoPro!N86) ->  | F88: =IF(ISBLANK(InfoPro!I86),"",YEAR(InfoPro!I86)-$J$2) -> 
B89: =IF(ISBLANK(InfoPro!A87),"",InfoPro!A87) ->  | C89: =IF(ISBLANK(InfoPro!B87),"",InfoPro!B87) ->  | D89: =IF(ISBLANK(InfoPro!E87),"",InfoPro!E87) ->  | E89: =IF(ISBLANK(InfoPro!N87),"",InfoPro!N87) ->  | F89: =IF(ISBLANK(InfoPro!I87),"",YEAR(InfoPro!I87)-$J$2) -> 
B90: =IF(ISBLANK(InfoPro!A88),"",InfoPro!A88) ->  | C90: =IF(ISBLANK(InfoPro!B88),"",InfoPro!B88) ->  | D90: =IF(ISBLANK(InfoPro!E88),"",InfoPro!E88) ->  | E90: =IF(ISBLANK(InfoPro!N88),"",InfoPro!N88) ->  | F90: =IF(ISBLANK(InfoPro!I88),"",YEAR(InfoPro!I88)-$J$2) -> 
B91: =IF(ISBLANK(InfoPro!A89),"",InfoPro!A89) ->  | C91: =IF(ISBLANK(InfoPro!B89),"",InfoPro!B89) ->  | D91: =IF(ISBLANK(InfoPro!E89),"",InfoPro!E89) ->  | E91: =IF(ISBLANK(InfoPro!N89),"",InfoPro!N89) ->  | F91: =IF(ISBLANK(InfoPro!I89),"",YEAR(InfoPro!I89)-$J$2) -> 
B92: =IF(ISBLANK(InfoPro!A90),"",InfoPro!A90) ->  | C92: =IF(ISBLANK(InfoPro!B90),"",InfoPro!B90) ->  | D92: =IF(ISBLANK(InfoPro!E90),"",InfoPro!E90) ->  | E92: =IF(ISBLANK(InfoPro!N90),"",InfoPro!N90) ->  | F92: =IF(ISBLANK(InfoPro!I90),"",YEAR(InfoPro!I90)-$J$2) -> 
B93: =IF(ISBLANK(InfoPro!A91),"",InfoPro!A91) ->  | C93: =IF(ISBLANK(InfoPro!B91),"",InfoPro!B91) ->  | D93: =IF(ISBLANK(InfoPro!E91),"",InfoPro!E91) ->  | E93: =IF(ISBLANK(InfoPro!N91),"",InfoPro!N91) ->  | F93: =IF(ISBLANK(InfoPro!I91),"",YEAR(InfoPro!I91)-$J$2) -> 
B94: =IF(ISBLANK(InfoPro!A92),"",InfoPro!A92) ->  | C94: =IF(ISBLANK(InfoPro!B92),"",InfoPro!B92) ->  | D94: =IF(ISBLANK(InfoPro!E92),"",InfoPro!E92) ->  | E94: =IF(ISBLANK(InfoPro!N92),"",InfoPro!N92) ->  | F94: =IF(ISBLANK(InfoPro!I92),"",YEAR(InfoPro!I92)-$J$2) -> 
B95: =IF(ISBLANK(InfoPro!A93),"",InfoPro!A93) ->  | C95: =IF(ISBLANK(InfoPro!B93),"",InfoPro!B93) ->  | D95: =IF(ISBLANK(InfoPro!E93),"",InfoPro!E93) ->  | E95: =IF(ISBLANK(InfoPro!N93),"",InfoPro!N93) ->  | F95: =IF(ISBLANK(InfoPro!I93),"",YEAR(InfoPro!I93)-$J$2) -> 
B96: =IF(ISBLANK(InfoPro!A94),"",InfoPro!A94) ->  | C96: =IF(ISBLANK(InfoPro!B94),"",InfoPro!B94) ->  | D96: =IF(ISBLANK(InfoPro!E94),"",InfoPro!E94) ->  | E96: =IF(ISBLANK(InfoPro!N94),"",InfoPro!N94) ->  | F96: =IF(ISBLANK(InfoPro!I94),"",YEAR(InfoPro!I94)-$J$2) -> 
B97: =IF(ISBLANK(InfoPro!A95),"",InfoPro!A95) ->  | C97: =IF(ISBLANK(InfoPro!B95),"",InfoPro!B95) ->  | D97: =IF(ISBLANK(InfoPro!E95),"",InfoPro!E95) ->  | E97: =IF(ISBLANK(InfoPro!N95),"",InfoPro!N95) ->  | F97: =IF(ISBLANK(InfoPro!I95),"",YEAR(InfoPro!I95)-$J$2) -> 
B98: =IF(ISBLANK(InfoPro!A96),"",InfoPro!A96) ->  | C98: =IF(ISBLANK(InfoPro!B96),"",InfoPro!B96) ->  | D98: =IF(ISBLANK(InfoPro!E96),"",InfoPro!E96) ->  | E98: =IF(ISBLANK(InfoPro!N96),"",InfoPro!N96) ->  | F98: =IF(ISBLANK(InfoPro!I96),"",YEAR(InfoPro!I96)-$J$2) -> 
B99: =IF(ISBLANK(InfoPro!A97),"",InfoPro!A97) ->  | C99: =IF(ISBLANK(InfoPro!B97),"",InfoPro!B97) ->  | D99: =IF(ISBLANK(InfoPro!E97),"",InfoPro!E97) ->  | E99: =IF(ISBLANK(InfoPro!N97),"",InfoPro!N97) ->  | F99: =IF(ISBLANK(InfoPro!I97),"",YEAR(InfoPro!I97)-$J$2) -> 
B100: =IF(ISBLANK(InfoPro!A98),"",InfoPro!A98) ->  | C100: =IF(ISBLANK(InfoPro!B98),"",InfoPro!B98) ->  | D100: =IF(ISBLANK(InfoPro!E98),"",InfoPro!E98) ->  | E100: =IF(ISBLANK(InfoPro!N98),"",InfoPro!N98) ->  | F100: =IF(ISBLANK(InfoPro!I98),"",YEAR(InfoPro!I98)-$J$2) -> 
B101: =IF(ISBLANK(InfoPro!A99),"",InfoPro!A99) ->  | C101: =IF(ISBLANK(InfoPro!B99),"",InfoPro!B99) ->  | D101: =IF(ISBLANK(InfoPro!E99),"",InfoPro!E99) ->  | E101: =IF(ISBLANK(InfoPro!N99),"",InfoPro!N99) ->  | F101: =IF(ISBLANK(InfoPro!I99),"",YEAR(InfoPro!I99)-$J$2) -> 
B102: =IF(ISBLANK(InfoPro!A100),"",InfoPro!A100) ->  | C102: =IF(ISBLANK(InfoPro!B100),"",InfoPro!B100) ->  | D102: =IF(ISBLANK(InfoPro!E100),"",InfoPro!E100) ->  | E102: =IF(ISBLANK(InfoPro!N100),"",InfoPro!N100) ->  | F102: =IF(ISBLANK(InfoPro!I100),"",YEAR(InfoPro!I100)-$J$2) -> 
B103: =IF(ISBLANK(InfoPro!A101),"",InfoPro!A101) ->  | C103: =IF(ISBLANK(InfoPro!B101),"",InfoPro!B101) ->  | D103: =IF(ISBLANK(InfoPro!E101),"",InfoPro!E101) ->  | E103: =IF(ISBLANK(InfoPro!N101),"",InfoPro!N101) ->  | F103: =IF(ISBLANK(InfoPro!I101),"",YEAR(InfoPro!I101)-$J$2) -> 
B104: =IF(ISBLANK(InfoPro!A102),"",InfoPro!A102) ->  | C104: =IF(ISBLANK(InfoPro!B102),"",InfoPro!B102) ->  | D104: =IF(ISBLANK(InfoPro!E102),"",InfoPro!E102) ->  | E104: =IF(ISBLANK(InfoPro!N102),"",InfoPro!N102) ->  | F104: =IF(ISBLANK(InfoPro!I102),"",YEAR(InfoPro!I102)-$J$2) -> 
B105: =IF(ISBLANK(InfoPro!A103),"",InfoPro!A103) ->  | C105: =IF(ISBLANK(InfoPro!B103),"",InfoPro!B103) ->  | D105: =IF(ISBLANK(InfoPro!E103),"",InfoPro!E103) ->  | E105: =IF(ISBLANK(InfoPro!N103),"",InfoPro!N103) ->  | F105: =IF(ISBLANK(InfoPro!I103),"",YEAR(InfoPro!I103)-$J$2) -> 
B106: =IF(ISBLANK(InfoPro!A104),"",InfoPro!A104) ->  | C106: =IF(ISBLANK(InfoPro!B104),"",InfoPro!B104) ->  | D106: =IF(ISBLANK(InfoPro!E104),"",InfoPro!E104) ->  | E106: =IF(ISBLANK(InfoPro!N104),"",InfoPro!N104) ->  | F106: =IF(ISBLANK(InfoPro!I104),"",YEAR(InfoPro!I104)-$J$2) -> 
B107: =IF(ISBLANK(InfoPro!A105),"",InfoPro!A105) ->  | C107: =IF(ISBLANK(InfoPro!B105),"",InfoPro!B105) ->  | D107: =IF(ISBLANK(InfoPro!E105),"",InfoPro!E105) ->  | E107: =IF(ISBLANK(InfoPro!N105),"",InfoPro!N105) ->  | F107: =IF(ISBLANK(InfoPro!I105),"",YEAR(InfoPro!I105)-$J$2) -> 
B108: =IF(ISBLANK(InfoPro!A106),"",InfoPro!A106) ->  | C108: =IF(ISBLANK(InfoPro!B106),"",InfoPro!B106) ->  | D108: =IF(ISBLANK(InfoPro!E106),"",InfoPro!E106) ->  | E108: =IF(ISBLANK(InfoPro!N106),"",InfoPro!N106) ->  | F108: =IF(ISBLANK(InfoPro!I106),"",YEAR(InfoPro!I106)-$J$2) -> 
B109: =IF(ISBLANK(InfoPro!A107),"",InfoPro!A107) ->  | C109: =IF(ISBLANK(InfoPro!B107),"",InfoPro!B107) ->  | D109: =IF(ISBLANK(InfoPro!E107),"",InfoPro!E107) ->  | E109: =IF(ISBLANK(InfoPro!N107),"",InfoPro!N107) ->  | F109: =IF(ISBLANK(InfoPro!I107),"",YEAR(InfoPro!I107)-$J$2) -> 
B110: =IF(ISBLANK(InfoPro!A108),"",InfoPro!A108) ->  | C110: =IF(ISBLANK(InfoPro!B108),"",InfoPro!B108) ->  | D110: =IF(ISBLANK(InfoPro!E108),"",InfoPro!E108) ->  | E110: =IF(ISBLANK(InfoPro!N108),"",InfoPro!N108) ->  | F110: =IF(ISBLANK(InfoPro!I108),"",YEAR(InfoPro!I108)-$J$2) -> 
B111: =IF(ISBLANK(InfoPro!A109),"",InfoPro!A109) ->  | C111: =IF(ISBLANK(InfoPro!B109),"",InfoPro!B109) ->  | D111: =IF(ISBLANK(InfoPro!E109),"",InfoPro!E109) ->  | E111: =IF(ISBLANK(InfoPro!N109),"",InfoPro!N109) ->  | F111: =IF(ISBLANK(InfoPro!I109),"",YEAR(InfoPro!I109)-$J$2) -> 
B112: =IF(ISBLANK(InfoPro!A110),"",InfoPro!A110) ->  | C112: =IF(ISBLANK(InfoPro!B110),"",InfoPro!B110) ->  | D112: =IF(ISBLANK(InfoPro!E110),"",InfoPro!E110) ->  | E112: =IF(ISBLANK(InfoPro!N110),"",InfoPro!N110) ->  | F112: =IF(ISBLANK(InfoPro!I110),"",YEAR(InfoPro!I110)-$J$2) -> 
B113: =IF(ISBLANK(InfoPro!A111),"",InfoPro!A111) ->  | C113: =IF(ISBLANK(InfoPro!B111),"",InfoPro!B111) ->  | D113: =IF(ISBLANK(InfoPro!E111),"",InfoPro!E111) ->  | E113: =IF(ISBLANK(InfoPro!N111),"",InfoPro!N111) ->  | F113: =IF(ISBLANK(InfoPro!I111),"",YEAR(InfoPro!I111)-$J$2) -> 
B114: =IF(ISBLANK(InfoPro!A112),"",InfoPro!A112) ->  | C114: =IF(ISBLANK(InfoPro!B112),"",InfoPro!B112) ->  | D114: =IF(ISBLANK(InfoPro!E112),"",InfoPro!E112) ->  | E114: =IF(ISBLANK(InfoPro!N112),"",InfoPro!N112) ->  | F114: =IF(ISBLANK(InfoPro!I112),"",YEAR(InfoPro!I112)-$J$2) -> 
B115: =IF(ISBLANK(InfoPro!A113),"",InfoPro!A113) ->  | C115: =IF(ISBLANK(InfoPro!B113),"",InfoPro!B113) ->  | D115: =IF(ISBLANK(InfoPro!E113),"",InfoPro!E113) ->  | E115: =IF(ISBLANK(InfoPro!N113),"",InfoPro!N113) ->  | F115: =IF(ISBLANK(InfoPro!I113),"",YEAR(InfoPro!I113)-$J$2) -> 
B116: =IF(ISBLANK(InfoPro!A114),"",InfoPro!A114) ->  | C116: =IF(ISBLANK(InfoPro!B114),"",InfoPro!B114) ->  | D116: =IF(ISBLANK(InfoPro!E114),"",InfoPro!E114) ->  | E116: =IF(ISBLANK(InfoPro!N114),"",InfoPro!N114) ->  | F116: =IF(ISBLANK(InfoPro!I114),"",YEAR(InfoPro!I114)-$J$2) -> 
B117: =IF(ISBLANK(InfoPro!A115),"",InfoPro!A115) ->  | C117: =IF(ISBLANK(InfoPro!B115),"",InfoPro!B115) ->  | D117: =IF(ISBLANK(InfoPro!E115),"",InfoPro!E115) ->  | E117: =IF(ISBLANK(InfoPro!N115),"",InfoPro!N115) ->  | F117: =IF(ISBLANK(InfoPro!I115),"",YEAR(InfoPro!I115)-$J$2) -> 
B118: =IF(ISBLANK(InfoPro!A116),"",InfoPro!A116) ->  | C118: =IF(ISBLANK(InfoPro!B116),"",InfoPro!B116) ->  | D118: =IF(ISBLANK(InfoPro!E116),"",InfoPro!E116) ->  | E118: =IF(ISBLANK(InfoPro!N116),"",InfoPro!N116) ->  | F118: =IF(ISBLANK(InfoPro!I116),"",YEAR(InfoPro!I116)-$J$2) -> 
B119: =IF(ISBLANK(InfoPro!A117),"",InfoPro!A117) ->  | C119: =IF(ISBLANK(InfoPro!B117),"",InfoPro!B117) ->  | D119: =IF(ISBLANK(InfoPro!E117),"",InfoPro!E117) ->  | E119: =IF(ISBLANK(InfoPro!N117),"",InfoPro!N117) ->  | F119: =IF(ISBLANK(InfoPro!I117),"",YEAR(InfoPro!I117)-$J$2) -> 
B120: =IF(ISBLANK(InfoPro!A118),"",InfoPro!A118) ->  | C120: =IF(ISBLANK(InfoPro!B118),"",InfoPro!B118) ->  | D120: =IF(ISBLANK(InfoPro!E118),"",InfoPro!E118) ->  | E120: =IF(ISBLANK(InfoPro!N118),"",InfoPro!N118) ->  | F120: =IF(ISBLANK(InfoPro!I118),"",YEAR(InfoPro!I118)-$J$2) -> 
B121: =IF(ISBLANK(InfoPro!A119),"",InfoPro!A119) ->  | C121: =IF(ISBLANK(InfoPro!B119),"",InfoPro!B119) ->  | D121: =IF(ISBLANK(InfoPro!E119),"",InfoPro!E119) ->  | E121: =IF(ISBLANK(InfoPro!N119),"",InfoPro!N119) ->  | F121: =IF(ISBLANK(InfoPro!I119),"",YEAR(InfoPro!I119)-$J$2) -> 
B122: =IF(ISBLANK(InfoPro!A120),"",InfoPro!A120) ->  | C122: =IF(ISBLANK(InfoPro!B120),"",InfoPro!B120) ->  | D122: =IF(ISBLANK(InfoPro!E120),"",InfoPro!E120) ->  | E122: =IF(ISBLANK(InfoPro!N120),"",InfoPro!N120) ->  | F122: =IF(ISBLANK(InfoPro!I120),"",YEAR(InfoPro!I120)-$J$2) -> 
B123: =IF(ISBLANK(InfoPro!A121),"",InfoPro!A121) ->  | C123: =IF(ISBLANK(InfoPro!B121),"",InfoPro!B121) ->  | D123: =IF(ISBLANK(InfoPro!E121),"",InfoPro!E121) ->  | E123: =IF(ISBLANK(InfoPro!N121),"",InfoPro!N121) ->  | F123: =IF(ISBLANK(InfoPro!I121),"",YEAR(InfoPro!I121)-$J$2) -> 
B124: =IF(ISBLANK(InfoPro!A122),"",InfoPro!A122) ->  | C124: =IF(ISBLANK(InfoPro!B122),"",InfoPro!B122) ->  | D124: =IF(ISBLANK(InfoPro!E122),"",InfoPro!E122) ->  | E124: =IF(ISBLANK(InfoPro!N122),"",InfoPro!N122) ->  | F124: =IF(ISBLANK(InfoPro!I122),"",YEAR(InfoPro!I122)-$J$2) -> 
B125: =IF(ISBLANK(InfoPro!A123),"",InfoPro!A123) ->  | C125: =IF(ISBLANK(InfoPro!B123),"",InfoPro!B123) ->  | D125: =IF(ISBLANK(InfoPro!E123),"",InfoPro!E123) ->  | E125: =IF(ISBLANK(InfoPro!N123),"",InfoPro!N123) ->  | F125: =IF(ISBLANK(InfoPro!I123),"",YEAR(InfoPro!I123)-$J$2) -> 
B126: =IF(ISBLANK(InfoPro!A124),"",InfoPro!A124) ->  | C126: =IF(ISBLANK(InfoPro!B124),"",InfoPro!B124) ->  | D126: =IF(ISBLANK(InfoPro!E124),"",InfoPro!E124) ->  | E126: =IF(ISBLANK(InfoPro!N124),"",InfoPro!N124) ->  | F126: =IF(ISBLANK(InfoPro!I124),"",YEAR(InfoPro!I124)-$J$2) -> 
B127: =IF(ISBLANK(InfoPro!A125),"",InfoPro!A125) ->  | C127: =IF(ISBLANK(InfoPro!B125),"",InfoPro!B125) ->  | D127: =IF(ISBLANK(InfoPro!E125),"",InfoPro!E125) ->  | E127: =IF(ISBLANK(InfoPro!N125),"",InfoPro!N125) ->  | F127: =IF(ISBLANK(InfoPro!I125),"",YEAR(InfoPro!I125)-$J$2) -> 
B128: =IF(ISBLANK(InfoPro!A126),"",InfoPro!A126) ->  | C128: =IF(ISBLANK(InfoPro!B126),"",InfoPro!B126) ->  | D128: =IF(ISBLANK(InfoPro!E126),"",InfoPro!E126) ->  | E128: =IF(ISBLANK(InfoPro!N126),"",InfoPro!N126) ->  | F128: =IF(ISBLANK(InfoPro!I126),"",YEAR(InfoPro!I126)-$J$2) -> 
B129: =IF(ISBLANK(InfoPro!A127),"",InfoPro!A127) ->  | C129: =IF(ISBLANK(InfoPro!B127),"",InfoPro!B127) ->  | D129: =IF(ISBLANK(InfoPro!E127),"",InfoPro!E127) ->  | E129: =IF(ISBLANK(InfoPro!N127),"",InfoPro!N127) ->  | F129: =IF(ISBLANK(InfoPro!I127),"",YEAR(InfoPro!I127)-$J$2) -> 
B130: =IF(ISBLANK(InfoPro!A128),"",InfoPro!A128) ->  | C130: =IF(ISBLANK(InfoPro!B128),"",InfoPro!B128) ->  | D130: =IF(ISBLANK(InfoPro!E128),"",InfoPro!E128) ->  | E130: =IF(ISBLANK(InfoPro!N128),"",InfoPro!N128) ->  | F130: =IF(ISBLANK(InfoPro!I128),"",YEAR(InfoPro!I128)-$J$2) -> 
B131: =IF(ISBLANK(InfoPro!A129),"",InfoPro!A129) ->  | C131: =IF(ISBLANK(InfoPro!B129),"",InfoPro!B129) ->  | D131: =IF(ISBLANK(InfoPro!E129),"",InfoPro!E129) ->  | E131: =IF(ISBLANK(InfoPro!N129),"",InfoPro!N129) ->  | F131: =IF(ISBLANK(InfoPro!I129),"",YEAR(InfoPro!I129)-$J$2) ->  | G131: =IF(E131="SI",100,IF(E131="NO",0,"")) ->  | H131: =IF(G131="","",(G131)) -> 
B132: =IF(ISBLANK(InfoPro!A130),"",InfoPro!A130) ->  | C132: =IF(ISBLANK(InfoPro!B130),"",InfoPro!B130) ->  | D132: =IF(ISBLANK(InfoPro!E130),"",InfoPro!E130) ->  | E132: =IF(ISBLANK(InfoPro!N130),"",InfoPro!N130) ->  | F132: =IF(ISBLANK(InfoPro!I130),"",YEAR(InfoPro!I130)-$J$2) -> 
B133: =IF(ISBLANK(InfoPro!A131),"",InfoPro!A131) ->  | C133: =IF(ISBLANK(InfoPro!B131),"",InfoPro!B131) ->  | D133: =IF(ISBLANK(InfoPro!E131),"",InfoPro!E131) ->  | E133: =IF(ISBLANK(InfoPro!N131),"",InfoPro!N131) ->  | F133: =IF(ISBLANK(InfoPro!I131),"",YEAR(InfoPro!I131)-$J$2) -> 
B134: =IF(ISBLANK(InfoPro!A132),"",InfoPro!A132) ->  | C134: =IF(ISBLANK(InfoPro!B132),"",InfoPro!B132) ->  | D134: =IF(ISBLANK(InfoPro!E132),"",InfoPro!E132) ->  | E134: =IF(ISBLANK(InfoPro!N132),"",InfoPro!N132) ->  | F134: =IF(ISBLANK(InfoPro!I132),"",YEAR(InfoPro!I132)-$J$2) -> 
B135: =IF(ISBLANK(InfoPro!A133),"",InfoPro!A133) ->  | C135: =IF(ISBLANK(InfoPro!B133),"",InfoPro!B133) ->  | D135: =IF(ISBLANK(InfoPro!E133),"",InfoPro!E133) ->  | E135: =IF(ISBLANK(InfoPro!N133),"",InfoPro!N133) ->  | F135: =IF(ISBLANK(InfoPro!I133),"",YEAR(InfoPro!I133)-$J$2) -> 
B136: =IF(ISBLANK(InfoPro!A134),"",InfoPro!A134) ->  | C136: =IF(ISBLANK(InfoPro!B134),"",InfoPro!B134) ->  | D136: =IF(ISBLANK(InfoPro!E134),"",InfoPro!E134) ->  | E136: =IF(ISBLANK(InfoPro!N134),"",InfoPro!N134) ->  | F136: =IF(ISBLANK(InfoPro!I134),"",YEAR(InfoPro!I134)-$J$2) -> 
B137: =IF(ISBLANK(InfoPro!A135),"",InfoPro!A135) ->  | C137: =IF(ISBLANK(InfoPro!B135),"",InfoPro!B135) ->  | D137: =IF(ISBLANK(InfoPro!E135),"",InfoPro!E135) ->  | E137: =IF(ISBLANK(InfoPro!N135),"",InfoPro!N135) ->  | F137: =IF(ISBLANK(InfoPro!I135),"",YEAR(InfoPro!I135)-$J$2) -> 
B138: =IF(ISBLANK(InfoPro!A136),"",InfoPro!A136) ->  | C138: =IF(ISBLANK(InfoPro!B136),"",InfoPro!B136) ->  | D138: =IF(ISBLANK(InfoPro!E136),"",InfoPro!E136) ->  | E138: =IF(ISBLANK(InfoPro!N136),"",InfoPro!N136) ->  | F138: =IF(ISBLANK(InfoPro!I136),"",YEAR(InfoPro!I136)-$J$2) -> 
B139: =IF(ISBLANK(InfoPro!A137),"",InfoPro!A137) ->  | C139: =IF(ISBLANK(InfoPro!B137),"",InfoPro!B137) ->  | D139: =IF(ISBLANK(InfoPro!E137),"",InfoPro!E137) ->  | E139: =IF(ISBLANK(InfoPro!N137),"",InfoPro!N137) ->  | F139: =IF(ISBLANK(InfoPro!I137),"",YEAR(InfoPro!I137)-$J$2) -> 
B140: =IF(ISBLANK(InfoPro!A138),"",InfoPro!A138) ->  | C140: =IF(ISBLANK(InfoPro!B138),"",InfoPro!B138) ->  | D140: =IF(ISBLANK(InfoPro!E138),"",InfoPro!E138) ->  | E140: =IF(ISBLANK(InfoPro!N138),"",InfoPro!N138) ->  | F140: =IF(ISBLANK(InfoPro!I138),"",YEAR(InfoPro!I138)-$J$2) -> 
B141: =IF(ISBLANK(InfoPro!A139),"",InfoPro!A139) ->  | C141: =IF(ISBLANK(InfoPro!B139),"",InfoPro!B139) ->  | D141: =IF(ISBLANK(InfoPro!E139),"",InfoPro!E139) ->  | E141: =IF(ISBLANK(InfoPro!N139),"",InfoPro!N139) ->  | F141: =IF(ISBLANK(InfoPro!I139),"",YEAR(InfoPro!I139)-$J$2) -> 
B142: =IF(ISBLANK(InfoPro!A140),"",InfoPro!A140) ->  | C142: =IF(ISBLANK(InfoPro!B140),"",InfoPro!B140) ->  | D142: =IF(ISBLANK(InfoPro!E140),"",InfoPro!E140) ->  | E142: =IF(ISBLANK(InfoPro!N140),"",InfoPro!N140) ->  | F142: =IF(ISBLANK(InfoPro!I140),"",YEAR(InfoPro!I140)-$J$2) -> 
B143: =IF(ISBLANK(InfoPro!A141),"",InfoPro!A141) ->  | C143: =IF(ISBLANK(InfoPro!B141),"",InfoPro!B141) ->  | D143: =IF(ISBLANK(InfoPro!E141),"",InfoPro!E141) ->  | E143: =IF(ISBLANK(InfoPro!N141),"",InfoPro!N141) ->  | F143: =IF(ISBLANK(InfoPro!I141),"",YEAR(InfoPro!I141)-$J$2) -> 
B144: =IF(ISBLANK(InfoPro!A142),"",InfoPro!A142) ->  | C144: =IF(ISBLANK(InfoPro!B142),"",InfoPro!B142) ->  | D144: =IF(ISBLANK(InfoPro!E142),"",InfoPro!E142) ->  | E144: =IF(ISBLANK(InfoPro!N142),"",InfoPro!N142) ->  | F144: =IF(ISBLANK(InfoPro!I142),"",YEAR(InfoPro!I142)-$J$2) -> 
B145: =IF(ISBLANK(InfoPro!A143),"",InfoPro!A143) ->  | C145: =IF(ISBLANK(InfoPro!B143),"",InfoPro!B143) ->  | D145: =IF(ISBLANK(InfoPro!E143),"",InfoPro!E143) ->  | E145: =IF(ISBLANK(InfoPro!N143),"",InfoPro!N143) ->  | F145: =IF(ISBLANK(InfoPro!I143),"",YEAR(InfoPro!I143)-$J$2) -> 
B146: =IF(ISBLANK(InfoPro!A144),"",InfoPro!A144) ->  | C146: =IF(ISBLANK(InfoPro!B144),"",InfoPro!B144) ->  | D146: =IF(ISBLANK(InfoPro!E144),"",InfoPro!E144) ->  | E146: =IF(ISBLANK(InfoPro!N144),"",InfoPro!N144) ->  | F146: =IF(ISBLANK(InfoPro!I144),"",YEAR(InfoPro!I144)-$J$2) -> 
B147: =IF(ISBLANK(InfoPro!A145),"",InfoPro!A145) ->  | C147: =IF(ISBLANK(InfoPro!B145),"",InfoPro!B145) ->  | D147: =IF(ISBLANK(InfoPro!E145),"",InfoPro!E145) ->  | E147: =IF(ISBLANK(InfoPro!N145),"",InfoPro!N145) ->  | F147: =IF(ISBLANK(InfoPro!I145),"",YEAR(InfoPro!I145)-$J$2) -> 
B148: =IF(ISBLANK(InfoPro!A146),"",InfoPro!A146) ->  | C148: =IF(ISBLANK(InfoPro!B146),"",InfoPro!B146) ->  | D148: =IF(ISBLANK(InfoPro!E146),"",InfoPro!E146) ->  | E148: =IF(ISBLANK(InfoPro!N146),"",InfoPro!N146) ->  | F148: =IF(ISBLANK(InfoPro!I146),"",YEAR(InfoPro!I146)-$J$2) -> 
B149: =IF(ISBLANK(InfoPro!A147),"",InfoPro!A147) ->  | C149: =IF(ISBLANK(InfoPro!B147),"",InfoPro!B147) ->  | D149: =IF(ISBLANK(InfoPro!E147),"",InfoPro!E147) ->  | E149: =IF(ISBLANK(InfoPro!N147),"",InfoPro!N147) ->  | F149: =IF(ISBLANK(InfoPro!I147),"",YEAR(InfoPro!I147)-$J$2) -> 
B150: =IF(ISBLANK(InfoPro!A148),"",InfoPro!A148) ->  | C150: =IF(ISBLANK(InfoPro!B148),"",InfoPro!B148) ->  | D150: =IF(ISBLANK(InfoPro!E148),"",InfoPro!E148) ->  | E150: =IF(ISBLANK(InfoPro!N148),"",InfoPro!N148) ->  | F150: =IF(ISBLANK(InfoPro!I148),"",YEAR(InfoPro!I148)-$J$2) -> 
B151: =IF(ISBLANK(InfoPro!A149),"",InfoPro!A149) ->  | C151: =IF(ISBLANK(InfoPro!B149),"",InfoPro!B149) ->  | D151: =IF(ISBLANK(InfoPro!E149),"",InfoPro!E149) ->  | E151: =IF(ISBLANK(InfoPro!N149),"",InfoPro!N149) ->  | F151: =IF(ISBLANK(InfoPro!I149),"",YEAR(InfoPro!I149)-$J$2) -> 
B152: =IF(ISBLANK(InfoPro!A150),"",InfoPro!A150) ->  | C152: =IF(ISBLANK(InfoPro!B150),"",InfoPro!B150) ->  | D152: =IF(ISBLANK(InfoPro!E150),"",InfoPro!E150) ->  | E152: =IF(ISBLANK(InfoPro!N150),"",InfoPro!N150) ->  | F152: =IF(ISBLANK(InfoPro!I150),"",YEAR(InfoPro!I150)-$J$2) -> 
B153: =IF(ISBLANK(InfoPro!A151),"",InfoPro!A151) ->  | C153: =IF(ISBLANK(InfoPro!B151),"",InfoPro!B151) ->  | D153: =IF(ISBLANK(InfoPro!E151),"",InfoPro!E151) ->  | E153: =IF(ISBLANK(InfoPro!N151),"",InfoPro!N151) ->  | F153: =IF(ISBLANK(InfoPro!I151),"",YEAR(InfoPro!I151)-$J$2) -> 
B154: =IF(ISBLANK(InfoPro!A152),"",InfoPro!A152) ->  | C154: =IF(ISBLANK(InfoPro!B152),"",InfoPro!B152) ->  | D154: =IF(ISBLANK(InfoPro!E152),"",InfoPro!E152) ->  | E154: =IF(ISBLANK(InfoPro!N152),"",InfoPro!N152) ->  | F154: =IF(ISBLANK(InfoPro!I152),"",YEAR(InfoPro!I152)-$J$2) -> 
B155: =IF(ISBLANK(InfoPro!A153),"",InfoPro!A153) ->  | C155: =IF(ISBLANK(InfoPro!B153),"",InfoPro!B153) ->  | D155: =IF(ISBLANK(InfoPro!E153),"",InfoPro!E153) ->  | E155: =IF(ISBLANK(InfoPro!N153),"",InfoPro!N153) ->  | F155: =IF(ISBLANK(InfoPro!I153),"",YEAR(InfoPro!I153)-$J$2) -> 
B156: =IF(ISBLANK(InfoPro!A154),"",InfoPro!A154) ->  | C156: =IF(ISBLANK(InfoPro!B154),"",InfoPro!B154) ->  | D156: =IF(ISBLANK(InfoPro!E154),"",InfoPro!E154) ->  | E156: =IF(ISBLANK(InfoPro!N154),"",InfoPro!N154) ->  | F156: =IF(ISBLANK(InfoPro!I154),"",YEAR(InfoPro!I154)-$J$2) -> 
B157: =IF(ISBLANK(InfoPro!A155),"",InfoPro!A155) ->  | C157: =IF(ISBLANK(InfoPro!B155),"",InfoPro!B155) ->  | D157: =IF(ISBLANK(InfoPro!E155),"",InfoPro!E155) ->  | E157: =IF(ISBLANK(InfoPro!N155),"",InfoPro!N155) ->  | F157: =IF(ISBLANK(InfoPro!I155),"",YEAR(InfoPro!I155)-$J$2) -> 
B158: =IF(ISBLANK(InfoPro!A156),"",InfoPro!A156) ->  | C158: =IF(ISBLANK(InfoPro!B156),"",InfoPro!B156) ->  | D158: =IF(ISBLANK(InfoPro!E156),"",InfoPro!E156) ->  | E158: =IF(ISBLANK(InfoPro!N156),"",InfoPro!N156) ->  | F158: =IF(ISBLANK(InfoPro!I156),"",YEAR(InfoPro!I156)-$J$2) -> 
B159: =IF(ISBLANK(InfoPro!A157),"",InfoPro!A157) ->  | C159: =IF(ISBLANK(InfoPro!B157),"",InfoPro!B157) ->  | D159: =IF(ISBLANK(InfoPro!E157),"",InfoPro!E157) ->  | E159: =IF(ISBLANK(InfoPro!N157),"",InfoPro!N157) ->  | F159: =IF(ISBLANK(InfoPro!I157),"",YEAR(InfoPro!I157)-$J$2) -> 
B160: =IF(ISBLANK(InfoPro!A158),"",InfoPro!A158) ->  | C160: =IF(ISBLANK(InfoPro!B158),"",InfoPro!B158) ->  | D160: =IF(ISBLANK(InfoPro!E158),"",InfoPro!E158) ->  | E160: =IF(ISBLANK(InfoPro!N158),"",InfoPro!N158) ->  | F160: =IF(ISBLANK(InfoPro!I158),"",YEAR(InfoPro!I158)-$J$2) -> 
B161: =IF(ISBLANK(InfoPro!A159),"",InfoPro!A159) ->  | C161: =IF(ISBLANK(InfoPro!B159),"",InfoPro!B159) ->  | D161: =IF(ISBLANK(InfoPro!E159),"",InfoPro!E159) ->  | E161: =IF(ISBLANK(InfoPro!N159),"",InfoPro!N159) ->  | F161: =IF(ISBLANK(InfoPro!I159),"",YEAR(InfoPro!I159)-$J$2) -> 
B162: =IF(ISBLANK(InfoPro!A160),"",InfoPro!A160) ->  | C162: =IF(ISBLANK(InfoPro!B160),"",InfoPro!B160) ->  | D162: =IF(ISBLANK(InfoPro!E160),"",InfoPro!E160) ->  | E162: =IF(ISBLANK(InfoPro!N160),"",InfoPro!N160) ->  | F162: =IF(ISBLANK(InfoPro!I160),"",YEAR(InfoPro!I160)-$J$2) -> 
B163: =IF(ISBLANK(InfoPro!A161),"",InfoPro!A161) ->  | C163: =IF(ISBLANK(InfoPro!B161),"",InfoPro!B161) ->  | D163: =IF(ISBLANK(InfoPro!E161),"",InfoPro!E161) ->  | E163: =IF(ISBLANK(InfoPro!N161),"",InfoPro!N161) ->  | F163: =IF(ISBLANK(InfoPro!I161),"",YEAR(InfoPro!I161)-$J$2) -> 
B164: =IF(ISBLANK(InfoPro!A162),"",InfoPro!A162) ->  | C164: =IF(ISBLANK(InfoPro!B162),"",InfoPro!B162) ->  | D164: =IF(ISBLANK(InfoPro!E162),"",InfoPro!E162) ->  | E164: =IF(ISBLANK(InfoPro!N162),"",InfoPro!N162) ->  | F164: =IF(ISBLANK(InfoPro!I162),"",YEAR(InfoPro!I162)-$J$2) -> 
B165: =IF(ISBLANK(InfoPro!A163),"",InfoPro!A163) ->  | C165: =IF(ISBLANK(InfoPro!B163),"",InfoPro!B163) ->  | D165: =IF(ISBLANK(InfoPro!E163),"",InfoPro!E163) ->  | E165: =IF(ISBLANK(InfoPro!N163),"",InfoPro!N163) ->  | F165: =IF(ISBLANK(InfoPro!I163),"",YEAR(InfoPro!I163)-$J$2) -> 
B166: =IF(ISBLANK(InfoPro!A164),"",InfoPro!A164) ->  | C166: =IF(ISBLANK(InfoPro!B164),"",InfoPro!B164) ->  | D166: =IF(ISBLANK(InfoPro!E164),"",InfoPro!E164) ->  | E166: =IF(ISBLANK(InfoPro!N164),"",InfoPro!N164) ->  | F166: =IF(ISBLANK(InfoPro!I164),"",YEAR(InfoPro!I164)-$J$2) -> 
B167: =IF(ISBLANK(InfoPro!A165),"",InfoPro!A165) ->  | C167: =IF(ISBLANK(InfoPro!B165),"",InfoPro!B165) ->  | D167: =IF(ISBLANK(InfoPro!E165),"",InfoPro!E165) ->  | E167: =IF(ISBLANK(InfoPro!N165),"",InfoPro!N165) ->  | F167: =IF(ISBLANK(InfoPro!I165),"",YEAR(InfoPro!I165)-$J$2) -> 
B168: =IF(ISBLANK(InfoPro!A166),"",InfoPro!A166) ->  | C168: =IF(ISBLANK(InfoPro!B166),"",InfoPro!B166) ->  | D168: =IF(ISBLANK(InfoPro!E166),"",InfoPro!E166) ->  | E168: =IF(ISBLANK(InfoPro!N166),"",InfoPro!N166) ->  | F168: =IF(ISBLANK(InfoPro!I166),"",YEAR(InfoPro!I166)-$J$2) -> 
B169: =IF(ISBLANK(InfoPro!A167),"",InfoPro!A167) ->  | C169: =IF(ISBLANK(InfoPro!B167),"",InfoPro!B167) ->  | D169: =IF(ISBLANK(InfoPro!E167),"",InfoPro!E167) ->  | E169: =IF(ISBLANK(InfoPro!N167),"",InfoPro!N167) ->  | F169: =IF(ISBLANK(InfoPro!I167),"",YEAR(InfoPro!I167)-$J$2) -> 
B170: =IF(ISBLANK(InfoPro!A168),"",InfoPro!A168) ->  | C170: =IF(ISBLANK(InfoPro!B168),"",InfoPro!B168) ->  | D170: =IF(ISBLANK(InfoPro!E168),"",InfoPro!E168) ->  | E170: =IF(ISBLANK(InfoPro!N168),"",InfoPro!N168) ->  | F170: =IF(ISBLANK(InfoPro!I168),"",YEAR(InfoPro!I168)-$J$2) -> 
B171: =IF(ISBLANK(InfoPro!A169),"",InfoPro!A169) ->  | C171: =IF(ISBLANK(InfoPro!B169),"",InfoPro!B169) ->  | D171: =IF(ISBLANK(InfoPro!E169),"",InfoPro!E169) ->  | E171: =IF(ISBLANK(InfoPro!N169),"",InfoPro!N169) ->  | F171: =IF(ISBLANK(InfoPro!I169),"",YEAR(InfoPro!I169)-$J$2) -> 
B172: =IF(ISBLANK(InfoPro!A170),"",InfoPro!A170) ->  | C172: =IF(ISBLANK(InfoPro!B170),"",InfoPro!B170) ->  | D172: =IF(ISBLANK(InfoPro!E170),"",InfoPro!E170) ->  | E172: =IF(ISBLANK(InfoPro!N170),"",InfoPro!N170) ->  | F172: =IF(ISBLANK(InfoPro!I170),"",YEAR(InfoPro!I170)-$J$2) -> 
B173: =IF(ISBLANK(InfoPro!A171),"",InfoPro!A171) ->  | C173: =IF(ISBLANK(InfoPro!B171),"",InfoPro!B171) ->  | D173: =IF(ISBLANK(InfoPro!E171),"",InfoPro!E171) ->  | E173: =IF(ISBLANK(InfoPro!N171),"",InfoPro!N171) ->  | F173: =IF(ISBLANK(InfoPro!I171),"",YEAR(InfoPro!I171)-$J$2) -> 
B174: =IF(ISBLANK(InfoPro!A172),"",InfoPro!A172) ->  | C174: =IF(ISBLANK(InfoPro!B172),"",InfoPro!B172) ->  | D174: =IF(ISBLANK(InfoPro!E172),"",InfoPro!E172) ->  | E174: =IF(ISBLANK(InfoPro!N172),"",InfoPro!N172) ->  | F174: =IF(ISBLANK(InfoPro!I172),"",YEAR(InfoPro!I172)-$J$2) -> 
B175: =IF(ISBLANK(InfoPro!A173),"",InfoPro!A173) ->  | C175: =IF(ISBLANK(InfoPro!B173),"",InfoPro!B173) ->  | D175: =IF(ISBLANK(InfoPro!E173),"",InfoPro!E173) ->  | E175: =IF(ISBLANK(InfoPro!N173),"",InfoPro!N173) ->  | F175: =IF(ISBLANK(InfoPro!I173),"",YEAR(InfoPro!I173)-$J$2) -> 
B176: =IF(ISBLANK(InfoPro!A174),"",InfoPro!A174) ->  | C176: =IF(ISBLANK(InfoPro!B174),"",InfoPro!B174) ->  | D176: =IF(ISBLANK(InfoPro!E174),"",InfoPro!E174) ->  | E176: =IF(ISBLANK(InfoPro!N174),"",InfoPro!N174) ->  | F176: =IF(ISBLANK(InfoPro!I174),"",YEAR(InfoPro!I174)-$J$2) -> 
B177: =IF(ISBLANK(InfoPro!A175),"",InfoPro!A175) ->  | C177: =IF(ISBLANK(InfoPro!B175),"",InfoPro!B175) ->  | D177: =IF(ISBLANK(InfoPro!E175),"",InfoPro!E175) ->  | E177: =IF(ISBLANK(InfoPro!N175),"",InfoPro!N175) ->  | F177: =IF(ISBLANK(InfoPro!I175),"",YEAR(InfoPro!I175)-$J$2) -> 
B178: =IF(ISBLANK(InfoPro!A176),"",InfoPro!A176) ->  | C178: =IF(ISBLANK(InfoPro!B176),"",InfoPro!B176) ->  | D178: =IF(ISBLANK(InfoPro!E176),"",InfoPro!E176) ->  | E178: =IF(ISBLANK(InfoPro!N176),"",InfoPro!N176) ->  | F178: =IF(ISBLANK(InfoPro!I176),"",YEAR(InfoPro!I176)-$J$2) -> 
B179: =IF(ISBLANK(InfoPro!A177),"",InfoPro!A177) ->  | C179: =IF(ISBLANK(InfoPro!B177),"",InfoPro!B177) ->  | D179: =IF(ISBLANK(InfoPro!E177),"",InfoPro!E177) ->  | E179: =IF(ISBLANK(InfoPro!N177),"",InfoPro!N177) ->  | F179: =IF(ISBLANK(InfoPro!I177),"",YEAR(InfoPro!I177)-$J$2) -> 
B180: =IF(ISBLANK(InfoPro!A178),"",InfoPro!A178) ->  | C180: =IF(ISBLANK(InfoPro!B178),"",InfoPro!B178) ->  | D180: =IF(ISBLANK(InfoPro!E178),"",InfoPro!E178) ->  | E180: =IF(ISBLANK(InfoPro!N178),"",InfoPro!N178) ->  | F180: =IF(ISBLANK(InfoPro!I178),"",YEAR(InfoPro!I178)-$J$2) -> 
B181: =IF(ISBLANK(InfoPro!A179),"",InfoPro!A179) ->  | C181: =IF(ISBLANK(InfoPro!B179),"",InfoPro!B179) ->  | D181: =IF(ISBLANK(InfoPro!E179),"",InfoPro!E179) ->  | E181: =IF(ISBLANK(InfoPro!N179),"",InfoPro!N179) ->  | F181: =IF(ISBLANK(InfoPro!I179),"",YEAR(InfoPro!I179)-$J$2) -> 
B182: =IF(ISBLANK(InfoPro!A180),"",InfoPro!A180) ->  | C182: =IF(ISBLANK(InfoPro!B180),"",InfoPro!B180) ->  | D182: =IF(ISBLANK(InfoPro!E180),"",InfoPro!E180) ->  | E182: =IF(ISBLANK(InfoPro!N180),"",InfoPro!N180) ->  | F182: =IF(ISBLANK(InfoPro!I180),"",YEAR(InfoPro!I180)-$J$2) -> 
B183: =IF(ISBLANK(InfoPro!A181),"",InfoPro!A181) ->  | C183: =IF(ISBLANK(InfoPro!B181),"",InfoPro!B181) ->  | D183: =IF(ISBLANK(InfoPro!E181),"",InfoPro!E181) ->  | E183: =IF(ISBLANK(InfoPro!N181),"",InfoPro!N181) ->  | F183: =IF(ISBLANK(InfoPro!I181),"",YEAR(InfoPro!I181)-$J$2) -> 
B184: =IF(ISBLANK(InfoPro!A182),"",InfoPro!A182) ->  | C184: =IF(ISBLANK(InfoPro!B182),"",InfoPro!B182) ->  | D184: =IF(ISBLANK(InfoPro!E182),"",InfoPro!E182) ->  | E184: =IF(ISBLANK(InfoPro!N182),"",InfoPro!N182) ->  | F184: =IF(ISBLANK(InfoPro!I182),"",YEAR(InfoPro!I182)-$J$2) -> 
B185: =IF(ISBLANK(InfoPro!A183),"",InfoPro!A183) ->  | C185: =IF(ISBLANK(InfoPro!B183),"",InfoPro!B183) ->  | D185: =IF(ISBLANK(InfoPro!E183),"",InfoPro!E183) ->  | E185: =IF(ISBLANK(InfoPro!N183),"",InfoPro!N183) ->  | F185: =IF(ISBLANK(InfoPro!I183),"",YEAR(InfoPro!I183)-$J$2) -> 
B186: =IF(ISBLANK(InfoPro!A184),"",InfoPro!A184) ->  | C186: =IF(ISBLANK(InfoPro!B184),"",InfoPro!B184) ->  | D186: =IF(ISBLANK(InfoPro!E184),"",InfoPro!E184) ->  | E186: =IF(ISBLANK(InfoPro!N184),"",InfoPro!N184) ->  | F186: =IF(ISBLANK(InfoPro!I184),"",YEAR(InfoPro!I184)-$J$2) -> 
B187: =IF(ISBLANK(InfoPro!A185),"",InfoPro!A185) ->  | C187: =IF(ISBLANK(InfoPro!B185),"",InfoPro!B185) ->  | D187: =IF(ISBLANK(InfoPro!E185),"",InfoPro!E185) ->  | E187: =IF(ISBLANK(InfoPro!N185),"",InfoPro!N185) ->  | F187: =IF(ISBLANK(InfoPro!I185),"",YEAR(InfoPro!I185)-$J$2) -> 

Sheet EC-RE
B3: Factor emisiones sistema | C3: 0.127283 | D3: Ton/MWh | F3: Año de Referencia | G3: 2023
B4: Tasa de descuento | C4: 0.118 | F4: Mínimo | G4: =MIN(Z9:Z400) -> 0
B5: Costo emisiones Ton | C5: 91.94 | D5: USD/Ton
B6: TRM | C6: 4070 | D6: COP/USD
J7: 0 | K7: 1 | L7: 2 | M7: 3 | N7: 4 | O7: 5 | P7: 6 | Q7: 7 | R7: 8 | S7: 9 | T7: 10 | U7: 11 | V7: 12 | W7: 13 | X7: 14
A8: Codigo | B8: Nombre | C8: capacidad | D8: tipo | E8: Año de entrada | F8: FP | G8: Factor emisiones | H8: Produccion media/a MWh/a | I8: Emisiones evitadas Ton/a | J8: Flujo Descontado 0 | K8: Flujo Descontado 1 | L8: Flujo Descontado 2 | M8: Flujo Descontado 3 | N8: Flujo Descontado 4 | O8: Flujo Descontado 5 | P8: Flujo Descontado 6 | Q8: Flujo Descontado 7 | R8: Flujo Descontado 8 | S8: Flujo Descontado 9 | T8: Flujo Descontado 10 | U8: Flujo Descontado 11 | V8: Flujo Descontado 12 | W8: Flujo Descontado 13 | X8: Flujo Descontado 14 | Y8: VPN | Z8: (Beneficio)/kW
A9: =IF(ISBLANK(InfoPro!A2),"",InfoPro!A2) -> SC_7_A2 | B9: =IF(ISBLANK(InfoPro!B2),"",InfoPro!B2) -> PSFV TONCHALÁ 19.9MW | C9: =IF(ISBLANK(InfoPro!E2),"",InfoPro!E2) -> 19.9 | D9: =IF(ISBLANK(InfoPro!F2),"",InfoPro!F2) -> Solar FV | E9: =IF(ISBLANK(InfoPro!I2),"",YEAR(InfoPro!I2)-$G$3) -> 3 | F9: =IF(B9="","",VLOOKUP(D9,Tablas!$B$2:$E$13,2,FALSE)) -> 0.26 | G9: =IF(B9="","",VLOOKUP(D9,Tablas!$B$2:$G$13,6,FALSE)) -> 0 | H9: =IF(C9="","",+C9*F9*24*365) -> 45324.24 | I9: =IF(H9="","",+H9*($C$3-G9)) -> 5769.00524 | J9: =IF($I9="","",(1/(1+$C$4)^(J$7+$E9))*$I9*$C$5) -> 379559.6366 | K9: =IF($I9="","",(1/(1+$C$4)^(K$7+$E9))*$I9*$C$5) -> 339498.7805 | L9: 303666.1722 | M9: 271615.5386 | N9: 242947.709 | O9: 217305.6431 | P9: 194369.9849 | Q9: 173855.0849 | R9: 155505.4426 | S9: 139092.5247 | T9: 124411.9184 | U9: 111280.7856 | V9: 99535.58645 | W9: 89030.04154 | X9: 79633.31086 | Y9: =IF(X9="","",SUM(J9:X9)*$C$6) -> 1.188972421e+10 | Z9: =IF(C9=0,0,IF(Y9="","",Y9/(C9*1000))) -> 597473.5785
A10: =IF(ISBLANK(InfoPro!A3),"",InfoPro!A3) -> SC_7_A1 | B10: =IF(ISBLANK(InfoPro!B3),"",InfoPro!B3) -> PSFV TONCHALÁ 19.9MW | C10: =IF(ISBLANK(InfoPro!E3),"",InfoPro!E3) -> 19.9 | D10: =IF(ISBLANK(InfoPro!F3),"",InfoPro!F3) -> Solar FV | E10: =IF(ISBLANK(InfoPro!I3),"",YEAR(InfoPro!I3)-$G$3) -> 3 | F10: =IF(B10="","",VLOOKUP(D10,Tablas!$B$2:$E$13,2,FALSE)) -> 0.26 | G10: =IF(B10="","",VLOOKUP(D10,Tablas!$B$2:$G$13,6,FALSE)) -> 0 | H10: =IF(C10="","",+C10*F10*24*365) -> 45324.24 | I10: =IF(H10="","",+H10*($C$3-G10)) -> 5769.00524 | J10: 379559.6366 | K10: 339498.7805 | L10: 303666.1722 | M10: 271615.5386 | N10: 242947.709 | O10: 217305.6431 | P10: 194369.9849 | Q10: 173855.0849 | R10: 155505.4426 | S10: 139092.5247 | T10: 124411.9184 | U10: 111280.7856 | V10: 99535.58645 | W10: 89030.04154 | X10: 79633.31086 | Y10: =IF(X10="","",SUM(J10:X10)*$C$6) -> 1.188972421e+10 | Z10: =IF(C10=0,0,IF(Y10="","",Y10/(C10*1000))) -> 597473.5785
A11: =IF(ISBLANK(InfoPro!A4),"",InfoPro!A4) -> SC_38_A2 | B11: =IF(ISBLANK(InfoPro!B4),"",InfoPro!B4) -> SOLENERGY NORTE | C11: =IF(ISBLANK(InfoPro!E4),"",InfoPro!E4) -> 40 | D11: =IF(ISBLANK(InfoPro!F4),"",InfoPro!F4) -> Solar FV | E11: =IF(ISBLANK(InfoPro!I4),"",YEAR(InfoPro!I4)-$G$3) -> 2 | F11: =IF(B11="","",VLOOKUP(D11,Tablas!$B$2:$E$13,2,FALSE)) -> 0.26 | G11: =IF(B11="","",VLOOKUP(D11,Tablas!$B$2:$G$13,6,FALSE)) -> 0 | H11: =IF(C11="","",+C11*F11*24*365) -> 91104 | I11: 11595.99043 | J11: 852960.1482 | K11: 762933.943 | L11: 682409.6091 | M11: 610384.2657 | N11: 545960.8817 | O11: 488337.1035 | P11: 436795.2625 | Q11: 390693.4369 | R11: 349457.457 | S11: 312573.754 | T11: 279582.9643 | U11: 250074.2077 | V11: 223679.9711 | W11: 200071.5305 | X11: 178954.8574 | Y11: 2.671901843e+10 | Z11: 667975.4607
A12: =IF(ISBLANK(InfoPro!A5),"",InfoPro!A5) -> SC_38_A1 | B12: =IF(ISBLANK(InfoPro!B5),"",InfoPro!B5) -> SOLENERGY NORTE | C12: =IF(ISBLANK(InfoPro!E5),"",InfoPro!E5) -> 40 | D12: =IF(ISBLANK(InfoPro!F5),"",InfoPro!F5) -> Solar FV | E12: =IF(ISBLANK(InfoPro!I5),"",YEAR(InfoPro!I5)-$G$3) -> 2 | F12: =IF(B12="","",VLOOKUP(D12,Tablas!$B$2:$E$13,2,FALSE)) -> 0.26 | G12: =IF(B12="","",VLOOKUP(D12,Tablas!$B$2:$G$13,6,FALSE)) -> 0 | H12: 91104 | I12: 11595.99043 | J12: 852960.1482 | K12: 762933.943 | L12: 682409.6091 | M12: 610384.2657 | N12: 545960.8817 | O12: 488337.1035 | P12: 436795.2625 | Q12: 390693.4369 | R12: 349457.457 | S12: 312573.754 | T12: 279582.9643 | U12: 250074.2077 | V12: 223679.9711 | W12: 200071.5305 | X12: 178954.8574 | Y12: 2.671901843e+10 | Z12: 667975.4607
A13: =IF(ISBLANK(InfoPro!A6),"",InfoPro!A6) -> SC_485_A2 | B13: =IF(ISBLANK(InfoPro!B6),"",InfoPro!B6) -> Pradera - 40 MW | C13: =IF(ISBLANK(InfoPro!E6),"",InfoPro!E6) -> 40 | D13: =IF(ISBLANK(InfoPro!F6),"",InfoPro!F6) -> Solar FV | E13: =IF(ISBLANK(InfoPro!I6),"",YEAR(InfoPro!I6)-$G$3) -> 2 | F13: =IF(B13="","",VLOOKUP(D13,Tablas!$B$2:$E$13,2,FALSE)) -> 0.26 | G13: =IF(B13="","",VLOOKUP(D13,Tablas!$B$2:$G$13,6,FALSE)) -> 0 | H13: 91104 | I13: 11595.99043 | J13: 852960.1482 | K13: 762933.943 | L13: 682409.6091 | M13: 610384.2657 | N13: 545960.8817 | O13: 488337.1035 | P13: 436795.2625 | Q13: 390693.4369 | R13: 349457.457 | S13: 312573.754 | T13: 279582.9643 | U13: 250074.2077 | V13: 223679.9711 | W13: 200071.5305 | X13: 178954.8574 | Y13: 2.671901843e+10 | Z13: 667975.4607
A14: =IF(ISBLANK(InfoPro!A7),"",InfoPro!A7) -> SC_488_A2 | B14: =IF(ISBLANK(InfoPro!B7),"",InfoPro!B7) -> Frontera - 50 MW | C14: =IF(ISBLANK(InfoPro!E7),"",InfoPro!E7) -> 50 | D14: =IF(ISBLANK(InfoPro!F7),"",InfoPro!F7) -> Solar FV | E14: =IF(ISBLANK(InfoPro!I7),"",YEAR(InfoPro!I7)-$G$3) -> 2 | F14: =IF(B14="","",VLOOKUP(D14,Tablas!$B$2:$E$13,2,FALSE)) -> 0.26 | G14: =IF(B14="","",VLOOKUP(D14,Tablas!$B$2:$G$13,6,FALSE)) -> 0 | H14: 113880 | I14: 14494.98804 | J14: 1066200.185 | K14: 953667.4287 | L14: 853012.0114 | M14: 762980.3322 | N14: 682451.1021 | O14: 610421.3794 | P14: 545994.0781 | Q14: 488366.7962 | R14: 436821.8213 | S14: 390717.1926 | T14: 349478.7053 | U14: 312592.7597 | V14: 279599.9639 | W14: 250089.4132 | X14: 223693.5717 | Y14: 3.339877304e+10 | Z14: 667975.4607
A15: =IF(ISBLANK(InfoPro!A8),"",InfoPro!A8) -> SC_488_A1 | B15: =IF(ISBLANK(InfoPro!B8),"",InfoPro!B8) -> Frontera - 50 MW | C15: =IF(ISBLANK(InfoPro!E8),"",InfoPro!E8) -> 50 | D15: =IF(ISBLANK(InfoPro!F8),"",InfoPro!F8) -> Solar FV | E15: =IF(ISBLANK(InfoPro!I8),"",YEAR(InfoPro!I8)-$G$3) -> 2 | F15: =IF(B15="","",VLOOKUP(D15,Tablas!$B$2:$E$13,2,FALSE)) -> 0.26 | G15: =IF(B15="","",VLOOKUP(D15,Tablas!$B$2:$G$13,6,FALSE)) -> 0 | H15: 113880 | I15: 14494.98804 | J15: 1066200.185 | K15: 953667.4287 | L15: 853012.0114 | M15: 762980.3322 | N15: 682451.1021 | O15: 610421.3794 | P15: 545994.0781 | Q15: 488366.7962 | R15: 436821.8213 | S15: 390717.1926 | T15: 349478.7053 | U15: 312592.7597 | V15: 279599.9639 | W15: 250089.4132 | X15: 223693.5717 | Y15: 3.339877304e+10 | Z15: 667975.4607
A16: =IF(ISBLANK(InfoPro!A9),"",InfoPro!A9) -> SC_485_A1 | B16: =IF(ISBLANK(InfoPro!B9),"",InfoPro!B9) -> Pradera - 40 MW | C16: =IF(ISBLANK(InfoPro!E9),"",InfoPro!E9) -> 40 | D16: =IF(ISBLANK(InfoPro!F9),"",InfoPro!F9) -> Solar FV | E16: =IF(ISBLANK(InfoPro!I9),"",YEAR(InfoPro!I9)-$G$3) -> 2 | F16: =IF(B16="","",VLOOKUP(D16,Tablas!$B$2:$E$13,2,FALSE)) -> 0.26 | G16: =IF(B16="","",VLOOKUP(D16,Tablas!$B$2:$G$13,6,FALSE)) -> 0 | H16: 91104 | I16: 11595.99043 | J16: 852960.1482 | K16: 762933.943 | L16: 682409.6091 | M16: 610384.2657 | N16: 545960.8817 | O16: 488337.1035 | P16: 436795.2625 | Q16: 390693.4369 | R16: 349457.457 | S16: 312573.754 | T16: 279582.9643 | U16: 250074.2077 | V16: 223679.9711 | W16: 200071.5305 | X16: 178954.8574 | Y16: 2.671901843e+10 | Z16: 667975.4607
A17: =IF(ISBLANK(InfoPro!A10),"",InfoPro!A10) -> SC_767_A2 | B17: =IF(ISBLANK(InfoPro!B10),"",InfoPro!B10) -> Parque Solar Fotovoltaico Alcaraván | C17: =IF(ISBLANK(InfoPro!E10),"",InfoPro!E10) -> 79.6 | D17: =IF(ISBLANK(InfoPro!F10),"",InfoPro!F10) -> Solar FV | E17: =IF(ISBLANK(InfoPro!I10),"",YEAR(InfoPro!I10)-$G$3) -> 2 | F17: =IF(B17="","",VLOOKUP(D17,Tablas!$B$2:$E$13,2,FALSE)) -> 0.26 | G17: =IF(B17="","",VLOOKUP(D17,Tablas!$B$2:$G$13,6,FALSE)) -> 0 | H17: 181296.96 | I17: 23076.02096 | J17: 1697390.695 | K17: 1518238.546 | L17: 1357995.122 | M17: 1214664.689 | N17: 1086462.155 | O17: 971790.8359 | P17: 869222.5724 | Q17: 777479.9395 | R17: 695420.3395 | S17: 622021.7705 | T17: 556370.0989 | U17: 497647.6734 | V17: 445123.1426 | W17: 398142.3458 | X17: 356120.1662 | Y17: 5.317084667e+10 | Z17: 667975.4607
A18: =IF(ISBLANK(InfoPro!A11),"",InfoPro!A11) -> SC_767_A1 | B18: =IF(ISBLANK(InfoPro!B11),"",InfoPro!B11) -> Parque Solar Fotovoltaico Alcaraván | C18: =IF(ISBLANK(InfoPro!E11),"",InfoPro!E11) -> 79.6 | D18: =IF(ISBLANK(InfoPro!F11),"",InfoPro!F11) -> Solar FV | E18: =IF(ISBLANK(InfoPro!I11),"",YEAR(InfoPro!I11)-$G$3) -> 2 | F18: =IF(B18="","",VLOOKUP(D18,Tablas!$B$2:$E$13,2,FALSE)) -> 0.26 | G18: =IF(B18="","",VLOOKUP(D18,Tablas!$B$2:$G$13,6,FALSE)) -> 0 | H18: 181296.96 | I18: 23076.02096 | J18: 1697390.695 | K18: 1518238.546 | L18: 1357995.122 | M18: 1214664.689 | N18: 1086462.155 | O18: 971790.8359 | P18: 869222.5724 | Q18: 777479.9395 | R18: 695420.3395 | S18: 622021.7705 | T18: 556370.0989 | U18: 497647.6734 | V18: 445123.1426 | W18: 398142.3458 | X18: 356120.1662 | Y18: 5.317084667e+10 | Z18: 667975.4607
A19: =IF(ISBLANK(InfoPro!A12),"",InfoPro!A12) -> SC_417_A2 | B19: =IF(ISBLANK(InfoPro!B12),"",InfoPro!B12) -> PCH PANACEA II | C19: =IF(ISBLANK(InfoPro!E12),"",InfoPro!E12) -> 7 | D19: =IF(ISBLANK(InfoPro!F12),"",InfoPro!F12) -> PCH | E19: =IF(ISBLANK(InfoPro!I12),"",YEAR(InfoPro!I12)-$G$3) -> 3 | F19: =IF(B19="","",VLOOKUP(D19,Tablas!$B$2:$E$13,2,FALSE)) -> 0.54 | G19: =IF(B19="","",VLOOKUP(D19,Tablas!$B$2:$G$13,6,FALSE)) -> 0 | H19: 33112.8 | I19: 4214.696522 | J19: =IF($I19="","",(1/(1+$C$4)^(J$7+$E19))*$I19*$C$5) -> 277297.1447 | K19: 248029.6464 | L19: 221851.2043 | M19: 198435.782 | N19: 177491.7549 | O19: 158758.2781 | P19: 142002.0377 | Q19: 127014.345 | R19: 113608.5375 | S19: 101617.6543 | T19: 90892.35628 | U19: 81299.06644 | V19: 72718.30629 | W19: 65043.20778 | X19: 58178.18227 | Y19: 8686346641 | Z19: 1240906.663
A20: =IF(ISBLANK(InfoPro!A13),"",InfoPro!A13) -> SC_966_A1 | B20: =IF(ISBLANK(InfoPro!B13),"",InfoPro!B13) -> PROYECTO SOLAR FOTOVOLTAICA MORITAS DE 9,9MW | C20: =IF(ISBLANK(InfoPro!E13),"",InfoPro!E13) -> 9.9 | D20: =IF(ISBLANK(InfoPro!F13),"",InfoPro!F13) -> Solar FV | E20: =IF(ISBLANK(InfoPro!I13),"",YEAR(InfoPro!I13)-$G$3) -> 3 | F20: =IF(B20="","",VLOOKUP(D20,Tablas!$B$2:$E$13,2,FALSE)) -> 0.26 | G20: =IF(B20="","",VLOOKUP(D20,Tablas!$B$2:$G$13,6,FALSE)) -> 0 | H20: 22548.24 | I20: 2870.007632 | J20: 188826.1509 | K20: 168896.3782 | L20: 151070.1058 | M20: 135125.3182 | N20: 120863.4331 | O20: 108106.8275 | P20: 96696.62564 | Q20: 86490.72061 | R20: 77362.00413 | S20: 69196.78365 | T20: 61893.36642 | U20: 55360.79286 | V20: 49517.70381 | W20: 44291.3272 | X20: 39616.57174 | Y20: 5914988427 | Z20: 597473.5785
A21: =IF(ISBLANK(InfoPro!A14),"",InfoPro!A14) -> SC_966_A2 | B21: =IF(ISBLANK(InfoPro!B14),"",InfoPro!B14) -> PROYECTO SOLAR FOTOVOLTAICA MORITAS DE 9,9MW | C21: =IF(ISBLANK(InfoPro!E14),"",InfoPro!E14) -> 9.9 | D21: =IF(ISBLANK(InfoPro!F14),"",InfoPro!F14) -> Solar FV | E21: =IF(ISBLANK(InfoPro!I14),"",YEAR(InfoPro!I14)-$G$3) -> 3 | F21: =IF(B21="","",VLOOKUP(D21,Tablas!$B$2:$E$13,2,FALSE)) -> 0.26 | G21: =IF(B21="","",VLOOKUP(D21,Tablas!$B$2:$G$13,6,FALSE)) -> 0 | H21: 22548.24 | I21: 2870.007632 | J21: 188826.1509 | K21: 168896.3782 | L21: 151070.1058 | M21: 135125.3182 | N21: 120863.4331 | O21: 108106.8275 | P21: 96696.62564 | Q21: 86490.72061 | R21: 77362.00413 | S21: 69196.78365 | T21: 61893.36642 | U21: 55360.79286 | V21: 49517.70381 | W21: 44291.3272 | X21: 39616.57174 | Y21: 5914988427 | Z21: 597473.5785
A22: =IF(ISBLANK(InfoPro!A15),"",InfoPro!A15) -> SC_1130_A2 | B22: =IF(ISBLANK(InfoPro!B15),"",InfoPro!B15) -> PROYECTO SOLAR FOTOVOLTAICO MORITAS 9,9 MW | C22: =IF(ISBLANK(InfoPro!E15),"",InfoPro!E15) -> 9.9 | D22: =IF(ISBLANK(InfoPro!F15),"",InfoPro!F15) -> Solar FV | E22: =IF(ISBLANK(InfoPro!I15),"",YEAR(InfoPro!I15)-$G$3) -> 3 | F22: =IF(B22="","",VLOOKUP(D22,Tablas!$B$2:$E$13,2,FALSE)) -> 0.26 | G22: =IF(B22="","",VLOOKUP(D22,Tablas!$B$2:$G$13,6,FALSE)) -> 0 | H22: 22548.24 | I22: 2870.007632 | J22: 188826.1509 | K22: 168896.3782 | L22: 151070.1058 | M22: 135125.3182 | N22: 120863.4331 | O22: 108106.8275 | P22: 96696.62564 | Q22: 86490.72061 | R22: 77362.00413 | S22: 69196.78365 | T22: 61893.36642 | U22: 55360.79286 | V22: 49517.70381 | W22: 44291.3272 | X22: 39616.57174 | Y22: 5914988427 | Z22: 597473.5785
A23: =IF(ISBLANK(InfoPro!A16),"",InfoPro!A16) -> SC_1130_A1 | B23: =IF(ISBLANK(InfoPro!B16),"",InfoPro!B16) -> PROYECTO SOLAR FOTOVOLTAICO MORITAS 9,9 MW | C23: =IF(ISBLANK(InfoPro!E16),"",InfoPro!E16) -> 9.9 | D23: =IF(ISBLANK(InfoPro!F16),"",InfoPro!F16) -> Solar FV | E23: =IF(ISBLANK(InfoPro!I16),"",YEAR(InfoPro!I16)-$G$3) -> 3 | F23: =IF(B23="","",VLOOKUP(D23,Tablas!$B$2:$E$13,2,FALSE)) -> 0.26 | G23: =IF(B23="","",VLOOKUP(D23,Tablas!$B$2:$G$13,6,FALSE)) -> 0 | H23: 22548.24 | I23: 2870.007632 | J23: 188826.1509 | K23: 168896.3782 | L23: 151070.1058 | M23: 135125.3182 | N23: 120863.4331 | O23: 108106.8275 | P23: 96696.62564 | Q23: 86490.72061 | R23: 77362.00413 | S23: 69196.78365 | T23: 61893.36642 | U23: 55360.79286 | V23: 49517.70381 | W23: 44291.3272 | X23: 39616.57174 | Y23: 5914988427 | Z23: 597473.5785
A24: =IF(ISBLANK(InfoPro!A17),"",InfoPro!A17) -> SC_1024_A1 | B24: =IF(ISBLANK(InfoPro!B17),"",InfoPro!B17) -> Autogenerador CELSIA Solar Cenit Ayacucho | C24: =IF(ISBLANK(InfoPro!E17),"",InfoPro!E17) -> 0 | D24: =IF(ISBLANK(InfoPro!F17),"",InfoPro!F17) -> Solar FV | E24: =IF(ISBLANK(InfoPro!I17),"",YEAR(InfoPro!I17)-$G$3) -> 0 | F24: =IF(B24="","",VLOOKUP(D24,Tablas!$B$2:$E$13,2,FALSE)) -> 0.26 | G24: =IF(B24="","",VLOOKUP(D24,Tablas!$B$2:$G$13,6,FALSE)) -> 0 | H24: 0 | I24: 0 | J24: 0 | K24: 0 | L24: 0 | M24: 0 | N24: 0 | O24: 0 | P24: 0 | Q24: 0 | R24: 0 | S24: 0 | T24: 0 | U24: 0 | V24: 0 | W24: 0 | X24: 0 | Y24: 0 | Z24: 0
A25: =IF(ISBLANK(InfoPro!A18),"",InfoPro!A18) -> SC_1278_A2 | B25: =IF(ISBLANK(InfoPro!B18),"",InfoPro!B18) -> PARQUE SOLAR LAS MARGARITAS de 60MW | C25: =IF(ISBLANK(InfoPro!E18),"",InfoPro!E18) -> 60 | D25: =IF(ISBLANK(InfoPro!F18),"",InfoPro!F18) -> Solar FV | E25: =IF(ISBLANK(InfoPro!I18),"",YEAR(InfoPro!I18)-$G$3) -> 1 | F25: =IF(B25="","",VLOOKUP(D25,Tablas!$B$2:$E$13,2,FALSE)) -> 0.26 | G25: =IF(B25="","",VLOOKUP(D25,Tablas!$B$2:$G$13,6,FALSE)) -> 0 | H25: 136656 | I25: 17393.98565 | J25: 1430414.169 | K25: 1279440.222 | L25: 1144400.914 | M25: 1023614.414 | N25: 915576.3986 | O25: 818941.3225 | P25: 732505.6552 | Q25: 655192.8938 | R25: 586040.1554 | S25: 524186.1855 | T25: 468860.6311 | U25: 419374.4464 | V25: 375111.3116 | W25: 335519.9567 | X25: 300107.2958 | Y25: 4.48077939e+10 | Z25: 746796.5651
A26: =IF(ISBLANK(InfoPro!A19),"",InfoPro!A19) -> SC_1278_A1 | B26: =IF(ISBLANK(InfoPro!B19),"",InfoPro!B19) -> PARQUE SOLAR LAS MARGARITAS de 60MW | C26: =IF(ISBLANK(InfoPro!E19),"",InfoPro!E19) -> 60 | D26: =IF(ISBLANK(InfoPro!F19),"",InfoPro!F19) -> Solar FV | E26: =IF(ISBLANK(InfoPro!I19),"",YEAR(InfoPro!I19)-$G$3) -> 1 | F26: =IF(B26="","",VLOOKUP(D26,Tablas!$B$2:$E$13,2,FALSE)) -> 0.26 | G26: =IF(B26="","",VLOOKUP(D26,Tablas!$B$2:$G$13,6,FALSE)) -> 0 | H26: 136656 | I26: 17393.98565 | J26: 1430414.169 | K26: 1279440.222 | L26: 1144400.914 | M26: 1023614.414 | N26: 915576.3986 | O26: 818941.3225 | P26: 732505.6552 | Q26: 655192.8938 | R26: 586040.1554 | S26: 524186.1855 | T26: 468860.6311 | U26: 419374.4464 | V26: 375111.3116 | W26: 335519.9567 | X26: 300107.2958 | Y26: 4.48077939e+10 | Z26: 746796.5651
A27: =IF(ISBLANK(InfoPro!A20),"",InfoPro!A20) -> SC_1245_A2 | B27: =IF(ISBLANK(InfoPro!B20),"",InfoPro!B20) -> PROYECTO FOTONORTE | C27: =IF(ISBLANK(InfoPro!E20),"",InfoPro!E20) -> 99.5 | D27: =IF(ISBLANK(InfoPro!F20),"",InfoPro!F20) -> Solar FV | E27: =IF(ISBLANK(InfoPro!I20),"",YEAR(InfoPro!I20)-$G$3) -> 2 | F27: =IF(B27="","",VLOOKUP(D27,Tablas!$B$2:$E$13,2,FALSE)) -> 0.26 | G27: =IF(B27="","",VLOOKUP(D27,Tablas!$B$2:$G$13,6,FALSE)) -> 0 | H27: 226621.2 | I27: 28845.0262 | J27: 2121738.369 | K27: 1897798.183 | L27: 1697493.903 | M27: 1518330.861 | N27: 1358077.693 | O27: 1214738.545 | P27: 1086528.215 | Q27: 971849.9244 | R27: 869275.4243 | S27: 777527.2132 | T27: 695462.6236 | U27: 622059.5918 | V27: 556403.9282 | W27: 497677.9322 | X27: 445150.2077 | Y27: 6.646355834e+10 | Z27: 667975.4607
A28: =IF(ISBLANK(InfoPro!A21),"",InfoPro!A21) -> SC_1245_A1 | B28: =IF(ISBLANK(InfoPro!B21),"",InfoPro!B21) -> PROYECTO FOTONORTE | C28: =IF(ISBLANK(InfoPro!E21),"",InfoPro!E21) -> 99.5 | D28: =IF(ISBLANK(InfoPro!F21),"",InfoPro!F21) -> Solar FV | E28: =IF(ISBLANK(InfoPro!I21),"",YEAR(InfoPro!I21)-$G$3) -> 2 | F28: =IF(B28="","",VLOOKUP(D28,Tablas!$B$2:$E$13,2,FALSE)) -> 0.26 | G28: =IF(B28="","",VLOOKUP(D28,Tablas!$B$2:$G$13,6,FALSE)) -> 0 | H28: 226621.2 | I28: 28845.0262 | J28: 2121738.369 | K28: 1897798.183 | L28: 1697493.903 | M28: 1518330.861 | N28: 1358077.693 | O28: 1214738.545 | P28: 1086528.215 | Q28: 971849.9244 | R28: 869275.4243 | S28: 777527.2132 | T28: 695462.6236 | U28: 622059.5918 | V28: 556403.9282 | W28: 497677.9322 | X28: 445150.2077 | Y28: 6.646355834e+10 | Z28: 667975.4607
A29: =IF(ISBLANK(InfoPro!A22),"",InfoPro!A22) -> SC_1547_A2 | B29: =IF(ISBLANK(InfoPro!B22),"",InfoPro!B22) -> Zulia I | C29: =IF(ISBLANK(InfoPro!E22),"",InfoPro!E22) -> 9.9 | D29: =IF(ISBLANK(InfoPro!F22),"",InfoPro!F22) -> Solar FV | E29: =IF(ISBLANK(InfoPro!I22),"",YEAR(InfoPro!I22)-$G$3) -> 1 | F29: =IF(B29="","",VLOOKUP(D29,Tablas!$B$2:$E$13,2,FALSE)) -> 0.26 | G29: =IF(B29="","",VLOOKUP(D29,Tablas!$B$2:$G$13,6,FALSE)) -> 0 | H29: 22548.24 | I29: 2870.007632 | J29: =IF($I29="","",(1/(1+$C$4)^(J$7+$E29))*$I29*$C$5) -> 236018.3378 | K29: 211107.6367 | L29: 188826.1509 | M29: 168896.3782 | N29: 151070.1058 | O29: 135125.3182 | P29: 120863.4331 | Q29: 108106.8275 | R29: 96696.62564 | S29: 86490.72061 | T29: 77362.00413 | U29: 69196.78365 | V29: 61893.36642 | W29: 55360.79286 | X29: 49517.70381 | Y29: 7393285994 | Z29: 746796.5651
A30: =IF(ISBLANK(InfoPro!A23),"",InfoPro!A23) -> SC_1547_A1 | B30: =IF(ISBLANK(InfoPro!B23),"",InfoPro!B23) -> Zulia I | C30: =IF(ISBLANK(InfoPro!E23),"",InfoPro!E23) -> 9.9 | D30: =IF(ISBLANK(InfoPro!F23),"",InfoPro!F23) -> Solar FV | E30: =IF(ISBLANK(InfoPro!I23),"",YEAR(InfoPro!I23)-$G$3) -> 1 | F30: =IF(B30="","",VLOOKUP(D30,Tablas!$B$2:$E$13,2,FALSE)) -> 0.26 | G30: =IF(B30="","",VLOOKUP(D30,Tablas!$B$2:$G$13,6,FALSE)) -> 0 | H30: 22548.24 | I30: 2870.007632 | J30: 236018.3378 | K30: 211107.6367 | L30: 188826.1509 | M30: 168896.3782 | N30: 151070.1058 | O30: 135125.3182 | P30: 120863.4331 | Q30: 108106.8275 | R30: 96696.62564 | S30: 86490.72061 | T30: 77362.00413 | U30: 69196.78365 | V30: 61893.36642 | W30: 55360.79286 | X30: 49517.70381 | Y30: 7393285994 | Z30: 746796.5651
A31: =IF(ISBLANK(InfoPro!A24),"",InfoPro!A24) -> SC_2161_A2 | B31: =IF(ISBLANK(InfoPro!B24),"",InfoPro!B24) -> Aguachica 1, 2, 3 | C31: =IF(ISBLANK(InfoPro!E24),"",InfoPro!E24) -> 150 | D31: =IF(ISBLANK(InfoPro!F24),"",InfoPro!F24) -> Solar FV | E31: =IF(ISBLANK(InfoPro!I24),"",YEAR(InfoPro!I24)-$G$3) -> 3 | F31: =IF(B31="","",VLOOKUP(D31,Tablas!$B$2:$E$13,2,FALSE)) -> 0.26 | G31: =IF(B31="","",VLOOKUP(D31,Tablas!$B$2:$G$13,6,FALSE)) -> 0 | H31: 341640 | I31: 43484.96412 | J31: 2861002.286 | K31: 2559036.034 | L31: 2288940.996 | M31: 2047353.306 | N31: 1831264.138 | O31: 1637982.234 | P31: 1465100.389 | Q31: 1310465.464 | R31: 1172151.578 | S31: 1048436.116 | T31: 937778.279 | U31: 838799.8918 | V31: 750268.2395 | W31: 671080.7152 | X31: 600251.0869 | Y31: 8.962103677e+10 | Z31: 597473.5785
A32: =IF(ISBLANK(InfoPro!A25),"",InfoPro!A25) -> SC_2161_A1 | B32: =IF(ISBLANK(InfoPro!B25),"",InfoPro!B25) -> Aguachica 1, 2, 3 | C32: =IF(ISBLANK(InfoPro!E25),"",InfoPro!E25) -> 150 | D32: =IF(ISBLANK(InfoPro!F25),"",InfoPro!F25) -> Solar FV | E32: =IF(ISBLANK(InfoPro!I25),"",YEAR(InfoPro!I25)-$G$3) -> 3 | F32: =IF(B32="","",VLOOKUP(D32,Tablas!$B$2:$E$13,2,FALSE)) -> 0.26 | G32: =IF(B32="","",VLOOKUP(D32,Tablas!$B$2:$G$13,6,FALSE)) -> 0 | H32: 341640 | I32: 43484.96412 | J32: 2861002.286 | K32: 2559036.034 | L32: 2288940.996 | M32: 2047353.306 | N32: 1831264.138 | O32: 1637982.234 | P32: 1465100.389 | Q32: 1310465.464 | R32: 1172151.578 | S32: 1048436.116 | T32: 937778.279 | U32: 838799.8918 | V32: 750268.2395 | W32: 671080.7152 | X32: 600251.0869 | Y32: 8.962103677e+10 | Z32: 597473.5785
A33: =IF(ISBLANK(InfoPro!A26),"",InfoPro!A26) -> SC_2196_A2 | B33: =IF(ISBLANK(InfoPro!B26),"",InfoPro!B26) -> Aguachica 1, 2, 3 | C33: =IF(ISBLANK(InfoPro!E26),"",InfoPro!E26) -> 30 | D33: =IF(ISBLANK(InfoPro!F26),"",InfoPro!F26) -> Solar FV | E33: =IF(ISBLANK(InfoPro!I26),"",YEAR(InfoPro!I26)-$G$3) -> 3 | F33: =IF(B33="","",VLOOKUP(D33,Tablas!$B$2:$E$13,2,FALSE)) -> 0.26 | G33: =IF(B33="","",VLOOKUP(D33,Tablas!$B$2:$G$13,6,FALSE)) -> 0 | H33: 68328 | I33: 8696.992824 | J33: 572200.4572 | K33: 511807.2068 | L33: 457788.1993 | M33: 409470.6613 | N33: 366252.8276 | O33: 327596.4469 | P33: 293020.0777 | Q33: 262093.0928 | R33: 234430.3155 | S33: 209687.2232 | T33: 187555.6558 | U33: 167759.9784 | V33: 150053.6479 | W33: 134216.143 | X33: 120050.2174 | Y33: 1.792420735e+10 | Z33: 597473.5785
A34: =IF(ISBLANK(InfoPro!A27),"",InfoPro!A27) -> SC_2196_A1 | B34: =IF(ISBLANK(InfoPro!B27),"",InfoPro!B27) -> Aguachica 1, 2, 3 | C34: =IF(ISBLANK(InfoPro!E27),"",InfoPro!E27) -> 30 | D34: =IF(ISBLANK(InfoPro!F27),"",InfoPro!F27) -> Solar FV | E34: =IF(ISBLANK(InfoPro!I27),"",YEAR(InfoPro!I27)-$G$3) -> 3 | F34: =IF(B34="","",VLOOKUP(D34,Tablas!$B$2:$E$13,2,FALSE)) -> 0.26 | G34: =IF(B34="","",VLOOKUP(D34,Tablas!$B$2:$G$13,6,FALSE)) -> 0 | H34: 68328 | I34: 8696.992824 | J34: 572200.4572 | K34: 511807.2068 | L34: 457788.1993 | M34: 409470.6613 | N34: 366252.8276 | O34: 327596.4469 | P34: 293020.0777 | Q34: 262093.0928 | R34: 234430.3155 | S34: 209687.2232 | T34: 187555.6558 | U34: 167759.9784 | V34: 150053.6479 | W34: 134216.143 | X34: 120050.2174 | Y34: 1.792420735e+10 | Z34: 597473.5785
A35: =IF(ISBLANK(InfoPro!A28),"",InfoPro!A28) -> SC_1626_A1 | B35: =IF(ISBLANK(InfoPro!B28),"",InfoPro!B28) -> Manzanare | C35: =IF(ISBLANK(InfoPro!E28),"",InfoPro!E28) -> 9.99 | D35: =IF(ISBLANK(InfoPro!F28),"",InfoPro!F28) -> Solar FV | E35: =IF(ISBLANK(InfoPro!I28),"",YEAR(InfoPro!I28)-$G$3) -> 2 | F35: =IF(B35="","",VLOOKUP(D35,Tablas!$B$2:$E$13,2,FALSE)) -> 0.26 | G35: =IF(B35="","",VLOOKUP(D35,Tablas!$B$2:$G$13,6,FALSE)) -> 0 | H35: 22753.224 | I35: 2896.09861 | J35: 213026.797 | K35: 190542.7523 | L35: 170431.7999 | M35: 152443.4704 | N35: 136353.7302 | O35: 121962.1916 | P35: 109089.6168 | Q35: 97575.68588 | R35: 87276.99989 | S35: 78065.29507 | T35: 69825.84532 | U35: 62456.03338 | V35: 55864.07279 | W35: 49967.86475 | X35: 44693.97563 | Y35: 6673074853 | Z35: 667975.4607
A36: =IF(ISBLANK(InfoPro!A29),"",InfoPro!A29) -> SC_1626_A2 | B36: =IF(ISBLANK(InfoPro!B29),"",InfoPro!B29) -> Manzanare | C36: =IF(ISBLANK(InfoPro!E29),"",InfoPro!E29) -> 9.99 | D36: =IF(ISBLANK(InfoPro!F29),"",InfoPro!F29) -> Solar FV | E36: =IF(ISBLANK(InfoPro!I29),"",YEAR(InfoPro!I29)-$G$3) -> 2 | F36: =IF(B36="","",VLOOKUP(D36,Tablas!$B$2:$E$13,2,FALSE)) -> 0.26 | G36: =IF(B36="","",VLOOKUP(D36,Tablas!$B$2:$G$13,6,FALSE)) -> 0 | H36: 22753.224 | I36: 2896.09861 | J36: 213026.797 | K36: 190542.7523 | L36: 170431.7999 | M36: 152443.4704 | N36: 136353.7302 | O36: 121962.1916 | P36: 109089.6168 | Q36: 97575.68588 | R36: 87276.99989 | S36: 78065.29507 | T36: 69825.84532 | U36: 62456.03338 | V36: 55864.07279 | W36: 49967.86475 | X36: 44693.97563 | Y36: 6673074853 | Z36: 667975.4607
A37: =IF(ISBLANK(InfoPro!A30),"",InfoPro!A30) -> SC_1842_A2 | B37: =IF(ISBLANK(InfoPro!B30),"",InfoPro!B30) -> KAIROS SOLAR PARK I - 19,9 MW | C37: =IF(ISBLANK(InfoPro!E30),"",InfoPro!E30) -> 19.9 | D37: =IF(ISBLANK(InfoPro!F30),"",InfoPro!F30) -> Solar FV | E37: =IF(ISBLANK(InfoPro!I30),"",YEAR(InfoPro!I30)-$G$3) -> 0 | F37: =IF(B37="","",VLOOKUP(D37,Tablas!$B$2:$E$13,2,FALSE)) -> 0.26 | G37: =IF(B37="","",VLOOKUP(D37,Tablas!$B$2:$G$13,6,FALSE)) -> 0 | H37: 45324.24 | I37: 5769.00524 | J37: 530402.3418 | K37: 474420.6992 | L37: 424347.6737 | M37: 379559.6366 | N37: 339498.7805 | O37: 303666.1722 | P37: 271615.5386 | Q37: 242947.709 | R37: 217305.6431 | S37: 194369.9849 | T37: 173855.0849 | U37: 155505.4426 | V37: 139092.5247 | W37: 124411.9184 | X37: 111280.7856 | Y37: 1.661487934e+10 | Z37: 834918.5598
A38: =IF(ISBLANK(InfoPro!A31),"",InfoPro!A31) -> SC_1842_A1 | B38: =IF(ISBLANK(InfoPro!B31),"",InfoPro!B31) -> KAIROS SOLAR PARK I - 19,9 MW | C38: =IF(ISBLANK(InfoPro!E31),"",InfoPro!E31) -> 19.9 | D38: =IF(ISBLANK(InfoPro!F31),"",InfoPro!F31) -> Solar FV | E38: =IF(ISBLANK(InfoPro!I31),"",YEAR(InfoPro!I31)-$G$3) -> 0 | F38: =IF(B38="","",VLOOKUP(D38,Tablas!$B$2:$E$13,2,FALSE)) -> 0.26 | G38: =IF(B38="","",VLOOKUP(D38,Tablas!$B$2:$G$13,6,FALSE)) -> 0 | H38: 45324.24 | I38: 5769.00524 | J38: 530402.3418 | K38: 474420.6992 | L38: 424347.6737 | M38: 379559.6366 | N38: 339498.7805 | O38: 303666.1722 | P38: 271615.5386 | Q38: 242947.709 | R38: 217305.6431 | S38: 194369.9849 | T38: 173855.0849 | U38: 155505.4426 | V38: 139092.5247 | W38: 124411.9184 | X38: 111280.7856 | Y38: 1.661487934e+10 | Z38: 834918.5598
A39: =IF(ISBLANK(InfoPro!A32),"",InfoPro!A32) -> SC_2032_A2 | B39: =IF(ISBLANK(InfoPro!B32),"",InfoPro!B32) -> KAIROS SOLAR PARK_19.9MW | C39: =IF(ISBLANK(InfoPro!E32),"",InfoPro!E32) -> 19.9 | D39: =IF(ISBLANK(InfoPro!F32),"",InfoPro!F32) -> Solar FV | E39: =IF(ISBLANK(InfoPro!I32),"",YEAR(InfoPro!I32)-$G$3) -> 0 | F39: =IF(B39="","",VLOOKUP(D39,Tablas!$B$2:$E$13,2,FALSE)) -> 0.26 | G39: =IF(B39="","",VLOOKUP(D39,Tablas!$B$2:$G$13,6,FALSE)) -> 0 | H39: 45324.24 | I39: 5769.00524 | J39: =IF($I39="","",(1/(1+$C$4)^(J$7+$E39))*$I39*$C$5) -> 530402.3418 | K39: 474420.6992 | L39: 424347.6737 | M39: 379559.6366 | N39: 339498.7805 | O39: 303666.1722 | P39: 271615.5386 | Q39: 242947.709 | R39: 217305.6431 | S39: 194369.9849 | T39: 173855.0849 | U39: 155505.4426 | V39: 139092.5247 | W39: 124411.9184 | X39: 111280.7856 | Y39: 1.661487934e+10 | Z39: 834918.5598
A40: =IF(ISBLANK(InfoPro!A33),"",InfoPro!A33) -> SC_2032_A1 | B40: =IF(ISBLANK(InfoPro!B33),"",InfoPro!B33) -> KAIROS SOLAR PARK_19.9MW | C40: =IF(ISBLANK(InfoPro!E33),"",InfoPro!E33) -> 19.9 | D40: =IF(ISBLANK(InfoPro!F33),"",InfoPro!F33) -> Solar FV | E40: =IF(ISBLANK(InfoPro!I33),"",YEAR(InfoPro!I33)-$G$3) -> 0 | F40: =IF(B40="","",VLOOKUP(D40,Tablas!$B$2:$E$13,2,FALSE)) -> 0.26 | G40: =IF(B40="","",VLOOKUP(D40,Tablas!$B$2:$G$13,6,FALSE)) -> 0 | H40: 45324.24 | I40: 5769.00524 | J40: 530402.3418 | K40: 474420.6992 | L40: 424347.6737 | M40: 379559.6366 | N40: 339498.7805 | O40: 303666.1722 | P40: 271615.5386 | Q40: 242947.709 | R40: 217305.6431 | S40: 194369.9849 | T40: 173855.0849 | U40: 155505.4426 | V40: 139092.5247 | W40: 124411.9184 | X40: 111280.7856 | Y40: 1.661487934e+10 | Z40: 834918.5598
A41: =IF(ISBLANK(InfoPro!A34),"",InfoPro!A34) -> SC_1943_A2 | B41: =IF(ISBLANK(InfoPro!B34),"",InfoPro!B34) -> KAIROS SOLAR PARK V 19.9MW | C41: =IF(ISBLANK(InfoPro!E34),"",InfoPro!E34) -> 19.9 | D41: =IF(ISBLANK(InfoPro!F34),"",InfoPro!F34) -> Solar FV | E41: =IF(ISBLANK(InfoPro!I34),"",YEAR(InfoPro!I34)-$G$3) -> 0 | F41: =IF(B41="","",VLOOKUP(D41,Tablas!$B$2:$E$13,2,FALSE)) -> 0.26 | G41: =IF(B41="","",VLOOKUP(D41,Tablas!$B$2:$G$13,6,FALSE)) -> 0 | H41: =IF(C41="","",+C41*F41*24*365) -> 45324.24 | I41: =IF(H41="","",+H41*($C$3-G41)) -> 5769.00524 | J41: 530402.3418 | K41: 474420.6992 | L41: 424347.6737 | M41: 379559.6366 | N41: 339498.7805 | O41: 303666.1722 | P41: 271615.5386 | Q41: 242947.709 | R41: 217305.6431 | S41: 194369.9849 | T41: 173855.0849 | U41: 155505.4426 | V41: 139092.5247 | W41: 124411.9184 | X41: 111280.7856 | Y41: 1.661487934e+10 | Z41: 834918.5598
A42: =IF(ISBLANK(InfoPro!A35),"",InfoPro!A35) -> SC_1943_A1 | B42: =IF(ISBLANK(InfoPro!B35),"",InfoPro!B35) -> KAIROS SOLAR PARK V 19.9MW | C42: =IF(ISBLANK(InfoPro!E35),"",InfoPro!E35) -> 19.9 | D42: =IF(ISBLANK(InfoPro!F35),"",InfoPro!F35) -> Solar FV | E42: =IF(ISBLANK(InfoPro!I35),"",YEAR(InfoPro!I35)-$G$3) -> 0 | F42: =IF(B42="","",VLOOKUP(D42,Tablas!$B$2:$E$13,2,FALSE)) -> 0.26 | G42: =IF(B42="","",VLOOKUP(D42,Tablas!$B$2:$G$13,6,FALSE)) -> 0 | H42: 45324.24 | I42: 5769.00524 | J42: 530402.3418 | K42: 474420.6992 | L42: 424347.6737 | M42: 379559.6366 | N42: 339498.7805 | O42: 303666.1722 | P42: 271615.5386 | Q42: 242947.709 | R42: 217305.6431 | S42: 194369.9849 | T42: 173855.0849 | U42: 155505.4426 | V42: 139092.5247 | W42: 124411.9184 | X42: 111280.7856 | Y42: 1.661487934e+10 | Z42: 834918.5598
A43: =IF(ISBLANK(InfoPro!A36),"",InfoPro!A36) -> SC_2033_A2 | B43: =IF(ISBLANK(InfoPro!B36),"",InfoPro!B36) -> KAIROS SOLAR PARK IV19.9 | C43: =IF(ISBLANK(InfoPro!E36),"",InfoPro!E36) -> 19.9 | D43: =IF(ISBLANK(InfoPro!F36),"",InfoPro!F36) -> Solar FV | E43: =IF(ISBLANK(InfoPro!I36),"",YEAR(InfoPro!I36)-$G$3) -> 0 | F43: =IF(B43="","",VLOOKUP(D43,Tablas!$B$2:$E$13,2,FALSE)) -> 0.26 | G43: =IF(B43="","",VLOOKUP(D43,Tablas!$B$2:$G$13,6,FALSE)) -> 0 | H43: 45324.24 | I43: 5769.00524 | J43: 530402.3418 | K43: 474420.6992 | L43: 424347.6737 | M43: 379559.6366 | N43: 339498.7805 | O43: 303666.1722 | P43: 271615.5386 | Q43: 242947.709 | R43: 217305.6431 | S43: 194369.9849 | T43: 173855.0849 | U43: 155505.4426 | V43: 139092.5247 | W43: 124411.9184 | X43: 111280.7856 | Y43: 1.661487934e+10 | Z43: 834918.5598
A44: =IF(ISBLANK(InfoPro!A37),"",InfoPro!A37) -> SC_2033_A1 | B44: =IF(ISBLANK(InfoPro!B37),"",InfoPro!B37) -> KAIROS SOLAR PARK IV19.9 | C44: =IF(ISBLANK(InfoPro!E37),"",InfoPro!E37) -> 19.9 | D44: =IF(ISBLANK(InfoPro!F37),"",InfoPro!F37) -> Solar FV | E44: =IF(ISBLANK(InfoPro!I37),"",YEAR(InfoPro!I37)-$G$3) -> 0 | F44: =IF(B44="","",VLOOKUP(D44,Tablas!$B$2:$E$13,2,FALSE)) -> 0.26 | G44: =IF(B44="","",VLOOKUP(D44,Tablas!$B$2:$G$13,6,FALSE)) -> 0 | H44: 45324.24 | I44: 5769.00524 | J44: 530402.3418 | K44: 474420.6992 | L44: 424347.6737 | M44: 379559.6366 | N44: 339498.7805 | O44: 303666.1722 | P44: 271615.5386 | Q44: 242947.709 | R44: 217305.6431 | S44: 194369.9849 | T44: 173855.0849 | U44: 155505.4426 | V44: 139092.5247 | W44: 124411.9184 | X44: 111280.7856 | Y44: 1.661487934e+10 | Z44: 834918.5598
A45: =IF(ISBLANK(InfoPro!A38),"",InfoPro!A38) -> SC_2257_A2 | B45: =IF(ISBLANK(InfoPro!B38),"",InfoPro!B38) -> Proyecto de generación Eólico Norte | C45: =IF(ISBLANK(InfoPro!E38),"",InfoPro!E38) -> 200 | D45: =IF(ISBLANK(InfoPro!F38),"",InfoPro!F38) -> Eólico Onshore | E45: =IF(ISBLANK(InfoPro!I38),"",YEAR(InfoPro!I38)-$G$3) -> 3 | F45: =IF(B45="","",VLOOKUP(D45,Tablas!$B$2:$E$13,2,FALSE)) -> 0.57 | G45: =IF(B45="","",VLOOKUP(D45,Tablas!$B$2:$G$13,6,FALSE)) -> 0 | H45: 998640 | I45: 127109.8951 | J45: 8362929.759 | K45: 7480259.177 | L45: 6690750.605 | M45: 5984571.203 | N45: 5352925.942 | O45: 4787948.07 | P45: 4282601.136 | Q45: 3830591.356 | R45: 3426289.227 | S45: 3064659.416 | T45: 2741198.046 | U45: 2451876.607 | V45: 2193091.777 | W45: 1961620.552 | X45: 1754580.1 | Y45: 2.619691844e+11 | Z45: 1309845.922
A46: =IF(ISBLANK(InfoPro!A39),"",InfoPro!A39) -> SC_2257_A1 | B46: =IF(ISBLANK(InfoPro!B39),"",InfoPro!B39) -> Proyecto de generación Eólico Norte | C46: =IF(ISBLANK(InfoPro!E39),"",InfoPro!E39) -> 200 | D46: =IF(ISBLANK(InfoPro!F39),"",InfoPro!F39) -> Eólico Onshore | E46: =IF(ISBLANK(InfoPro!I39),"",YEAR(InfoPro!I39)-$G$3) -> 3 | F46: =IF(B46="","",VLOOKUP(D46,Tablas!$B$2:$E$13,2,FALSE)) -> 0.57 | G46: =IF(B46="","",VLOOKUP(D46,Tablas!$B$2:$G$13,6,FALSE)) -> 0 | H46: 998640 | I46: 127109.8951 | J46: 8362929.759 | K46: 7480259.177 | L46: 6690750.605 | M46: 5984571.203 | N46: 5352925.942 | O46: 4787948.07 | P46: 4282601.136 | Q46: 3830591.356 | R46: 3426289.227 | S46: 3064659.416 | T46: 2741198.046 | U46: 2451876.607 | V46: 2193091.777 | W46: 1961620.552 | X46: 1754580.1 | Y46: 2.619691844e+11 | Z46: 1309845.922
A47: =IF(ISBLANK(InfoPro!A40),"",InfoPro!A40) -> SC_2074_A2 | B47: =IF(ISBLANK(InfoPro!B40),"",InfoPro!B40) -> CULEBRA I | C47: =IF(ISBLANK(InfoPro!E40),"",InfoPro!E40) -> 5 | D47: =IF(ISBLANK(InfoPro!F40),"",InfoPro!F40) -> Solar FV | E47: =IF(ISBLANK(InfoPro!I40),"",YEAR(InfoPro!I40)-$G$3) -> 1 | F47: =IF(B47="","",VLOOKUP(D47,Tablas!$B$2:$E$13,2,FALSE)) -> 0.26 | G47: =IF(B47="","",VLOOKUP(D47,Tablas!$B$2:$G$13,6,FALSE)) -> 0 | H47: 11388 | I47: 1449.498804 | J47: 119201.1807 | K47: 106620.0185 | L47: 95366.74287 | M47: 85301.20114 | N47: 76298.03322 | O47: 68245.11021 | P47: 61042.13794 | Q47: 54599.40781 | R47: 48836.67962 | S47: 43682.18213 | T47: 39071.71926 | U47: 34947.87053 | V47: 31259.27597 | W47: 27959.99639 | X47: 25008.94132 | Y47: 3733982825 | Z47: 746796.5651
A48: =IF(ISBLANK(InfoPro!A41),"",InfoPro!A41) -> SC_2074_A1 | B48: =IF(ISBLANK(InfoPro!B41),"",InfoPro!B41) -> CULEBRA I | C48: =IF(ISBLANK(InfoPro!E41),"",InfoPro!E41) -> 5 | D48: =IF(ISBLANK(InfoPro!F41),"",InfoPro!F41) -> Solar FV | E48: =IF(ISBLANK(InfoPro!I41),"",YEAR(InfoPro!I41)-$G$3) -> 1 | F48: =IF(B48="","",VLOOKUP(D48,Tablas!$B$2:$E$13,2,FALSE)) -> 0.26 | G48: =IF(B48="","",VLOOKUP(D48,Tablas!$B$2:$G$13,6,FALSE)) -> 0 | H48: 11388 | I48: 1449.498804 | J48: 119201.1807 | K48: 106620.0185 | L48: 95366.74287 | M48: 85301.20114 | N48: 76298.03322 | O48: 68245.11021 | P48: 61042.13794 | Q48: 54599.40781 | R48: 48836.67962 | S48: 43682.18213 | T48: 39071.71926 | U48: 34947.87053 | V48: 31259.27597 | W48: 27959.99639 | X48: 25008.94132 | Y48: 3733982825 | Z48: 746796.5651
A49: =IF(ISBLANK(InfoPro!A42),"",InfoPro!A42) -> SC_2085_A2 | B49: =IF(ISBLANK(InfoPro!B42),"",InfoPro!B42) -> Insula I | C49: =IF(ISBLANK(InfoPro!E42),"",InfoPro!E42) -> 19.9 | D49: =IF(ISBLANK(InfoPro!F42),"",InfoPro!F42) -> Solar FV | E49: =IF(ISBLANK(InfoPro!I42),"",YEAR(InfoPro!I42)-$G$3) -> 2 | F49: =IF(B49="","",VLOOKUP(D49,Tablas!$B$2:$E$13,2,FALSE)) -> 0.26 | G49: =IF(B49="","",VLOOKUP(D49,Tablas!$B$2:$G$13,6,FALSE)) -> 0 | H49: 45324.24 | I49: 5769.00524 | J49: =IF($I49="","",(1/(1+$C$4)^(J$7+$E49))*$I49*$C$5) -> 424347.6737 | K49: 379559.6366 | L49: 339498.7805 | M49: 303666.1722 | N49: 271615.5386 | O49: 242947.709 | P49: 217305.6431 | Q49: 194369.9849 | R49: 173855.0849 | S49: 155505.4426 | T49: 139092.5247 | U49: 124411.9184 | V49: 111280.7856 | W49: 99535.58645 | X49: 89030.04154 | Y49: 1.329271167e+10 | Z49: 667975.4607
A50: =IF(ISBLANK(InfoPro!A43),"",InfoPro!A43) -> SC_2085_A1 | B50: =IF(ISBLANK(InfoPro!B43),"",InfoPro!B43) -> Insula I | C50: =IF(ISBLANK(InfoPro!E43),"",InfoPro!E43) -> 19.9 | D50: =IF(ISBLANK(InfoPro!F43),"",InfoPro!F43) -> Solar FV | E50: =IF(ISBLANK(InfoPro!I43),"",YEAR(InfoPro!I43)-$G$3) -> 2 | F50: =IF(B50="","",VLOOKUP(D50,Tablas!$B$2:$E$13,2,FALSE)) -> 0.26 | G50: =IF(B50="","",VLOOKUP(D50,Tablas!$B$2:$G$13,6,FALSE)) -> 0 | H50: 45324.24 | I50: 5769.00524 | J50: 424347.6737 | K50: 379559.6366 | L50: 339498.7805 | M50: 303666.1722 | N50: 271615.5386 | O50: 242947.709 | P50: 217305.6431 | Q50: 194369.9849 | R50: 173855.0849 | S50: 155505.4426 | T50: 139092.5247 | U50: 124411.9184 | V50: 111280.7856 | W50: 99535.58645 | X50: 89030.04154 | Y50: 1.329271167e+10 | Z50: 667975.4607
A51: =IF(ISBLANK(InfoPro!A44),"",InfoPro!A44) -> SC_1983_A2 | B51: =IF(ISBLANK(InfoPro!B44),"",InfoPro!B44) -> EL TOCHE II | C51: =IF(ISBLANK(InfoPro!E44),"",InfoPro!E44) -> 99.9 | D51: =IF(ISBLANK(InfoPro!F44),"",InfoPro!F44) -> Solar FV | E51: =IF(ISBLANK(InfoPro!I44),"",YEAR(InfoPro!I44)-$G$3) -> 3 | F51: =IF(B51="","",VLOOKUP(D51,Tablas!$B$2:$E$13,2,FALSE)) -> 0.26 | G51: =IF(B51="","",VLOOKUP(D51,Tablas!$B$2:$G$13,6,FALSE)) -> 0 | H51: 227532.24 | I51: 28960.9861 | J51: 1905427.523 | K51: 1704317.999 | L51: 1524434.704 | M51: 1363537.302 | N51: 1219621.916 | O51: 1090896.168 | P51: 975756.8588 | Q51: 872769.9989 | R51: 780652.9507 | S51: 698258.4532 | T51: 624560.3338 | U51: 558640.7279 | V51: 499678.6475 | W51: 446939.7563 | X51: 399767.2239 | Y51: 5.968761049e+10 | Z51: 597473.5785
A52: =IF(ISBLANK(InfoPro!A45),"",InfoPro!A45) -> SC_1983_A1 | B52: =IF(ISBLANK(InfoPro!B45),"",InfoPro!B45) -> EL TOCHE II | C52: =IF(ISBLANK(InfoPro!E45),"",InfoPro!E45) -> 99.9 | D52: =IF(ISBLANK(InfoPro!F45),"",InfoPro!F45) -> Solar FV | E52: =IF(ISBLANK(InfoPro!I45),"",YEAR(InfoPro!I45)-$G$3) -> 3 | F52: =IF(B52="","",VLOOKUP(D52,Tablas!$B$2:$E$13,2,FALSE)) -> 0.26 | G52: =IF(B52="","",VLOOKUP(D52,Tablas!$B$2:$G$13,6,FALSE)) -> 0 | H52: 227532.24 | I52: 28960.9861 | J52: 1905427.523 | K52: 1704317.999 | L52: 1524434.704 | M52: 1363537.302 | N52: 1219621.916 | O52: 1090896.168 | P52: 975756.8588 | Q52: 872769.9989 | R52: 780652.9507 | S52: 698258.4532 | T52: 624560.3338 | U52: 558640.7279 | V52: 499678.6475 | W52: 446939.7563 | X52: 399767.2239 | Y52: 5.968761049e+10 | Z52: 597473.5785
A53: =IF(ISBLANK(InfoPro!A46),"",InfoPro!A46) -> SC_2079_A2 | B53: =IF(ISBLANK(InfoPro!B46),"",InfoPro!B46) -> PGF Tibú II | C53: =IF(ISBLANK(InfoPro!E46),"",InfoPro!E46) -> 99.9 | D53: =IF(ISBLANK(InfoPro!F46),"",InfoPro!F46) -> Solar FV | E53: =IF(ISBLANK(InfoPro!I46),"",YEAR(InfoPro!I46)-$G$3) -> 3 | F53: =IF(B53="","",VLOOKUP(D53,Tablas!$B$2:$E$13,2,FALSE)) -> 0.26 | G53: =IF(B53="","",VLOOKUP(D53,Tablas!$B$2:$G$13,6,FALSE)) -> 0 | H53: 227532.24 | I53: 28960.9861 | J53: 1905427.523 | K53: 1704317.999 | L53: 1524434.704 | M53: 1363537.302 | N53: 1219621.916 | O53: 1090896.168 | P53: 975756.8588 | Q53: 872769.9989 | R53: 780652.9507 | S53: 698258.4532 | T53: 624560.3338 | U53: 558640.7279 | V53: 499678.6475 | W53: 446939.7563 | X53: 399767.2239 | Y53: 5.968761049e+10 | Z53: 597473.5785
A54: =IF(ISBLANK(InfoPro!A47),"",InfoPro!A47) -> SC_2079_A1 | B54: =IF(ISBLANK(InfoPro!B47),"",InfoPro!B47) -> PGF Tibú II | C54: =IF(ISBLANK(InfoPro!E47),"",InfoPro!E47) -> 99.9 | D54: =IF(ISBLANK(InfoPro!F47),"",InfoPro!F47) -> Solar FV | E54: =IF(ISBLANK(InfoPro!I47),"",YEAR(InfoPro!I47)-$G$3) -> 3 | F54: =IF(B54="","",VLOOKUP(D54,Tablas!$B$2:$E$13,2,FALSE)) -> 0.26 | G54: =IF(B54="","",VLOOKUP(D54,Tablas!$B$2:$G$13,6,FALSE)) -> 0 | H54: 227532.24 | I54: 28960.9861 | J54: 1905427.523 | K54: 1704317.999 | L54: 1524434.704 | M54: 1363537.302 | N54: 1219621.916 | O54: 1090896.168 | P54: 975756.8588 | Q54: 872769.9989 | R54: 780652.9507 | S54: 698258.4532 | T54: 624560.3338 | U54: 558640.7279 | V54: 499678.6475 | W54: 446939.7563 | X54: 399767.2239 | Y54: 5.968761049e+10 | Z54: 597473.5785
A55: =IF(ISBLANK(InfoPro!A48),"",InfoPro!A48) -> SC_2013_A2 | B55: =IF(ISBLANK(InfoPro!B48),"",InfoPro!B48) -> PGF TIBÚ I | C55: =IF(ISBLANK(InfoPro!E48),"",InfoPro!E48) -> 99.9 | D55: =IF(ISBLANK(InfoPro!F48),"",InfoPro!F48) -> Solar FV | E55: =IF(ISBLANK(InfoPro!I48),"",YEAR(InfoPro!I48)-$G$3) -> 3 | F55: =IF(B55="","",VLOOKUP(D55,Tablas!$B$2:$E$13,2,FALSE)) -> 0.26 | G55: =IF(B55="","",VLOOKUP(D55,Tablas!$B$2:$G$13,6,FALSE)) -> 0 | H55: 227532.24 | I55: 28960.9861 | J55: 1905427.523 | K55: 1704317.999 | L55: 1524434.704 | M55: 1363537.302 | N55: 1219621.916 | O55: 1090896.168 | P55: 975756.8588 | Q55: 872769.9989 | R55: 780652.9507 | S55: 698258.4532 | T55: 624560.3338 | U55: 558640.7279 | V55: 499678.6475 | W55: 446939.7563 | X55: 399767.2239 | Y55: 5.968761049e+10 | Z55: 597473.5785
A56: =IF(ISBLANK(InfoPro!A49),"",InfoPro!A49) -> SC_2013_A1 | B56: =IF(ISBLANK(InfoPro!B49),"",InfoPro!B49) -> PGF TIBÚ I | C56: =IF(ISBLANK(InfoPro!E49),"",InfoPro!E49) -> 99.9 | D56: =IF(ISBLANK(InfoPro!F49),"",InfoPro!F49) -> Solar FV | E56: =IF(ISBLANK(InfoPro!I49),"",YEAR(InfoPro!I49)-$G$3) -> 3 | F56: =IF(B56="","",VLOOKUP(D56,Tablas!$B$2:$E$13,2,FALSE)) -> 0.26 | G56: =IF(B56="","",VLOOKUP(D56,Tablas!$B$2:$G$13,6,FALSE)) -> 0 | H56: 227532.24 | I56: 28960.9861 | J56: 1905427.523 | K56: 1704317.999 | L56: 1524434.704 | M56: 1363537.302 | N56: 1219621.916 | O56: 1090896.168 | P56: 975756.8588 | Q56: 872769.9989 | R56: 780652.9507 | S56: 698258.4532 | T56: 624560.3338 | U56: 558640.7279 | V56: 499678.6475 | W56: 446939.7563 | X56: 399767.2239 | Y56: 5.968761049e+10 | Z56: 597473.5785
A57: =IF(ISBLANK(InfoPro!A50),"",InfoPro!A50) -> SC_1994_A2 | B57: =IF(ISBLANK(InfoPro!B50),"",InfoPro!B50) -> Parque Solar Ábrego de 9,9 MW | C57: =IF(ISBLANK(InfoPro!E50),"",InfoPro!E50) -> 9.9 | D57: =IF(ISBLANK(InfoPro!F50),"",InfoPro!F50) -> Solar FV | E57: =IF(ISBLANK(InfoPro!I50),"",YEAR(InfoPro!I50)-$G$3) -> 4 | F57: =IF(B57="","",VLOOKUP(D57,Tablas!$B$2:$E$13,2,FALSE)) -> 0.26 | G57: =IF(B57="","",VLOOKUP(D57,Tablas!$B$2:$G$13,6,FALSE)) -> 0 | H57: 22548.24 | I57: 2870.007632 | J57: 168896.3782 | K57: 151070.1058 | L57: 135125.3182 | M57: 120863.4331 | N57: 108106.8275 | O57: 96696.62564 | P57: 86490.72061 | Q57: 77362.00413 | R57: 69196.78365 | S57: 61893.36642 | T57: 55360.79286 | U57: 49517.70381 | V57: 44291.3272 | W57: 39616.57174 | X57: 35435.21622 | Y57: 5290687323 | Z57: 534412.8609
A58: =IF(ISBLANK(InfoPro!A51),"",InfoPro!A51) -> SC_1994_A1 | B58: =IF(ISBLANK(InfoPro!B51),"",InfoPro!B51) -> Parque Solar Ábrego de 9,9 MW | C58: =IF(ISBLANK(InfoPro!E51),"",InfoPro!E51) -> 9.9 | D58: =IF(ISBLANK(InfoPro!F51),"",InfoPro!F51) -> Solar FV | E58: =IF(ISBLANK(InfoPro!I51),"",YEAR(InfoPro!I51)-$G$3) -> 4 | F58: =IF(B58="","",VLOOKUP(D58,Tablas!$B$2:$E$13,2,FALSE)) -> 0.26 | G58: =IF(B58="","",VLOOKUP(D58,Tablas!$B$2:$G$13,6,FALSE)) -> 0 | H58: 22548.24 | I58: 2870.007632 | J58: 168896.3782 | K58: 151070.1058 | L58: 135125.3182 | M58: 120863.4331 | N58: 108106.8275 | O58: 96696.62564 | P58: 86490.72061 | Q58: 77362.00413 | R58: 69196.78365 | S58: 61893.36642 | T58: 55360.79286 | U58: 49517.70381 | V58: 44291.3272 | W58: 39616.57174 | X58: 35435.21622 | Y58: 5290687323 | Z58: 534412.8609
A59: =IF(ISBLANK(InfoPro!A52),"",InfoPro!A52) -> SC_2157_A2 | B59: =IF(ISBLANK(InfoPro!B52),"",InfoPro!B52) -> PGF El Toche I 99,9 MW | C59: =IF(ISBLANK(InfoPro!E52),"",InfoPro!E52) -> 99.9 | D59: =IF(ISBLANK(InfoPro!F52),"",InfoPro!F52) -> Solar FV | E59: =IF(ISBLANK(InfoPro!I52),"",YEAR(InfoPro!I52)-$G$3) -> 3 | F59: =IF(B59="","",VLOOKUP(D59,Tablas!$B$2:$E$13,2,FALSE)) -> 0.26 | G59: =IF(B59="","",VLOOKUP(D59,Tablas!$B$2:$G$13,6,FALSE)) -> 0 | H59: 227532.24 | I59: 28960.9861 | J59: =IF($I59="","",(1/(1+$C$4)^(J$7+$E59))*$I59*$C$5) -> 1905427.523 | K59: 1704317.999 | L59: 1524434.704 | M59: 1363537.302 | N59: 1219621.916 | O59: 1090896.168 | P59: 975756.8588 | Q59: 872769.9989 | R59: 780652.9507 | S59: 698258.4532 | T59: 624560.3338 | U59: 558640.7279 | V59: 499678.6475 | W59: 446939.7563 | X59: 399767.2239 | Y59: 5.968761049e+10 | Z59: 597473.5785
A60: =IF(ISBLANK(InfoPro!A53),"",InfoPro!A53) -> SC_2157_A1 | B60: =IF(ISBLANK(InfoPro!B53),"",InfoPro!B53) -> PGF El Toche I 99,9 MW | C60: =IF(ISBLANK(InfoPro!E53),"",InfoPro!E53) -> 99.9 | D60: =IF(ISBLANK(InfoPro!F53),"",InfoPro!F53) -> Solar FV | E60: =IF(ISBLANK(InfoPro!I53),"",YEAR(InfoPro!I53)-$G$3) -> 3 | F60: =IF(B60="","",VLOOKUP(D60,Tablas!$B$2:$E$13,2,FALSE)) -> 0.26 | G60: =IF(B60="","",VLOOKUP(D60,Tablas!$B$2:$G$13,6,FALSE)) -> 0 | H60: 227532.24 | I60: 28960.9861 | J60: 1905427.523 | K60: 1704317.999 | L60: 1524434.704 | M60: 1363537.302 | N60: 1219621.916 | O60: 1090896.168 | P60: 975756.8588 | Q60: 872769.9989 | R60: 780652.9507 | S60: 698258.4532 | T60: 624560.3338 | U60: 558640.7279 | V60: 499678.6475 | W60: 446939.7563 | X60: 399767.2239 | Y60: 5.968761049e+10 | Z60: 597473.5785
A61: =IF(ISBLANK(InfoPro!A54),"",InfoPro!A54) -> SC_2291_A2 | B61: =IF(ISBLANK(InfoPro!B54),"",InfoPro!B54) -> Termotasajero Solar Tres | C61: =IF(ISBLANK(InfoPro!E54),"",InfoPro!E54) -> 3 | D61: =IF(ISBLANK(InfoPro!F54),"",InfoPro!F54) -> Solar FV | E61: =IF(ISBLANK(InfoPro!I54),"",YEAR(InfoPro!I54)-$G$3) -> 1 | F61: =IF(B61="","",VLOOKUP(D61,Tablas!$B$2:$E$13,2,FALSE)) -> 0.26 | G61: =IF(B61="","",VLOOKUP(D61,Tablas!$B$2:$G$13,6,FALSE)) -> 0 | H61: 6832.8 | I61: 869.6992824 | J61: 71520.70843 | K61: 63972.01112 | L61: 57220.04572 | M61: 51180.72068 | N61: 45778.81993 | O61: 40947.06613 | P61: 36625.28276 | Q61: 32759.64469 | R61: 29302.00777 | S61: 26209.30928 | T61: 23443.03155 | U61: 20968.72232 | V61: 18755.56558 | W61: 16775.99784 | X61: 15005.36479 | Y61: 2240389695 | Z61: 746796.5651
A62: =IF(ISBLANK(InfoPro!A55),"",InfoPro!A55) -> SC_2291_A1 | B62: =IF(ISBLANK(InfoPro!B55),"",InfoPro!B55) -> Termotasajero Solar Tres | C62: =IF(ISBLANK(InfoPro!E55),"",InfoPro!E55) -> 3 | D62: =IF(ISBLANK(InfoPro!F55),"",InfoPro!F55) -> Solar FV | E62: =IF(ISBLANK(InfoPro!I55),"",YEAR(InfoPro!I55)-$G$3) -> 1 | F62: =IF(B62="","",VLOOKUP(D62,Tablas!$B$2:$E$13,2,FALSE)) -> 0.26 | G62: =IF(B62="","",VLOOKUP(D62,Tablas!$B$2:$G$13,6,FALSE)) -> 0 | H62: 6832.8 | I62: 869.6992824 | J62: 71520.70843 | K62: 63972.01112 | L62: 57220.04572 | M62: 51180.72068 | N62: 45778.81993 | O62: 40947.06613 | P62: 36625.28276 | Q62: 32759.64469 | R62: 29302.00777 | S62: 26209.30928 | T62: 23443.03155 | U62: 20968.72232 | V62: 18755.56558 | W62: 16775.99784 | X62: 15005.36479 | Y62: 2240389695 | Z62: 746796.5651
A63: =IF(ISBLANK(InfoPro!A56),"",InfoPro!A56) -> SC_2279_A2 | B63: =IF(ISBLANK(InfoPro!B56),"",InfoPro!B56) -> PROYECTO SOLAR FOTOVOLTAICO COCOTAS DE 9,9 MW | C63: =IF(ISBLANK(InfoPro!E56),"",InfoPro!E56) -> 9.9 | D63: =IF(ISBLANK(InfoPro!F56),"",InfoPro!F56) -> Solar FV | E63: =IF(ISBLANK(InfoPro!I56),"",YEAR(InfoPro!I56)-$G$3) -> 3 | F63: =IF(B63="","",VLOOKUP(D63,Tablas!$B$2:$E$13,2,FALSE)) -> 0.26 | G63: =IF(B63="","",VLOOKUP(D63,Tablas!$B$2:$G$13,6,FALSE)) -> 0 | H63: 22548.24 | I63: 2870.007632 | J63: 188826.1509 | K63: 168896.3782 | L63: 151070.1058 | M63: 135125.3182 | N63: 120863.4331 | O63: 108106.8275 | P63: 96696.62564 | Q63: 86490.72061 | R63: 77362.00413 | S63: 69196.78365 | T63: 61893.36642 | U63: 55360.79286 | V63: 49517.70381 | W63: 44291.3272 | X63: 39616.57174 | Y63: 5914988427 | Z63: 597473.5785
A64: =IF(ISBLANK(InfoPro!A57),"",InfoPro!A57) -> SC_2279_A1 | B64: =IF(ISBLANK(InfoPro!B57),"",InfoPro!B57) -> PROYECTO SOLAR FOTOVOLTAICO COCOTAS DE 9,9 MW | C64: =IF(ISBLANK(InfoPro!E57),"",InfoPro!E57) -> 9.9 | D64: =IF(ISBLANK(InfoPro!F57),"",InfoPro!F57) -> Solar FV | E64: =IF(ISBLANK(InfoPro!I57),"",YEAR(InfoPro!I57)-$G$3) -> 3 | F64: =IF(B64="","",VLOOKUP(D64,Tablas!$B$2:$E$13,2,FALSE)) -> 0.26 | G64: =IF(B64="","",VLOOKUP(D64,Tablas!$B$2:$G$13,6,FALSE)) -> 0 | H64: 22548.24 | I64: 2870.007632 | J64: 188826.1509 | K64: 168896.3782 | L64: 151070.1058 | M64: 135125.3182 | N64: 120863.4331 | O64: 108106.8275 | P64: 96696.62564 | Q64: 86490.72061 | R64: 77362.00413 | S64: 69196.78365 | T64: 61893.36642 | U64: 55360.79286 | V64: 49517.70381 | W64: 44291.3272 | X64: 39616.57174 | Y64: 5914988427 | Z64: 597473.5785
A65: =IF(ISBLANK(InfoPro!A58),"",InfoPro!A58) -> SC_2319_A2 | B65: =IF(ISBLANK(InfoPro!B58),"",InfoPro!B58) -> SOLAR FOTOVOLTAICO MORRISON DE 278,6 MW | C65: =IF(ISBLANK(InfoPro!E58),"",InfoPro!E58) -> 278.6 | D65: =IF(ISBLANK(InfoPro!F58),"",InfoPro!F58) -> Solar FV | E65: =IF(ISBLANK(InfoPro!I58),"",YEAR(InfoPro!I58)-$G$3) -> 3 | F65: =IF(B65="","",VLOOKUP(D65,Tablas!$B$2:$E$13,2,FALSE)) -> 0.26 | G65: =IF(B65="","",VLOOKUP(D65,Tablas!$B$2:$G$13,6,FALSE)) -> 0 | H65: 634539.36 | I65: 80766.07336 | J65: 5313834.913 | K65: 4752982.927 | L65: 4251326.411 | M65: 3802617.541 | N65: 3401267.926 | O65: 3042279.003 | P65: 2721179.788 | Q65: 2433971.188 | R65: 2177076.197 | S65: 1947295.346 | T65: 1741766.857 | U65: 1557930.999 | V65: 1393498.21 | W65: 1246420.582 | X65: 1114866.352 | Y65: 1.66456139e+11 | Z65: 597473.5785
A66: =IF(ISBLANK(InfoPro!A59),"",InfoPro!A59) -> SC_2319_A1 | B66: =IF(ISBLANK(InfoPro!B59),"",InfoPro!B59) -> SOLAR FOTOVOLTAICO MORRISON DE 278,6 MW | C66: =IF(ISBLANK(InfoPro!E59),"",InfoPro!E59) -> 278.6 | D66: =IF(ISBLANK(InfoPro!F59),"",InfoPro!F59) -> Solar FV | E66: =IF(ISBLANK(InfoPro!I59),"",YEAR(InfoPro!I59)-$G$3) -> 3 | F66: =IF(B66="","",VLOOKUP(D66,Tablas!$B$2:$E$13,2,FALSE)) -> 0.26 | G66: =IF(B66="","",VLOOKUP(D66,Tablas!$B$2:$G$13,6,FALSE)) -> 0 | H66: 634539.36 | I66: 80766.07336 | J66: 5313834.913 | K66: 4752982.927 | L66: 4251326.411 | M66: 3802617.541 | N66: 3401267.926 | O66: 3042279.003 | P66: 2721179.788 | Q66: 2433971.188 | R66: 2177076.197 | S66: 1947295.346 | T66: 1741766.857 | U66: 1557930.999 | V66: 1393498.21 | W66: 1246420.582 | X66: 1114866.352 | Y66: 1.66456139e+11 | Z66: 597473.5785
A67: =IF(ISBLANK(InfoPro!A60),"",InfoPro!A60) -> SC_1891_A1 | B67: =IF(ISBLANK(InfoPro!B60),"",InfoPro!B60) -> KAIROS SOLAR PARK II - 19,9 MW | C67: =IF(ISBLANK(InfoPro!E60),"",InfoPro!E60) -> 19.9 | D67: =IF(ISBLANK(InfoPro!F60),"",InfoPro!F60) -> Solar FV | E67: =IF(ISBLANK(InfoPro!I60),"",YEAR(InfoPro!I60)-$G$3) -> 0 | F67: =IF(B67="","",VLOOKUP(D67,Tablas!$B$2:$E$13,2,FALSE)) -> 0.26 | G67: =IF(B67="","",VLOOKUP(D67,Tablas!$B$2:$G$13,6,FALSE)) -> 0 | H67: =IF(C67="","",+C67*F67*24*365) -> 45324.24 | I67: =IF(H67="","",+H67*($C$3-G67)) -> 5769.00524 | J67: 530402.3418 | K67: 474420.6992 | L67: 424347.6737 | M67: 379559.6366 | N67: 339498.7805 | O67: 303666.1722 | P67: 271615.5386 | Q67: 242947.709 | R67: 217305.6431 | S67: 194369.9849 | T67: 173855.0849 | U67: 155505.4426 | V67: 139092.5247 | W67: 124411.9184 | X67: 111280.7856 | Y67: =IF(X67="","",SUM(J67:X67)*$C$6) -> 1.661487934e+10 | Z67: =IF(C67=0,0,IF(Y67="","",Y67/(C67*1000))) -> 834918.5598
A68: =IF(ISBLANK(InfoPro!A61),"",InfoPro!A61) -> SC_1891_A2 | B68: =IF(ISBLANK(InfoPro!B61),"",InfoPro!B61) -> KAIROS SOLAR PARK II - 19,9 MW | C68: =IF(ISBLANK(InfoPro!E61),"",InfoPro!E61) -> 19.9 | D68: =IF(ISBLANK(InfoPro!F61),"",InfoPro!F61) -> Solar FV | E68: =IF(ISBLANK(InfoPro!I61),"",YEAR(InfoPro!I61)-$G$3) -> 0 | F68: =IF(B68="","",VLOOKUP(D68,Tablas!$B$2:$E$13,2,FALSE)) -> 0.26 | G68: =IF(B68="","",VLOOKUP(D68,Tablas!$B$2:$G$13,6,FALSE)) -> 0 | H68: 45324.24 | I68: 5769.00524 | J68: 530402.3418 | K68: 474420.6992 | L68: 424347.6737 | M68: 379559.6366 | N68: 339498.7805 | O68: 303666.1722 | P68: 271615.5386 | Q68: 242947.709 | R68: 217305.6431 | S68: 194369.9849 | T68: 173855.0849 | U68: 155505.4426 | V68: 139092.5247 | W68: 124411.9184 | X68: 111280.7856 | Y68: 1.661487934e+10 | Z68: 834918.5598
A69: =IF(ISBLANK(InfoPro!A60),"",InfoPro!A60) -> SC_1891_A1 | B69: =IF(ISBLANK(InfoPro!B60),"",InfoPro!B60) -> KAIROS SOLAR PARK II - 19,9 MW | C69: =IF(ISBLANK(InfoPro!E60),"",InfoPro!E60) -> 19.9 | D69: =IF(ISBLANK(InfoPro!F60),"",InfoPro!F60) -> Solar FV | E69: =IF(ISBLANK(InfoPro!I60),"",YEAR(InfoPro!I60)-$G$3) -> 0 | F69: =IF(B69="","",VLOOKUP(D69,Tablas!$B$2:$E$13,2,FALSE)) -> 0.26 | G69: =IF(B69="","",VLOOKUP(D69,Tablas!$B$2:$G$13,6,FALSE)) -> 0 | H69: 45324.24 | I69: 5769.00524 | J69: =IF($I69="","",(1/(1+$C$4)^(J$7+$E69))*$I69*$C$5) -> 530402.3418 | K69: 474420.6992 | L69: 424347.6737 | M69: 379559.6366 | N69: 339498.7805 | O69: 303666.1722 | P69: 271615.5386 | Q69: 242947.709 | R69: 217305.6431 | S69: 194369.9849 | T69: 173855.0849 | U69: 155505.4426 | V69: 139092.5247 | W69: 124411.9184 | X69: 111280.7856 | Y69: 1.661487934e+10 | Z69: 834918.5598
A70: =IF(ISBLANK(InfoPro!A61),"",InfoPro!A61) -> SC_1891_A2 | B70: =IF(ISBLANK(InfoPro!B61),"",InfoPro!B61) -> KAIROS SOLAR PARK II - 19,9 MW | C70: =IF(ISBLANK(InfoPro!E61),"",InfoPro!E61) -> 19.9 | D70: =IF(ISBLANK(InfoPro!F61),"",InfoPro!F61) -> Solar FV | E70: =IF(ISBLANK(InfoPro!I61),"",YEAR(InfoPro!I61)-$G$3) -> 0 | F70: =IF(B70="","",VLOOKUP(D70,Tablas!$B$2:$E$13,2,FALSE)) -> 0.26 | G70: =IF(B70="","",VLOOKUP(D70,Tablas!$B$2:$G$13,6,FALSE)) -> 0 | H70: 45324.24 | I70: 5769.00524 | J70: 530402.3418 | K70: 474420.6992 | L70: 424347.6737 | M70: 379559.6366 | N70: 339498.7805 | O70: 303666.1722 | P70: 271615.5386 | Q70: 242947.709 | R70: 217305.6431 | S70: 194369.9849 | T70: 173855.0849 | U70: 155505.4426 | V70: 139092.5247 | W70: 124411.9184 | X70: 111280.7856 | Y70: 1.661487934e+10 | Z70: 834918.5598
A71: =IF(ISBLANK(InfoPro!A62),"",InfoPro!A62) -> SC_2239_A1 | B71: =IF(ISBLANK(InfoPro!B62),"",InfoPro!B62) -> PCH PANACEA III - 9,9 MW | C71: =IF(ISBLANK(InfoPro!E62),"",InfoPro!E62) -> 9.9 | D71: =IF(ISBLANK(InfoPro!F62),"",InfoPro!F62) -> PCH | E71: =IF(ISBLANK(InfoPro!I62),"",YEAR(InfoPro!I62)-$G$3) -> 2 | F71: =IF(B71="","",VLOOKUP(D71,Tablas!$B$2:$E$13,2,FALSE)) -> 0.54 | G71: =IF(B71="","",VLOOKUP(D71,Tablas!$B$2:$G$13,6,FALSE)) -> 0 | H71: 46830.96 | I71: 5960.785082 | J71: 438454.3224 | K71: 392177.3903 | L71: 350784.7856 | M71: 313760.9889 | N71: 280644.8917 | O71: 251024.0534 | P71: 224529.5647 | Q71: 200831.4533 | R71: 179634.5736 | S71: 160674.9316 | T71: 143716.3968 | U71: 128547.761 | V71: 114980.1082 | W71: 102844.4618 | X71: 91989.67957 | Y71: 1.373460313e+10 | Z71: 1387333.649
A72: =IF(ISBLANK(InfoPro!A63),"",InfoPro!A63) ->  | B72: =IF(ISBLANK(InfoPro!B63),"",InfoPro!B63) ->  | C72: =IF(ISBLANK(InfoPro!E63),"",InfoPro!E63) ->  | D72: =IF(ISBLANK(InfoPro!F63),"",InfoPro!F63) ->  | E72: =IF(ISBLANK(InfoPro!I63),"",YEAR(InfoPro!I63)-$G$3) ->  | F72: =IF(B72="","",VLOOKUP(D72,Tablas!$B$2:$E$13,2,FALSE)) ->  | G72: =IF(B72="","",VLOOKUP(D72,Tablas!$B$2:$G$13,6,FALSE)) -> 
A73: =IF(ISBLANK(InfoPro!A64),"",InfoPro!A64) ->  | B73: =IF(ISBLANK(InfoPro!B64),"",InfoPro!B64) ->  | C73: =IF(ISBLANK(InfoPro!E64),"",InfoPro!E64) ->  | D73: =IF(ISBLANK(InfoPro!F64),"",InfoPro!F64) ->  | E73: =IF(ISBLANK(InfoPro!I64),"",YEAR(InfoPro!I64)-$G$3) ->  | F73: =IF(B73="","",VLOOKUP(D73,Tablas!$B$2:$E$13,2,FALSE)) ->  | G73: =IF(B73="","",VLOOKUP(D73,Tablas!$B$2:$G$13,6,FALSE)) ->  | H73: =IF(C73="","",+C73*F73*24*365) ->  | I73: =IF(H73="","",+H73*($C$3-G73)) -> 
A74: =IF(ISBLANK(InfoPro!A65),"",InfoPro!A65) ->  | B74: =IF(ISBLANK(InfoPro!B65),"",InfoPro!B65) ->  | C74: =IF(ISBLANK(InfoPro!E65),"",InfoPro!E65) ->  | D74: =IF(ISBLANK(InfoPro!F65),"",InfoPro!F65) ->  | E74: =IF(ISBLANK(InfoPro!I65),"",YEAR(InfoPro!I65)-$G$3) ->  | F74: =IF(B74="","",VLOOKUP(D74,Tablas!$B$2:$E$13,2,FALSE)) ->  | G74: =IF(B74="","",VLOOKUP(D74,Tablas!$B$2:$G$13,6,FALSE)) ->  | Y74: =IF(X74="","",SUM(J74:X74)*$C$6) ->  | Z74: =IF(C74=0,0,IF(Y74="","",Y74/(C74*1000))) -> 
A75: =IF(ISBLANK(InfoPro!A66),"",InfoPro!A66) ->  | B75: =IF(ISBLANK(InfoPro!B66),"",InfoPro!B66) ->  | C75: =IF(ISBLANK(InfoPro!E66),"",InfoPro!E66) ->  | D75: =IF(ISBLANK(InfoPro!F66),"",InfoPro!F66) ->  | E75: =IF(ISBLANK(InfoPro!I66),"",YEAR(InfoPro!I66)-$G$3) ->  | F75: =IF(B75="","",VLOOKUP(D75,Tablas!$B$2:$E$13,2,FALSE)) ->  | G75: =IF(B75="","",VLOOKUP(D75,Tablas!$B$2:$G$13,6,FALSE)) -> 
A76: =IF(ISBLANK(InfoPro!A67),"",InfoPro!A67) ->  | B76: =IF(ISBLANK(InfoPro!B67),"",InfoPro!B67) ->  | C76: =IF(ISBLANK(InfoPro!E67),"",InfoPro!E67) ->  | D76: =IF(ISBLANK(InfoPro!F67),"",InfoPro!F67) ->  | E76: =IF(ISBLANK(InfoPro!I67),"",YEAR(InfoPro!I67)-$G$3) ->  | F76: =IF(B76="","",VLOOKUP(D76,Tablas!$B$2:$E$13,2,FALSE)) ->  | G76: =IF(B76="","",VLOOKUP(D76,Tablas!$B$2:$G$13,6,FALSE)) -> 
A77: =IF(ISBLANK(InfoPro!A68),"",InfoPro!A68) ->  | B77: =IF(ISBLANK(InfoPro!B68),"",InfoPro!B68) ->  | C77: =IF(ISBLANK(InfoPro!E68),"",InfoPro!E68) ->  | D77: =IF(ISBLANK(InfoPro!F68),"",InfoPro!F68) ->  | E77: =IF(ISBLANK(InfoPro!I68),"",YEAR(InfoPro!I68)-$G$3) ->  | F77: =IF(B77="","",VLOOKUP(D77,Tablas!$B$2:$E$13,2,FALSE)) ->  | G77: =IF(B77="","",VLOOKUP(D77,Tablas!$B$2:$G$13,6,FALSE)) -> 
A78: =IF(ISBLANK(InfoPro!A69),"",InfoPro!A69) ->  | B78: =IF(ISBLANK(InfoPro!B69),"",InfoPro!B69) ->  | C78: =IF(ISBLANK(InfoPro!E69),"",InfoPro!E69) ->  | D78: =IF(ISBLANK(InfoPro!F69),"",InfoPro!F69) ->  | E78: =IF(ISBLANK(InfoPro!I69),"",YEAR(InfoPro!I69)-$G$3) ->  | F78: =IF(B78="","",VLOOKUP(D78,Tablas!$B$2:$E$13,2,FALSE)) ->  | G78: =IF(B78="","",VLOOKUP(D78,Tablas!$B$2:$G$13,6,FALSE)) -> 
A79: =IF(ISBLANK(InfoPro!A70),"",InfoPro!A70) ->  | B79: =IF(ISBLANK(InfoPro!B70),"",InfoPro!B70) ->  | C79: =IF(ISBLANK(InfoPro!E70),"",InfoPro!E70) ->  | D79: =IF(ISBLANK(InfoPro!F70),"",InfoPro!F70) ->  | E79: =IF(ISBLANK(InfoPro!I70),"",YEAR(InfoPro!I70)-$G$3) ->  | F79: =IF(B79="","",VLOOKUP(D79,Tablas!$B$2:$E$13,2,FALSE)) ->  | G79: =IF(B79="","",VLOOKUP(D79,Tablas!$B$2:$G$13,6,FALSE)) ->  | J79: =IF($I79="","",(1/(1+$C$4)^(J$7+$E79))*$I79*$C$5) -> 
A80: =IF(ISBLANK(InfoPro!A71),"",InfoPro!A71) ->  | B80: =IF(ISBLANK(InfoPro!B71),"",InfoPro!B71) ->  | C80: =IF(ISBLANK(InfoPro!E71),"",InfoPro!E71) ->  | D80: =IF(ISBLANK(InfoPro!F71),"",InfoPro!F71) ->  | E80: =IF(ISBLANK(InfoPro!I71),"",YEAR(InfoPro!I71)-$G$3) ->  | F80: =IF(B80="","",VLOOKUP(D80,Tablas!$B$2:$E$13,2,FALSE)) ->  | G80: =IF(B80="","",VLOOKUP(D80,Tablas!$B$2:$G$13,6,FALSE)) -> 
A81: =IF(ISBLANK(InfoPro!A72),"",InfoPro!A72) ->  | B81: =IF(ISBLANK(InfoPro!B72),"",InfoPro!B72) ->  | C81: =IF(ISBLANK(InfoPro!E72),"",InfoPro!E72) ->  | D81: =IF(ISBLANK(InfoPro!F72),"",InfoPro!F72) ->  | E81: =IF(ISBLANK(InfoPro!I72),"",YEAR(InfoPro!I72)-$G$3) ->  | F81: =IF(B81="","",VLOOKUP(D81,Tablas!$B$2:$E$13,2,FALSE)) ->  | G81: =IF(B81="","",VLOOKUP(D81,Tablas!$B$2:$G$13,6,FALSE)) -> 
A82: =IF(ISBLANK(InfoPro!A73),"",InfoPro!A73) ->  | B82: =IF(ISBLANK(InfoPro!B73),"",InfoPro!B73) ->  | C82: =IF(ISBLANK(InfoPro!E73),"",InfoPro!E73) ->  | D82: =IF(ISBLANK(InfoPro!F73),"",InfoPro!F73) ->  | E82: =IF(ISBLANK(InfoPro!I73),"",YEAR(InfoPro!I73)-$G$3) ->  | F82: =IF(B82="","",VLOOKUP(D82,Tablas!$B$2:$E$13,2,FALSE)) ->  | G82: =IF(B82="","",VLOOKUP(D82,Tablas!$B$2:$G$13,6,FALSE)) -> 
A83: =IF(ISBLANK(InfoPro!A74),"",InfoPro!A74) ->  | B83: =IF(ISBLANK(InfoPro!B74),"",InfoPro!B74) ->  | C83: =IF(ISBLANK(InfoPro!E74),"",InfoPro!E74) ->  | D83: =IF(ISBLANK(InfoPro!F74),"",InfoPro!F74) ->  | E83: =IF(ISBLANK(InfoPro!I74),"",YEAR(InfoPro!I74)-$G$3) ->  | F83: =IF(B83="","",VLOOKUP(D83,Tablas!$B$2:$E$13,2,FALSE)) ->  | G83: =IF(B83="","",VLOOKUP(D83,Tablas!$B$2:$G$13,6,FALSE)) -> 
A84: =IF(ISBLANK(InfoPro!A75),"",InfoPro!A75) ->  | B84: =IF(ISBLANK(InfoPro!B75),"",InfoPro!B75) ->  | C84: =IF(ISBLANK(InfoPro!E75),"",InfoPro!E75) ->  | D84: =IF(ISBLANK(InfoPro!F75),"",InfoPro!F75) ->  | E84: =IF(ISBLANK(InfoPro!I75),"",YEAR(InfoPro!I75)-$G$3) ->  | F84: =IF(B84="","",VLOOKUP(D84,Tablas!$B$2:$E$13,2,FALSE)) ->  | G84: =IF(B84="","",VLOOKUP(D84,Tablas!$B$2:$G$13,6,FALSE)) -> 
A85: =IF(ISBLANK(InfoPro!A76),"",InfoPro!A76) ->  | B85: =IF(ISBLANK(InfoPro!B76),"",InfoPro!B76) ->  | C85: =IF(ISBLANK(InfoPro!E76),"",InfoPro!E76) ->  | D85: =IF(ISBLANK(InfoPro!F76),"",InfoPro!F76) ->  | E85: =IF(ISBLANK(InfoPro!I76),"",YEAR(InfoPro!I76)-$G$3) ->  | F85: =IF(B85="","",VLOOKUP(D85,Tablas!$B$2:$E$13,2,FALSE)) ->  | G85: =IF(B85="","",VLOOKUP(D85,Tablas!$B$2:$G$13,6,FALSE)) -> 
A86: =IF(ISBLANK(InfoPro!A77),"",InfoPro!A77) ->  | B86: =IF(ISBLANK(InfoPro!B77),"",InfoPro!B77) ->  | C86: =IF(ISBLANK(InfoPro!E77),"",InfoPro!E77) ->  | D86: =IF(ISBLANK(InfoPro!F77),"",InfoPro!F77) ->  | E86: =IF(ISBLANK(InfoPro!I77),"",YEAR(InfoPro!I77)-$G$3) ->  | F86: =IF(B86="","",VLOOKUP(D86,Tablas!$B$2:$E$13,2,FALSE)) ->  | G86: =IF(B86="","",VLOOKUP(D86,Tablas!$B$2:$G$13,6,FALSE)) -> 
A87: =IF(ISBLANK(InfoPro!A78),"",InfoPro!A78) ->  | B87: =IF(ISBLANK(InfoPro!B78),"",InfoPro!B78) ->  | C87: =IF(ISBLANK(InfoPro!E78),"",InfoPro!E78) ->  | D87: =IF(ISBLANK(InfoPro!F78),"",InfoPro!F78) ->  | E87: =IF(ISBLANK(InfoPro!I78),"",YEAR(InfoPro!I78)-$G$3) ->  | F87: =IF(B87="","",VLOOKUP(D87,Tablas!$B$2:$E$13,2,FALSE)) ->  | G87: =IF(B87="","",VLOOKUP(D87,Tablas!$B$2:$G$13,6,FALSE)) -> 
A88: =IF(ISBLANK(InfoPro!A79),"",InfoPro!A79) ->  | B88: =IF(ISBLANK(InfoPro!B79),"",InfoPro!B79) ->  | C88: =IF(ISBLANK(InfoPro!E79),"",InfoPro!E79) ->  | D88: =IF(ISBLANK(InfoPro!F79),"",InfoPro!F79) ->  | E88: =IF(ISBLANK(InfoPro!I79),"",YEAR(InfoPro!I79)-$G$3) ->  | F88: =IF(B88="","",VLOOKUP(D88,Tablas!$B$2:$E$13,2,FALSE)) ->  | G88: =IF(B88="","",VLOOKUP(D88,Tablas!$B$2:$G$13,6,FALSE)) -> 
A89: =IF(ISBLANK(InfoPro!A80),"",InfoPro!A80) ->  | B89: =IF(ISBLANK(InfoPro!B80),"",InfoPro!B80) ->  | C89: =IF(ISBLANK(InfoPro!E80),"",InfoPro!E80) ->  | D89: =IF(ISBLANK(InfoPro!F80),"",InfoPro!F80) ->  | E89: =IF(ISBLANK(InfoPro!I80),"",YEAR(InfoPro!I80)-$G$3) ->  | F89: =IF(B89="","",VLOOKUP(D89,Tablas!$B$2:$E$13,2,FALSE)) ->  | G89: =IF(B89="","",VLOOKUP(D89,Tablas!$B$2:$G$13,6,FALSE)) ->  | J89: =IF($I89="","",(1/(1+$C$4)^(J$7+$E89))*$I89*$C$5) -> 
A90: =IF(ISBLANK(InfoPro!A81),"",InfoPro!A81) ->  | B90: =IF(ISBLANK(InfoPro!B81),"",InfoPro!B81) ->  | C90: =IF(ISBLANK(InfoPro!E81),"",InfoPro!E81) ->  | D90: =IF(ISBLANK(InfoPro!F81),"",InfoPro!F81) ->  | E90: =IF(ISBLANK(InfoPro!I81),"",YEAR(InfoPro!I81)-$G$3) ->  | F90: =IF(B90="","",VLOOKUP(D90,Tablas!$B$2:$E$13,2,FALSE)) ->  | G90: =IF(B90="","",VLOOKUP(D90,Tablas!$B$2:$G$13,6,FALSE)) -> 
A91: =IF(ISBLANK(InfoPro!A82),"",InfoPro!A82) ->  | B91: =IF(ISBLANK(InfoPro!B82),"",InfoPro!B82) ->  | C91: =IF(ISBLANK(InfoPro!E82),"",InfoPro!E82) ->  | D91: =IF(ISBLANK(InfoPro!F82),"",InfoPro!F82) ->  | E91: =IF(ISBLANK(InfoPro!I82),"",YEAR(InfoPro!I82)-$G$3) ->  | F91: =IF(B91="","",VLOOKUP(D91,Tablas!$B$2:$E$13,2,FALSE)) ->  | G91: =IF(B91="","",VLOOKUP(D91,Tablas!$B$2:$G$13,6,FALSE)) -> 
A92: =IF(ISBLANK(InfoPro!A83),"",InfoPro!A83) ->  | B92: =IF(ISBLANK(InfoPro!B83),"",InfoPro!B83) ->  | C92: =IF(ISBLANK(InfoPro!E83),"",InfoPro!E83) ->  | D92: =IF(ISBLANK(InfoPro!F83),"",InfoPro!F83) ->  | E92: =IF(ISBLANK(InfoPro!I83),"",YEAR(InfoPro!I83)-$G$3) ->  | F92: =IF(B92="","",VLOOKUP(D92,Tablas!$B$2:$E$13,2,FALSE)) ->  | G92: =IF(B92="","",VLOOKUP(D92,Tablas!$B$2:$G$13,6,FALSE)) -> 
A93: =IF(ISBLANK(InfoPro!A84),"",InfoPro!A84) ->  | B93: =IF(ISBLANK(InfoPro!B84),"",InfoPro!B84) ->  | C93: =IF(ISBLANK(InfoPro!E84),"",InfoPro!E84) ->  | D93: =IF(ISBLANK(InfoPro!F84),"",InfoPro!F84) ->  | E93: =IF(ISBLANK(InfoPro!I84),"",YEAR(InfoPro!I84)-$G$3) ->  | F93: =IF(B93="","",VLOOKUP(D93,Tablas!$B$2:$E$13,2,FALSE)) ->  | G93: =IF(B93="","",VLOOKUP(D93,Tablas!$B$2:$G$13,6,FALSE)) -> 
A94: =IF(ISBLANK(InfoPro!A85),"",InfoPro!A85) ->  | B94: =IF(ISBLANK(InfoPro!B85),"",InfoPro!B85) ->  | C94: =IF(ISBLANK(InfoPro!E85),"",InfoPro!E85) ->  | D94: =IF(ISBLANK(InfoPro!F85),"",InfoPro!F85) ->  | E94: =IF(ISBLANK(InfoPro!I85),"",YEAR(InfoPro!I85)-$G$3) ->  | F94: =IF(B94="","",VLOOKUP(D94,Tablas!$B$2:$E$13,2,FALSE)) ->  | G94: =IF(B94="","",VLOOKUP(D94,Tablas!$B$2:$G$13,6,FALSE)) -> 
A95: =IF(ISBLANK(InfoPro!A86),"",InfoPro!A86) ->  | B95: =IF(ISBLANK(InfoPro!B86),"",InfoPro!B86) ->  | C95: =IF(ISBLANK(InfoPro!E86),"",InfoPro!E86) ->  | D95: =IF(ISBLANK(InfoPro!F86),"",InfoPro!F86) ->  | E95: =IF(ISBLANK(InfoPro!I86),"",YEAR(InfoPro!I86)-$G$3) ->  | F95: =IF(B95="","",VLOOKUP(D95,Tablas!$B$2:$E$13,2,FALSE)) ->  | G95: =IF(B95="","",VLOOKUP(D95,Tablas!$B$2:$G$13,6,FALSE)) ->  | H95: =IF(C95="","",+C95*F95*24*365) -> 
A96: =IF(ISBLANK(InfoPro!A87),"",InfoPro!A87) ->  | B96: =IF(ISBLANK(InfoPro!B87),"",InfoPro!B87) ->  | C96: =IF(ISBLANK(InfoPro!E87),"",InfoPro!E87) ->  | D96: =IF(ISBLANK(InfoPro!F87),"",InfoPro!F87) ->  | E96: =IF(ISBLANK(InfoPro!I87),"",YEAR(InfoPro!I87)-$G$3) ->  | F96: =IF(B96="","",VLOOKUP(D96,Tablas!$B$2:$E$13,2,FALSE)) ->  | G96: =IF(B96="","",VLOOKUP(D96,Tablas!$B$2:$G$13,6,FALSE)) -> 
A97: =IF(ISBLANK(InfoPro!A88),"",InfoPro!A88) ->  | B97: =IF(ISBLANK(InfoPro!B88),"",InfoPro!B88) ->  | C97: =IF(ISBLANK(InfoPro!E88),"",InfoPro!E88) ->  | D97: =IF(ISBLANK(InfoPro!F88),"",InfoPro!F88) ->  | E97: =IF(ISBLANK(InfoPro!I88),"",YEAR(InfoPro!I88)-$G$3) ->  | F97: =IF(B97="","",VLOOKUP(D97,Tablas!$B$2:$E$13,2,FALSE)) ->  | G97: =IF(B97="","",VLOOKUP(D97,Tablas!$B$2:$G$13,6,FALSE)) -> 
A98: =IF(ISBLANK(InfoPro!A89),"",InfoPro!A89) ->  | B98: =IF(ISBLANK(InfoPro!B89),"",InfoPro!B89) ->  | C98: =IF(ISBLANK(InfoPro!E89),"",InfoPro!E89) ->  | D98: =IF(ISBLANK(InfoPro!F89),"",InfoPro!F89) ->  | E98: =IF(ISBLANK(InfoPro!I89),"",YEAR(InfoPro!I89)-$G$3) ->  | F98: =IF(B98="","",VLOOKUP(D98,Tablas!$B$2:$E$13,2,FALSE)) ->  | G98: =IF(B98="","",VLOOKUP(D98,Tablas!$B$2:$G$13,6,FALSE)) -> 
A99: =IF(ISBLANK(InfoPro!A90),"",InfoPro!A90) ->  | B99: =IF(ISBLANK(InfoPro!B90),"",InfoPro!B90) ->  | C99: =IF(ISBLANK(InfoPro!E90),"",InfoPro!E90) ->  | D99: =IF(ISBLANK(InfoPro!F90),"",InfoPro!F90) ->  | E99: =IF(ISBLANK(InfoPro!I90),"",YEAR(InfoPro!I90)-$G$3) ->  | F99: =IF(B99="","",VLOOKUP(D99,Tablas!$B$2:$E$13,2,FALSE)) ->  | G99: =IF(B99="","",VLOOKUP(D99,Tablas!$B$2:$G$13,6,FALSE)) ->  | J99: =IF($I99="","",(1/(1+$C$4)^(J$7+$E99))*$I99*$C$5) -> 
A100: =IF(ISBLANK(InfoPro!A91),"",InfoPro!A91) ->  | B100: =IF(ISBLANK(InfoPro!B91),"",InfoPro!B91) ->  | C100: =IF(ISBLANK(InfoPro!E91),"",InfoPro!E91) ->  | D100: =IF(ISBLANK(InfoPro!F91),"",InfoPro!F91) ->  | E100: =IF(ISBLANK(InfoPro!I91),"",YEAR(InfoPro!I91)-$G$3) ->  | F100: =IF(B100="","",VLOOKUP(D100,Tablas!$B$2:$E$13,2,FALSE)) ->  | G100: =IF(B100="","",VLOOKUP(D100,Tablas!$B$2:$G$13,6,FALSE)) -> 
A101: =IF(ISBLANK(InfoPro!A92),"",InfoPro!A92) ->  | B101: =IF(ISBLANK(InfoPro!B92),"",InfoPro!B92) ->  | C101: =IF(ISBLANK(InfoPro!E92),"",InfoPro!E92) ->  | D101: =IF(ISBLANK(InfoPro!F92),"",InfoPro!F92) ->  | E101: =IF(ISBLANK(InfoPro!I92),"",YEAR(InfoPro!I92)-$G$3) ->  | F101: =IF(B101="","",VLOOKUP(D101,Tablas!$B$2:$E$13,2,FALSE)) ->  | G101: =IF(B101="","",VLOOKUP(D101,Tablas!$B$2:$G$13,6,FALSE)) -> 
A102: =IF(ISBLANK(InfoPro!A93),"",InfoPro!A93) ->  | B102: =IF(ISBLANK(InfoPro!B93),"",InfoPro!B93) ->  | C102: =IF(ISBLANK(InfoPro!E93),"",InfoPro!E93) ->  | D102: =IF(ISBLANK(InfoPro!F93),"",InfoPro!F93) ->  | E102: =IF(ISBLANK(InfoPro!I93),"",YEAR(InfoPro!I93)-$G$3) ->  | F102: =IF(B102="","",VLOOKUP(D102,Tablas!$B$2:$E$13,2,FALSE)) ->  | G102: =IF(B102="","",VLOOKUP(D102,Tablas!$B$2:$G$13,6,FALSE)) -> 
A103: =IF(ISBLANK(InfoPro!A94),"",InfoPro!A94) ->  | B103: =IF(ISBLANK(InfoPro!B94),"",InfoPro!B94) ->  | C103: =IF(ISBLANK(InfoPro!E94),"",InfoPro!E94) ->  | D103: =IF(ISBLANK(InfoPro!F94),"",InfoPro!F94) ->  | E103: =IF(ISBLANK(InfoPro!I94),"",YEAR(InfoPro!I94)-$G$3) ->  | F103: =IF(B103="","",VLOOKUP(D103,Tablas!$B$2:$E$13,2,FALSE)) ->  | G103: =IF(B103="","",VLOOKUP(D103,Tablas!$B$2:$G$13,6,FALSE)) -> 
A104: =IF(ISBLANK(InfoPro!A95),"",InfoPro!A95) ->  | B104: =IF(ISBLANK(InfoPro!B95),"",InfoPro!B95) ->  | C104: =IF(ISBLANK(InfoPro!E95),"",InfoPro!E95) ->  | D104: =IF(ISBLANK(InfoPro!F95),"",InfoPro!F95) ->  | E104: =IF(ISBLANK(InfoPro!I95),"",YEAR(InfoPro!I95)-$G$3) ->  | F104: =IF(B104="","",VLOOKUP(D104,Tablas!$B$2:$E$13,2,FALSE)) ->  | G104: =IF(B104="","",VLOOKUP(D104,Tablas!$B$2:$G$13,6,FALSE)) -> 
A105: =IF(ISBLANK(InfoPro!A96),"",InfoPro!A96) ->  | B105: =IF(ISBLANK(InfoPro!B96),"",InfoPro!B96) ->  | C105: =IF(ISBLANK(InfoPro!E96),"",InfoPro!E96) ->  | D105: =IF(ISBLANK(InfoPro!F96),"",InfoPro!F96) ->  | E105: =IF(ISBLANK(InfoPro!I96),"",YEAR(InfoPro!I96)-$G$3) ->  | F105: =IF(B105="","",VLOOKUP(D105,Tablas!$B$2:$E$13,2,FALSE)) ->  | G105: =IF(B105="","",VLOOKUP(D105,Tablas!$B$2:$G$13,6,FALSE)) ->  | I105: =IF(H105="","",+H105*($C$3-G105)) -> 
A106: =IF(ISBLANK(InfoPro!A97),"",InfoPro!A97) ->  | B106: =IF(ISBLANK(InfoPro!B97),"",InfoPro!B97) ->  | C106: =IF(ISBLANK(InfoPro!E97),"",InfoPro!E97) ->  | D106: =IF(ISBLANK(InfoPro!F97),"",InfoPro!F97) ->  | E106: =IF(ISBLANK(InfoPro!I97),"",YEAR(InfoPro!I97)-$G$3) ->  | F106: =IF(B106="","",VLOOKUP(D106,Tablas!$B$2:$E$13,2,FALSE)) ->  | G106: =IF(B106="","",VLOOKUP(D106,Tablas!$B$2:$G$13,6,FALSE)) -> 
A107: =IF(ISBLANK(InfoPro!A98),"",InfoPro!A98) ->  | B107: =IF(ISBLANK(InfoPro!B98),"",InfoPro!B98) ->  | C107: =IF(ISBLANK(InfoPro!E98),"",InfoPro!E98) ->  | D107: =IF(ISBLANK(InfoPro!F98),"",InfoPro!F98) ->  | E107: =IF(ISBLANK(InfoPro!I98),"",YEAR(InfoPro!I98)-$G$3) ->  | F107: =IF(B107="","",VLOOKUP(D107,Tablas!$B$2:$E$13,2,FALSE)) ->  | G107: =IF(B107="","",VLOOKUP(D107,Tablas!$B$2:$G$13,6,FALSE)) -> 
A108: =IF(ISBLANK(InfoPro!A99),"",InfoPro!A99) ->  | B108: =IF(ISBLANK(InfoPro!B99),"",InfoPro!B99) ->  | C108: =IF(ISBLANK(InfoPro!E99),"",InfoPro!E99) ->  | D108: =IF(ISBLANK(InfoPro!F99),"",InfoPro!F99) ->  | E108: =IF(ISBLANK(InfoPro!I99),"",YEAR(InfoPro!I99)-$G$3) ->  | F108: =IF(B108="","",VLOOKUP(D108,Tablas!$B$2:$E$13,2,FALSE)) ->  | G108: =IF(B108="","",VLOOKUP(D108,Tablas!$B$2:$G$13,6,FALSE)) -> 
A109: =IF(ISBLANK(InfoPro!A100),"",InfoPro!A100) ->  | B109: =IF(ISBLANK(InfoPro!B100),"",InfoPro!B100) ->  | C109: =IF(ISBLANK(InfoPro!E100),"",InfoPro!E100) ->  | D109: =IF(ISBLANK(InfoPro!F100),"",InfoPro!F100) ->  | E109: =IF(ISBLANK(InfoPro!I100),"",YEAR(InfoPro!I100)-$G$3) ->  | F109: =IF(B109="","",VLOOKUP(D109,Tablas!$B$2:$E$13,2,FALSE)) ->  | G109: =IF(B109="","",VLOOKUP(D109,Tablas!$B$2:$G$13,6,FALSE)) ->  | H109: =IF(C109="","",+C109*F109*24*365) ->  | I109: =IF(H109="","",+H109*($C$3-G109)) ->  | Y109: =IF(X109="","",SUM(J109:X109)*$C$6) ->  | Z109: =IF(C109=0,0,IF(Y109="","",Y109/(C109*1000))) -> 
A110: =IF(ISBLANK(InfoPro!A101),"",InfoPro!A101) ->  | B110: =IF(ISBLANK(InfoPro!B101),"",InfoPro!B101) ->  | C110: =IF(ISBLANK(InfoPro!E101),"",InfoPro!E101) ->  | D110: =IF(ISBLANK(InfoPro!F101),"",InfoPro!F101) ->  | E110: =IF(ISBLANK(InfoPro!I101),"",YEAR(InfoPro!I101)-$G$3) ->  | F110: =IF(B110="","",VLOOKUP(D110,Tablas!$B$2:$E$13,2,FALSE)) ->  | G110: =IF(B110="","",VLOOKUP(D110,Tablas!$B$2:$G$13,6,FALSE)) -> 
A111: =IF(ISBLANK(InfoPro!A102),"",InfoPro!A102) ->  | B111: =IF(ISBLANK(InfoPro!B102),"",InfoPro!B102) ->  | C111: =IF(ISBLANK(InfoPro!E102),"",InfoPro!E102) ->  | D111: =IF(ISBLANK(InfoPro!F102),"",InfoPro!F102) ->  | E111: =IF(ISBLANK(InfoPro!I102),"",YEAR(InfoPro!I102)-$G$3) ->  | F111: =IF(B111="","",VLOOKUP(D111,Tablas!$B$2:$E$13,2,FALSE)) ->  | G111: =IF(B111="","",VLOOKUP(D111,Tablas!$B$2:$G$13,6,FALSE)) ->  | H111: =IF(C111="","",+C111*F111*24*365) ->  | I111: =IF(H111="","",+H111*($C$3-G111)) ->  | Y111: =IF(X111="","",SUM(J111:X111)*$C$6) ->  | Z111: =IF(C111=0,0,IF(Y111="","",Y111/(C111*1000))) -> 
A112: =IF(ISBLANK(InfoPro!A103),"",InfoPro!A103) ->  | B112: =IF(ISBLANK(InfoPro!B103),"",InfoPro!B103) ->  | C112: =IF(ISBLANK(InfoPro!E103),"",InfoPro!E103) ->  | D112: =IF(ISBLANK(InfoPro!F103),"",InfoPro!F103) ->  | E112: =IF(ISBLANK(InfoPro!I103),"",YEAR(InfoPro!I103)-$G$3) ->  | F112: =IF(B112="","",VLOOKUP(D112,Tablas!$B$2:$E$13,2,FALSE)) ->  | G112: =IF(B112="","",VLOOKUP(D112,Tablas!$B$2:$G$13,6,FALSE)) -> 
A113: =IF(ISBLANK(InfoPro!A104),"",InfoPro!A104) ->  | B113: =IF(ISBLANK(InfoPro!B104),"",InfoPro!B104) ->  | C113: =IF(ISBLANK(InfoPro!E104),"",InfoPro!E104) ->  | D113: =IF(ISBLANK(InfoPro!F104),"",InfoPro!F104) ->  | E113: =IF(ISBLANK(InfoPro!I104),"",YEAR(InfoPro!I104)-$G$3) ->  | F113: =IF(B113="","",VLOOKUP(D113,Tablas!$B$2:$E$13,2,FALSE)) ->  | G113: =IF(B113="","",VLOOKUP(D113,Tablas!$B$2:$G$13,6,FALSE)) -> 
A114: =IF(ISBLANK(InfoPro!A105),"",InfoPro!A105) ->  | B114: =IF(ISBLANK(InfoPro!B105),"",InfoPro!B105) ->  | C114: =IF(ISBLANK(InfoPro!E105),"",InfoPro!E105) ->  | D114: =IF(ISBLANK(InfoPro!F105),"",InfoPro!F105) ->  | E114: =IF(ISBLANK(InfoPro!I105),"",YEAR(InfoPro!I105)-$G$3) ->  | F114: =IF(B114="","",VLOOKUP(D114,Tablas!$B$2:$E$13,2,FALSE)) ->  | G114: =IF(B114="","",VLOOKUP(D114,Tablas!$B$2:$G$13,6,FALSE)) -> 
A115: =IF(ISBLANK(InfoPro!A106),"",InfoPro!A106) ->  | B115: =IF(ISBLANK(InfoPro!B106),"",InfoPro!B106) ->  | C115: =IF(ISBLANK(InfoPro!E106),"",InfoPro!E106) ->  | D115: =IF(ISBLANK(InfoPro!F106),"",InfoPro!F106) ->  | E115: =IF(ISBLANK(InfoPro!I106),"",YEAR(InfoPro!I106)-$G$3) ->  | F115: =IF(B115="","",VLOOKUP(D115,Tablas!$B$2:$E$13,2,FALSE)) ->  | G115: =IF(B115="","",VLOOKUP(D115,Tablas!$B$2:$G$13,6,FALSE)) ->  | J115: =IF($I115="","",(1/(1+$C$4)^(J$7+$E115))*$I115*$C$5) -> 
A116: =IF(ISBLANK(InfoPro!A107),"",InfoPro!A107) ->  | B116: =IF(ISBLANK(InfoPro!B107),"",InfoPro!B107) ->  | C116: =IF(ISBLANK(InfoPro!E107),"",InfoPro!E107) ->  | D116: =IF(ISBLANK(InfoPro!F107),"",InfoPro!F107) ->  | E116: =IF(ISBLANK(InfoPro!I107),"",YEAR(InfoPro!I107)-$G$3) ->  | F116: =IF(B116="","",VLOOKUP(D116,Tablas!$B$2:$E$13,2,FALSE)) ->  | G116: =IF(B116="","",VLOOKUP(D116,Tablas!$B$2:$G$13,6,FALSE)) -> 
A117: =IF(ISBLANK(InfoPro!A108),"",InfoPro!A108) ->  | B117: =IF(ISBLANK(InfoPro!B108),"",InfoPro!B108) ->  | C117: =IF(ISBLANK(InfoPro!E108),"",InfoPro!E108) ->  | D117: =IF(ISBLANK(InfoPro!F108),"",InfoPro!F108) ->  | E117: =IF(ISBLANK(InfoPro!I108),"",YEAR(InfoPro!I108)-$G$3) ->  | F117: =IF(B117="","",VLOOKUP(D117,Tablas!$B$2:$E$13,2,FALSE)) ->  | G117: =IF(B117="","",VLOOKUP(D117,Tablas!$B$2:$G$13,6,FALSE)) -> 
A118: =IF(ISBLANK(InfoPro!A109),"",InfoPro!A109) ->  | B118: =IF(ISBLANK(InfoPro!B109),"",InfoPro!B109) ->  | C118: =IF(ISBLANK(InfoPro!E109),"",InfoPro!E109) ->  | D118: =IF(ISBLANK(InfoPro!F109),"",InfoPro!F109) ->  | E118: =IF(ISBLANK(InfoPro!I109),"",YEAR(InfoPro!I109)-$G$3) ->  | F118: =IF(B118="","",VLOOKUP(D118,Tablas!$B$2:$E$13,2,FALSE)) ->  | G118: =IF(B118="","",VLOOKUP(D118,Tablas!$B$2:$G$13,6,FALSE)) -> 
A119: =IF(ISBLANK(InfoPro!A110),"",InfoPro!A110) ->  | B119: =IF(ISBLANK(InfoPro!B110),"",InfoPro!B110) ->  | C119: =IF(ISBLANK(InfoPro!E110),"",InfoPro!E110) ->  | D119: =IF(ISBLANK(InfoPro!F110),"",InfoPro!F110) ->  | E119: =IF(ISBLANK(InfoPro!I110),"",YEAR(InfoPro!I110)-$G$3) ->  | F119: =IF(B119="","",VLOOKUP(D119,Tablas!$B$2:$E$13,2,FALSE)) ->  | G119: =IF(B119="","",VLOOKUP(D119,Tablas!$B$2:$G$13,6,FALSE)) -> 
A120: =IF(ISBLANK(InfoPro!A111),"",InfoPro!A111) ->  | B120: =IF(ISBLANK(InfoPro!B111),"",InfoPro!B111) ->  | C120: =IF(ISBLANK(InfoPro!E111),"",InfoPro!E111) ->  | D120: =IF(ISBLANK(InfoPro!F111),"",InfoPro!F111) ->  | E120: =IF(ISBLANK(InfoPro!I111),"",YEAR(InfoPro!I111)-$G$3) ->  | F120: =IF(B120="","",VLOOKUP(D120,Tablas!$B$2:$E$13,2,FALSE)) ->  | G120: =IF(B120="","",VLOOKUP(D120,Tablas!$B$2:$G$13,6,FALSE)) -> 
A121: =IF(ISBLANK(InfoPro!A112),"",InfoPro!A112) ->  | B121: =IF(ISBLANK(InfoPro!B112),"",InfoPro!B112) ->  | C121: =IF(ISBLANK(InfoPro!E112),"",InfoPro!E112) ->  | D121: =IF(ISBLANK(InfoPro!F112),"",InfoPro!F112) ->  | E121: =IF(ISBLANK(InfoPro!I112),"",YEAR(InfoPro!I112)-$G$3) ->  | F121: =IF(B121="","",VLOOKUP(D121,Tablas!$B$2:$E$13,2,FALSE)) ->  | G121: =IF(B121="","",VLOOKUP(D121,Tablas!$B$2:$G$13,6,FALSE)) -> 
A122: =IF(ISBLANK(InfoPro!A113),"",InfoPro!A113) ->  | B122: =IF(ISBLANK(InfoPro!B113),"",InfoPro!B113) ->  | C122: =IF(ISBLANK(InfoPro!E113),"",InfoPro!E113) ->  | D122: =IF(ISBLANK(InfoPro!F113),"",InfoPro!F113) ->  | E122: =IF(ISBLANK(InfoPro!I113),"",YEAR(InfoPro!I113)-$G$3) ->  | F122: =IF(B122="","",VLOOKUP(D122,Tablas!$B$2:$E$13,2,FALSE)) ->  | G122: =IF(B122="","",VLOOKUP(D122,Tablas!$B$2:$G$13,6,FALSE)) -> 
A123: =IF(ISBLANK(InfoPro!A114),"",InfoPro!A114) ->  | B123: =IF(ISBLANK(InfoPro!B114),"",InfoPro!B114) ->  | C123: =IF(ISBLANK(InfoPro!E114),"",InfoPro!E114) ->  | D123: =IF(ISBLANK(InfoPro!F114),"",InfoPro!F114) ->  | E123: =IF(ISBLANK(InfoPro!I114),"",YEAR(InfoPro!I114)-$G$3) ->  | F123: =IF(B123="","",VLOOKUP(D123,Tablas!$B$2:$E$13,2,FALSE)) ->  | G123: =IF(B123="","",VLOOKUP(D123,Tablas!$B$2:$G$13,6,FALSE)) -> 
A124: =IF(ISBLANK(InfoPro!A115),"",InfoPro!A115) ->  | B124: =IF(ISBLANK(InfoPro!B115),"",InfoPro!B115) ->  | C124: =IF(ISBLANK(InfoPro!E115),"",InfoPro!E115) ->  | D124: =IF(ISBLANK(InfoPro!F115),"",InfoPro!F115) ->  | E124: =IF(ISBLANK(InfoPro!I115),"",YEAR(InfoPro!I115)-$G$3) ->  | F124: =IF(B124="","",VLOOKUP(D124,Tablas!$B$2:$E$13,2,FALSE)) ->  | G124: =IF(B124="","",VLOOKUP(D124,Tablas!$B$2:$G$13,6,FALSE)) -> 
A125: =IF(ISBLANK(InfoPro!A116),"",InfoPro!A116) ->  | B125: =IF(ISBLANK(InfoPro!B116),"",InfoPro!B116) ->  | C125: =IF(ISBLANK(InfoPro!E116),"",InfoPro!E116) ->  | D125: =IF(ISBLANK(InfoPro!F116),"",InfoPro!F116) ->  | E125: =IF(ISBLANK(InfoPro!I116),"",YEAR(InfoPro!I116)-$G$3) ->  | F125: =IF(B125="","",VLOOKUP(D125,Tablas!$B$2:$E$13,2,FALSE)) ->  | G125: =IF(B125="","",VLOOKUP(D125,Tablas!$B$2:$G$13,6,FALSE)) -> 
A126: =IF(ISBLANK(InfoPro!A117),"",InfoPro!A117) ->  | B126: =IF(ISBLANK(InfoPro!B117),"",InfoPro!B117) ->  | C126: =IF(ISBLANK(InfoPro!E117),"",InfoPro!E117) ->  | D126: =IF(ISBLANK(InfoPro!F117),"",InfoPro!F117) ->  | E126: =IF(ISBLANK(InfoPro!I117),"",YEAR(InfoPro!I117)-$G$3) ->  | F126: =IF(B126="","",VLOOKUP(D126,Tablas!$B$2:$E$13,2,FALSE)) ->  | G126: =IF(B126="","",VLOOKUP(D126,Tablas!$B$2:$G$13,6,FALSE)) -> 
A127: =IF(ISBLANK(InfoPro!A118),"",InfoPro!A118) ->  | B127: =IF(ISBLANK(InfoPro!B118),"",InfoPro!B118) ->  | C127: =IF(ISBLANK(InfoPro!E118),"",InfoPro!E118) ->  | D127: =IF(ISBLANK(InfoPro!F118),"",InfoPro!F118) ->  | E127: =IF(ISBLANK(InfoPro!I118),"",YEAR(InfoPro!I118)-$G$3) ->  | F127: =IF(B127="","",VLOOKUP(D127,Tablas!$B$2:$E$13,2,FALSE)) ->  | G127: =IF(B127="","",VLOOKUP(D127,Tablas!$B$2:$G$13,6,FALSE)) -> 
A128: =IF(ISBLANK(InfoPro!A119),"",InfoPro!A119) ->  | B128: =IF(ISBLANK(InfoPro!B119),"",InfoPro!B119) ->  | C128: =IF(ISBLANK(InfoPro!E119),"",InfoPro!E119) ->  | D128: =IF(ISBLANK(InfoPro!F119),"",InfoPro!F119) ->  | E128: =IF(ISBLANK(InfoPro!I119),"",YEAR(InfoPro!I119)-$G$3) ->  | F128: =IF(B128="","",VLOOKUP(D128,Tablas!$B$2:$E$13,2,FALSE)) ->  | G128: =IF(B128="","",VLOOKUP(D128,Tablas!$B$2:$G$13,6,FALSE)) -> 
A129: =IF(ISBLANK(InfoPro!A120),"",InfoPro!A120) ->  | B129: =IF(ISBLANK(InfoPro!B120),"",InfoPro!B120) ->  | C129: =IF(ISBLANK(InfoPro!E120),"",InfoPro!E120) ->  | D129: =IF(ISBLANK(InfoPro!F120),"",InfoPro!F120) ->  | E129: =IF(ISBLANK(InfoPro!I120),"",YEAR(InfoPro!I120)-$G$3) ->  | F129: =IF(B129="","",VLOOKUP(D129,Tablas!$B$2:$E$13,2,FALSE)) ->  | G129: =IF(B129="","",VLOOKUP(D129,Tablas!$B$2:$G$13,6,FALSE)) -> 
A130: =IF(ISBLANK(InfoPro!A121),"",InfoPro!A121) ->  | B130: =IF(ISBLANK(InfoPro!B121),"",InfoPro!B121) ->  | C130: =IF(ISBLANK(InfoPro!E121),"",InfoPro!E121) ->  | D130: =IF(ISBLANK(InfoPro!F121),"",InfoPro!F121) ->  | E130: =IF(ISBLANK(InfoPro!I121),"",YEAR(InfoPro!I121)-$G$3) ->  | F130: =IF(B130="","",VLOOKUP(D130,Tablas!$B$2:$E$13,2,FALSE)) ->  | G130: =IF(B130="","",VLOOKUP(D130,Tablas!$B$2:$G$13,6,FALSE)) -> 
A131: =IF(ISBLANK(InfoPro!A122),"",InfoPro!A122) ->  | B131: =IF(ISBLANK(InfoPro!B122),"",InfoPro!B122) ->  | C131: =IF(ISBLANK(InfoPro!E122),"",InfoPro!E122) ->  | D131: =IF(ISBLANK(InfoPro!F122),"",InfoPro!F122) ->  | E131: =IF(ISBLANK(InfoPro!I122),"",YEAR(InfoPro!I122)-$G$3) ->  | F131: =IF(B131="","",VLOOKUP(D131,Tablas!$B$2:$E$13,2,FALSE)) ->  | G131: =IF(B131="","",VLOOKUP(D131,Tablas!$B$2:$G$13,6,FALSE)) -> 
A132: =IF(ISBLANK(InfoPro!A123),"",InfoPro!A123) ->  | B132: =IF(ISBLANK(InfoPro!B123),"",InfoPro!B123) ->  | C132: =IF(ISBLANK(InfoPro!E123),"",InfoPro!E123) ->  | D132: =IF(ISBLANK(InfoPro!F123),"",InfoPro!F123) ->  | E132: =IF(ISBLANK(InfoPro!I123),"",YEAR(InfoPro!I123)-$G$3) ->  | F132: =IF(B132="","",VLOOKUP(D132,Tablas!$B$2:$E$13,2,FALSE)) ->  | G132: =IF(B132="","",VLOOKUP(D132,Tablas!$B$2:$G$13,6,FALSE)) ->  | J132: =IF($I132="","",(1/(1+$C$4)^(J$7+$E132))*$I132*$C$5) -> 
A133: =IF(ISBLANK(InfoPro!A124),"",InfoPro!A124) ->  | B133: =IF(ISBLANK(InfoPro!B124),"",InfoPro!B124) ->  | C133: =IF(ISBLANK(InfoPro!E124),"",InfoPro!E124) ->  | D133: =IF(ISBLANK(InfoPro!F124),"",InfoPro!F124) ->  | E133: =IF(ISBLANK(InfoPro!I124),"",YEAR(InfoPro!I124)-$G$3) ->  | F133: =IF(B133="","",VLOOKUP(D133,Tablas!$B$2:$E$13,2,FALSE)) ->  | G133: =IF(B133="","",VLOOKUP(D133,Tablas!$B$2:$G$13,6,FALSE)) -> 
A134: =IF(ISBLANK(InfoPro!A125),"",InfoPro!A125) ->  | B134: =IF(ISBLANK(InfoPro!B125),"",InfoPro!B125) ->  | C134: =IF(ISBLANK(InfoPro!E125),"",InfoPro!E125) ->  | D134: =IF(ISBLANK(InfoPro!F125),"",InfoPro!F125) ->  | E134: =IF(ISBLANK(InfoPro!I125),"",YEAR(InfoPro!I125)-$G$3) ->  | F134: =IF(B134="","",VLOOKUP(D134,Tablas!$B$2:$E$13,2,FALSE)) ->  | G134: =IF(B134="","",VLOOKUP(D134,Tablas!$B$2:$G$13,6,FALSE)) -> 
A135: =IF(ISBLANK(InfoPro!A126),"",InfoPro!A126) ->  | B135: =IF(ISBLANK(InfoPro!B126),"",InfoPro!B126) ->  | C135: =IF(ISBLANK(InfoPro!E126),"",InfoPro!E126) ->  | D135: =IF(ISBLANK(InfoPro!F126),"",InfoPro!F126) ->  | E135: =IF(ISBLANK(InfoPro!I126),"",YEAR(InfoPro!I126)-$G$3) ->  | F135: =IF(B135="","",VLOOKUP(D135,Tablas!$B$2:$E$13,2,FALSE)) ->  | G135: =IF(B135="","",VLOOKUP(D135,Tablas!$B$2:$G$13,6,FALSE)) -> 
A136: =IF(ISBLANK(InfoPro!A127),"",InfoPro!A127) ->  | B136: =IF(ISBLANK(InfoPro!B127),"",InfoPro!B127) ->  | C136: =IF(ISBLANK(InfoPro!E127),"",InfoPro!E127) ->  | D136: =IF(ISBLANK(InfoPro!F127),"",InfoPro!F127) ->  | E136: =IF(ISBLANK(InfoPro!I127),"",YEAR(InfoPro!I127)-$G$3) ->  | F136: =IF(B136="","",VLOOKUP(D136,Tablas!$B$2:$E$13,2,FALSE)) ->  | G136: =IF(B136="","",VLOOKUP(D136,Tablas!$B$2:$G$13,6,FALSE)) -> 
A137: =IF(ISBLANK(InfoPro!A128),"",InfoPro!A128) ->  | B137: =IF(ISBLANK(InfoPro!B128),"",InfoPro!B128) ->  | C137: =IF(ISBLANK(InfoPro!E128),"",InfoPro!E128) ->  | D137: =IF(ISBLANK(InfoPro!F128),"",InfoPro!F128) ->  | E137: =IF(ISBLANK(InfoPro!I128),"",YEAR(InfoPro!I128)-$G$3) ->  | F137: =IF(B137="","",VLOOKUP(D137,Tablas!$B$2:$E$13,2,FALSE)) ->  | G137: =IF(B137="","",VLOOKUP(D137,Tablas!$B$2:$G$13,6,FALSE)) -> 
A138: =IF(ISBLANK(InfoPro!A129),"",InfoPro!A129) ->  | B138: =IF(ISBLANK(InfoPro!B129),"",InfoPro!B129) ->  | C138: =IF(ISBLANK(InfoPro!E129),"",InfoPro!E129) ->  | D138: =IF(ISBLANK(InfoPro!F129),"",InfoPro!F129) ->  | E138: =IF(ISBLANK(InfoPro!I129),"",YEAR(InfoPro!I129)-$G$3) ->  | F138: =IF(B138="","",VLOOKUP(D138,Tablas!$B$2:$E$13,2,FALSE)) ->  | G138: =IF(B138="","",VLOOKUP(D138,Tablas!$B$2:$G$13,6,FALSE)) -> 
A139: =IF(ISBLANK(InfoPro!A130),"",InfoPro!A130) ->  | B139: =IF(ISBLANK(InfoPro!B130),"",InfoPro!B130) ->  | C139: =IF(ISBLANK(InfoPro!E130),"",InfoPro!E130) ->  | D139: =IF(ISBLANK(InfoPro!F130),"",InfoPro!F130) ->  | E139: =IF(ISBLANK(InfoPro!I130),"",YEAR(InfoPro!I130)-$G$3) ->  | F139: =IF(B139="","",VLOOKUP(D139,Tablas!$B$2:$E$13,2,FALSE)) ->  | G139: =IF(B139="","",VLOOKUP(D139,Tablas!$B$2:$G$13,6,FALSE)) -> 
A140: =IF(ISBLANK(InfoPro!A131),"",InfoPro!A131) ->  | B140: =IF(ISBLANK(InfoPro!B131),"",InfoPro!B131) ->  | C140: =IF(ISBLANK(InfoPro!E131),"",InfoPro!E131) ->  | D140: =IF(ISBLANK(InfoPro!F131),"",InfoPro!F131) ->  | E140: =IF(ISBLANK(InfoPro!I131),"",YEAR(InfoPro!I131)-$G$3) ->  | F140: =IF(B140="","",VLOOKUP(D140,Tablas!$B$2:$E$13,2,FALSE)) ->  | G140: =IF(B140="","",VLOOKUP(D140,Tablas!$B$2:$G$13,6,FALSE)) -> 
A141: =IF(ISBLANK(InfoPro!A132),"",InfoPro!A132) ->  | B141: =IF(ISBLANK(InfoPro!B132),"",InfoPro!B132) ->  | C141: =IF(ISBLANK(InfoPro!E132),"",InfoPro!E132) ->  | D141: =IF(ISBLANK(InfoPro!F132),"",InfoPro!F132) ->  | E141: =IF(ISBLANK(InfoPro!I132),"",YEAR(InfoPro!I132)-$G$3) ->  | F141: =IF(B141="","",VLOOKUP(D141,Tablas!$B$2:$E$13,2,FALSE)) ->  | G141: =IF(B141="","",VLOOKUP(D141,Tablas!$B$2:$G$13,6,FALSE)) -> 
A142: =IF(ISBLANK(InfoPro!A133),"",InfoPro!A133) ->  | B142: =IF(ISBLANK(InfoPro!B133),"",InfoPro!B133) ->  | C142: =IF(ISBLANK(InfoPro!E133),"",InfoPro!E133) ->  | D142: =IF(ISBLANK(InfoPro!F133),"",InfoPro!F133) ->  | E142: =IF(ISBLANK(InfoPro!I133),"",YEAR(InfoPro!I133)-$G$3) ->  | F142: =IF(B142="","",VLOOKUP(D142,Tablas!$B$2:$E$13,2,FALSE)) ->  | G142: =IF(B142="","",VLOOKUP(D142,Tablas!$B$2:$G$13,6,FALSE)) -> 
A143: =IF(ISBLANK(InfoPro!A134),"",InfoPro!A134) ->  | B143: =IF(ISBLANK(InfoPro!B134),"",InfoPro!B134) ->  | C143: =IF(ISBLANK(InfoPro!E134),"",InfoPro!E134) ->  | D143: =IF(ISBLANK(InfoPro!F134),"",InfoPro!F134) ->  | E143: =IF(ISBLANK(InfoPro!I134),"",YEAR(InfoPro!I134)-$G$3) ->  | F143: =IF(B143="","",VLOOKUP(D143,Tablas!$B$2:$E$13,2,FALSE)) ->  | G143: =IF(B143="","",VLOOKUP(D143,Tablas!$B$2:$G$13,6,FALSE)) -> 
A144: =IF(ISBLANK(InfoPro!A135),"",InfoPro!A135) ->  | B144: =IF(ISBLANK(InfoPro!B135),"",InfoPro!B135) ->  | C144: =IF(ISBLANK(InfoPro!E135),"",InfoPro!E135) ->  | D144: =IF(ISBLANK(InfoPro!F135),"",InfoPro!F135) ->  | E144: =IF(ISBLANK(InfoPro!I135),"",YEAR(InfoPro!I135)-$G$3) ->  | F144: =IF(B144="","",VLOOKUP(D144,Tablas!$B$2:$E$13,2,FALSE)) ->  | G144: =IF(B144="","",VLOOKUP(D144,Tablas!$B$2:$G$13,6,FALSE)) -> 
A145: =IF(ISBLANK(InfoPro!A136),"",InfoPro!A136) ->  | B145: =IF(ISBLANK(InfoPro!B136),"",InfoPro!B136) ->  | C145: =IF(ISBLANK(InfoPro!E136),"",InfoPro!E136) ->  | D145: =IF(ISBLANK(InfoPro!F136),"",InfoPro!F136) ->  | E145: =IF(ISBLANK(InfoPro!I136),"",YEAR(InfoPro!I136)-$G$3) ->  | F145: =IF(B145="","",VLOOKUP(D145,Tablas!$B$2:$E$13,2,FALSE)) ->  | G145: =IF(B145="","",VLOOKUP(D145,Tablas!$B$2:$G$13,6,FALSE)) -> 
A146: =IF(ISBLANK(InfoPro!A137),"",InfoPro!A137) ->  | B146: =IF(ISBLANK(InfoPro!B137),"",InfoPro!B137) ->  | C146: =IF(ISBLANK(InfoPro!E137),"",InfoPro!E137) ->  | D146: =IF(ISBLANK(InfoPro!F137),"",InfoPro!F137) ->  | E146: =IF(ISBLANK(InfoPro!I137),"",YEAR(InfoPro!I137)-$G$3) ->  | F146: =IF(B146="","",VLOOKUP(D146,Tablas!$B$2:$E$13,2,FALSE)) ->  | G146: =IF(B146="","",VLOOKUP(D146,Tablas!$B$2:$G$13,6,FALSE)) -> 
A147: =IF(ISBLANK(InfoPro!A138),"",InfoPro!A138) ->  | B147: =IF(ISBLANK(InfoPro!B138),"",InfoPro!B138) ->  | C147: =IF(ISBLANK(InfoPro!E138),"",InfoPro!E138) ->  | D147: =IF(ISBLANK(InfoPro!F138),"",InfoPro!F138) ->  | E147: =IF(ISBLANK(InfoPro!I138),"",YEAR(InfoPro!I138)-$G$3) ->  | F147: =IF(B147="","",VLOOKUP(D147,Tablas!$B$2:$E$13,2,FALSE)) ->  | G147: =IF(B147="","",VLOOKUP(D147,Tablas!$B$2:$G$13,6,FALSE)) -> 
A148: =IF(ISBLANK(InfoPro!A139),"",InfoPro!A139) ->  | B148: =IF(ISBLANK(InfoPro!B139),"",InfoPro!B139) ->  | C148: =IF(ISBLANK(InfoPro!E139),"",InfoPro!E139) ->  | D148: =IF(ISBLANK(InfoPro!F139),"",InfoPro!F139) ->  | E148: =IF(ISBLANK(InfoPro!I139),"",YEAR(InfoPro!I139)-$G$3) ->  | F148: =IF(B148="","",VLOOKUP(D148,Tablas!$B$2:$E$13,2,FALSE)) ->  | G148: =IF(B148="","",VLOOKUP(D148,Tablas!$B$2:$G$13,6,FALSE)) -> 
A149: =IF(ISBLANK(InfoPro!A140),"",InfoPro!A140) ->  | B149: =IF(ISBLANK(InfoPro!B140),"",InfoPro!B140) ->  | C149: =IF(ISBLANK(InfoPro!E140),"",InfoPro!E140) ->  | D149: =IF(ISBLANK(InfoPro!F140),"",InfoPro!F140) ->  | E149: =IF(ISBLANK(InfoPro!I140),"",YEAR(InfoPro!I140)-$G$3) ->  | F149: =IF(B149="","",VLOOKUP(D149,Tablas!$B$2:$E$13,2,FALSE)) ->  | G149: =IF(B149="","",VLOOKUP(D149,Tablas!$B$2:$G$13,6,FALSE)) ->  | J149: =IF($I149="","",(1/(1+$C$4)^(J$7+$E149))*$I149*$C$5) -> 
A150: =IF(ISBLANK(InfoPro!A141),"",InfoPro!A141) ->  | B150: =IF(ISBLANK(InfoPro!B141),"",InfoPro!B141) ->  | C150: =IF(ISBLANK(InfoPro!E141),"",InfoPro!E141) ->  | D150: =IF(ISBLANK(InfoPro!F141),"",InfoPro!F141) ->  | E150: =IF(ISBLANK(InfoPro!I141),"",YEAR(InfoPro!I141)-$G$3) ->  | F150: =IF(B150="","",VLOOKUP(D150,Tablas!$B$2:$E$13,2,FALSE)) ->  | G150: =IF(B150="","",VLOOKUP(D150,Tablas!$B$2:$G$13,6,FALSE)) -> 
A151: =IF(ISBLANK(InfoPro!A142),"",InfoPro!A142) ->  | B151: =IF(ISBLANK(InfoPro!B142),"",InfoPro!B142) ->  | C151: =IF(ISBLANK(InfoPro!E142),"",InfoPro!E142) ->  | D151: =IF(ISBLANK(InfoPro!F142),"",InfoPro!F142) ->  | E151: =IF(ISBLANK(InfoPro!I142),"",YEAR(InfoPro!I142)-$G$3) ->  | F151: =IF(B151="","",VLOOKUP(D151,Tablas!$B$2:$E$13,2,FALSE)) ->  | G151: =IF(B151="","",VLOOKUP(D151,Tablas!$B$2:$G$13,6,FALSE)) -> 
A152: =IF(ISBLANK(InfoPro!A143),"",InfoPro!A143) ->  | B152: =IF(ISBLANK(InfoPro!B143),"",InfoPro!B143) ->  | C152: =IF(ISBLANK(InfoPro!E143),"",InfoPro!E143) ->  | D152: =IF(ISBLANK(InfoPro!F143),"",InfoPro!F143) ->  | E152: =IF(ISBLANK(InfoPro!I143),"",YEAR(InfoPro!I143)-$G$3) ->  | F152: =IF(B152="","",VLOOKUP(D152,Tablas!$B$2:$E$13,2,FALSE)) ->  | G152: =IF(B152="","",VLOOKUP(D152,Tablas!$B$2:$G$13,6,FALSE)) -> 
A153: =IF(ISBLANK(InfoPro!A144),"",InfoPro!A144) ->  | B153: =IF(ISBLANK(InfoPro!B144),"",InfoPro!B144) ->  | C153: =IF(ISBLANK(InfoPro!E144),"",InfoPro!E144) ->  | D153: =IF(ISBLANK(InfoPro!F144),"",InfoPro!F144) ->  | E153: =IF(ISBLANK(InfoPro!I144),"",YEAR(InfoPro!I144)-$G$3) ->  | F153: =IF(B153="","",VLOOKUP(D153,Tablas!$B$2:$E$13,2,FALSE)) ->  | G153: =IF(B153="","",VLOOKUP(D153,Tablas!$B$2:$G$13,6,FALSE)) -> 
A154: =IF(ISBLANK(InfoPro!A145),"",InfoPro!A145) ->  | B154: =IF(ISBLANK(InfoPro!B145),"",InfoPro!B145) ->  | C154: =IF(ISBLANK(InfoPro!E145),"",InfoPro!E145) ->  | D154: =IF(ISBLANK(InfoPro!F145),"",InfoPro!F145) ->  | E154: =IF(ISBLANK(InfoPro!I145),"",YEAR(InfoPro!I145)-$G$3) ->  | F154: =IF(B154="","",VLOOKUP(D154,Tablas!$B$2:$E$13,2,FALSE)) ->  | G154: =IF(B154="","",VLOOKUP(D154,Tablas!$B$2:$G$13,6,FALSE)) -> 
A155: =IF(ISBLANK(InfoPro!A146),"",InfoPro!A146) ->  | B155: =IF(ISBLANK(InfoPro!B146),"",InfoPro!B146) ->  | C155: =IF(ISBLANK(InfoPro!E146),"",InfoPro!E146) ->  | D155: =IF(ISBLANK(InfoPro!F146),"",InfoPro!F146) ->  | E155: =IF(ISBLANK(InfoPro!I146),"",YEAR(InfoPro!I146)-$G$3) ->  | F155: =IF(B155="","",VLOOKUP(D155,Tablas!$B$2:$E$13,2,FALSE)) ->  | G155: =IF(B155="","",VLOOKUP(D155,Tablas!$B$2:$G$13,6,FALSE)) -> 
A156: =IF(ISBLANK(InfoPro!A147),"",InfoPro!A147) ->  | B156: =IF(ISBLANK(InfoPro!B147),"",InfoPro!B147) ->  | C156: =IF(ISBLANK(InfoPro!E147),"",InfoPro!E147) ->  | D156: =IF(ISBLANK(InfoPro!F147),"",InfoPro!F147) ->  | E156: =IF(ISBLANK(InfoPro!I147),"",YEAR(InfoPro!I147)-$G$3) ->  | F156: =IF(B156="","",VLOOKUP(D156,Tablas!$B$2:$E$13,2,FALSE)) ->  | G156: =IF(B156="","",VLOOKUP(D156,Tablas!$B$2:$G$13,6,FALSE)) -> 
A157: =IF(ISBLANK(InfoPro!A148),"",InfoPro!A148) ->  | B157: =IF(ISBLANK(InfoPro!B148),"",InfoPro!B148) ->  | C157: =IF(ISBLANK(InfoPro!E148),"",InfoPro!E148) ->  | D157: =IF(ISBLANK(InfoPro!F148),"",InfoPro!F148) ->  | E157: =IF(ISBLANK(InfoPro!I148),"",YEAR(InfoPro!I148)-$G$3) ->  | F157: =IF(B157="","",VLOOKUP(D157,Tablas!$B$2:$E$13,2,FALSE)) ->  | G157: =IF(B157="","",VLOOKUP(D157,Tablas!$B$2:$G$13,6,FALSE)) -> 
A158: =IF(ISBLANK(InfoPro!A149),"",InfoPro!A149) ->  | B158: =IF(ISBLANK(InfoPro!B149),"",InfoPro!B149) ->  | C158: =IF(ISBLANK(InfoPro!E149),"",InfoPro!E149) ->  | D158: =IF(ISBLANK(InfoPro!F149),"",InfoPro!F149) ->  | E158: =IF(ISBLANK(InfoPro!I149),"",YEAR(InfoPro!I149)-$G$3) ->  | F158: =IF(B158="","",VLOOKUP(D158,Tablas!$B$2:$E$13,2,FALSE)) ->  | G158: =IF(B158="","",VLOOKUP(D158,Tablas!$B$2:$G$13,6,FALSE)) -> 
A159: =IF(ISBLANK(InfoPro!A150),"",InfoPro!A150) ->  | B159: =IF(ISBLANK(InfoPro!B150),"",InfoPro!B150) ->  | C159: =IF(ISBLANK(InfoPro!E150),"",InfoPro!E150) ->  | D159: =IF(ISBLANK(InfoPro!F150),"",InfoPro!F150) ->  | E159: =IF(ISBLANK(InfoPro!I150),"",YEAR(InfoPro!I150)-$G$3) ->  | F159: =IF(B159="","",VLOOKUP(D159,Tablas!$B$2:$E$13,2,FALSE)) ->  | G159: =IF(B159="","",VLOOKUP(D159,Tablas!$B$2:$G$13,6,FALSE)) -> 
A160: =IF(ISBLANK(InfoPro!A151),"",InfoPro!A151) ->  | B160: =IF(ISBLANK(InfoPro!B151),"",InfoPro!B151) ->  | C160: =IF(ISBLANK(InfoPro!E151),"",InfoPro!E151) ->  | D160: =IF(ISBLANK(InfoPro!F151),"",InfoPro!F151) ->  | E160: =IF(ISBLANK(InfoPro!I151),"",YEAR(InfoPro!I151)-$G$3) ->  | F160: =IF(B160="","",VLOOKUP(D160,Tablas!$B$2:$E$13,2,FALSE)) ->  | G160: =IF(B160="","",VLOOKUP(D160,Tablas!$B$2:$G$13,6,FALSE)) -> 
A161: =IF(ISBLANK(InfoPro!A152),"",InfoPro!A152) ->  | B161: =IF(ISBLANK(InfoPro!B152),"",InfoPro!B152) ->  | C161: =IF(ISBLANK(InfoPro!E152),"",InfoPro!E152) ->  | D161: =IF(ISBLANK(InfoPro!F152),"",InfoPro!F152) ->  | E161: =IF(ISBLANK(InfoPro!I152),"",YEAR(InfoPro!I152)-$G$3) ->  | F161: =IF(B161="","",VLOOKUP(D161,Tablas!$B$2:$E$13,2,FALSE)) ->  | G161: =IF(B161="","",VLOOKUP(D161,Tablas!$B$2:$G$13,6,FALSE)) -> 
A162: =IF(ISBLANK(InfoPro!A153),"",InfoPro!A153) ->  | B162: =IF(ISBLANK(InfoPro!B153),"",InfoPro!B153) ->  | C162: =IF(ISBLANK(InfoPro!E153),"",InfoPro!E153) ->  | D162: =IF(ISBLANK(InfoPro!F153),"",InfoPro!F153) ->  | E162: =IF(ISBLANK(InfoPro!I153),"",YEAR(InfoPro!I153)-$G$3) ->  | F162: =IF(B162="","",VLOOKUP(D162,Tablas!$B$2:$E$13,2,FALSE)) ->  | G162: =IF(B162="","",VLOOKUP(D162,Tablas!$B$2:$G$13,6,FALSE)) -> 
A163: =IF(ISBLANK(InfoPro!A154),"",InfoPro!A154) ->  | B163: =IF(ISBLANK(InfoPro!B154),"",InfoPro!B154) ->  | C163: =IF(ISBLANK(InfoPro!E154),"",InfoPro!E154) ->  | D163: =IF(ISBLANK(InfoPro!F154),"",InfoPro!F154) ->  | E163: =IF(ISBLANK(InfoPro!I154),"",YEAR(InfoPro!I154)-$G$3) ->  | F163: =IF(B163="","",VLOOKUP(D163,Tablas!$B$2:$E$13,2,FALSE)) ->  | G163: =IF(B163="","",VLOOKUP(D163,Tablas!$B$2:$G$13,6,FALSE)) -> 
A164: =IF(ISBLANK(InfoPro!A155),"",InfoPro!A155) ->  | B164: =IF(ISBLANK(InfoPro!B155),"",InfoPro!B155) ->  | C164: =IF(ISBLANK(InfoPro!E155),"",InfoPro!E155) ->  | D164: =IF(ISBLANK(InfoPro!F155),"",InfoPro!F155) ->  | E164: =IF(ISBLANK(InfoPro!I155),"",YEAR(InfoPro!I155)-$G$3) ->  | F164: =IF(B164="","",VLOOKUP(D164,Tablas!$B$2:$E$13,2,FALSE)) ->  | G164: =IF(B164="","",VLOOKUP(D164,Tablas!$B$2:$G$13,6,FALSE)) -> 
A165: =IF(ISBLANK(InfoPro!A156),"",InfoPro!A156) ->  | B165: =IF(ISBLANK(InfoPro!B156),"",InfoPro!B156) ->  | C165: =IF(ISBLANK(InfoPro!E156),"",InfoPro!E156) ->  | D165: =IF(ISBLANK(InfoPro!F156),"",InfoPro!F156) ->  | E165: =IF(ISBLANK(InfoPro!I156),"",YEAR(InfoPro!I156)-$G$3) ->  | F165: =IF(B165="","",VLOOKUP(D165,Tablas!$B$2:$E$13,2,FALSE)) ->  | G165: =IF(B165="","",VLOOKUP(D165,Tablas!$B$2:$G$13,6,FALSE)) -> 
A166: =IF(ISBLANK(InfoPro!A157),"",InfoPro!A157) ->  | B166: =IF(ISBLANK(InfoPro!B157),"",InfoPro!B157) ->  | C166: =IF(ISBLANK(InfoPro!E157),"",InfoPro!E157) ->  | D166: =IF(ISBLANK(InfoPro!F157),"",InfoPro!F157) ->  | E166: =IF(ISBLANK(InfoPro!I157),"",YEAR(InfoPro!I157)-$G$3) ->  | F166: =IF(B166="","",VLOOKUP(D166,Tablas!$B$2:$E$13,2,FALSE)) ->  | G166: =IF(B166="","",VLOOKUP(D166,Tablas!$B$2:$G$13,6,FALSE)) ->  | J166: =IF($I166="","",(1/(1+$C$4)^(J$7+$E166))*$I166*$C$5) -> 
A167: =IF(ISBLANK(InfoPro!A158),"",InfoPro!A158) ->  | B167: =IF(ISBLANK(InfoPro!B158),"",InfoPro!B158) ->  | C167: =IF(ISBLANK(InfoPro!E158),"",InfoPro!E158) ->  | D167: =IF(ISBLANK(InfoPro!F158),"",InfoPro!F158) ->  | E167: =IF(ISBLANK(InfoPro!I158),"",YEAR(InfoPro!I158)-$G$3) ->  | F167: =IF(B167="","",VLOOKUP(D167,Tablas!$B$2:$E$13,2,FALSE)) ->  | G167: =IF(B167="","",VLOOKUP(D167,Tablas!$B$2:$G$13,6,FALSE)) -> 
A168: =IF(ISBLANK(InfoPro!A159),"",InfoPro!A159) ->  | B168: =IF(ISBLANK(InfoPro!B159),"",InfoPro!B159) ->  | C168: =IF(ISBLANK(InfoPro!E159),"",InfoPro!E159) ->  | D168: =IF(ISBLANK(InfoPro!F159),"",InfoPro!F159) ->  | E168: =IF(ISBLANK(InfoPro!I159),"",YEAR(InfoPro!I159)-$G$3) ->  | F168: =IF(B168="","",VLOOKUP(D168,Tablas!$B$2:$E$13,2,FALSE)) ->  | G168: =IF(B168="","",VLOOKUP(D168,Tablas!$B$2:$G$13,6,FALSE)) -> 
A169: =IF(ISBLANK(InfoPro!A160),"",InfoPro!A160) ->  | B169: =IF(ISBLANK(InfoPro!B160),"",InfoPro!B160) ->  | C169: =IF(ISBLANK(InfoPro!E160),"",InfoPro!E160) ->  | D169: =IF(ISBLANK(InfoPro!F160),"",InfoPro!F160) ->  | E169: =IF(ISBLANK(InfoPro!I160),"",YEAR(InfoPro!I160)-$G$3) ->  | F169: =IF(B169="","",VLOOKUP(D169,Tablas!$B$2:$E$13,2,FALSE)) ->  | G169: =IF(B169="","",VLOOKUP(D169,Tablas!$B$2:$G$13,6,FALSE)) -> 
A170: =IF(ISBLANK(InfoPro!A161),"",InfoPro!A161) ->  | B170: =IF(ISBLANK(InfoPro!B161),"",InfoPro!B161) ->  | C170: =IF(ISBLANK(InfoPro!E161),"",InfoPro!E161) ->  | D170: =IF(ISBLANK(InfoPro!F161),"",InfoPro!F161) ->  | E170: =IF(ISBLANK(InfoPro!I161),"",YEAR(InfoPro!I161)-$G$3) ->  | F170: =IF(B170="","",VLOOKUP(D170,Tablas!$B$2:$E$13,2,FALSE)) ->  | G170: =IF(B170="","",VLOOKUP(D170,Tablas!$B$2:$G$13,6,FALSE)) -> 
A171: =IF(ISBLANK(InfoPro!A162),"",InfoPro!A162) ->  | B171: =IF(ISBLANK(InfoPro!B162),"",InfoPro!B162) ->  | C171: =IF(ISBLANK(InfoPro!E162),"",InfoPro!E162) ->  | D171: =IF(ISBLANK(InfoPro!F162),"",InfoPro!F162) ->  | E171: =IF(ISBLANK(InfoPro!I162),"",YEAR(InfoPro!I162)-$G$3) ->  | F171: =IF(B171="","",VLOOKUP(D171,Tablas!$B$2:$E$13,2,FALSE)) ->  | G171: =IF(B171="","",VLOOKUP(D171,Tablas!$B$2:$G$13,6,FALSE)) -> 
A172: =IF(ISBLANK(InfoPro!A163),"",InfoPro!A163) ->  | B172: =IF(ISBLANK(InfoPro!B163),"",InfoPro!B163) ->  | C172: =IF(ISBLANK(InfoPro!E163),"",InfoPro!E163) ->  | D172: =IF(ISBLANK(InfoPro!F163),"",InfoPro!F163) ->  | E172: =IF(ISBLANK(InfoPro!I163),"",YEAR(InfoPro!I163)-$G$3) ->  | F172: =IF(B172="","",VLOOKUP(D172,Tablas!$B$2:$E$13,2,FALSE)) ->  | G172: =IF(B172="","",VLOOKUP(D172,Tablas!$B$2:$G$13,6,FALSE)) -> 
A173: =IF(ISBLANK(InfoPro!A164),"",InfoPro!A164) ->  | B173: =IF(ISBLANK(InfoPro!B164),"",InfoPro!B164) ->  | C173: =IF(ISBLANK(InfoPro!E164),"",InfoPro!E164) ->  | D173: =IF(ISBLANK(InfoPro!F164),"",InfoPro!F164) ->  | E173: =IF(ISBLANK(InfoPro!I164),"",YEAR(InfoPro!I164)-$G$3) ->  | F173: =IF(B173="","",VLOOKUP(D173,Tablas!$B$2:$E$13,2,FALSE)) ->  | G173: =IF(B173="","",VLOOKUP(D173,Tablas!$B$2:$G$13,6,FALSE)) -> 
A174: =IF(ISBLANK(InfoPro!A165),"",InfoPro!A165) ->  | B174: =IF(ISBLANK(InfoPro!B165),"",InfoPro!B165) ->  | C174: =IF(ISBLANK(InfoPro!E165),"",InfoPro!E165) ->  | D174: =IF(ISBLANK(InfoPro!F165),"",InfoPro!F165) ->  | E174: =IF(ISBLANK(InfoPro!I165),"",YEAR(InfoPro!I165)-$G$3) ->  | F174: =IF(B174="","",VLOOKUP(D174,Tablas!$B$2:$E$13,2,FALSE)) ->  | G174: =IF(B174="","",VLOOKUP(D174,Tablas!$B$2:$G$13,6,FALSE)) -> 
A175: =IF(ISBLANK(InfoPro!A166),"",InfoPro!A166) ->  | B175: =IF(ISBLANK(InfoPro!B166),"",InfoPro!B166) ->  | C175: =IF(ISBLANK(InfoPro!E166),"",InfoPro!E166) ->  | D175: =IF(ISBLANK(InfoPro!F166),"",InfoPro!F166) ->  | E175: =IF(ISBLANK(InfoPro!I166),"",YEAR(InfoPro!I166)-$G$3) ->  | F175: =IF(B175="","",VLOOKUP(D175,Tablas!$B$2:$E$13,2,FALSE)) ->  | G175: =IF(B175="","",VLOOKUP(D175,Tablas!$B$2:$G$13,6,FALSE)) ->  | H175: =IF(C175="","",+C175*F175*24*365) ->  | I175: =IF(H175="","",+H175*($C$3-G175)) ->  | Y175: =IF(X175="","",SUM(J175:X175)*$C$6) ->  | Z175: =IF(C175=0,0,IF(Y175="","",Y175/(C175*1000))) -> 
A176: =IF(ISBLANK(InfoPro!A167),"",InfoPro!A167) ->  | B176: =IF(ISBLANK(InfoPro!B167),"",InfoPro!B167) ->  | C176: =IF(ISBLANK(InfoPro!E167),"",InfoPro!E167) ->  | D176: =IF(ISBLANK(InfoPro!F167),"",InfoPro!F167) ->  | E176: =IF(ISBLANK(InfoPro!I167),"",YEAR(InfoPro!I167)-$G$3) ->  | F176: =IF(B176="","",VLOOKUP(D176,Tablas!$B$2:$E$13,2,FALSE)) ->  | G176: =IF(B176="","",VLOOKUP(D176,Tablas!$B$2:$G$13,6,FALSE)) -> 
A177: =IF(ISBLANK(InfoPro!A168),"",InfoPro!A168) ->  | B177: =IF(ISBLANK(InfoPro!B168),"",InfoPro!B168) ->  | C177: =IF(ISBLANK(InfoPro!E168),"",InfoPro!E168) ->  | D177: =IF(ISBLANK(InfoPro!F168),"",InfoPro!F168) ->  | E177: =IF(ISBLANK(InfoPro!I168),"",YEAR(InfoPro!I168)-$G$3) ->  | F177: =IF(B177="","",VLOOKUP(D177,Tablas!$B$2:$E$13,2,FALSE)) ->  | G177: =IF(B177="","",VLOOKUP(D177,Tablas!$B$2:$G$13,6,FALSE)) -> 
A178: =IF(ISBLANK(InfoPro!A169),"",InfoPro!A169) ->  | B178: =IF(ISBLANK(InfoPro!B169),"",InfoPro!B169) ->  | C178: =IF(ISBLANK(InfoPro!E169),"",InfoPro!E169) ->  | D178: =IF(ISBLANK(InfoPro!F169),"",InfoPro!F169) ->  | E178: =IF(ISBLANK(InfoPro!I169),"",YEAR(InfoPro!I169)-$G$3) ->  | F178: =IF(B178="","",VLOOKUP(D178,Tablas!$B$2:$E$13,2,FALSE)) ->  | G178: =IF(B178="","",VLOOKUP(D178,Tablas!$B$2:$G$13,6,FALSE)) -> 
A179: =IF(ISBLANK(InfoPro!A170),"",InfoPro!A170) ->  | B179: =IF(ISBLANK(InfoPro!B170),"",InfoPro!B170) ->  | C179: =IF(ISBLANK(InfoPro!E170),"",InfoPro!E170) ->  | D179: =IF(ISBLANK(InfoPro!F170),"",InfoPro!F170) ->  | E179: =IF(ISBLANK(InfoPro!I170),"",YEAR(InfoPro!I170)-$G$3) ->  | F179: =IF(B179="","",VLOOKUP(D179,Tablas!$B$2:$E$13,2,FALSE)) ->  | G179: =IF(B179="","",VLOOKUP(D179,Tablas!$B$2:$G$13,6,FALSE)) -> 
A180: =IF(ISBLANK(InfoPro!A171),"",InfoPro!A171) ->  | B180: =IF(ISBLANK(InfoPro!B171),"",InfoPro!B171) ->  | C180: =IF(ISBLANK(InfoPro!E171),"",InfoPro!E171) ->  | D180: =IF(ISBLANK(InfoPro!F171),"",InfoPro!F171) ->  | E180: =IF(ISBLANK(InfoPro!I171),"",YEAR(InfoPro!I171)-$G$3) ->  | F180: =IF(B180="","",VLOOKUP(D180,Tablas!$B$2:$E$13,2,FALSE)) ->  | G180: =IF(B180="","",VLOOKUP(D180,Tablas!$B$2:$G$13,6,FALSE)) -> 
A181: =IF(ISBLANK(InfoPro!A172),"",InfoPro!A172) ->  | B181: =IF(ISBLANK(InfoPro!B172),"",InfoPro!B172) ->  | C181: =IF(ISBLANK(InfoPro!E172),"",InfoPro!E172) ->  | D181: =IF(ISBLANK(InfoPro!F172),"",InfoPro!F172) ->  | E181: =IF(ISBLANK(InfoPro!I172),"",YEAR(InfoPro!I172)-$G$3) ->  | F181: =IF(B181="","",VLOOKUP(D181,Tablas!$B$2:$E$13,2,FALSE)) ->  | G181: =IF(B181="","",VLOOKUP(D181,Tablas!$B$2:$G$13,6,FALSE)) -> 
A182: =IF(ISBLANK(InfoPro!A173),"",InfoPro!A173) ->  | B182: =IF(ISBLANK(InfoPro!B173),"",InfoPro!B173) ->  | C182: =IF(ISBLANK(InfoPro!E173),"",InfoPro!E173) ->  | D182: =IF(ISBLANK(InfoPro!F173),"",InfoPro!F173) ->  | E182: =IF(ISBLANK(InfoPro!I173),"",YEAR(InfoPro!I173)-$G$3) ->  | F182: =IF(B182="","",VLOOKUP(D182,Tablas!$B$2:$E$13,2,FALSE)) ->  | G182: =IF(B182="","",VLOOKUP(D182,Tablas!$B$2:$G$13,6,FALSE)) -> 
A183: =IF(ISBLANK(InfoPro!A174),"",InfoPro!A174) ->  | B183: =IF(ISBLANK(InfoPro!B174),"",InfoPro!B174) ->  | C183: =IF(ISBLANK(InfoPro!E174),"",InfoPro!E174) ->  | D183: =IF(ISBLANK(InfoPro!F174),"",InfoPro!F174) ->  | E183: =IF(ISBLANK(InfoPro!I174),"",YEAR(InfoPro!I174)-$G$3) ->  | F183: =IF(B183="","",VLOOKUP(D183,Tablas!$B$2:$E$13,2,FALSE)) ->  | G183: =IF(B183="","",VLOOKUP(D183,Tablas!$B$2:$G$13,6,FALSE)) ->  | J183: =IF($I183="","",(1/(1+$C$4)^(J$7+$E183))*$I183*$C$5) -> 
A184: =IF(ISBLANK(InfoPro!A175),"",InfoPro!A175) ->  | B184: =IF(ISBLANK(InfoPro!B175),"",InfoPro!B175) ->  | C184: =IF(ISBLANK(InfoPro!E175),"",InfoPro!E175) ->  | D184: =IF(ISBLANK(InfoPro!F175),"",InfoPro!F175) ->  | E184: =IF(ISBLANK(InfoPro!I175),"",YEAR(InfoPro!I175)-$G$3) ->  | F184: =IF(B184="","",VLOOKUP(D184,Tablas!$B$2:$E$13,2,FALSE)) ->  | G184: =IF(B184="","",VLOOKUP(D184,Tablas!$B$2:$G$13,6,FALSE)) -> 
A185: =IF(ISBLANK(InfoPro!A176),"",InfoPro!A176) ->  | B185: =IF(ISBLANK(InfoPro!B176),"",InfoPro!B176) ->  | C185: =IF(ISBLANK(InfoPro!E176),"",InfoPro!E176) ->  | D185: =IF(ISBLANK(InfoPro!F176),"",InfoPro!F176) ->  | E185: =IF(ISBLANK(InfoPro!I176),"",YEAR(InfoPro!I176)-$G$3) ->  | F185: =IF(B185="","",VLOOKUP(D185,Tablas!$B$2:$E$13,2,FALSE)) ->  | G185: =IF(B185="","",VLOOKUP(D185,Tablas!$B$2:$G$13,6,FALSE)) -> 
A186: =IF(ISBLANK(InfoPro!A177),"",InfoPro!A177) ->  | B186: =IF(ISBLANK(InfoPro!B177),"",InfoPro!B177) ->  | C186: =IF(ISBLANK(InfoPro!E177),"",InfoPro!E177) ->  | D186: =IF(ISBLANK(InfoPro!F177),"",InfoPro!F177) ->  | E186: =IF(ISBLANK(InfoPro!I177),"",YEAR(InfoPro!I177)-$G$3) ->  | F186: =IF(B186="","",VLOOKUP(D186,Tablas!$B$2:$E$13,2,FALSE)) ->  | G186: =IF(B186="","",VLOOKUP(D186,Tablas!$B$2:$G$13,6,FALSE)) -> 
A187: =IF(ISBLANK(InfoPro!A178),"",InfoPro!A178) ->  | B187: =IF(ISBLANK(InfoPro!B178),"",InfoPro!B178) ->  | C187: =IF(ISBLANK(InfoPro!E178),"",InfoPro!E178) ->  | D187: =IF(ISBLANK(InfoPro!F178),"",InfoPro!F178) ->  | E187: =IF(ISBLANK(InfoPro!I178),"",YEAR(InfoPro!I178)-$G$3) ->  | F187: =IF(B187="","",VLOOKUP(D187,Tablas!$B$2:$E$13,2,FALSE)) ->  | G187: =IF(B187="","",VLOOKUP(D187,Tablas!$B$2:$G$13,6,FALSE)) -> 
A188: =IF(ISBLANK(InfoPro!A179),"",InfoPro!A179) ->  | B188: =IF(ISBLANK(InfoPro!B179),"",InfoPro!B179) ->  | C188: =IF(ISBLANK(InfoPro!E179),"",InfoPro!E179) ->  | D188: =IF(ISBLANK(InfoPro!F179),"",InfoPro!F179) ->  | E188: =IF(ISBLANK(InfoPro!I179),"",YEAR(InfoPro!I179)-$G$3) ->  | F188: =IF(B188="","",VLOOKUP(D188,Tablas!$B$2:$E$13,2,FALSE)) ->  | G188: =IF(B188="","",VLOOKUP(D188,Tablas!$B$2:$G$13,6,FALSE)) -> 
A189: =IF(ISBLANK(InfoPro!A180),"",InfoPro!A180) ->  | B189: =IF(ISBLANK(InfoPro!B180),"",InfoPro!B180) ->  | C189: =IF(ISBLANK(InfoPro!E180),"",InfoPro!E180) ->  | D189: =IF(ISBLANK(InfoPro!F180),"",InfoPro!F180) ->  | E189: =IF(ISBLANK(InfoPro!I180),"",YEAR(InfoPro!I180)-$G$3) ->  | F189: =IF(B189="","",VLOOKUP(D189,Tablas!$B$2:$E$13,2,FALSE)) ->  | G189: =IF(B189="","",VLOOKUP(D189,Tablas!$B$2:$G$13,6,FALSE)) -> 
A190: =IF(ISBLANK(InfoPro!A181),"",InfoPro!A181) ->  | B190: =IF(ISBLANK(InfoPro!B181),"",InfoPro!B181) ->  | C190: =IF(ISBLANK(InfoPro!E181),"",InfoPro!E181) ->  | D190: =IF(ISBLANK(InfoPro!F181),"",InfoPro!F181) ->  | E190: =IF(ISBLANK(InfoPro!I181),"",YEAR(InfoPro!I181)-$G$3) ->  | F190: =IF(B190="","",VLOOKUP(D190,Tablas!$B$2:$E$13,2,FALSE)) ->  | G190: =IF(B190="","",VLOOKUP(D190,Tablas!$B$2:$G$13,6,FALSE)) -> 
A191: =IF(ISBLANK(InfoPro!A182),"",InfoPro!A182) ->  | B191: =IF(ISBLANK(InfoPro!B182),"",InfoPro!B182) ->  | C191: =IF(ISBLANK(InfoPro!E182),"",InfoPro!E182) ->  | D191: =IF(ISBLANK(InfoPro!F182),"",InfoPro!F182) ->  | E191: =IF(ISBLANK(InfoPro!I182),"",YEAR(InfoPro!I182)-$G$3) ->  | F191: =IF(B191="","",VLOOKUP(D191,Tablas!$B$2:$E$13,2,FALSE)) ->  | G191: =IF(B191="","",VLOOKUP(D191,Tablas!$B$2:$G$13,6,FALSE)) ->  | H191: =IF(C191="","",+C191*F191*24*365) ->  | I191: =IF(H191="","",+H191*($C$3-G191)) ->  | Y191: =IF(X191="","",SUM(J191:X191)*$C$6) ->  | Z191: =IF(C191=0,0,IF(Y191="","",Y191/(C191*1000))) -> 
A192: =IF(ISBLANK(InfoPro!A183),"",InfoPro!A183) ->  | B192: =IF(ISBLANK(InfoPro!B183),"",InfoPro!B183) ->  | C192: =IF(ISBLANK(InfoPro!E183),"",InfoPro!E183) ->  | D192: =IF(ISBLANK(InfoPro!F183),"",InfoPro!F183) ->  | E192: =IF(ISBLANK(InfoPro!I183),"",YEAR(InfoPro!I183)-$G$3) ->  | F192: =IF(B192="","",VLOOKUP(D192,Tablas!$B$2:$E$13,2,FALSE)) ->  | G192: =IF(B192="","",VLOOKUP(D192,Tablas!$B$2:$G$13,6,FALSE)) -> 
A193: =IF(ISBLANK(InfoPro!A184),"",InfoPro!A184) ->  | B193: =IF(ISBLANK(InfoPro!B184),"",InfoPro!B184) ->  | C193: =IF(ISBLANK(InfoPro!E184),"",InfoPro!E184) ->  | D193: =IF(ISBLANK(InfoPro!F184),"",InfoPro!F184) ->  | E193: =IF(ISBLANK(InfoPro!I184),"",YEAR(InfoPro!I184)-$G$3) ->  | F193: =IF(B193="","",VLOOKUP(D193,Tablas!$B$2:$E$13,2,FALSE)) ->  | G193: =IF(B193="","",VLOOKUP(D193,Tablas!$B$2:$G$13,6,FALSE)) -> 
A194: =IF(ISBLANK(InfoPro!A185),"",InfoPro!A185) ->  | B194: =IF(ISBLANK(InfoPro!B185),"",InfoPro!B185) ->  | C194: =IF(ISBLANK(InfoPro!E185),"",InfoPro!E185) ->  | D194: =IF(ISBLANK(InfoPro!F185),"",InfoPro!F185) ->  | E194: =IF(ISBLANK(InfoPro!I185),"",YEAR(InfoPro!I185)-$G$3) ->  | F194: =IF(B194="","",VLOOKUP(D194,Tablas!$B$2:$E$13,2,FALSE)) ->  | G194: =IF(B194="","",VLOOKUP(D194,Tablas!$B$2:$G$13,6,FALSE)) -> 
A195: =IF(ISBLANK(InfoPro!A186),"",InfoPro!A186) ->  | B195: =IF(ISBLANK(InfoPro!B186),"",InfoPro!B186) ->  | C195: =IF(ISBLANK(InfoPro!E186),"",InfoPro!E186) ->  | D195: =IF(ISBLANK(InfoPro!F186),"",InfoPro!F186) ->  | E195: =IF(ISBLANK(InfoPro!I186),"",YEAR(InfoPro!I186)-$G$3) ->  | F195: =IF(B195="","",VLOOKUP(D195,Tablas!$B$2:$E$13,2,FALSE)) ->  | G195: =IF(B195="","",VLOOKUP(D195,Tablas!$B$2:$G$13,6,FALSE)) -> 
A196: =IF(ISBLANK(InfoPro!A187),"",InfoPro!A187) ->  | B196: =IF(ISBLANK(InfoPro!B187),"",InfoPro!B187) ->  | C196: =IF(ISBLANK(InfoPro!E187),"",InfoPro!E187) ->  | D196: =IF(ISBLANK(InfoPro!F187),"",InfoPro!F187) ->  | E196: =IF(ISBLANK(InfoPro!I187),"",YEAR(InfoPro!I187)-$G$3) ->  | F196: =IF(B196="","",VLOOKUP(D196,Tablas!$B$2:$E$13,2,FALSE)) ->  | G196: =IF(B196="","",VLOOKUP(D196,Tablas!$B$2:$G$13,6,FALSE)) -> 
A197: =IF(ISBLANK(InfoPro!A188),"",InfoPro!A188) ->  | B197: =IF(ISBLANK(InfoPro!B188),"",InfoPro!B188) ->  | C197: =IF(ISBLANK(InfoPro!E188),"",InfoPro!E188) ->  | D197: =IF(ISBLANK(InfoPro!F188),"",InfoPro!F188) ->  | E197: =IF(ISBLANK(InfoPro!I188),"",YEAR(InfoPro!I188)-$G$3) ->  | F197: =IF(B197="","",VLOOKUP(D197,Tablas!$B$2:$E$13,2,FALSE)) ->  | G197: =IF(B197="","",VLOOKUP(D197,Tablas!$B$2:$G$13,6,FALSE)) -> 
A198: =IF(ISBLANK(InfoPro!A189),"",InfoPro!A189) ->  | B198: =IF(ISBLANK(InfoPro!B189),"",InfoPro!B189) ->  | C198: =IF(ISBLANK(InfoPro!E189),"",InfoPro!E189) ->  | D198: =IF(ISBLANK(InfoPro!F189),"",InfoPro!F189) ->  | E198: =IF(ISBLANK(InfoPro!I189),"",YEAR(InfoPro!I189)-$G$3) ->  | F198: =IF(B198="","",VLOOKUP(D198,Tablas!$B$2:$E$13,2,FALSE)) ->  | G198: =IF(B198="","",VLOOKUP(D198,Tablas!$B$2:$G$13,6,FALSE)) -> 
A199: =IF(ISBLANK(InfoPro!A190),"",InfoPro!A190) ->  | B199: =IF(ISBLANK(InfoPro!B190),"",InfoPro!B190) ->  | C199: =IF(ISBLANK(InfoPro!E190),"",InfoPro!E190) ->  | D199: =IF(ISBLANK(InfoPro!F190),"",InfoPro!F190) ->  | E199: =IF(ISBLANK(InfoPro!I190),"",YEAR(InfoPro!I190)-$G$3) ->  | F199: =IF(B199="","",VLOOKUP(D199,Tablas!$B$2:$E$13,2,FALSE)) ->  | G199: =IF(B199="","",VLOOKUP(D199,Tablas!$B$2:$G$13,6,FALSE)) ->  | J199: =IF($I199="","",(1/(1+$C$4)^(J$7+$E199))*$I199*$C$5) -> 
A200: =IF(ISBLANK(InfoPro!A191),"",InfoPro!A191) ->  | B200: =IF(ISBLANK(InfoPro!B191),"",InfoPro!B191) ->  | C200: =IF(ISBLANK(InfoPro!E191),"",InfoPro!E191) ->  | D200: =IF(ISBLANK(InfoPro!F191),"",InfoPro!F191) ->  | E200: =IF(ISBLANK(InfoPro!I191),"",YEAR(InfoPro!I191)-$G$3) ->  | F200: =IF(B200="","",VLOOKUP(D200,Tablas!$B$2:$E$13,2,FALSE)) ->  | G200: =IF(B200="","",VLOOKUP(D200,Tablas!$B$2:$G$13,6,FALSE)) -> 
A201: =IF(ISBLANK(InfoPro!A192),"",InfoPro!A192) ->  | B201: =IF(ISBLANK(InfoPro!B192),"",InfoPro!B192) ->  | C201: =IF(ISBLANK(InfoPro!E192),"",InfoPro!E192) ->  | D201: =IF(ISBLANK(InfoPro!F192),"",InfoPro!F192) ->  | E201: =IF(ISBLANK(InfoPro!I192),"",YEAR(InfoPro!I192)-$G$3) ->  | F201: =IF(B201="","",VLOOKUP(D201,Tablas!$B$2:$E$13,2,FALSE)) ->  | G201: =IF(B201="","",VLOOKUP(D201,Tablas!$B$2:$G$13,6,FALSE)) -> 
A202: =IF(ISBLANK(InfoPro!A193),"",InfoPro!A193) ->  | B202: =IF(ISBLANK(InfoPro!B193),"",InfoPro!B193) ->  | C202: =IF(ISBLANK(InfoPro!E193),"",InfoPro!E193) ->  | D202: =IF(ISBLANK(InfoPro!F193),"",InfoPro!F193) ->  | E202: =IF(ISBLANK(InfoPro!I193),"",YEAR(InfoPro!I193)-$G$3) ->  | F202: =IF(B202="","",VLOOKUP(D202,Tablas!$B$2:$E$13,2,FALSE)) ->  | G202: =IF(B202="","",VLOOKUP(D202,Tablas!$B$2:$G$13,6,FALSE)) -> 

Sheet EC-RP
B2: Precio promedio de bolsa | C2: 192057 | D2: COP/MWh
B3: Tasa de descuento | C3: 0.118 | F3: Año de Referencia | H3: 2023
F4: Mínimo | H4: =MIN(Z8:Z400) -> 0
J6: 0 | K6: 1 | L6: 2 | M6: 3 | N6: 4 | O6: 5 | P6: 6 | Q6: 7 | R6: 8 | S6: 9 | T6: 10 | U6: 11 | V6: 12 | W6: 13 | X6: 14
A7: Codigo | B7: Nombre | C7: capacidad | D7: Tecnologia | E7: Año de entrada | F7: FP | G7: Precio de oferta | H7: Desviacion | I7: Produccion media/a MWh/a | J7: Flujo Descontado 0 | K7: Flujo Descontado 1 | L7: Flujo Descontado 2 | M7: Flujo Descontado 3 | N7: Flujo Descontado 4 | O7: Flujo Descontado 5 | P7: Flujo Descontado 6 | Q7: Flujo Descontado 7 | R7: Flujo Descontado 8 | S7: Flujo Descontado 9 | T7: Flujo Descontado 10 | U7: Flujo Descontado 11 | V7: Flujo Descontado 12 | W7: Flujo Descontado 13 | X7: Flujo Descontado 14 | Y7: VPN | Z7: Beneficio/kW
A8: =IF(ISBLANK(InfoPro!A2),"",InfoPro!A2) -> SC_7_A2 | B8: =IF(ISBLANK(InfoPro!B2),"",InfoPro!B2) -> PSFV TONCHALÁ 19.9MW | C8: =IF(ISBLANK(InfoPro!E2),"",InfoPro!E2) -> 19.9 | D8: =IF(ISBLANK(InfoPro!F2),"",InfoPro!F2) -> Solar FV | E8: =IF(ISBLANK(InfoPro!I2),"",YEAR(InfoPro!I2)-$H$3) -> 3 | F8: =IF(B8="","",VLOOKUP(D8,Tablas!$B$2:$E$13,2,FALSE)) -> 0.26 | G8: =IF(B8="","",VLOOKUP(D8,Tablas!$B$2:$H$13,7,FALSE)) -> 83577.2 | H8: =IF(B8="","",($C$2-(G8))/$C$2) -> 0.564831274 | I8: =IF(C8="","",+C8*F8*24*365) -> 45324.24 | J8: =IF($I8="","",(1/(1+$C$3)^(J$6+$E8))*$I8*$C$2*$H8) -> 3518471161 | K8: =IF($I8="","",(1/(1+$C$3)^(K$6+$E8))*$I8*$C$2*$H8) -> 3147111951 | L8: 2814948078 | M8: 2517842646 | N8: 2252095390 | O8: 2014396592 | P8: 1801785860 | Q8: 1611615260 | R8: 1441516332 | S8: 1289370601 | T8: 1153283186 | U8: 1031559200 | V8: 922682647.6 | W8: 825297538.1 | X8: =IF($I8="","",(1/(1+$C$3)^(X$6+$E8))*$I8*$C$2*$H8) -> 738191000.1 | Y8: =IF(X8="","",SUM(J8:X8)) -> 2.708016744e+10 | Z8: =IF(C8=0,0,IF(Y8="","",Y8/(C8*1000))) -> 1360812.434
A9: =IF(ISBLANK(InfoPro!A3),"",InfoPro!A3) -> SC_7_A1 | B9: =IF(ISBLANK(InfoPro!B3),"",InfoPro!B3) -> PSFV TONCHALÁ 19.9MW | C9: =IF(ISBLANK(InfoPro!E3),"",InfoPro!E3) -> 19.9 | D9: =IF(ISBLANK(InfoPro!F3),"",InfoPro!F3) -> Solar FV | E9: =IF(ISBLANK(InfoPro!I3),"",YEAR(InfoPro!I3)-$H$3) -> 3 | F9: =IF(B9="","",VLOOKUP(D9,Tablas!$B$2:$E$13,2,FALSE)) -> 0.26 | G9: =IF(B9="","",VLOOKUP(D9,Tablas!$B$2:$H$13,7,FALSE)) -> 83577.2 | H9: =IF(B9="","",($C$2-(G9))/$C$2) -> 0.564831274 | I9: =IF(C9="","",+C9*F9*24*365) -> 45324.24 | J9: 3518471161 | K9: 3147111951 | L9: 2814948078 | M9: 2517842646 | N9: 2252095390 | O9: 2014396592 | P9: 1801785860 | Q9: 1611615260 | R9: 1441516332 | S9: 1289370601 | T9: 1153283186 | U9: 1031559200 | V9: 922682647.6 | W9: 825297538.1 | X9: 738191000.1 | Y9: =IF(X9="","",SUM(J9:X9)) -> 2.708016744e+10 | Z9: =IF(C9=0,0,IF(Y9="","",Y9/(C9*1000))) -> 1360812.434
A10: =IF(ISBLANK(InfoPro!A4),"",InfoPro!A4) -> SC_38_A2 | B10: =IF(ISBLANK(InfoPro!B4),"",InfoPro!B4) -> SOLENERGY NORTE | C10: =IF(ISBLANK(InfoPro!E4),"",InfoPro!E4) -> 40 | D10: =IF(ISBLANK(InfoPro!F4),"",InfoPro!F4) -> Solar FV | E10: =IF(ISBLANK(InfoPro!I4),"",YEAR(InfoPro!I4)-$H$3) -> 2 | F10: =IF(B10="","",VLOOKUP(D10,Tablas!$B$2:$E$13,2,FALSE)) -> 0.26 | G10: =IF(B10="","",VLOOKUP(D10,Tablas!$B$2:$H$13,7,FALSE)) -> 83577.2 | H10: 0.564831274 | I10: 91104 | J10: 7906835695 | K10: 7072303842 | L10: 6325853168 | M10: 5658187091 | N10: 5060990242 | O10: 4526824904 | P10: 4049038376 | Q10: 3621680121 | R10: 3239427658 | S10: 2897520266 | T10: 2591699701 | U10: 2318157157 | V10: 2073485829 | W10: 1854638488 | X10: 1658889524 | Y10: 6.085553206e+10 | Z10: =IF(C10=0,0,IF(Y10="","",Y10/(C10*1000))) -> 1521388.302
A11: =IF(ISBLANK(InfoPro!A5),"",InfoPro!A5) -> SC_38_A1 | B11: =IF(ISBLANK(InfoPro!B5),"",InfoPro!B5) -> SOLENERGY NORTE | C11: =IF(ISBLANK(InfoPro!E5),"",InfoPro!E5) -> 40 | D11: =IF(ISBLANK(InfoPro!F5),"",InfoPro!F5) -> Solar FV | E11: =IF(ISBLANK(InfoPro!I5),"",YEAR(InfoPro!I5)-$H$3) -> 2 | F11: =IF(B11="","",VLOOKUP(D11,Tablas!$B$2:$E$13,2,FALSE)) -> 0.26 | G11: =IF(B11="","",VLOOKUP(D11,Tablas!$B$2:$H$13,7,FALSE)) -> 83577.2 | H11: 0.564831274 | I11: 91104 | J11: 7906835695 | K11: 7072303842 | L11: 6325853168 | M11: 5658187091 | N11: 5060990242 | O11: 4526824904 | P11: 4049038376 | Q11: 3621680121 | R11: 3239427658 | S11: 2897520266 | T11: 2591699701 | U11: 2318157157 | V11: 2073485829 | W11: 1854638488 | X11: 1658889524 | Y11: 6.085553206e+10 | Z11: 1521388.302
A12: =IF(ISBLANK(InfoPro!A6),"",InfoPro!A6) -> SC_485_A2 | B12: =IF(ISBLANK(InfoPro!B6),"",InfoPro!B6) -> Pradera - 40 MW | C12: =IF(ISBLANK(InfoPro!E6),"",InfoPro!E6) -> 40 | D12: =IF(ISBLANK(InfoPro!F6),"",InfoPro!F6) -> Solar FV | E12: =IF(ISBLANK(InfoPro!I6),"",YEAR(InfoPro!I6)-$H$3) -> 2 | F12: =IF(B12="","",VLOOKUP(D12,Tablas!$B$2:$E$13,2,FALSE)) -> 0.26 | G12: =IF(B12="","",VLOOKUP(D12,Tablas!$B$2:$H$13,7,FALSE)) -> 83577.2 | H12: 0.564831274 | I12: 91104 | J12: 7906835695 | K12: 7072303842 | L12: 6325853168 | M12: 5658187091 | N12: 5060990242 | O12: 4526824904 | P12: 4049038376 | Q12: 3621680121 | R12: 3239427658 | S12: 2897520266 | T12: 2591699701 | U12: 2318157157 | V12: 2073485829 | W12: 1854638488 | X12: 1658889524 | Y12: 6.085553206e+10 | Z12: 1521388.302
A13: =IF(ISBLANK(InfoPro!A7),"",InfoPro!A7) -> SC_488_A2 | B13: =IF(ISBLANK(InfoPro!B7),"",InfoPro!B7) -> Frontera - 50 MW | C13: =IF(ISBLANK(InfoPro!E7),"",InfoPro!E7) -> 50 | D13: =IF(ISBLANK(InfoPro!F7),"",InfoPro!F7) -> Solar FV | E13: =IF(ISBLANK(InfoPro!I7),"",YEAR(InfoPro!I7)-$H$3) -> 2 | F13: =IF(B13="","",VLOOKUP(D13,Tablas!$B$2:$E$13,2,FALSE)) -> 0.26 | G13: =IF(B13="","",VLOOKUP(D13,Tablas!$B$2:$H$13,7,FALSE)) -> 83577.2 | H13: 0.564831274 | I13: 113880 | J13: 9883544619 | K13: 8840379802 | L13: 7907316460 | M13: 7072733864 | N13: 6326237803 | O13: 5658531130 | P13: 5061297969 | Q13: 4527100152 | R13: 4049284572 | S13: 3621900333 | T13: 3239624627 | U13: 2897696446 | V13: 2591857286 | W13: 2318298109 | X13: 2073611905 | Y13: 7.606941508e+10 | Z13: 1521388.302
A14: =IF(ISBLANK(InfoPro!A8),"",InfoPro!A8) -> SC_488_A1 | B14: =IF(ISBLANK(InfoPro!B8),"",InfoPro!B8) -> Frontera - 50 MW | C14: =IF(ISBLANK(InfoPro!E8),"",InfoPro!E8) -> 50 | D14: =IF(ISBLANK(InfoPro!F8),"",InfoPro!F8) -> Solar FV | E14: =IF(ISBLANK(InfoPro!I8),"",YEAR(InfoPro!I8)-$H$3) -> 2 | F14: =IF(B14="","",VLOOKUP(D14,Tablas!$B$2:$E$13,2,FALSE)) -> 0.26 | G14: =IF(B14="","",VLOOKUP(D14,Tablas!$B$2:$H$13,7,FALSE)) -> 83577.2 | H14: 0.564831274 | I14: 113880 | J14: 9883544619 | K14: 8840379802 | L14: 7907316460 | M14: 7072733864 | N14: 6326237803 | O14: 5658531130 | P14: 5061297969 | Q14: 4527100152 | R14: 4049284572 | S14: 3621900333 | T14: 3239624627 | U14: 2897696446 | V14: 2591857286 | W14: 2318298109 | X14: 2073611905 | Y14: 7.606941508e+10 | Z14: 1521388.302
A15: =IF(ISBLANK(InfoPro!A9),"",InfoPro!A9) -> SC_485_A1 | B15: =IF(ISBLANK(InfoPro!B9),"",InfoPro!B9) -> Pradera - 40 MW | C15: =IF(ISBLANK(InfoPro!E9),"",InfoPro!E9) -> 40 | D15: =IF(ISBLANK(InfoPro!F9),"",InfoPro!F9) -> Solar FV | E15: =IF(ISBLANK(InfoPro!I9),"",YEAR(InfoPro!I9)-$H$3) -> 2 | F15: =IF(B15="","",VLOOKUP(D15,Tablas!$B$2:$E$13,2,FALSE)) -> 0.26 | G15: =IF(B15="","",VLOOKUP(D15,Tablas!$B$2:$H$13,7,FALSE)) -> 83577.2 | H15: 0.564831274 | I15: 91104 | J15: 7906835695 | K15: 7072303842 | L15: 6325853168 | M15: 5658187091 | N15: 5060990242 | O15: 4526824904 | P15: 4049038376 | Q15: 3621680121 | R15: 3239427658 | S15: 2897520266 | T15: 2591699701 | U15: 2318157157 | V15: 2073485829 | W15: 1854638488 | X15: 1658889524 | Y15: 6.085553206e+10 | Z15: 1521388.302
A16: =IF(ISBLANK(InfoPro!A10),"",InfoPro!A10) -> SC_767_A2 | B16: =IF(ISBLANK(InfoPro!B10),"",InfoPro!B10) -> Parque Solar Fotovoltaico Alcaraván | C16: =IF(ISBLANK(InfoPro!E10),"",InfoPro!E10) -> 79.6 | D16: =IF(ISBLANK(InfoPro!F10),"",InfoPro!F10) -> Solar FV | E16: =IF(ISBLANK(InfoPro!I10),"",YEAR(InfoPro!I10)-$H$3) -> 2 | F16: =IF(B16="","",VLOOKUP(D16,Tablas!$B$2:$E$13,2,FALSE)) -> 0.26 | G16: =IF(B16="","",VLOOKUP(D16,Tablas!$B$2:$H$13,7,FALSE)) -> 83577.2 | H16: 0.564831274 | I16: 181296.96 | J16: 1.573460303e+10 | K16: 1.407388464e+10 | L16: 1.25884478e+10 | M16: 1.125979231e+10 | N16: 1.007137058e+10 | O16: 9008381559 | P16: 8057586367 | Q16: 7207143441 | R16: 6446461039 | S16: 5766065330 | T16: 5157482406 | U16: 4613132742 | V16: 4126236800 | W16: 3690730590 | X16: 3301190152 | Y16: 1.211025088e+11 | Z16: 1521388.302
A17: =IF(ISBLANK(InfoPro!A11),"",InfoPro!A11) -> SC_767_A1 | B17: =IF(ISBLANK(InfoPro!B11),"",InfoPro!B11) -> Parque Solar Fotovoltaico Alcaraván | C17: =IF(ISBLANK(InfoPro!E11),"",InfoPro!E11) -> 79.6 | D17: =IF(ISBLANK(InfoPro!F11),"",InfoPro!F11) -> Solar FV | E17: =IF(ISBLANK(InfoPro!I11),"",YEAR(InfoPro!I11)-$H$3) -> 2 | F17: =IF(B17="","",VLOOKUP(D17,Tablas!$B$2:$E$13,2,FALSE)) -> 0.26 | G17: =IF(B17="","",VLOOKUP(D17,Tablas!$B$2:$H$13,7,FALSE)) -> 83577.2 | H17: 0.564831274 | I17: 181296.96 | J17: 1.573460303e+10 | K17: 1.407388464e+10 | L17: 1.25884478e+10 | M17: 1.125979231e+10 | N17: 1.007137058e+10 | O17: 9008381559 | P17: 8057586367 | Q17: 7207143441 | R17: 6446461039 | S17: 5766065330 | T17: 5157482406 | U17: 4613132742 | V17: 4126236800 | W17: 3690730590 | X17: 3301190152 | Y17: 1.211025088e+11 | Z17: 1521388.302
A18: =IF(ISBLANK(InfoPro!A12),"",InfoPro!A12) -> SC_417_A2 | B18: =IF(ISBLANK(InfoPro!B12),"",InfoPro!B12) -> PCH PANACEA II | C18: =IF(ISBLANK(InfoPro!E12),"",InfoPro!E12) -> 7 | D18: =IF(ISBLANK(InfoPro!F12),"",InfoPro!F12) -> PCH | E18: =IF(ISBLANK(InfoPro!I12),"",YEAR(InfoPro!I12)-$H$3) -> 3 | F18: =IF(B18="","",VLOOKUP(D18,Tablas!$B$2:$E$13,2,FALSE)) -> 0.54 | G18: =IF(B18="","",VLOOKUP(D18,Tablas!$B$2:$H$13,7,FALSE)) -> 158280.5 | H18: 0.1758670603 | I18: 33112.8 | J18: =IF($I18="","",(1/(1+$C$3)^(J$6+$E18))*$I18*$C$2*$H18) -> 800359566.5 | K18: 715885122.1 | L18: 640326585 | M18: 572742920.4 | N18: 512292415.4 | O18: 458222196.3 | P18: 409858851.7 | Q18: 366600046.3 | R18: 327907018.1 | S18: 293297869.5 | T18: 262341564.9 | U18: 234652562.5 | V18: 209886013 | W18: 187733464.2 | X18: 167919019.9 | Y18: 6160025216 | Z18: 880003.6023
A19: =IF(ISBLANK(InfoPro!A13),"",InfoPro!A13) -> SC_966_A1 | B19: =IF(ISBLANK(InfoPro!B13),"",InfoPro!B13) -> PROYECTO SOLAR FOTOVOLTAICA MORITAS DE 9,9MW | C19: =IF(ISBLANK(InfoPro!E13),"",InfoPro!E13) -> 9.9 | D19: =IF(ISBLANK(InfoPro!F13),"",InfoPro!F13) -> Solar FV | E19: =IF(ISBLANK(InfoPro!I13),"",YEAR(InfoPro!I13)-$H$3) -> 3 | F19: =IF(B19="","",VLOOKUP(D19,Tablas!$B$2:$E$13,2,FALSE)) -> 0.26 | G19: =IF(B19="","",VLOOKUP(D19,Tablas!$B$2:$H$13,7,FALSE)) -> 83577.2 | H19: 0.564831274 | I19: 22548.24 | J19: 1750395201 | K19: 1565648659 | L19: 1400401305 | M19: 1252595085 | N19: 1120389164 | O19: 1002136998 | P19: 896365830 | Q19: 801758345.3 | R19: 717136265.9 | S19: 641445676.1 | T19: 573743896.3 | U19: 513187742.7 | V19: 459023025.7 | W19: 410575157.1 | X19: 367240748.8 | Y19: 1.34720431e+10 | Z19: 1360812.434
A20: =IF(ISBLANK(InfoPro!A14),"",InfoPro!A14) -> SC_966_A2 | B20: =IF(ISBLANK(InfoPro!B14),"",InfoPro!B14) -> PROYECTO SOLAR FOTOVOLTAICA MORITAS DE 9,9MW | C20: =IF(ISBLANK(InfoPro!E14),"",InfoPro!E14) -> 9.9 | D20: =IF(ISBLANK(InfoPro!F14),"",InfoPro!F14) -> Solar FV | E20: =IF(ISBLANK(InfoPro!I14),"",YEAR(InfoPro!I14)-$H$3) -> 3 | F20: =IF(B20="","",VLOOKUP(D20,Tablas!$B$2:$E$13,2,FALSE)) -> 0.26 | G20: =IF(B20="","",VLOOKUP(D20,Tablas!$B$2:$H$13,7,FALSE)) -> 83577.2 | H20: 0.564831274 | I20: 22548.24 | J20: 1750395201 | K20: 1565648659 | L20: 1400401305 | M20: 1252595085 | N20: 1120389164 | O20: 1002136998 | P20: 896365830 | Q20: 801758345.3 | R20: 717136265.9 | S20: 641445676.1 | T20: 573743896.3 | U20: 513187742.7 | V20: 459023025.7 | W20: 410575157.1 | X20: 367240748.8 | Y20: 1.34720431e+10 | Z20: 1360812.434
A21: =IF(ISBLANK(InfoPro!A15),"",InfoPro!A15) -> SC_1130_A2 | B21: =IF(ISBLANK(InfoPro!B15),"",InfoPro!B15) -> PROYECTO SOLAR FOTOVOLTAICO MORITAS 9,9 MW | C21: =IF(ISBLANK(InfoPro!E15),"",InfoPro!E15) -> 9.9 | D21: =IF(ISBLANK(InfoPro!F15),"",InfoPro!F15) -> Solar FV | E21: =IF(ISBLANK(InfoPro!I15),"",YEAR(InfoPro!I15)-$H$3) -> 3 | F21: =IF(B21="","",VLOOKUP(D21,Tablas!$B$2:$E$13,2,FALSE)) -> 0.26 | G21: =IF(B21="","",VLOOKUP(D21,Tablas!$B$2:$H$13,7,FALSE)) -> 83577.2 | H21: 0.564831274 | I21: 22548.24 | J21: 1750395201 | K21: 1565648659 | L21: 1400401305 | M21: 1252595085 | N21: 1120389164 | O21: 1002136998 | P21: 896365830 | Q21: 801758345.3 | R21: 717136265.9 | S21: 641445676.1 | T21: 573743896.3 | U21: 513187742.7 | V21: 459023025.7 | W21: 410575157.1 | X21: 367240748.8 | Y21: 1.34720431e+10 | Z21: 1360812.434
A22: =IF(ISBLANK(InfoPro!A16),"",InfoPro!A16) -> SC_1130_A1 | B22: =IF(ISBLANK(InfoPro!B16),"",InfoPro!B16) -> PROYECTO SOLAR FOTOVOLTAICO MORITAS 9,9 MW | C22: =IF(ISBLANK(InfoPro!E16),"",InfoPro!E16) -> 9.9 | D22: =IF(ISBLANK(InfoPro!F16),"",InfoPro!F16) -> Solar FV | E22: =IF(ISBLANK(InfoPro!I16),"",YEAR(InfoPro!I16)-$H$3) -> 3 | F22: =IF(B22="","",VLOOKUP(D22,Tablas!$B$2:$E$13,2,FALSE)) -> 0.26 | G22: =IF(B22="","",VLOOKUP(D22,Tablas!$B$2:$H$13,7,FALSE)) -> 83577.2 | H22: 0.564831274 | I22: 22548.24 | J22: 1750395201 | K22: 1565648659 | L22: 1400401305 | M22: 1252595085 | N22: 1120389164 | O22: 1002136998 | P22: 896365830 | Q22: 801758345.3 | R22: 717136265.9 | S22: 641445676.1 | T22: 573743896.3 | U22: 513187742.7 | V22: 459023025.7 | W22: 410575157.1 | X22: 367240748.8 | Y22: 1.34720431e+10 | Z22: 1360812.434
A23: =IF(ISBLANK(InfoPro!A17),"",InfoPro!A17) -> SC_1024_A1 | B23: =IF(ISBLANK(InfoPro!B17),"",InfoPro!B17) -> Autogenerador CELSIA Solar Cenit Ayacucho | C23: =IF(ISBLANK(InfoPro!E17),"",InfoPro!E17) -> 0 | D23: =IF(ISBLANK(InfoPro!F17),"",InfoPro!F17) -> Solar FV | E23: =IF(ISBLANK(InfoPro!I17),"",YEAR(InfoPro!I17)-$H$3) -> 0 | F23: =IF(B23="","",VLOOKUP(D23,Tablas!$B$2:$E$13,2,FALSE)) -> 0.26 | G23: =IF(B23="","",VLOOKUP(D23,Tablas!$B$2:$H$13,7,FALSE)) -> 83577.2 | H23: 0.564831274 | I23: 0 | J23: 0 | K23: 0 | L23: 0 | M23: 0 | N23: 0 | O23: 0 | P23: 0 | Q23: 0 | R23: 0 | S23: 0 | T23: 0 | U23: 0 | V23: 0 | W23: 0 | X23: 0 | Y23: 0 | Z23: 0
A24: =IF(ISBLANK(InfoPro!A18),"",InfoPro!A18) -> SC_1278_A2 | B24: =IF(ISBLANK(InfoPro!B18),"",InfoPro!B18) -> PARQUE SOLAR LAS MARGARITAS de 60MW | C24: =IF(ISBLANK(InfoPro!E18),"",InfoPro!E18) -> 60 | D24: =IF(ISBLANK(InfoPro!F18),"",InfoPro!F18) -> Solar FV | E24: =IF(ISBLANK(InfoPro!I18),"",YEAR(InfoPro!I18)-$H$3) -> 1 | F24: =IF(B24="","",VLOOKUP(D24,Tablas!$B$2:$E$13,2,FALSE)) -> 0.26 | G24: =IF(B24="","",VLOOKUP(D24,Tablas!$B$2:$H$13,7,FALSE)) -> 83577.2 | H24: 0.564831274 | I24: 136656 | J24: 1.325976346e+10 | K24: 1.186025354e+10 | L24: 1.060845576e+10 | M24: 9488779752 | N24: 8487280637 | O24: 7591485364 | P24: 6790237356 | Q24: 6073557563 | R24: 5432520182 | S24: 4859141486 | T24: 4346280399 | U24: 3887549552 | V24: 3477235735 | W24: 3110228744 | X24: 2781957731 | Y24: 1.020547273e+11 | Z24: 1700912.121
A25: =IF(ISBLANK(InfoPro!A19),"",InfoPro!A19) -> SC_1278_A1 | B25: =IF(ISBLANK(InfoPro!B19),"",InfoPro!B19) -> PARQUE SOLAR LAS MARGARITAS de 60MW | C25: =IF(ISBLANK(InfoPro!E19),"",InfoPro!E19) -> 60 | D25: =IF(ISBLANK(InfoPro!F19),"",InfoPro!F19) -> Solar FV | E25: =IF(ISBLANK(InfoPro!I19),"",YEAR(InfoPro!I19)-$H$3) -> 1 | F25: =IF(B25="","",VLOOKUP(D25,Tablas!$B$2:$E$13,2,FALSE)) -> 0.26 | G25: =IF(B25="","",VLOOKUP(D25,Tablas!$B$2:$H$13,7,FALSE)) -> 83577.2 | H25: 0.564831274 | I25: 136656 | J25: 1.325976346e+10 | K25: 1.186025354e+10 | L25: 1.060845576e+10 | M25: 9488779752 | N25: 8487280637 | O25: 7591485364 | P25: 6790237356 | Q25: 6073557563 | R25: 5432520182 | S25: 4859141486 | T25: 4346280399 | U25: 3887549552 | V25: 3477235735 | W25: 3110228744 | X25: 2781957731 | Y25: 1.020547273e+11 | Z25: 1700912.121
A26: =IF(ISBLANK(InfoPro!A20),"",InfoPro!A20) -> SC_1245_A2 | B26: =IF(ISBLANK(InfoPro!B20),"",InfoPro!B20) -> PROYECTO FOTONORTE | C26: =IF(ISBLANK(InfoPro!E20),"",InfoPro!E20) -> 99.5 | D26: =IF(ISBLANK(InfoPro!F20),"",InfoPro!F20) -> Solar FV | E26: =IF(ISBLANK(InfoPro!I20),"",YEAR(InfoPro!I20)-$H$3) -> 2 | F26: =IF(B26="","",VLOOKUP(D26,Tablas!$B$2:$E$13,2,FALSE)) -> 0.26 | G26: =IF(B26="","",VLOOKUP(D26,Tablas!$B$2:$H$13,7,FALSE)) -> 83577.2 | H26: 0.564831274 | I26: 226621.2 | J26: 1.966825379e+10 | K26: 1.759235581e+10 | L26: 1.573555976e+10 | M26: 1.407474039e+10 | N26: 1.258921323e+10 | O26: 1.126047695e+10 | P26: 1.007198296e+10 | Q26: 9008929302 | R26: 8058076298 | S26: 7207581662 | T26: 6446853007 | U26: 5766415928 | V26: 5157796000 | W26: 4613413238 | X26: 4126487690 | Y26: 1.51378136e+11 | Z26: 1521388.302
A27: =IF(ISBLANK(InfoPro!A21),"",InfoPro!A21) -> SC_1245_A1 | B27: =IF(ISBLANK(InfoPro!B21),"",InfoPro!B21) -> PROYECTO FOTONORTE | C27: =IF(ISBLANK(InfoPro!E21),"",InfoPro!E21) -> 99.5 | D27: =IF(ISBLANK(InfoPro!F21),"",InfoPro!F21) -> Solar FV | E27: =IF(ISBLANK(InfoPro!I21),"",YEAR(InfoPro!I21)-$H$3) -> 2 | F27: =IF(B27="","",VLOOKUP(D27,Tablas!$B$2:$E$13,2,FALSE)) -> 0.26 | G27: =IF(B27="","",VLOOKUP(D27,Tablas!$B$2:$H$13,7,FALSE)) -> 83577.2 | H27: 0.564831274 | I27: 226621.2 | J27: 1.966825379e+10 | K27: 1.759235581e+10 | L27: 1.573555976e+10 | M27: 1.407474039e+10 | N27: 1.258921323e+10 | O27: 1.126047695e+10 | P27: 1.007198296e+10 | Q27: 9008929302 | R27: 8058076298 | S27: 7207581662 | T27: 6446853007 | U27: 5766415928 | V27: 5157796000 | W27: 4613413238 | X27: 4126487690 | Y27: 1.51378136e+11 | Z27: 1521388.302
A28: =IF(ISBLANK(InfoPro!A22),"",InfoPro!A22) -> SC_1547_A2 | B28: =IF(ISBLANK(InfoPro!B22),"",InfoPro!B22) -> Zulia I | C28: =IF(ISBLANK(InfoPro!E22),"",InfoPro!E22) -> 9.9 | D28: =IF(ISBLANK(InfoPro!F22),"",InfoPro!F22) -> Solar FV | E28: =IF(ISBLANK(InfoPro!I22),"",YEAR(InfoPro!I22)-$H$3) -> 1 | F28: =IF(B28="","",VLOOKUP(D28,Tablas!$B$2:$E$13,2,FALSE)) -> 0.26 | G28: =IF(B28="","",VLOOKUP(D28,Tablas!$B$2:$H$13,7,FALSE)) -> 83577.2 | H28: 0.564831274 | I28: 22548.24 | J28: =IF($I28="","",(1/(1+$C$3)^(J$6+$E28))*$I28*$C$2*$H28) -> 2187860971 | K28: 1956941835 | L28: 1750395201 | M28: 1565648659 | N28: 1400401305 | O28: 1252595085 | P28: 1120389164 | Q28: 1002136998 | R28: 896365830 | S28: 801758345.3 | T28: 717136265.9 | U28: 641445676.1 | V28: 573743896.3 | W28: 513187742.7 | X28: 459023025.7 | Y28: 1.683903e+10 | Z28: 1700912.121
A29: =IF(ISBLANK(InfoPro!A23),"",InfoPro!A23) -> SC_1547_A1 | B29: =IF(ISBLANK(InfoPro!B23),"",InfoPro!B23) -> Zulia I | C29: =IF(ISBLANK(InfoPro!E23),"",InfoPro!E23) -> 9.9 | D29: =IF(ISBLANK(InfoPro!F23),"",InfoPro!F23) -> Solar FV | E29: =IF(ISBLANK(InfoPro!I23),"",YEAR(InfoPro!I23)-$H$3) -> 1 | F29: =IF(B29="","",VLOOKUP(D29,Tablas!$B$2:$E$13,2,FALSE)) -> 0.26 | G29: =IF(B29="","",VLOOKUP(D29,Tablas!$B$2:$H$13,7,FALSE)) -> 83577.2 | H29: 0.564831274 | I29: 22548.24 | J29: 2187860971 | K29: 1956941835 | L29: 1750395201 | M29: 1565648659 | N29: 1400401305 | O29: 1252595085 | P29: 1120389164 | Q29: 1002136998 | R29: 896365830 | S29: 801758345.3 | T29: 717136265.9 | U29: 641445676.1 | V29: 573743896.3 | W29: 513187742.7 | X29: 459023025.7 | Y29: 1.683903e+10 | Z29: 1700912.121
A30: =IF(ISBLANK(InfoPro!A24),"",InfoPro!A24) -> SC_2161_A2 | B30: =IF(ISBLANK(InfoPro!B24),"",InfoPro!B24) -> Aguachica 1, 2, 3 | C30: =IF(ISBLANK(InfoPro!E24),"",InfoPro!E24) -> 150 | D30: =IF(ISBLANK(InfoPro!F24),"",InfoPro!F24) -> Solar FV | E30: =IF(ISBLANK(InfoPro!I24),"",YEAR(InfoPro!I24)-$H$3) -> 3 | F30: =IF(B30="","",VLOOKUP(D30,Tablas!$B$2:$E$13,2,FALSE)) -> 0.26 | G30: =IF(B30="","",VLOOKUP(D30,Tablas!$B$2:$H$13,7,FALSE)) -> 83577.2 | H30: 0.564831274 | I30: 341640 | J30: 2.652113941e+10 | K30: 2.372194938e+10 | L30: 2.121820159e+10 | M30: 1.897871341e+10 | N30: 1.697559339e+10 | O30: 1.518389391e+10 | P30: 1.358130045e+10 | Q30: 1.214785372e+10 | R30: 1.0865701e+10 | S30: 9718873880 | T30: 8693089338 | U30: 7775571859 | V30: 6954894328 | W30: 6220835714 | X30: 5564253769 | Y30: 2.041218651e+11 | Z30: 1360812.434
A31: =IF(ISBLANK(InfoPro!A25),"",InfoPro!A25) -> SC_2161_A1 | B31: =IF(ISBLANK(InfoPro!B25),"",InfoPro!B25) -> Aguachica 1, 2, 3 | C31: =IF(ISBLANK(InfoPro!E25),"",InfoPro!E25) -> 150 | D31: =IF(ISBLANK(InfoPro!F25),"",InfoPro!F25) -> Solar FV | E31: =IF(ISBLANK(InfoPro!I25),"",YEAR(InfoPro!I25)-$H$3) -> 3 | F31: =IF(B31="","",VLOOKUP(D31,Tablas!$B$2:$E$13,2,FALSE)) -> 0.26 | G31: =IF(B31="","",VLOOKUP(D31,Tablas!$B$2:$H$13,7,FALSE)) -> 83577.2 | H31: 0.564831274 | I31: 341640 | J31: 2.652113941e+10 | K31: 2.372194938e+10 | L31: 2.121820159e+10 | M31: 1.897871341e+10 | N31: 1.697559339e+10 | O31: 1.518389391e+10 | P31: 1.358130045e+10 | Q31: 1.214785372e+10 | R31: 1.0865701e+10 | S31: 9718873880 | T31: 8693089338 | U31: 7775571859 | V31: 6954894328 | W31: 6220835714 | X31: 5564253769 | Y31: 2.041218651e+11 | Z31: 1360812.434
A32: =IF(ISBLANK(InfoPro!A26),"",InfoPro!A26) -> SC_2196_A2 | B32: =IF(ISBLANK(InfoPro!B26),"",InfoPro!B26) -> Aguachica 1, 2, 3 | C32: =IF(ISBLANK(InfoPro!E26),"",InfoPro!E26) -> 30 | D32: =IF(ISBLANK(InfoPro!F26),"",InfoPro!F26) -> Solar FV | E32: =IF(ISBLANK(InfoPro!I26),"",YEAR(InfoPro!I26)-$H$3) -> 3 | F32: =IF(B32="","",VLOOKUP(D32,Tablas!$B$2:$E$13,2,FALSE)) -> 0.26 | G32: =IF(B32="","",VLOOKUP(D32,Tablas!$B$2:$H$13,7,FALSE)) -> 83577.2 | H32: 0.564831274 | I32: 68328 | J32: 5304227881 | K32: 4744389876 | L32: 4243640318 | M32: 3795742682 | N32: 3395118678 | O32: 3036778782 | P32: 2716260091 | Q32: 2429570743 | R32: 2173140200 | S32: 1943774776 | T32: 1738617868 | U32: 1555114372 | V32: 1390978866 | W32: 1244167143 | X32: 1112850754 | Y32: 4.082437303e+10 | Z32: 1360812.434
A33: =IF(ISBLANK(InfoPro!A27),"",InfoPro!A27) -> SC_2196_A1 | B33: =IF(ISBLANK(InfoPro!B27),"",InfoPro!B27) -> Aguachica 1, 2, 3 | C33: =IF(ISBLANK(InfoPro!E27),"",InfoPro!E27) -> 30 | D33: =IF(ISBLANK(InfoPro!F27),"",InfoPro!F27) -> Solar FV | E33: =IF(ISBLANK(InfoPro!I27),"",YEAR(InfoPro!I27)-$H$3) -> 3 | F33: =IF(B33="","",VLOOKUP(D33,Tablas!$B$2:$E$13,2,FALSE)) -> 0.26 | G33: =IF(B33="","",VLOOKUP(D33,Tablas!$B$2:$H$13,7,FALSE)) -> 83577.2 | H33: 0.564831274 | I33: 68328 | J33: 5304227881 | K33: 4744389876 | L33: 4243640318 | M33: 3795742682 | N33: 3395118678 | O33: 3036778782 | P33: 2716260091 | Q33: 2429570743 | R33: 2173140200 | S33: 1943774776 | T33: 1738617868 | U33: 1555114372 | V33: 1390978866 | W33: 1244167143 | X33: 1112850754 | Y33: 4.082437303e+10 | Z33: 1360812.434
A34: =IF(ISBLANK(InfoPro!A28),"",InfoPro!A28) -> SC_1626_A1 | B34: =IF(ISBLANK(InfoPro!B28),"",InfoPro!B28) -> Manzanare | C34: =IF(ISBLANK(InfoPro!E28),"",InfoPro!E28) -> 9.99 | D34: =IF(ISBLANK(InfoPro!F28),"",InfoPro!F28) -> Solar FV | E34: =IF(ISBLANK(InfoPro!I28),"",YEAR(InfoPro!I28)-$H$3) -> 2 | F34: =IF(B34="","",VLOOKUP(D34,Tablas!$B$2:$E$13,2,FALSE)) -> 0.26 | G34: =IF(B34="","",VLOOKUP(D34,Tablas!$B$2:$H$13,7,FALSE)) -> 83577.2 | H34: 0.564831274 | I34: 22753.224 | J34: 1974732215 | K34: 1766307884 | L34: 1579881829 | M34: 1413132226 | N34: 1263982313 | O34: 1130574520 | P34: 1011247334 | Q34: 904514610.3 | R34: 809047057.5 | S34: 723655686.5 | T34: 647277000.4 | U34: 578959749.9 | V34: 517853085.8 | W34: 463195962.3 | X34: 414307658.6 | Y34: 1.519866913e+10 | Z34: 1521388.302
A35: =IF(ISBLANK(InfoPro!A29),"",InfoPro!A29) -> SC_1626_A2 | B35: =IF(ISBLANK(InfoPro!B29),"",InfoPro!B29) -> Manzanare | C35: =IF(ISBLANK(InfoPro!E29),"",InfoPro!E29) -> 9.99 | D35: =IF(ISBLANK(InfoPro!F29),"",InfoPro!F29) -> Solar FV | E35: =IF(ISBLANK(InfoPro!I29),"",YEAR(InfoPro!I29)-$H$3) -> 2 | F35: =IF(B35="","",VLOOKUP(D35,Tablas!$B$2:$E$13,2,FALSE)) -> 0.26 | G35: =IF(B35="","",VLOOKUP(D35,Tablas!$B$2:$H$13,7,FALSE)) -> 83577.2 | H35: 0.564831274 | I35: 22753.224 | J35: 1974732215 | K35: 1766307884 | L35: 1579881829 | M35: 1413132226 | N35: 1263982313 | O35: 1130574520 | P35: 1011247334 | Q35: 904514610.3 | R35: 809047057.5 | S35: 723655686.5 | T35: 647277000.4 | U35: 578959749.9 | V35: 517853085.8 | W35: 463195962.3 | X35: 414307658.6 | Y35: 1.519866913e+10 | Z35: 1521388.302
A36: =IF(ISBLANK(InfoPro!A30),"",InfoPro!A30) -> SC_1842_A2 | B36: =IF(ISBLANK(InfoPro!B30),"",InfoPro!B30) -> KAIROS SOLAR PARK I - 19,9 MW | C36: =IF(ISBLANK(InfoPro!E30),"",InfoPro!E30) -> 19.9 | D36: =IF(ISBLANK(InfoPro!F30),"",InfoPro!F30) -> Solar FV | E36: =IF(ISBLANK(InfoPro!I30),"",YEAR(InfoPro!I30)-$H$3) -> 0 | F36: =IF(B36="","",VLOOKUP(D36,Tablas!$B$2:$E$13,2,FALSE)) -> 0.26 | G36: =IF(B36="","",VLOOKUP(D36,Tablas!$B$2:$H$13,7,FALSE)) -> 83577.2 | H36: 0.564831274 | I36: 45324.24 | J36: 4916764490 | K36: 4397821548 | L36: 3933650758 | M36: 3518471161 | N36: 3147111951 | O36: 2814948078 | P36: 2517842646 | Q36: 2252095390 | R36: 2014396592 | S36: 1801785860 | T36: 1611615260 | U36: 1441516332 | V36: 1289370601 | W36: 1153283186 | X36: 1031559200 | Y36: 3.784223305e+10 | Z36: 1901619.751
A37: =IF(ISBLANK(InfoPro!A31),"",InfoPro!A31) -> SC_1842_A1 | B37: =IF(ISBLANK(InfoPro!B31),"",InfoPro!B31) -> KAIROS SOLAR PARK I - 19,9 MW | C37: =IF(ISBLANK(InfoPro!E31),"",InfoPro!E31) -> 19.9 | D37: =IF(ISBLANK(InfoPro!F31),"",InfoPro!F31) -> Solar FV | E37: =IF(ISBLANK(InfoPro!I31),"",YEAR(InfoPro!I31)-$H$3) -> 0 | F37: =IF(B37="","",VLOOKUP(D37,Tablas!$B$2:$E$13,2,FALSE)) -> 0.26 | G37: =IF(B37="","",VLOOKUP(D37,Tablas!$B$2:$H$13,7,FALSE)) -> 83577.2 | H37: 0.564831274 | I37: 45324.24 | J37: 4916764490 | K37: 4397821548 | L37: 3933650758 | M37: 3518471161 | N37: 3147111951 | O37: 2814948078 | P37: 2517842646 | Q37: 2252095390 | R37: 2014396592 | S37: 1801785860 | T37: 1611615260 | U37: 1441516332 | V37: 1289370601 | W37: 1153283186 | X37: 1031559200 | Y37: 3.784223305e+10 | Z37: 1901619.751
A38: =IF(ISBLANK(InfoPro!A32),"",InfoPro!A32) -> SC_2032_A2 | B38: =IF(ISBLANK(InfoPro!B32),"",InfoPro!B32) -> KAIROS SOLAR PARK_19.9MW | C38: =IF(ISBLANK(InfoPro!E32),"",InfoPro!E32) -> 19.9 | D38: =IF(ISBLANK(InfoPro!F32),"",InfoPro!F32) -> Solar FV | E38: =IF(ISBLANK(InfoPro!I32),"",YEAR(InfoPro!I32)-$H$3) -> 0 | F38: =IF(B38="","",VLOOKUP(D38,Tablas!$B$2:$E$13,2,FALSE)) -> 0.26 | G38: =IF(B38="","",VLOOKUP(D38,Tablas!$B$2:$H$13,7,FALSE)) -> 83577.2 | H38: 0.564831274 | I38: 45324.24 | J38: =IF($I38="","",(1/(1+$C$3)^(J$6+$E38))*$I38*$C$2*$H38) -> 4916764490 | K38: 4397821548 | L38: 3933650758 | M38: 3518471161 | N38: 3147111951 | O38: 2814948078 | P38: 2517842646 | Q38: 2252095390 | R38: 2014396592 | S38: 1801785860 | T38: 1611615260 | U38: 1441516332 | V38: 1289370601 | W38: 1153283186 | X38: 1031559200 | Y38: 3.784223305e+10 | Z38: 1901619.751
A39: =IF(ISBLANK(InfoPro!A33),"",InfoPro!A33) -> SC_2032_A1 | B39: =IF(ISBLANK(InfoPro!B33),"",InfoPro!B33) -> KAIROS SOLAR PARK_19.9MW | C39: =IF(ISBLANK(InfoPro!E33),"",InfoPro!E33) -> 19.9 | D39: =IF(ISBLANK(InfoPro!F33),"",InfoPro!F33) -> Solar FV | E39: =IF(ISBLANK(InfoPro!I33),"",YEAR(InfoPro!I33)-$H$3) -> 0 | F39: =IF(B39="","",VLOOKUP(D39,Tablas!$B$2:$E$13,2,FALSE)) -> 0.26 | G39: =IF(B39="","",VLOOKUP(D39,Tablas!$B$2:$H$13,7,FALSE)) -> 83577.2 | H39: 0.564831274 | I39: 45324.24 | J39: 4916764490 | K39: 4397821548 | L39: 3933650758 | M39: 3518471161 | N39: 3147111951 | O39: 2814948078 | P39: 2517842646 | Q39: 2252095390 | R39: 2014396592 | S39: 1801785860 | T39: 1611615260 | U39: 1441516332 | V39: 1289370601 | W39: 1153283186 | X39: 1031559200 | Y39: 3.784223305e+10 | Z39: 1901619.751
A40: =IF(ISBLANK(InfoPro!A34),"",InfoPro!A34) -> SC_1943_A2 | B40: =IF(ISBLANK(InfoPro!B34),"",InfoPro!B34) -> KAIROS SOLAR PARK V 19.9MW | C40: =IF(ISBLANK(InfoPro!E34),"",InfoPro!E34) -> 19.9 | D40: =IF(ISBLANK(InfoPro!F34),"",InfoPro!F34) -> Solar FV | E40: =IF(ISBLANK(InfoPro!I34),"",YEAR(InfoPro!I34)-$H$3) -> 0 | F40: =IF(B40="","",VLOOKUP(D40,Tablas!$B$2:$E$13,2,FALSE)) -> 0.26 | G40: =IF(B40="","",VLOOKUP(D40,Tablas!$B$2:$H$13,7,FALSE)) -> 83577.2 | H40: 0.564831274 | I40: =IF(C40="","",+C40*F40*24*365) -> 45324.24 | J40: 4916764490 | K40: 4397821548 | L40: 3933650758 | M40: 3518471161 | N40: 3147111951 | O40: 2814948078 | P40: 2517842646 | Q40: 2252095390 | R40: 2014396592 | S40: 1801785860 | T40: 1611615260 | U40: 1441516332 | V40: 1289370601 | W40: 1153283186 | X40: 1031559200 | Y40: 3.784223305e+10 | Z40: 1901619.751
A41: =IF(ISBLANK(InfoPro!A35),"",InfoPro!A35) -> SC_1943_A1 | B41: =IF(ISBLANK(InfoPro!B35),"",InfoPro!B35) -> KAIROS SOLAR PARK V 19.9MW | C41: =IF(ISBLANK(InfoPro!E35),"",InfoPro!E35) -> 19.9 | D41: =IF(ISBLANK(InfoPro!F35),"",InfoPro!F35) -> Solar FV | E41: =IF(ISBLANK(InfoPro!I35),"",YEAR(InfoPro!I35)-$H$3) -> 0 | F41: =IF(B41="","",VLOOKUP(D41,Tablas!$B$2:$E$13,2,FALSE)) -> 0.26 | G41: =IF(B41="","",VLOOKUP(D41,Tablas!$B$2:$H$13,7,FALSE)) -> 83577.2 | H41: 0.564831274 | I41: 45324.24 | J41: 4916764490 | K41: 4397821548 | L41: 3933650758 | M41: 3518471161 | N41: 3147111951 | O41: 2814948078 | P41: 2517842646 | Q41: 2252095390 | R41: 2014396592 | S41: 1801785860 | T41: 1611615260 | U41: 1441516332 | V41: 1289370601 | W41: 1153283186 | X41: 1031559200 | Y41: 3.784223305e+10 | Z41: 1901619.751
A42: =IF(ISBLANK(InfoPro!A36),"",InfoPro!A36) -> SC_2033_A2 | B42: =IF(ISBLANK(InfoPro!B36),"",InfoPro!B36) -> KAIROS SOLAR PARK IV19.9 | C42: =IF(ISBLANK(InfoPro!E36),"",InfoPro!E36) -> 19.9 | D42: =IF(ISBLANK(InfoPro!F36),"",InfoPro!F36) -> Solar FV | E42: =IF(ISBLANK(InfoPro!I36),"",YEAR(InfoPro!I36)-$H$3) -> 0 | F42: =IF(B42="","",VLOOKUP(D42,Tablas!$B$2:$E$13,2,FALSE)) -> 0.26 | G42: =IF(B42="","",VLOOKUP(D42,Tablas!$B$2:$H$13,7,FALSE)) -> 83577.2 | H42: 0.564831274 | I42: 45324.24 | J42: 4916764490 | K42: 4397821548 | L42: 3933650758 | M42: 3518471161 | N42: 3147111951 | O42: 2814948078 | P42: 2517842646 | Q42: 2252095390 | R42: 2014396592 | S42: 1801785860 | T42: 1611615260 | U42: 1441516332 | V42: 1289370601 | W42: 1153283186 | X42: 1031559200 | Y42: 3.784223305e+10 | Z42: 1901619.751
A43: =IF(ISBLANK(InfoPro!A37),"",InfoPro!A37) -> SC_2033_A1 | B43: =IF(ISBLANK(InfoPro!B37),"",InfoPro!B37) -> KAIROS SOLAR PARK IV19.9 | C43: =IF(ISBLANK(InfoPro!E37),"",InfoPro!E37) -> 19.9 | D43: =IF(ISBLANK(InfoPro!F37),"",InfoPro!F37) -> Solar FV | E43: =IF(ISBLANK(InfoPro!I37),"",YEAR(InfoPro!I37)-$H$3) -> 0 | F43: =IF(B43="","",VLOOKUP(D43,Tablas!$B$2:$E$13,2,FALSE)) -> 0.26 | G43: =IF(B43="","",VLOOKUP(D43,Tablas!$B$2:$H$13,7,FALSE)) -> 83577.2 | H43: 0.564831274 | I43: 45324.24 | J43: 4916764490 | K43: 4397821548 | L43: 3933650758 | M43: 3518471161 | N43: 3147111951 | O43: 2814948078 | P43: 2517842646 | Q43: 2252095390 | R43: 2014396592 | S43: 1801785860 | T43: 1611615260 | U43: 1441516332 | V43: 1289370601 | W43: 1153283186 | X43: 1031559200 | Y43: 3.784223305e+10 | Z43: 1901619.751
A44: =IF(ISBLANK(InfoPro!A38),"",InfoPro!A38) -> SC_2257_A2 | B44: =IF(ISBLANK(InfoPro!B38),"",InfoPro!B38) -> Proyecto de generación Eólico Norte | C44: =IF(ISBLANK(InfoPro!E38),"",InfoPro!E38) -> 200 | D44: =IF(ISBLANK(InfoPro!F38),"",InfoPro!F38) -> Eólico Onshore | E44: =IF(ISBLANK(InfoPro!I38),"",YEAR(InfoPro!I38)-$H$3) -> 3 | F44: =IF(B44="","",VLOOKUP(D44,Tablas!$B$2:$E$13,2,FALSE)) -> 0.57 | G44: =IF(B44="","",VLOOKUP(D44,Tablas!$B$2:$H$13,7,FALSE)) -> 83577.2 | H44: 0.564831274 | I44: 998640 | J44: 7.752333057e+10 | K44: 6.93410828e+10 | L44: 6.202243542e+10 | M44: 5.54762392e+10 | N44: 4.962096529e+10 | O44: 4.438368989e+10 | P44: 3.969918594e+10 | Q44: 3.550911086e+10 | R44: 3.176127984e+10 | S44: 2.840901596e+10 | T44: 2.541056884e+10 | U44: 2.272859467e+10 | V44: 2.032969111e+10 | W44: 1.818398132e+10 | X44: 1.626474179e+10 | Y44: 5.966639135e+11 | Z44: 2983319.567
A45: =IF(ISBLANK(InfoPro!A39),"",InfoPro!A39) -> SC_2257_A1 | B45: =IF(ISBLANK(InfoPro!B39),"",InfoPro!B39) -> Proyecto de generación Eólico Norte | C45: =IF(ISBLANK(InfoPro!E39),"",InfoPro!E39) -> 200 | D45: =IF(ISBLANK(InfoPro!F39),"",InfoPro!F39) -> Eólico Onshore | E45: =IF(ISBLANK(InfoPro!I39),"",YEAR(InfoPro!I39)-$H$3) -> 3 | F45: =IF(B45="","",VLOOKUP(D45,Tablas!$B$2:$E$13,2,FALSE)) -> 0.57 | G45: =IF(B45="","",VLOOKUP(D45,Tablas!$B$2:$H$13,7,FALSE)) -> 83577.2 | H45: 0.564831274 | I45: 998640 | J45: 7.752333057e+10 | K45: 6.93410828e+10 | L45: 6.202243542e+10 | M45: 5.54762392e+10 | N45: 4.962096529e+10 | O45: 4.438368989e+10 | P45: 3.969918594e+10 | Q45: 3.550911086e+10 | R45: 3.176127984e+10 | S45: 2.840901596e+10 | T45: 2.541056884e+10 | U45: 2.272859467e+10 | V45: 2.032969111e+10 | W45: 1.818398132e+10 | X45: 1.626474179e+10 | Y45: 5.966639135e+11 | Z45: 2983319.567
A46: =IF(ISBLANK(InfoPro!A40),"",InfoPro!A40) -> SC_2074_A2 | B46: =IF(ISBLANK(InfoPro!B40),"",InfoPro!B40) -> CULEBRA I | C46: =IF(ISBLANK(InfoPro!E40),"",InfoPro!E40) -> 5 | D46: =IF(ISBLANK(InfoPro!F40),"",InfoPro!F40) -> Solar FV | E46: =IF(ISBLANK(InfoPro!I40),"",YEAR(InfoPro!I40)-$H$3) -> 1 | F46: =IF(B46="","",VLOOKUP(D46,Tablas!$B$2:$E$13,2,FALSE)) -> 0.26 | G46: =IF(B46="","",VLOOKUP(D46,Tablas!$B$2:$H$13,7,FALSE)) -> 83577.2 | H46: 0.564831274 | I46: 11388 | J46: 1104980288 | K46: 988354461.9 | L46: 884037980.2 | M46: 790731646 | N46: 707273386.4 | O46: 632623780.3 | P46: 565853113 | Q46: 506129796.9 | R46: 452710015.2 | S46: 404928457.2 | T46: 362190033.3 | U46: 323962462.7 | V46: 289769644.6 | W46: 259185728.6 | X46: 231829810.9 | Y46: 8504560606 | Z46: 1700912.121
A47: =IF(ISBLANK(InfoPro!A41),"",InfoPro!A41) -> SC_2074_A1 | B47: =IF(ISBLANK(InfoPro!B41),"",InfoPro!B41) -> CULEBRA I | C47: =IF(ISBLANK(InfoPro!E41),"",InfoPro!E41) -> 5 | D47: =IF(ISBLANK(InfoPro!F41),"",InfoPro!F41) -> Solar FV | E47: =IF(ISBLANK(InfoPro!I41),"",YEAR(InfoPro!I41)-$H$3) -> 1 | F47: =IF(B47="","",VLOOKUP(D47,Tablas!$B$2:$E$13,2,FALSE)) -> 0.26 | G47: =IF(B47="","",VLOOKUP(D47,Tablas!$B$2:$H$13,7,FALSE)) -> 83577.2 | H47: 0.564831274 | I47: 11388 | J47: 1104980288 | K47: 988354461.9 | L47: 884037980.2 | M47: 790731646 | N47: 707273386.4 | O47: 632623780.3 | P47: 565853113 | Q47: 506129796.9 | R47: 452710015.2 | S47: 404928457.2 | T47: 362190033.3 | U47: 323962462.7 | V47: 289769644.6 | W47: 259185728.6 | X47: 231829810.9 | Y47: 8504560606 | Z47: 1700912.121
A48: =IF(ISBLANK(InfoPro!A42),"",InfoPro!A42) -> SC_2085_A2 | B48: =IF(ISBLANK(InfoPro!B42),"",InfoPro!B42) -> Insula I | C48: =IF(ISBLANK(InfoPro!E42),"",InfoPro!E42) -> 19.9 | D48: =IF(ISBLANK(InfoPro!F42),"",InfoPro!F42) -> Solar FV | E48: =IF(ISBLANK(InfoPro!I42),"",YEAR(InfoPro!I42)-$H$3) -> 2 | F48: =IF(B48="","",VLOOKUP(D48,Tablas!$B$2:$E$13,2,FALSE)) -> 0.26 | G48: =IF(B48="","",VLOOKUP(D48,Tablas!$B$2:$H$13,7,FALSE)) -> 83577.2 | H48: 0.564831274 | I48: 45324.24 | J48: =IF($I48="","",(1/(1+$C$3)^(J$6+$E48))*$I48*$C$2*$H48) -> 3933650758 | K48: 3518471161 | L48: 3147111951 | M48: 2814948078 | N48: 2517842646 | O48: 2252095390 | P48: 2014396592 | Q48: 1801785860 | R48: 1611615260 | S48: 1441516332 | T48: 1289370601 | U48: 1153283186 | V48: 1031559200 | W48: 922682647.6 | X48: 825297538.1 | Y48: 3.02756272e+10 | Z48: 1521388.302
A49: =IF(ISBLANK(InfoPro!A43),"",InfoPro!A43) -> SC_2085_A1 | B49: =IF(ISBLANK(InfoPro!B43),"",InfoPro!B43) -> Insula I | C49: =IF(ISBLANK(InfoPro!E43),"",InfoPro!E43) -> 19.9 | D49: =IF(ISBLANK(InfoPro!F43),"",InfoPro!F43) -> Solar FV | E49: =IF(ISBLANK(InfoPro!I43),"",YEAR(InfoPro!I43)-$H$3) -> 2 | F49: =IF(B49="","",VLOOKUP(D49,Tablas!$B$2:$E$13,2,FALSE)) -> 0.26 | G49: =IF(B49="","",VLOOKUP(D49,Tablas!$B$2:$H$13,7,FALSE)) -> 83577.2 | H49: 0.564831274 | I49: 45324.24 | J49: 3933650758 | K49: 3518471161 | L49: 3147111951 | M49: 2814948078 | N49: 2517842646 | O49: 2252095390 | P49: 2014396592 | Q49: 1801785860 | R49: 1611615260 | S49: 1441516332 | T49: 1289370601 | U49: 1153283186 | V49: 1031559200 | W49: 922682647.6 | X49: 825297538.1 | Y49: 3.02756272e+10 | Z49: 1521388.302
A50: =IF(ISBLANK(InfoPro!A44),"",InfoPro!A44) -> SC_1983_A2 | B50: =IF(ISBLANK(InfoPro!B44),"",InfoPro!B44) -> EL TOCHE II | C50: =IF(ISBLANK(InfoPro!E44),"",InfoPro!E44) -> 99.9 | D50: =IF(ISBLANK(InfoPro!F44),"",InfoPro!F44) -> Solar FV | E50: =IF(ISBLANK(InfoPro!I44),"",YEAR(InfoPro!I44)-$H$3) -> 3 | F50: =IF(B50="","",VLOOKUP(D50,Tablas!$B$2:$E$13,2,FALSE)) -> 0.26 | G50: =IF(B50="","",VLOOKUP(D50,Tablas!$B$2:$H$13,7,FALSE)) -> 83577.2 | H50: 0.564831274 | I50: 227532.24 | J50: 1.766307884e+10 | K50: 1.579881829e+10 | L50: 1.413132226e+10 | M50: 1.263982313e+10 | N50: 1.13057452e+10 | O50: 1.011247334e+10 | P50: 9045146103 | Q50: 8090470575 | R50: 7236556865 | S50: 6472770004 | T50: 5789597499 | U50: 5178530858 | V50: 4631959623 | W50: 4143076586 | X50: 3705793010 | Y50: 1.359451622e+11 | Z50: 1360812.434
A51: =IF(ISBLANK(InfoPro!A45),"",InfoPro!A45) -> SC_1983_A1 | B51: =IF(ISBLANK(InfoPro!B45),"",InfoPro!B45) -> EL TOCHE II | C51: =IF(ISBLANK(InfoPro!E45),"",InfoPro!E45) -> 99.9 | D51: =IF(ISBLANK(InfoPro!F45),"",InfoPro!F45) -> Solar FV | E51: =IF(ISBLANK(InfoPro!I45),"",YEAR(InfoPro!I45)-$H$3) -> 3 | F51: =IF(B51="","",VLOOKUP(D51,Tablas!$B$2:$E$13,2,FALSE)) -> 0.26 | G51: =IF(B51="","",VLOOKUP(D51,Tablas!$B$2:$H$13,7,FALSE)) -> 83577.2 | H51: 0.564831274 | I51: 227532.24 | J51: 1.766307884e+10 | K51: 1.579881829e+10 | L51: 1.413132226e+10 | M51: 1.263982313e+10 | N51: 1.13057452e+10 | O51: 1.011247334e+10 | P51: 9045146103 | Q51: 8090470575 | R51: 7236556865 | S51: 6472770004 | T51: 5789597499 | U51: 5178530858 | V51: 4631959623 | W51: 4143076586 | X51: 3705793010 | Y51: 1.359451622e+11 | Z51: 1360812.434
A52: =IF(ISBLANK(InfoPro!A46),"",InfoPro!A46) -> SC_2079_A2 | B52: =IF(ISBLANK(InfoPro!B46),"",InfoPro!B46) -> PGF Tibú II | C52: =IF(ISBLANK(InfoPro!E46),"",InfoPro!E46) -> 99.9 | D52: =IF(ISBLANK(InfoPro!F46),"",InfoPro!F46) -> Solar FV | E52: =IF(ISBLANK(InfoPro!I46),"",YEAR(InfoPro!I46)-$H$3) -> 3 | F52: =IF(B52="","",VLOOKUP(D52,Tablas!$B$2:$E$13,2,FALSE)) -> 0.26 | G52: =IF(B52="","",VLOOKUP(D52,Tablas!$B$2:$H$13,7,FALSE)) -> 83577.2 | H52: 0.564831274 | I52: 227532.24 | J52: 1.766307884e+10 | K52: 1.579881829e+10 | L52: 1.413132226e+10 | M52: 1.263982313e+10 | N52: 1.13057452e+10 | O52: 1.011247334e+10 | P52: 9045146103 | Q52: 8090470575 | R52: 7236556865 | S52: 6472770004 | T52: 5789597499 | U52: 5178530858 | V52: 4631959623 | W52: 4143076586 | X52: 3705793010 | Y52: 1.359451622e+11 | Z52: 1360812.434
A53: =IF(ISBLANK(InfoPro!A47),"",InfoPro!A47) -> SC_2079_A1 | B53: =IF(ISBLANK(InfoPro!B47),"",InfoPro!B47) -> PGF Tibú II | C53: =IF(ISBLANK(InfoPro!E47),"",InfoPro!E47) -> 99.9 | D53: =IF(ISBLANK(InfoPro!F47),"",InfoPro!F47) -> Solar FV | E53: =IF(ISBLANK(InfoPro!I47),"",YEAR(InfoPro!I47)-$H$3) -> 3 | F53: =IF(B53="","",VLOOKUP(D53,Tablas!$B$2:$E$13,2,FALSE)) -> 0.26 | G53: =IF(B53="","",VLOOKUP(D53,Tablas!$B$2:$H$13,7,FALSE)) -> 83577.2 | H53: 0.564831274 | I53: 227532.24 | J53: 1.766307884e+10 | K53: 1.579881829e+10 | L53: 1.413132226e+10 | M53: 1.263982313e+10 | N53: 1.13057452e+10 | O53: 1.011247334e+10 | P53: 9045146103 | Q53: 8090470575 | R53: 7236556865 | S53: 6472770004 | T53: 5789597499 | U53: 5178530858 | V53: 4631959623 | W53: 4143076586 | X53: 3705793010 | Y53: 1.359451622e+11 | Z53: 1360812.434
A54: =IF(ISBLANK(InfoPro!A48),"",InfoPro!A48) -> SC_2013_A2 | B54: =IF(ISBLANK(InfoPro!B48),"",InfoPro!B48) -> PGF TIBÚ I | C54: =IF(ISBLANK(InfoPro!E48),"",InfoPro!E48) -> 99.9 | D54: =IF(ISBLANK(InfoPro!F48),"",InfoPro!F48) -> Solar FV | E54: =IF(ISBLANK(InfoPro!I48),"",YEAR(InfoPro!I48)-$H$3) -> 3 | F54: =IF(B54="","",VLOOKUP(D54,Tablas!$B$2:$E$13,2,FALSE)) -> 0.26 | G54: =IF(B54="","",VLOOKUP(D54,Tablas!$B$2:$H$13,7,FALSE)) -> 83577.2 | H54: 0.564831274 | I54: 227532.24 | J54: 1.766307884e+10 | K54: 1.579881829e+10 | L54: 1.413132226e+10 | M54: 1.263982313e+10 | N54: 1.13057452e+10 | O54: 1.011247334e+10 | P54: 9045146103 | Q54: 8090470575 | R54: 7236556865 | S54: 6472770004 | T54: 5789597499 | U54: 5178530858 | V54: 4631959623 | W54: 4143076586 | X54: 3705793010 | Y54: 1.359451622e+11 | Z54: 1360812.434
A55: =IF(ISBLANK(InfoPro!A49),"",InfoPro!A49) -> SC_2013_A1 | B55: =IF(ISBLANK(InfoPro!B49),"",InfoPro!B49) -> PGF TIBÚ I | C55: =IF(ISBLANK(InfoPro!E49),"",InfoPro!E49) -> 99.9 | D55: =IF(ISBLANK(InfoPro!F49),"",InfoPro!F49) -> Solar FV | E55: =IF(ISBLANK(InfoPro!I49),"",YEAR(InfoPro!I49)-$H$3) -> 3 | F55: =IF(B55="","",VLOOKUP(D55,Tablas!$B$2:$E$13,2,FALSE)) -> 0.26 | G55: =IF(B55="","",VLOOKUP(D55,Tablas!$B$2:$H$13,7,FALSE)) -> 83577.2 | H55: 0.564831274 | I55: 227532.24 | J55: 1.766307884e+10 | K55: 1.579881829e+10 | L55: 1.413132226e+10 | M55: 1.263982313e+10 | N55: 1.13057452e+10 | O55: 1.011247334e+10 | P55: 9045146103 | Q55: 8090470575 | R55: 7236556865 | S55: 6472770004 | T55: 5789597499 | U55: 5178530858 | V55: 4631959623 | W55: 4143076586 | X55: 3705793010 | Y55: 1.359451622e+11 | Z55: 1360812.434
A56: =IF(ISBLANK(InfoPro!A50),"",InfoPro!A50) -> SC_1994_A2 | B56: =IF(ISBLANK(InfoPro!B50),"",InfoPro!B50) -> Parque Solar Ábrego de 9,9 MW | C56: =IF(ISBLANK(InfoPro!E50),"",InfoPro!E50) -> 9.9 | D56: =IF(ISBLANK(InfoPro!F50),"",InfoPro!F50) -> Solar FV | E56: =IF(ISBLANK(InfoPro!I50),"",YEAR(InfoPro!I50)-$H$3) -> 4 | F56: =IF(B56="","",VLOOKUP(D56,Tablas!$B$2:$E$13,2,FALSE)) -> 0.26 | G56: =IF(B56="","",VLOOKUP(D56,Tablas!$B$2:$H$13,7,FALSE)) -> 83577.2 | H56: 0.564831274 | I56: 22548.24 | J56: 1565648659 | K56: 1400401305 | L56: 1252595085 | M56: 1120389164 | N56: 1002136998 | O56: 896365830 | P56: 801758345.3 | Q56: 717136265.9 | R56: 641445676.1 | S56: 573743896.3 | T56: 513187742.7 | U56: 459023025.7 | V56: 410575157.1 | W56: 367240748.8 | X56: 328480097.3 | Y56: 1.2050128e+10 | Z56: 1217184.646
A57: =IF(ISBLANK(InfoPro!A51),"",InfoPro!A51) -> SC_1994_A1 | B57: =IF(ISBLANK(InfoPro!B51),"",InfoPro!B51) -> Parque Solar Ábrego de 9,9 MW | C57: =IF(ISBLANK(InfoPro!E51),"",InfoPro!E51) -> 9.9 | D57: =IF(ISBLANK(InfoPro!F51),"",InfoPro!F51) -> Solar FV | E57: =IF(ISBLANK(InfoPro!I51),"",YEAR(InfoPro!I51)-$H$3) -> 4 | F57: =IF(B57="","",VLOOKUP(D57,Tablas!$B$2:$E$13,2,FALSE)) -> 0.26 | G57: =IF(B57="","",VLOOKUP(D57,Tablas!$B$2:$H$13,7,FALSE)) -> 83577.2 | H57: 0.564831274 | I57: 22548.24 | J57: 1565648659 | K57: 1400401305 | L57: 1252595085 | M57: 1120389164 | N57: 1002136998 | O57: 896365830 | P57: 801758345.3 | Q57: 717136265.9 | R57: 641445676.1 | S57: 573743896.3 | T57: 513187742.7 | U57: 459023025.7 | V57: 410575157.1 | W57: 367240748.8 | X57: 328480097.3 | Y57: 1.2050128e+10 | Z57: 1217184.646
A58: =IF(ISBLANK(InfoPro!A52),"",InfoPro!A52) -> SC_2157_A2 | B58: =IF(ISBLANK(InfoPro!B52),"",InfoPro!B52) -> PGF El Toche I 99,9 MW | C58: =IF(ISBLANK(InfoPro!E52),"",InfoPro!E52) -> 99.9 | D58: =IF(ISBLANK(InfoPro!F52),"",InfoPro!F52) -> Solar FV | E58: =IF(ISBLANK(InfoPro!I52),"",YEAR(InfoPro!I52)-$H$3) -> 3 | F58: =IF(B58="","",VLOOKUP(D58,Tablas!$B$2:$E$13,2,FALSE)) -> 0.26 | G58: =IF(B58="","",VLOOKUP(D58,Tablas!$B$2:$H$13,7,FALSE)) -> 83577.2 | H58: 0.564831274 | I58: 227532.24 | J58: =IF($I58="","",(1/(1+$C$3)^(J$6+$E58))*$I58*$C$2*$H58) -> 1.766307884e+10 | K58: 1.579881829e+10 | L58: 1.413132226e+10 | M58: 1.263982313e+10 | N58: 1.13057452e+10 | O58: 1.011247334e+10 | P58: 9045146103 | Q58: 8090470575 | R58: 7236556865 | S58: 6472770004 | T58: 5789597499 | U58: 5178530858 | V58: 4631959623 | W58: 4143076586 | X58: 3705793010 | Y58: 1.359451622e+11 | Z58: 1360812.434
A59: =IF(ISBLANK(InfoPro!A53),"",InfoPro!A53) -> SC_2157_A1 | B59: =IF(ISBLANK(InfoPro!B53),"",InfoPro!B53) -> PGF El Toche I 99,9 MW | C59: =IF(ISBLANK(InfoPro!E53),"",InfoPro!E53) -> 99.9 | D59: =IF(ISBLANK(InfoPro!F53),"",InfoPro!F53) -> Solar FV | E59: =IF(ISBLANK(InfoPro!I53),"",YEAR(InfoPro!I53)-$H$3) -> 3 | F59: =IF(B59="","",VLOOKUP(D59,Tablas!$B$2:$E$13,2,FALSE)) -> 0.26 | G59: =IF(B59="","",VLOOKUP(D59,Tablas!$B$2:$H$13,7,FALSE)) -> 83577.2 | H59: 0.564831274 | I59: 227532.24 | J59: 1.766307884e+10 | K59: 1.579881829e+10 | L59: 1.413132226e+10 | M59: 1.263982313e+10 | N59: 1.13057452e+10 | O59: 1.011247334e+10 | P59: 9045146103 | Q59: 8090470575 | R59: 7236556865 | S59: 6472770004 | T59: 5789597499 | U59: 5178530858 | V59: 4631959623 | W59: 4143076586 | X59: 3705793010 | Y59: 1.359451622e+11 | Z59: 1360812.434
A60: =IF(ISBLANK(InfoPro!A54),"",InfoPro!A54) -> SC_2291_A2 | B60: =IF(ISBLANK(InfoPro!B54),"",InfoPro!B54) -> Termotasajero Solar Tres | C60: =IF(ISBLANK(InfoPro!E54),"",InfoPro!E54) -> 3 | D60: =IF(ISBLANK(InfoPro!F54),"",InfoPro!F54) -> Solar FV | E60: =IF(ISBLANK(InfoPro!I54),"",YEAR(InfoPro!I54)-$H$3) -> 1 | F60: =IF(B60="","",VLOOKUP(D60,Tablas!$B$2:$E$13,2,FALSE)) -> 0.26 | G60: =IF(B60="","",VLOOKUP(D60,Tablas!$B$2:$H$13,7,FALSE)) -> 83577.2 | H60: 0.564831274 | I60: 6832.8 | J60: 662988173 | K60: 593012677.1 | L60: 530422788.1 | M60: 474438987.6 | N60: 424364031.8 | O60: 379574268.2 | P60: 339511867.8 | Q60: 303677878.2 | R60: 271626009.1 | S60: 242957074.3 | T60: 217314020 | U60: 194377477.6 | V60: 173861786.8 | W60: 155511437.2 | X60: 139097886.6 | Y60: 5102736363 | Z60: 1700912.121
A61: =IF(ISBLANK(InfoPro!A55),"",InfoPro!A55) -> SC_2291_A1 | B61: =IF(ISBLANK(InfoPro!B55),"",InfoPro!B55) -> Termotasajero Solar Tres | C61: =IF(ISBLANK(InfoPro!E55),"",InfoPro!E55) -> 3 | D61: =IF(ISBLANK(InfoPro!F55),"",InfoPro!F55) -> Solar FV | E61: =IF(ISBLANK(InfoPro!I55),"",YEAR(InfoPro!I55)-$H$3) -> 1 | F61: =IF(B61="","",VLOOKUP(D61,Tablas!$B$2:$E$13,2,FALSE)) -> 0.26 | G61: =IF(B61="","",VLOOKUP(D61,Tablas!$B$2:$H$13,7,FALSE)) -> 83577.2 | H61: 0.564831274 | I61: 6832.8 | J61: 662988173 | K61: 593012677.1 | L61: 530422788.1 | M61: 474438987.6 | N61: 424364031.8 | O61: 379574268.2 | P61: 339511867.8 | Q61: 303677878.2 | R61: 271626009.1 | S61: 242957074.3 | T61: 217314020 | U61: 194377477.6 | V61: 173861786.8 | W61: 155511437.2 | X61: 139097886.6 | Y61: 5102736363 | Z61: 1700912.121
A62: =IF(ISBLANK(InfoPro!A56),"",InfoPro!A56) -> SC_2279_A2 | B62: =IF(ISBLANK(InfoPro!B56),"",InfoPro!B56) -> PROYECTO SOLAR FOTOVOLTAICO COCOTAS DE 9,9 MW | C62: =IF(ISBLANK(InfoPro!E56),"",InfoPro!E56) -> 9.9 | D62: =IF(ISBLANK(InfoPro!F56),"",InfoPro!F56) -> Solar FV | E62: =IF(ISBLANK(InfoPro!I56),"",YEAR(InfoPro!I56)-$H$3) -> 3 | F62: =IF(B62="","",VLOOKUP(D62,Tablas!$B$2:$E$13,2,FALSE)) -> 0.26 | G62: =IF(B62="","",VLOOKUP(D62,Tablas!$B$2:$H$13,7,FALSE)) -> 83577.2 | H62: 0.564831274 | I62: 22548.24 | J62: 1750395201 | K62: 1565648659 | L62: 1400401305 | M62: 1252595085 | N62: 1120389164 | O62: 1002136998 | P62: 896365830 | Q62: 801758345.3 | R62: 717136265.9 | S62: 641445676.1 | T62: 573743896.3 | U62: 513187742.7 | V62: 459023025.7 | W62: 410575157.1 | X62: 367240748.8 | Y62: 1.34720431e+10 | Z62: 1360812.434
A63: =IF(ISBLANK(InfoPro!A57),"",InfoPro!A57) -> SC_2279_A1 | B63: =IF(ISBLANK(InfoPro!B57),"",InfoPro!B57) -> PROYECTO SOLAR FOTOVOLTAICO COCOTAS DE 9,9 MW | C63: =IF(ISBLANK(InfoPro!E57),"",InfoPro!E57) -> 9.9 | D63: =IF(ISBLANK(InfoPro!F57),"",InfoPro!F57) -> Solar FV | E63: =IF(ISBLANK(InfoPro!I57),"",YEAR(InfoPro!I57)-$H$3) -> 3 | F63: =IF(B63="","",VLOOKUP(D63,Tablas!$B$2:$E$13,2,FALSE)) -> 0.26 | G63: =IF(B63="","",VLOOKUP(D63,Tablas!$B$2:$H$13,7,FALSE)) -> 83577.2 | H63: 0.564831274 | I63: 22548.24 | J63: 1750395201 | K63: 1565648659 | L63: 1400401305 | M63: 1252595085 | N63: 1120389164 | O63: 1002136998 | P63: 896365830 | Q63: 801758345.3 | R63: 717136265.9 | S63: 641445676.1 | T63: 573743896.3 | U63: 513187742.7 | V63: 459023025.7 | W63: 410575157.1 | X63: 367240748.8 | Y63: 1.34720431e+10 | Z63: 1360812.434
A64: =IF(ISBLANK(InfoPro!A58),"",InfoPro!A58) -> SC_2319_A2 | B64: =IF(ISBLANK(InfoPro!B58),"",InfoPro!B58) -> SOLAR FOTOVOLTAICO MORRISON DE 278,6 MW | C64: =IF(ISBLANK(InfoPro!E58),"",InfoPro!E58) -> 278.6 | D64: =IF(ISBLANK(InfoPro!F58),"",InfoPro!F58) -> Solar FV | E64: =IF(ISBLANK(InfoPro!I58),"",YEAR(InfoPro!I58)-$H$3) -> 3 | F64: =IF(B64="","",VLOOKUP(D64,Tablas!$B$2:$E$13,2,FALSE)) -> 0.26 | G64: =IF(B64="","",VLOOKUP(D64,Tablas!$B$2:$H$13,7,FALSE)) -> 83577.2 | H64: 0.564831274 | I64: 634539.36 | J64: 4.925859626e+10 | K64: 4.405956731e+10 | L64: 3.940927309e+10 | M64: 3.524979704e+10 | N64: 3.152933546e+10 | O64: 2.820155229e+10 | P64: 2.522500204e+10 | Q64: 2.256261364e+10 | R64: 2.018122865e+10 | S64: 1.805118842e+10 | T64: 1.61459646e+10 | U64: 1.44418288e+10 | V64: 1.291755707e+10 | W64: 1.155416553e+10 | X64: 1.0334674e+10 | Y64: 3.791223442e+11 | Z64: 1360812.434
A65: =IF(ISBLANK(InfoPro!A59),"",InfoPro!A59) -> SC_2319_A1 | B65: =IF(ISBLANK(InfoPro!B59),"",InfoPro!B59) -> SOLAR FOTOVOLTAICO MORRISON DE 278,6 MW | C65: =IF(ISBLANK(InfoPro!E59),"",InfoPro!E59) -> 278.6 | D65: =IF(ISBLANK(InfoPro!F59),"",InfoPro!F59) -> Solar FV | E65: =IF(ISBLANK(InfoPro!I59),"",YEAR(InfoPro!I59)-$H$3) -> 3 | F65: =IF(B65="","",VLOOKUP(D65,Tablas!$B$2:$E$13,2,FALSE)) -> 0.26 | G65: =IF(B65="","",VLOOKUP(D65,Tablas!$B$2:$H$13,7,FALSE)) -> 83577.2 | H65: 0.564831274 | I65: 634539.36 | J65: 4.925859626e+10 | K65: 4.405956731e+10 | L65: 3.940927309e+10 | M65: 3.524979704e+10 | N65: 3.152933546e+10 | O65: 2.820155229e+10 | P65: 2.522500204e+10 | Q65: 2.256261364e+10 | R65: 2.018122865e+10 | S65: 1.805118842e+10 | T65: 1.61459646e+10 | U65: 1.44418288e+10 | V65: 1.291755707e+10 | W65: 1.155416553e+10 | X65: 1.0334674e+10 | Y65: 3.791223442e+11 | Z65: 1360812.434
A66: =IF(ISBLANK(InfoPro!A60),"",InfoPro!A60) -> SC_1891_A1 | B66: =IF(ISBLANK(InfoPro!B60),"",InfoPro!B60) -> KAIROS SOLAR PARK II - 19,9 MW | C66: =IF(ISBLANK(InfoPro!E60),"",InfoPro!E60) -> 19.9 | D66: =IF(ISBLANK(InfoPro!F60),"",InfoPro!F60) -> Solar FV | E66: =IF(ISBLANK(InfoPro!I60),"",YEAR(InfoPro!I60)-$H$3) -> 0 | F66: =IF(B66="","",VLOOKUP(D66,Tablas!$B$2:$E$13,2,FALSE)) -> 0.26 | G66: =IF(B66="","",VLOOKUP(D66,Tablas!$B$2:$H$13,7,FALSE)) -> 83577.2 | H66: =IF(B66="","",($C$2-(G66))/$C$2) -> 0.564831274 | I66: =IF(C66="","",+C66*F66*24*365) -> 45324.24 | J66: 4916764490 | K66: 4397821548 | L66: 3933650758 | M66: 3518471161 | N66: 3147111951 | O66: 2814948078 | P66: 2517842646 | Q66: 2252095390 | R66: 2014396592 | S66: 1801785860 | T66: 1611615260 | U66: 1441516332 | V66: 1289370601 | W66: 1153283186 | X66: 1031559200 | Y66: =IF(X66="","",SUM(J66:X66)) -> 3.784223305e+10 | Z66: =IF(C66=0,0,IF(Y66="","",Y66/(C66*1000))) -> 1901619.751
A67: =IF(ISBLANK(InfoPro!A61),"",InfoPro!A61) -> SC_1891_A2 | B67: =IF(ISBLANK(InfoPro!B61),"",InfoPro!B61) -> KAIROS SOLAR PARK II - 19,9 MW | C67: =IF(ISBLANK(InfoPro!E61),"",InfoPro!E61) -> 19.9 | D67: =IF(ISBLANK(InfoPro!F61),"",InfoPro!F61) -> Solar FV | E67: =IF(ISBLANK(InfoPro!I61),"",YEAR(InfoPro!I61)-$H$3) -> 0 | F67: =IF(B67="","",VLOOKUP(D67,Tablas!$B$2:$E$13,2,FALSE)) -> 0.26 | G67: =IF(B67="","",VLOOKUP(D67,Tablas!$B$2:$H$13,7,FALSE)) -> 83577.2 | H67: 0.564831274 | I67: 45324.24 | J67: 4916764490 | K67: 4397821548 | L67: 3933650758 | M67: 3518471161 | N67: 3147111951 | O67: 2814948078 | P67: 2517842646 | Q67: 2252095390 | R67: 2014396592 | S67: 1801785860 | T67: 1611615260 | U67: 1441516332 | V67: 1289370601 | W67: 1153283186 | X67: 1031559200 | Y67: 3.784223305e+10 | Z67: 1901619.751
A68: =IF(ISBLANK(InfoPro!A60),"",InfoPro!A60) -> SC_1891_A1 | B68: =IF(ISBLANK(InfoPro!B60),"",InfoPro!B60) -> KAIROS SOLAR PARK II - 19,9 MW | C68: =IF(ISBLANK(InfoPro!E60),"",InfoPro!E60) -> 19.9 | D68: =IF(ISBLANK(InfoPro!F60),"",InfoPro!F60) -> Solar FV | E68: =IF(ISBLANK(InfoPro!I60),"",YEAR(InfoPro!I60)-$H$3) -> 0 | F68: =IF(B68="","",VLOOKUP(D68,Tablas!$B$2:$E$13,2,FALSE)) -> 0.26 | G68: =IF(B68="","",VLOOKUP(D68,Tablas!$B$2:$H$13,7,FALSE)) -> 83577.2 | H68: 0.564831274 | I68: 45324.24 | J68: =IF($I68="","",(1/(1+$C$3)^(J$6+$E68))*$I68*$C$2*$H68) -> 4916764490 | K68: 4397821548 | L68: 3933650758 | M68: 3518471161 | N68: 3147111951 | O68: 2814948078 | P68: 2517842646 | Q68: 2252095390 | R68: 2014396592 | S68: 1801785860 | T68: 1611615260 | U68: 1441516332 | V68: 1289370601 | W68: 1153283186 | X68: 1031559200 | Y68: 3.784223305e+10 | Z68: 1901619.751
A69: =IF(ISBLANK(InfoPro!A61),"",InfoPro!A61) -> SC_1891_A2 | B69: =IF(ISBLANK(InfoPro!B61),"",InfoPro!B61) -> KAIROS SOLAR PARK II - 19,9 MW | C69: =IF(ISBLANK(InfoPro!E61),"",InfoPro!E61) -> 19.9 | D69: =IF(ISBLANK(InfoPro!F61),"",InfoPro!F61) -> Solar FV | E69: =IF(ISBLANK(InfoPro!I61),"",YEAR(InfoPro!I61)-$H$3) -> 0 | F69: =IF(B69="","",VLOOKUP(D69,Tablas!$B$2:$E$13,2,FALSE)) -> 0.26 | G69: =IF(B69="","",VLOOKUP(D69,Tablas!$B$2:$H$13,7,FALSE)) -> 83577.2 | H69: 0.564831274 | I69: 45324.24 | J69: 4916764490 | K69: 4397821548 | L69: 3933650758 | M69: 3518471161 | N69: 3147111951 | O69: 2814948078 | P69: 2517842646 | Q69: 2252095390 | R69: 2014396592 | S69: 1801785860 | T69: 1611615260 | U69: 1441516332 | V69: 1289370601 | W69: 1153283186 | X69: 1031559200 | Y69: 3.784223305e+10 | Z69: 1901619.751
A70: =IF(ISBLANK(InfoPro!A62),"",InfoPro!A62) -> SC_2239_A1 | B70: =IF(ISBLANK(InfoPro!B62),"",InfoPro!B62) -> PCH PANACEA III - 9,9 MW | C70: =IF(ISBLANK(InfoPro!E62),"",InfoPro!E62) -> 9.9 | D70: =IF(ISBLANK(InfoPro!F62),"",InfoPro!F62) -> PCH | E70: =IF(ISBLANK(InfoPro!I62),"",YEAR(InfoPro!I62)-$H$3) -> 2 | F70: =IF(B70="","",VLOOKUP(D70,Tablas!$B$2:$E$13,2,FALSE)) -> 0.54 | G70: =IF(B70="","",VLOOKUP(D70,Tablas!$B$2:$H$13,7,FALSE)) -> 158280.5 | H70: 0.1758670603 | I70: 46830.96 | J70: 1265505679 | K70: 1131937101 | L70: 1012466101 | M70: 905604741.7 | N70: 810022130.3 | O70: 724527844.7 | P70: 648057106.1 | Q70: 579657518.9 | R70: 518477208.3 | S70: 463754211.4 | T70: 414806986.9 | U70: 371025927.5 | V70: 331865767 | W70: 296838789.8 | X70: 265508756.5 | Y70: 9740055871 | Z70: 983844.0273
A71: =IF(ISBLANK(InfoPro!A63),"",InfoPro!A63) ->  | B71: =IF(ISBLANK(InfoPro!B63),"",InfoPro!B63) ->  | C71: =IF(ISBLANK(InfoPro!E63),"",InfoPro!E63) ->  | D71: =IF(ISBLANK(InfoPro!F63),"",InfoPro!F63) ->  | E71: =IF(ISBLANK(InfoPro!I63),"",YEAR(InfoPro!I63)-$H$3) ->  | F71: =IF(B71="","",VLOOKUP(D71,Tablas!$B$2:$E$13,2,FALSE)) ->  | G71: =IF(B71="","",VLOOKUP(D71,Tablas!$B$2:$H$13,7,FALSE)) -> 
A72: =IF(ISBLANK(InfoPro!A64),"",InfoPro!A64) ->  | B72: =IF(ISBLANK(InfoPro!B64),"",InfoPro!B64) ->  | C72: =IF(ISBLANK(InfoPro!E64),"",InfoPro!E64) ->  | D72: =IF(ISBLANK(InfoPro!F64),"",InfoPro!F64) ->  | E72: =IF(ISBLANK(InfoPro!I64),"",YEAR(InfoPro!I64)-$H$3) ->  | F72: =IF(B72="","",VLOOKUP(D72,Tablas!$B$2:$E$13,2,FALSE)) ->  | G72: =IF(B72="","",VLOOKUP(D72,Tablas!$B$2:$H$13,7,FALSE)) ->  | I72: =IF(C72="","",+C72*F72*24*365) -> 
A73: =IF(ISBLANK(InfoPro!A65),"",InfoPro!A65) ->  | B73: =IF(ISBLANK(InfoPro!B65),"",InfoPro!B65) ->  | C73: =IF(ISBLANK(InfoPro!E65),"",InfoPro!E65) ->  | D73: =IF(ISBLANK(InfoPro!F65),"",InfoPro!F65) ->  | E73: =IF(ISBLANK(InfoPro!I65),"",YEAR(InfoPro!I65)-$H$3) ->  | F73: =IF(B73="","",VLOOKUP(D73,Tablas!$B$2:$E$13,2,FALSE)) ->  | G73: =IF(B73="","",VLOOKUP(D73,Tablas!$B$2:$H$13,7,FALSE)) ->  | H73: =IF(B73="","",($C$2-(G73))/$C$2) ->  | Y73: =IF(X73="","",SUM(J73:X73)) ->  | Z73: =IF(C73=0,0,IF(Y73="","",Y73/(C73*1000))) -> 
A74: =IF(ISBLANK(InfoPro!A66),"",InfoPro!A66) ->  | B74: =IF(ISBLANK(InfoPro!B66),"",InfoPro!B66) ->  | C74: =IF(ISBLANK(InfoPro!E66),"",InfoPro!E66) ->  | D74: =IF(ISBLANK(InfoPro!F66),"",InfoPro!F66) ->  | E74: =IF(ISBLANK(InfoPro!I66),"",YEAR(InfoPro!I66)-$H$3) ->  | F74: =IF(B74="","",VLOOKUP(D74,Tablas!$B$2:$E$13,2,FALSE)) ->  | G74: =IF(B74="","",VLOOKUP(D74,Tablas!$B$2:$H$13,7,FALSE)) -> 
A75: =IF(ISBLANK(InfoPro!A67),"",InfoPro!A67) ->  | B75: =IF(ISBLANK(InfoPro!B67),"",InfoPro!B67) ->  | C75: =IF(ISBLANK(InfoPro!E67),"",InfoPro!E67) ->  | D75: =IF(ISBLANK(InfoPro!F67),"",InfoPro!F67) ->  | E75: =IF(ISBLANK(InfoPro!I67),"",YEAR(InfoPro!I67)-$H$3) ->  | F75: =IF(B75="","",VLOOKUP(D75,Tablas!$B$2:$E$13,2,FALSE)) ->  | G75: =IF(B75="","",VLOOKUP(D75,Tablas!$B$2:$H$13,7,FALSE)) -> 
A76: =IF(ISBLANK(InfoPro!A68),"",InfoPro!A68) ->  | B76: =IF(ISBLANK(InfoPro!B68),"",InfoPro!B68) ->  | C76: =IF(ISBLANK(InfoPro!E68),"",InfoPro!E68) ->  | D76: =IF(ISBLANK(InfoPro!F68),"",InfoPro!F68) ->  | E76: =IF(ISBLANK(InfoPro!I68),"",YEAR(InfoPro!I68)-$H$3) ->  | F76: =IF(B76="","",VLOOKUP(D76,Tablas!$B$2:$E$13,2,FALSE)) ->  | G76: =IF(B76="","",VLOOKUP(D76,Tablas!$B$2:$H$13,7,FALSE)) -> 
A77: =IF(ISBLANK(InfoPro!A69),"",InfoPro!A69) ->  | B77: =IF(ISBLANK(InfoPro!B69),"",InfoPro!B69) ->  | C77: =IF(ISBLANK(InfoPro!E69),"",InfoPro!E69) ->  | D77: =IF(ISBLANK(InfoPro!F69),"",InfoPro!F69) ->  | E77: =IF(ISBLANK(InfoPro!I69),"",YEAR(InfoPro!I69)-$H$3) ->  | F77: =IF(B77="","",VLOOKUP(D77,Tablas!$B$2:$E$13,2,FALSE)) ->  | G77: =IF(B77="","",VLOOKUP(D77,Tablas!$B$2:$H$13,7,FALSE)) -> 
A78: =IF(ISBLANK(InfoPro!A70),"",InfoPro!A70) ->  | B78: =IF(ISBLANK(InfoPro!B70),"",InfoPro!B70) ->  | C78: =IF(ISBLANK(InfoPro!E70),"",InfoPro!E70) ->  | D78: =IF(ISBLANK(InfoPro!F70),"",InfoPro!F70) ->  | E78: =IF(ISBLANK(InfoPro!I70),"",YEAR(InfoPro!I70)-$H$3) ->  | F78: =IF(B78="","",VLOOKUP(D78,Tablas!$B$2:$E$13,2,FALSE)) ->  | G78: =IF(B78="","",VLOOKUP(D78,Tablas!$B$2:$H$13,7,FALSE)) ->  | J78: =IF($I78="","",(1/(1+$C$3)^(J$6+$E78))*$I78*$C$2*$H78) -> 
A79: =IF(ISBLANK(InfoPro!A71),"",InfoPro!A71) ->  | B79: =IF(ISBLANK(InfoPro!B71),"",InfoPro!B71) ->  | C79: =IF(ISBLANK(InfoPro!E71),"",InfoPro!E71) ->  | D79: =IF(ISBLANK(InfoPro!F71),"",InfoPro!F71) ->  | E79: =IF(ISBLANK(InfoPro!I71),"",YEAR(InfoPro!I71)-$H$3) ->  | F79: =IF(B79="","",VLOOKUP(D79,Tablas!$B$2:$E$13,2,FALSE)) ->  | G79: =IF(B79="","",VLOOKUP(D79,Tablas!$B$2:$H$13,7,FALSE)) -> 
A80: =IF(ISBLANK(InfoPro!A72),"",InfoPro!A72) ->  | B80: =IF(ISBLANK(InfoPro!B72),"",InfoPro!B72) ->  | C80: =IF(ISBLANK(InfoPro!E72),"",InfoPro!E72) ->  | D80: =IF(ISBLANK(InfoPro!F72),"",InfoPro!F72) ->  | E80: =IF(ISBLANK(InfoPro!I72),"",YEAR(InfoPro!I72)-$H$3) ->  | F80: =IF(B80="","",VLOOKUP(D80,Tablas!$B$2:$E$13,2,FALSE)) ->  | G80: =IF(B80="","",VLOOKUP(D80,Tablas!$B$2:$H$13,7,FALSE)) -> 
A81: =IF(ISBLANK(InfoPro!A73),"",InfoPro!A73) ->  | B81: =IF(ISBLANK(InfoPro!B73),"",InfoPro!B73) ->  | C81: =IF(ISBLANK(InfoPro!E73),"",InfoPro!E73) ->  | D81: =IF(ISBLANK(InfoPro!F73),"",InfoPro!F73) ->  | E81: =IF(ISBLANK(InfoPro!I73),"",YEAR(InfoPro!I73)-$H$3) ->  | F81: =IF(B81="","",VLOOKUP(D81,Tablas!$B$2:$E$13,2,FALSE)) ->  | G81: =IF(B81="","",VLOOKUP(D81,Tablas!$B$2:$H$13,7,FALSE)) -> 
A82: =IF(ISBLANK(InfoPro!A74),"",InfoPro!A74) ->  | B82: =IF(ISBLANK(InfoPro!B74),"",InfoPro!B74) ->  | C82: =IF(ISBLANK(InfoPro!E74),"",InfoPro!E74) ->  | D82: =IF(ISBLANK(InfoPro!F74),"",InfoPro!F74) ->  | E82: =IF(ISBLANK(InfoPro!I74),"",YEAR(InfoPro!I74)-$H$3) ->  | F82: =IF(B82="","",VLOOKUP(D82,Tablas!$B$2:$E$13,2,FALSE)) ->  | G82: =IF(B82="","",VLOOKUP(D82,Tablas!$B$2:$H$13,7,FALSE)) -> 
A83: =IF(ISBLANK(InfoPro!A75),"",InfoPro!A75) ->  | B83: =IF(ISBLANK(InfoPro!B75),"",InfoPro!B75) ->  | C83: =IF(ISBLANK(InfoPro!E75),"",InfoPro!E75) ->  | D83: =IF(ISBLANK(InfoPro!F75),"",InfoPro!F75) ->  | E83: =IF(ISBLANK(InfoPro!I75),"",YEAR(InfoPro!I75)-$H$3) ->  | F83: =IF(B83="","",VLOOKUP(D83,Tablas!$B$2:$E$13,2,FALSE)) ->  | G83: =IF(B83="","",VLOOKUP(D83,Tablas!$B$2:$H$13,7,FALSE)) -> 
A84: =IF(ISBLANK(InfoPro!A76),"",InfoPro!A76) ->  | B84: =IF(ISBLANK(InfoPro!B76),"",InfoPro!B76) ->  | C84: =IF(ISBLANK(InfoPro!E76),"",InfoPro!E76) ->  | D84: =IF(ISBLANK(InfoPro!F76),"",InfoPro!F76) ->  | E84: =IF(ISBLANK(InfoPro!I76),"",YEAR(InfoPro!I76)-$H$3) ->  | F84: =IF(B84="","",VLOOKUP(D84,Tablas!$B$2:$E$13,2,FALSE)) ->  | G84: =IF(B84="","",VLOOKUP(D84,Tablas!$B$2:$H$13,7,FALSE)) -> 
A85: =IF(ISBLANK(InfoPro!A77),"",InfoPro!A77) ->  | B85: =IF(ISBLANK(InfoPro!B77),"",InfoPro!B77) ->  | C85: =IF(ISBLANK(InfoPro!E77),"",InfoPro!E77) ->  | D85: =IF(ISBLANK(InfoPro!F77),"",InfoPro!F77) ->  | E85: =IF(ISBLANK(InfoPro!I77),"",YEAR(InfoPro!I77)-$H$3) ->  | F85: =IF(B85="","",VLOOKUP(D85,Tablas!$B$2:$E$13,2,FALSE)) ->  | G85: =IF(B85="","",VLOOKUP(D85,Tablas!$B$2:$H$13,7,FALSE)) -> 
A86: =IF(ISBLANK(InfoPro!A78),"",InfoPro!A78) ->  | B86: =IF(ISBLANK(InfoPro!B78),"",InfoPro!B78) ->  | C86: =IF(ISBLANK(InfoPro!E78),"",InfoPro!E78) ->  | D86: =IF(ISBLANK(InfoPro!F78),"",InfoPro!F78) ->  | E86: =IF(ISBLANK(InfoPro!I78),"",YEAR(InfoPro!I78)-$H$3) ->  | F86: =IF(B86="","",VLOOKUP(D86,Tablas!$B$2:$E$13,2,FALSE)) ->  | G86: =IF(B86="","",VLOOKUP(D86,Tablas!$B$2:$H$13,7,FALSE)) -> 
A87: =IF(ISBLANK(InfoPro!A79),"",InfoPro!A79) ->  | B87: =IF(ISBLANK(InfoPro!B79),"",InfoPro!B79) ->  | C87: =IF(ISBLANK(InfoPro!E79),"",InfoPro!E79) ->  | D87: =IF(ISBLANK(InfoPro!F79),"",InfoPro!F79) ->  | E87: =IF(ISBLANK(InfoPro!I79),"",YEAR(InfoPro!I79)-$H$3) ->  | F87: =IF(B87="","",VLOOKUP(D87,Tablas!$B$2:$E$13,2,FALSE)) ->  | G87: =IF(B87="","",VLOOKUP(D87,Tablas!$B$2:$H$13,7,FALSE)) -> 
A88: =IF(ISBLANK(InfoPro!A80),"",InfoPro!A80) ->  | B88: =IF(ISBLANK(InfoPro!B80),"",InfoPro!B80) ->  | C88: =IF(ISBLANK(InfoPro!E80),"",InfoPro!E80) ->  | D88: =IF(ISBLANK(InfoPro!F80),"",InfoPro!F80) ->  | E88: =IF(ISBLANK(InfoPro!I80),"",YEAR(InfoPro!I80)-$H$3) ->  | F88: =IF(B88="","",VLOOKUP(D88,Tablas!$B$2:$E$13,2,FALSE)) ->  | G88: =IF(B88="","",VLOOKUP(D88,Tablas!$B$2:$H$13,7,FALSE)) ->  | J88: =IF($I88="","",(1/(1+$C$3)^(J$6+$E88))*$I88*$C$2*$H88) -> 
A89: =IF(ISBLANK(InfoPro!A81),"",InfoPro!A81) ->  | B89: =IF(ISBLANK(InfoPro!B81),"",InfoPro!B81) ->  | C89: =IF(ISBLANK(InfoPro!E81),"",InfoPro!E81) ->  | D89: =IF(ISBLANK(InfoPro!F81),"",InfoPro!F81) ->  | E89: =IF(ISBLANK(InfoPro!I81),"",YEAR(InfoPro!I81)-$H$3) ->  | F89: =IF(B89="","",VLOOKUP(D89,Tablas!$B$2:$E$13,2,FALSE)) ->  | G89: =IF(B89="","",VLOOKUP(D89,Tablas!$B$2:$H$13,7,FALSE)) -> 
A90: =IF(ISBLANK(InfoPro!A82),"",InfoPro!A82) ->  | B90: =IF(ISBLANK(InfoPro!B82),"",InfoPro!B82) ->  | C90: =IF(ISBLANK(InfoPro!E82),"",InfoPro!E82) ->  | D90: =IF(ISBLANK(InfoPro!F82),"",InfoPro!F82) ->  | E90: =IF(ISBLANK(InfoPro!I82),"",YEAR(InfoPro!I82)-$H$3) ->  | F90: =IF(B90="","",VLOOKUP(D90,Tablas!$B$2:$E$13,2,FALSE)) ->  | G90: =IF(B90="","",VLOOKUP(D90,Tablas!$B$2:$H$13,7,FALSE)) -> 
A91: =IF(ISBLANK(InfoPro!A83),"",InfoPro!A83) ->  | B91: =IF(ISBLANK(InfoPro!B83),"",InfoPro!B83) ->  | C91: =IF(ISBLANK(InfoPro!E83),"",InfoPro!E83) ->  | D91: =IF(ISBLANK(InfoPro!F83),"",InfoPro!F83) ->  | E91: =IF(ISBLANK(InfoPro!I83),"",YEAR(InfoPro!I83)-$H$3) ->  | F91: =IF(B91="","",VLOOKUP(D91,Tablas!$B$2:$E$13,2,FALSE)) ->  | G91: =IF(B91="","",VLOOKUP(D91,Tablas!$B$2:$H$13,7,FALSE)) -> 
A92: =IF(ISBLANK(InfoPro!A84),"",InfoPro!A84) ->  | B92: =IF(ISBLANK(InfoPro!B84),"",InfoPro!B84) ->  | C92: =IF(ISBLANK(InfoPro!E84),"",InfoPro!E84) ->  | D92: =IF(ISBLANK(InfoPro!F84),"",InfoPro!F84) ->  | E92: =IF(ISBLANK(InfoPro!I84),"",YEAR(InfoPro!I84)-$H$3) ->  | F92: =IF(B92="","",VLOOKUP(D92,Tablas!$B$2:$E$13,2,FALSE)) ->  | G92: =IF(B92="","",VLOOKUP(D92,Tablas!$B$2:$H$13,7,FALSE)) -> 
A93: =IF(ISBLANK(InfoPro!A85),"",InfoPro!A85) ->  | B93: =IF(ISBLANK(InfoPro!B85),"",InfoPro!B85) ->  | C93: =IF(ISBLANK(InfoPro!E85),"",InfoPro!E85) ->  | D93: =IF(ISBLANK(InfoPro!F85),"",InfoPro!F85) ->  | E93: =IF(ISBLANK(InfoPro!I85),"",YEAR(InfoPro!I85)-$H$3) ->  | F93: =IF(B93="","",VLOOKUP(D93,Tablas!$B$2:$E$13,2,FALSE)) ->  | G93: =IF(B93="","",VLOOKUP(D93,Tablas!$B$2:$H$13,7,FALSE)) -> 
A94: =IF(ISBLANK(InfoPro!A86),"",InfoPro!A86) ->  | B94: =IF(ISBLANK(InfoPro!B86),"",InfoPro!B86) ->  | C94: =IF(ISBLANK(InfoPro!E86),"",InfoPro!E86) ->  | D94: =IF(ISBLANK(InfoPro!F86),"",InfoPro!F86) ->  | E94: =IF(ISBLANK(InfoPro!I86),"",YEAR(InfoPro!I86)-$H$3) ->  | F94: =IF(B94="","",VLOOKUP(D94,Tablas!$B$2:$E$13,2,FALSE)) ->  | G94: =IF(B94="","",VLOOKUP(D94,Tablas!$B$2:$H$13,7,FALSE)) -> 
A95: =IF(ISBLANK(InfoPro!A87),"",InfoPro!A87) ->  | B95: =IF(ISBLANK(InfoPro!B87),"",InfoPro!B87) ->  | C95: =IF(ISBLANK(InfoPro!E87),"",InfoPro!E87) ->  | D95: =IF(ISBLANK(InfoPro!F87),"",InfoPro!F87) ->  | E95: =IF(ISBLANK(InfoPro!I87),"",YEAR(InfoPro!I87)-$H$3) ->  | F95: =IF(B95="","",VLOOKUP(D95,Tablas!$B$2:$E$13,2,FALSE)) ->  | G95: =IF(B95="","",VLOOKUP(D95,Tablas!$B$2:$H$13,7,FALSE)) -> 
A96: =IF(ISBLANK(InfoPro!A88),"",InfoPro!A88) ->  | B96: =IF(ISBLANK(InfoPro!B88),"",InfoPro!B88) ->  | C96: =IF(ISBLANK(InfoPro!E88),"",InfoPro!E88) ->  | D96: =IF(ISBLANK(InfoPro!F88),"",InfoPro!F88) ->  | E96: =IF(ISBLANK(InfoPro!I88),"",YEAR(InfoPro!I88)-$H$3) ->  | F96: =IF(B96="","",VLOOKUP(D96,Tablas!$B$2:$E$13,2,FALSE)) ->  | G96: =IF(B96="","",VLOOKUP(D96,Tablas!$B$2:$H$13,7,FALSE)) -> 
A97: =IF(ISBLANK(InfoPro!A89),"",InfoPro!A89) ->  | B97: =IF(ISBLANK(InfoPro!B89),"",InfoPro!B89) ->  | C97: =IF(ISBLANK(InfoPro!E89),"",InfoPro!E89) ->  | D97: =IF(ISBLANK(InfoPro!F89),"",InfoPro!F89) ->  | E97: =IF(ISBLANK(InfoPro!I89),"",YEAR(InfoPro!I89)-$H$3) ->  | F97: =IF(B97="","",VLOOKUP(D97,Tablas!$B$2:$E$13,2,FALSE)) ->  | G97: =IF(B97="","",VLOOKUP(D97,Tablas!$B$2:$H$13,7,FALSE)) -> 
A98: =IF(ISBLANK(InfoPro!A90),"",InfoPro!A90) ->  | B98: =IF(ISBLANK(InfoPro!B90),"",InfoPro!B90) ->  | C98: =IF(ISBLANK(InfoPro!E90),"",InfoPro!E90) ->  | D98: =IF(ISBLANK(InfoPro!F90),"",InfoPro!F90) ->  | E98: =IF(ISBLANK(InfoPro!I90),"",YEAR(InfoPro!I90)-$H$3) ->  | F98: =IF(B98="","",VLOOKUP(D98,Tablas!$B$2:$E$13,2,FALSE)) ->  | G98: =IF(B98="","",VLOOKUP(D98,Tablas!$B$2:$H$13,7,FALSE)) ->  | J98: =IF($I98="","",(1/(1+$C$3)^(J$6+$E98))*$I98*$C$2*$H98) -> 
A99: =IF(ISBLANK(InfoPro!A91),"",InfoPro!A91) ->  | B99: =IF(ISBLANK(InfoPro!B91),"",InfoPro!B91) ->  | C99: =IF(ISBLANK(InfoPro!E91),"",InfoPro!E91) ->  | D99: =IF(ISBLANK(InfoPro!F91),"",InfoPro!F91) ->  | E99: =IF(ISBLANK(InfoPro!I91),"",YEAR(InfoPro!I91)-$H$3) ->  | F99: =IF(B99="","",VLOOKUP(D99,Tablas!$B$2:$E$13,2,FALSE)) ->  | G99: =IF(B99="","",VLOOKUP(D99,Tablas!$B$2:$H$13,7,FALSE)) -> 
A100: =IF(ISBLANK(InfoPro!A92),"",InfoPro!A92) ->  | B100: =IF(ISBLANK(InfoPro!B92),"",InfoPro!B92) ->  | C100: =IF(ISBLANK(InfoPro!E92),"",InfoPro!E92) ->  | D100: =IF(ISBLANK(InfoPro!F92),"",InfoPro!F92) ->  | E100: =IF(ISBLANK(InfoPro!I92),"",YEAR(InfoPro!I92)-$H$3) ->  | F100: =IF(B100="","",VLOOKUP(D100,Tablas!$B$2:$E$13,2,FALSE)) ->  | G100: =IF(B100="","",VLOOKUP(D100,Tablas!$B$2:$H$13,7,FALSE)) -> 
A101: =IF(ISBLANK(InfoPro!A93),"",InfoPro!A93) ->  | B101: =IF(ISBLANK(InfoPro!B93),"",InfoPro!B93) ->  | C101: =IF(ISBLANK(InfoPro!E93),"",InfoPro!E93) ->  | D101: =IF(ISBLANK(InfoPro!F93),"",InfoPro!F93) ->  | E101: =IF(ISBLANK(InfoPro!I93),"",YEAR(InfoPro!I93)-$H$3) ->  | F101: =IF(B101="","",VLOOKUP(D101,Tablas!$B$2:$E$13,2,FALSE)) ->  | G101: =IF(B101="","",VLOOKUP(D101,Tablas!$B$2:$H$13,7,FALSE)) -> 
A102: =IF(ISBLANK(InfoPro!A94),"",InfoPro!A94) ->  | B102: =IF(ISBLANK(InfoPro!B94),"",InfoPro!B94) ->  | C102: =IF(ISBLANK(InfoPro!E94),"",InfoPro!E94) ->  | D102: =IF(ISBLANK(InfoPro!F94),"",InfoPro!F94) ->  | E102: =IF(ISBLANK(InfoPro!I94),"",YEAR(InfoPro!I94)-$H$3) ->  | F102: =IF(B102="","",VLOOKUP(D102,Tablas!$B$2:$E$13,2,FALSE)) ->  | G102: =IF(B102="","",VLOOKUP(D102,Tablas!$B$2:$H$13,7,FALSE)) -> 
A103: =IF(ISBLANK(InfoPro!A95),"",InfoPro!A95) ->  | B103: =IF(ISBLANK(InfoPro!B95),"",InfoPro!B95) ->  | C103: =IF(ISBLANK(InfoPro!E95),"",InfoPro!E95) ->  | D103: =IF(ISBLANK(InfoPro!F95),"",InfoPro!F95) ->  | E103: =IF(ISBLANK(InfoPro!I95),"",YEAR(InfoPro!I95)-$H$3) ->  | F103: =IF(B103="","",VLOOKUP(D103,Tablas!$B$2:$E$13,2,FALSE)) ->  | G103: =IF(B103="","",VLOOKUP(D103,Tablas!$B$2:$H$13,7,FALSE)) -> 
A104: =IF(ISBLANK(InfoPro!A96),"",InfoPro!A96) ->  | B104: =IF(ISBLANK(InfoPro!B96),"",InfoPro!B96) ->  | C104: =IF(ISBLANK(InfoPro!E96),"",InfoPro!E96) ->  | D104: =IF(ISBLANK(InfoPro!F96),"",InfoPro!F96) ->  | E104: =IF(ISBLANK(InfoPro!I96),"",YEAR(InfoPro!I96)-$H$3) ->  | F104: =IF(B104="","",VLOOKUP(D104,Tablas!$B$2:$E$13,2,FALSE)) ->  | G104: =IF(B104="","",VLOOKUP(D104,Tablas!$B$2:$H$13,7,FALSE)) -> 
A105: =IF(ISBLANK(InfoPro!A97),"",InfoPro!A97) ->  | B105: =IF(ISBLANK(InfoPro!B97),"",InfoPro!B97) ->  | C105: =IF(ISBLANK(InfoPro!E97),"",InfoPro!E97) ->  | D105: =IF(ISBLANK(InfoPro!F97),"",InfoPro!F97) ->  | E105: =IF(ISBLANK(InfoPro!I97),"",YEAR(InfoPro!I97)-$H$3) ->  | F105: =IF(B105="","",VLOOKUP(D105,Tablas!$B$2:$E$13,2,FALSE)) ->  | G105: =IF(B105="","",VLOOKUP(D105,Tablas!$B$2:$H$13,7,FALSE)) -> 
A106: =IF(ISBLANK(InfoPro!A98),"",InfoPro!A98) ->  | B106: =IF(ISBLANK(InfoPro!B98),"",InfoPro!B98) ->  | C106: =IF(ISBLANK(InfoPro!E98),"",InfoPro!E98) ->  | D106: =IF(ISBLANK(InfoPro!F98),"",InfoPro!F98) ->  | E106: =IF(ISBLANK(InfoPro!I98),"",YEAR(InfoPro!I98)-$H$3) ->  | F106: =IF(B106="","",VLOOKUP(D106,Tablas!$B$2:$E$13,2,FALSE)) ->  | G106: =IF(B106="","",VLOOKUP(D106,Tablas!$B$2:$H$13,7,FALSE)) -> 
A107: =IF(ISBLANK(InfoPro!A99),"",InfoPro!A99) ->  | B107: =IF(ISBLANK(InfoPro!B99),"",InfoPro!B99) ->  | C107: =IF(ISBLANK(InfoPro!E99),"",InfoPro!E99) ->  | D107: =IF(ISBLANK(InfoPro!F99),"",InfoPro!F99) ->  | E107: =IF(ISBLANK(InfoPro!I99),"",YEAR(InfoPro!I99)-$H$3) ->  | F107: =IF(B107="","",VLOOKUP(D107,Tablas!$B$2:$E$13,2,FALSE)) ->  | G107: =IF(B107="","",VLOOKUP(D107,Tablas!$B$2:$H$13,7,FALSE)) -> 
A108: =IF(ISBLANK(InfoPro!A100),"",InfoPro!A100) ->  | B108: =IF(ISBLANK(InfoPro!B100),"",InfoPro!B100) ->  | C108: =IF(ISBLANK(InfoPro!E100),"",InfoPro!E100) ->  | D108: =IF(ISBLANK(InfoPro!F100),"",InfoPro!F100) ->  | E108: =IF(ISBLANK(InfoPro!I100),"",YEAR(InfoPro!I100)-$H$3) ->  | F108: =IF(B108="","",VLOOKUP(D108,Tablas!$B$2:$E$13,2,FALSE)) ->  | G108: =IF(B108="","",VLOOKUP(D108,Tablas!$B$2:$H$13,7,FALSE)) ->  | H108: =IF(B108="","",($C$2-(G108))/$C$2) ->  | I108: =IF(C108="","",+C108*F108*24*365) ->  | Y108: =IF(X108="","",SUM(J108:X108)) ->  | Z108: =IF(C108=0,0,IF(Y108="","",Y108/(C108*1000))) -> 
A109: =IF(ISBLANK(InfoPro!A101),"",InfoPro!A101) ->  | B109: =IF(ISBLANK(InfoPro!B101),"",InfoPro!B101) ->  | C109: =IF(ISBLANK(InfoPro!E101),"",InfoPro!E101) ->  | D109: =IF(ISBLANK(InfoPro!F101),"",InfoPro!F101) ->  | E109: =IF(ISBLANK(InfoPro!I101),"",YEAR(InfoPro!I101)-$H$3) ->  | F109: =IF(B109="","",VLOOKUP(D109,Tablas!$B$2:$E$13,2,FALSE)) ->  | G109: =IF(B109="","",VLOOKUP(D109,Tablas!$B$2:$H$13,7,FALSE)) -> 
A110: =IF(ISBLANK(InfoPro!A102),"",InfoPro!A102) ->  | B110: =IF(ISBLANK(InfoPro!B102),"",InfoPro!B102) ->  | C110: =IF(ISBLANK(InfoPro!E102),"",InfoPro!E102) ->  | D110: =IF(ISBLANK(InfoPro!F102),"",InfoPro!F102) ->  | E110: =IF(ISBLANK(InfoPro!I102),"",YEAR(InfoPro!I102)-$H$3) ->  | F110: =IF(B110="","",VLOOKUP(D110,Tablas!$B$2:$E$13,2,FALSE)) ->  | G110: =IF(B110="","",VLOOKUP(D110,Tablas!$B$2:$H$13,7,FALSE)) -> 
A111: =IF(ISBLANK(InfoPro!A103),"",InfoPro!A103) ->  | B111: =IF(ISBLANK(InfoPro!B103),"",InfoPro!B103) ->  | C111: =IF(ISBLANK(InfoPro!E103),"",InfoPro!E103) ->  | D111: =IF(ISBLANK(InfoPro!F103),"",InfoPro!F103) ->  | E111: =IF(ISBLANK(InfoPro!I103),"",YEAR(InfoPro!I103)-$H$3) ->  | F111: =IF(B111="","",VLOOKUP(D111,Tablas!$B$2:$E$13,2,FALSE)) ->  | G111: =IF(B111="","",VLOOKUP(D111,Tablas!$B$2:$H$13,7,FALSE)) -> 
A112: =IF(ISBLANK(InfoPro!A104),"",InfoPro!A104) ->  | B112: =IF(ISBLANK(InfoPro!B104),"",InfoPro!B104) ->  | C112: =IF(ISBLANK(InfoPro!E104),"",InfoPro!E104) ->  | D112: =IF(ISBLANK(InfoPro!F104),"",InfoPro!F104) ->  | E112: =IF(ISBLANK(InfoPro!I104),"",YEAR(InfoPro!I104)-$H$3) ->  | F112: =IF(B112="","",VLOOKUP(D112,Tablas!$B$2:$E$13,2,FALSE)) ->  | G112: =IF(B112="","",VLOOKUP(D112,Tablas!$B$2:$H$13,7,FALSE)) -> 
A113: =IF(ISBLANK(InfoPro!A105),"",InfoPro!A105) ->  | B113: =IF(ISBLANK(InfoPro!B105),"",InfoPro!B105) ->  | C113: =IF(ISBLANK(InfoPro!E105),"",InfoPro!E105) ->  | D113: =IF(ISBLANK(InfoPro!F105),"",InfoPro!F105) ->  | E113: =IF(ISBLANK(InfoPro!I105),"",YEAR(InfoPro!I105)-$H$3) ->  | F113: =IF(B113="","",VLOOKUP(D113,Tablas!$B$2:$E$13,2,FALSE)) ->  | G113: =IF(B113="","",VLOOKUP(D113,Tablas!$B$2:$H$13,7,FALSE)) -> 
A114: =IF(ISBLANK(InfoPro!A106),"",InfoPro!A106) ->  | B114: =IF(ISBLANK(InfoPro!B106),"",InfoPro!B106) ->  | C114: =IF(ISBLANK(InfoPro!E106),"",InfoPro!E106) ->  | D114: =IF(ISBLANK(InfoPro!F106),"",InfoPro!F106) ->  | E114: =IF(ISBLANK(InfoPro!I106),"",YEAR(InfoPro!I106)-$H$3) ->  | F114: =IF(B114="","",VLOOKUP(D114,Tablas!$B$2:$E$13,2,FALSE)) ->  | G114: =IF(B114="","",VLOOKUP(D114,Tablas!$B$2:$H$13,7,FALSE)) ->  | J114: =IF($I114="","",(1/(1+$C$3)^(J$6+$E114))*$I114*$C$2*$H114) -> 
A115: =IF(ISBLANK(InfoPro!A107),"",InfoPro!A107) ->  | B115: =IF(ISBLANK(InfoPro!B107),"",InfoPro!B107) ->  | C115: =IF(ISBLANK(InfoPro!E107),"",InfoPro!E107) ->  | D115: =IF(ISBLANK(InfoPro!F107),"",InfoPro!F107) ->  | E115: =IF(ISBLANK(InfoPro!I107),"",YEAR(InfoPro!I107)-$H$3) ->  | F115: =IF(B115="","",VLOOKUP(D115,Tablas!$B$2:$E$13,2,FALSE)) ->  | G115: =IF(B115="","",VLOOKUP(D115,Tablas!$B$2:$H$13,7,FALSE)) -> 
A116: =IF(ISBLANK(InfoPro!A108),"",InfoPro!A108) ->  | B116: =IF(ISBLANK(InfoPro!B108),"",InfoPro!B108) ->  | C116: =IF(ISBLANK(InfoPro!E108),"",InfoPro!E108) ->  | D116: =IF(ISBLANK(InfoPro!F108),"",InfoPro!F108) ->  | E116: =IF(ISBLANK(InfoPro!I108),"",YEAR(InfoPro!I108)-$H$3) ->  | F116: =IF(B116="","",VLOOKUP(D116,Tablas!$B$2:$E$13,2,FALSE)) ->  | G116: =IF(B116="","",VLOOKUP(D116,Tablas!$B$2:$H$13,7,FALSE)) -> 
A117: =IF(ISBLANK(InfoPro!A109),"",InfoPro!A109) ->  | B117: =IF(ISBLANK(InfoPro!B109),"",InfoPro!B109) ->  | C117: =IF(ISBLANK(InfoPro!E109),"",InfoPro!E109) ->  | D117: =IF(ISBLANK(InfoPro!F109),"",InfoPro!F109) ->  | E117: =IF(ISBLANK(InfoPro!I109),"",YEAR(InfoPro!I109)-$H$3) ->  | F117: =IF(B117="","",VLOOKUP(D117,Tablas!$B$2:$E$13,2,FALSE)) ->  | G117: =IF(B117="","",VLOOKUP(D117,Tablas!$B$2:$H$13,7,FALSE)) -> 
A118: =IF(ISBLANK(InfoPro!A110),"",InfoPro!A110) ->  | B118: =IF(ISBLANK(InfoPro!B110),"",InfoPro!B110) ->  | C118: =IF(ISBLANK(InfoPro!E110),"",InfoPro!E110) ->  | D118: =IF(ISBLANK(InfoPro!F110),"",InfoPro!F110) ->  | E118: =IF(ISBLANK(InfoPro!I110),"",YEAR(InfoPro!I110)-$H$3) ->  | F118: =IF(B118="","",VLOOKUP(D118,Tablas!$B$2:$E$13,2,FALSE)) ->  | G118: =IF(B118="","",VLOOKUP(D118,Tablas!$B$2:$H$13,7,FALSE)) -> 
A119: =IF(ISBLANK(InfoPro!A111),"",InfoPro!A111) ->  | B119: =IF(ISBLANK(InfoPro!B111),"",InfoPro!B111) ->  | C119: =IF(ISBLANK(InfoPro!E111),"",InfoPro!E111) ->  | D119: =IF(ISBLANK(InfoPro!F111),"",InfoPro!F111) ->  | E119: =IF(ISBLANK(InfoPro!I111),"",YEAR(InfoPro!I111)-$H$3) ->  | F119: =IF(B119="","",VLOOKUP(D119,Tablas!$B$2:$E$13,2,FALSE)) ->  | G119: =IF(B119="","",VLOOKUP(D119,Tablas!$B$2:$H$13,7,FALSE)) -> 
A120: =IF(ISBLANK(InfoPro!A112),"",InfoPro!A112) ->  | B120: =IF(ISBLANK(InfoPro!B112),"",InfoPro!B112) ->  | C120: =IF(ISBLANK(InfoPro!E112),"",InfoPro!E112) ->  | D120: =IF(ISBLANK(InfoPro!F112),"",InfoPro!F112) ->  | E120: =IF(ISBLANK(InfoPro!I112),"",YEAR(InfoPro!I112)-$H$3) ->  | F120: =IF(B120="","",VLOOKUP(D120,Tablas!$B$2:$E$13,2,FALSE)) ->  | G120: =IF(B120="","",VLOOKUP(D120,Tablas!$B$2:$H$13,7,FALSE)) -> 
A121: =IF(ISBLANK(InfoPro!A113),"",InfoPro!A113) ->  | B121: =IF(ISBLANK(InfoPro!B113),"",InfoPro!B113) ->  | C121: =IF(ISBLANK(InfoPro!E113),"",InfoPro!E113) ->  | D121: =IF(ISBLANK(InfoPro!F113),"",InfoPro!F113) ->  | E121: =IF(ISBLANK(InfoPro!I113),"",YEAR(InfoPro!I113)-$H$3) ->  | F121: =IF(B121="","",VLOOKUP(D121,Tablas!$B$2:$E$13,2,FALSE)) ->  | G121: =IF(B121="","",VLOOKUP(D121,Tablas!$B$2:$H$13,7,FALSE)) -> 
A122: =IF(ISBLANK(InfoPro!A114),"",InfoPro!A114) ->  | B122: =IF(ISBLANK(InfoPro!B114),"",InfoPro!B114) ->  | C122: =IF(ISBLANK(InfoPro!E114),"",InfoPro!E114) ->  | D122: =IF(ISBLANK(InfoPro!F114),"",InfoPro!F114) ->  | E122: =IF(ISBLANK(InfoPro!I114),"",YEAR(InfoPro!I114)-$H$3) ->  | F122: =IF(B122="","",VLOOKUP(D122,Tablas!$B$2:$E$13,2,FALSE)) ->  | G122: =IF(B122="","",VLOOKUP(D122,Tablas!$B$2:$H$13,7,FALSE)) -> 
A123: =IF(ISBLANK(InfoPro!A115),"",InfoPro!A115) ->  | B123: =IF(ISBLANK(InfoPro!B115),"",InfoPro!B115) ->  | C123: =IF(ISBLANK(InfoPro!E115),"",InfoPro!E115) ->  | D123: =IF(ISBLANK(InfoPro!F115),"",InfoPro!F115) ->  | E123: =IF(ISBLANK(InfoPro!I115),"",YEAR(InfoPro!I115)-$H$3) ->  | F123: =IF(B123="","",VLOOKUP(D123,Tablas!$B$2:$E$13,2,FALSE)) ->  | G123: =IF(B123="","",VLOOKUP(D123,Tablas!$B$2:$H$13,7,FALSE)) -> 
A124: =IF(ISBLANK(InfoPro!A116),"",InfoPro!A116) ->  | B124: =IF(ISBLANK(InfoPro!B116),"",InfoPro!B116) ->  | C124: =IF(ISBLANK(InfoPro!E116),"",InfoPro!E116) ->  | D124: =IF(ISBLANK(InfoPro!F116),"",InfoPro!F116) ->  | E124: =IF(ISBLANK(InfoPro!I116),"",YEAR(InfoPro!I116)-$H$3) ->  | F124: =IF(B124="","",VLOOKUP(D124,Tablas!$B$2:$E$13,2,FALSE)) ->  | G124: =IF(B124="","",VLOOKUP(D124,Tablas!$B$2:$H$13,7,FALSE)) -> 
A125: =IF(ISBLANK(InfoPro!A117),"",InfoPro!A117) ->  | B125: =IF(ISBLANK(InfoPro!B117),"",InfoPro!B117) ->  | C125: =IF(ISBLANK(InfoPro!E117),"",InfoPro!E117) ->  | D125: =IF(ISBLANK(InfoPro!F117),"",InfoPro!F117) ->  | E125: =IF(ISBLANK(InfoPro!I117),"",YEAR(InfoPro!I117)-$H$3) ->  | F125: =IF(B125="","",VLOOKUP(D125,Tablas!$B$2:$E$13,2,FALSE)) ->  | G125: =IF(B125="","",VLOOKUP(D125,Tablas!$B$2:$H$13,7,FALSE)) -> 
A126: =IF(ISBLANK(InfoPro!A118),"",InfoPro!A118) ->  | B126: =IF(ISBLANK(InfoPro!B118),"",InfoPro!B118) ->  | C126: =IF(ISBLANK(InfoPro!E118),"",InfoPro!E118) ->  | D126: =IF(ISBLANK(InfoPro!F118),"",InfoPro!F118) ->  | E126: =IF(ISBLANK(InfoPro!I118),"",YEAR(InfoPro!I118)-$H$3) ->  | F126: =IF(B126="","",VLOOKUP(D126,Tablas!$B$2:$E$13,2,FALSE)) ->  | G126: =IF(B126="","",VLOOKUP(D126,Tablas!$B$2:$H$13,7,FALSE)) -> 
A127: =IF(ISBLANK(InfoPro!A119),"",InfoPro!A119) ->  | B127: =IF(ISBLANK(InfoPro!B119),"",InfoPro!B119) ->  | C127: =IF(ISBLANK(InfoPro!E119),"",InfoPro!E119) ->  | D127: =IF(ISBLANK(InfoPro!F119),"",InfoPro!F119) ->  | E127: =IF(ISBLANK(InfoPro!I119),"",YEAR(InfoPro!I119)-$H$3) ->  | F127: =IF(B127="","",VLOOKUP(D127,Tablas!$B$2:$E$13,2,FALSE)) ->  | G127: =IF(B127="","",VLOOKUP(D127,Tablas!$B$2:$H$13,7,FALSE)) -> 
A128: =IF(ISBLANK(InfoPro!A120),"",InfoPro!A120) ->  | B128: =IF(ISBLANK(InfoPro!B120),"",InfoPro!B120) ->  | C128: =IF(ISBLANK(InfoPro!E120),"",InfoPro!E120) ->  | D128: =IF(ISBLANK(InfoPro!F120),"",InfoPro!F120) ->  | E128: =IF(ISBLANK(InfoPro!I120),"",YEAR(InfoPro!I120)-$H$3) ->  | F128: =IF(B128="","",VLOOKUP(D128,Tablas!$B$2:$E$13,2,FALSE)) ->  | G128: =IF(B128="","",VLOOKUP(D128,Tablas!$B$2:$H$13,7,FALSE)) -> 
A129: =IF(ISBLANK(InfoPro!A121),"",InfoPro!A121) ->  | B129: =IF(ISBLANK(InfoPro!B121),"",InfoPro!B121) ->  | C129: =IF(ISBLANK(InfoPro!E121),"",InfoPro!E121) ->  | D129: =IF(ISBLANK(InfoPro!F121),"",InfoPro!F121) ->  | E129: =IF(ISBLANK(InfoPro!I121),"",YEAR(InfoPro!I121)-$H$3) ->  | F129: =IF(B129="","",VLOOKUP(D129,Tablas!$B$2:$E$13,2,FALSE)) ->  | G129: =IF(B129="","",VLOOKUP(D129,Tablas!$B$2:$H$13,7,FALSE)) -> 
A130: =IF(ISBLANK(InfoPro!A122),"",InfoPro!A122) ->  | B130: =IF(ISBLANK(InfoPro!B122),"",InfoPro!B122) ->  | C130: =IF(ISBLANK(InfoPro!E122),"",InfoPro!E122) ->  | D130: =IF(ISBLANK(InfoPro!F122),"",InfoPro!F122) ->  | E130: =IF(ISBLANK(InfoPro!I122),"",YEAR(InfoPro!I122)-$H$3) ->  | F130: =IF(B130="","",VLOOKUP(D130,Tablas!$B$2:$E$13,2,FALSE)) ->  | G130: =IF(B130="","",VLOOKUP(D130,Tablas!$B$2:$H$13,7,FALSE)) -> 
A131: =IF(ISBLANK(InfoPro!A123),"",InfoPro!A123) ->  | B131: =IF(ISBLANK(InfoPro!B123),"",InfoPro!B123) ->  | C131: =IF(ISBLANK(InfoPro!E123),"",InfoPro!E123) ->  | D131: =IF(ISBLANK(InfoPro!F123),"",InfoPro!F123) ->  | E131: =IF(ISBLANK(InfoPro!I123),"",YEAR(InfoPro!I123)-$H$3) ->  | F131: =IF(B131="","",VLOOKUP(D131,Tablas!$B$2:$E$13,2,FALSE)) ->  | G131: =IF(B131="","",VLOOKUP(D131,Tablas!$B$2:$H$13,7,FALSE)) ->  | J131: =IF($I131="","",(1/(1+$C$3)^(J$6+$E131))*$I131*$C$2*$H131) -> 
A132: =IF(ISBLANK(InfoPro!A124),"",InfoPro!A124) ->  | B132: =IF(ISBLANK(InfoPro!B124),"",InfoPro!B124) ->  | C132: =IF(ISBLANK(InfoPro!E124),"",InfoPro!E124) ->  | D132: =IF(ISBLANK(InfoPro!F124),"",InfoPro!F124) ->  | E132: =IF(ISBLANK(InfoPro!I124),"",YEAR(InfoPro!I124)-$H$3) ->  | F132: =IF(B132="","",VLOOKUP(D132,Tablas!$B$2:$E$13,2,FALSE)) ->  | G132: =IF(B132="","",VLOOKUP(D132,Tablas!$B$2:$H$13,7,FALSE)) -> 
A133: =IF(ISBLANK(InfoPro!A125),"",InfoPro!A125) ->  | B133: =IF(ISBLANK(InfoPro!B125),"",InfoPro!B125) ->  | C133: =IF(ISBLANK(InfoPro!E125),"",InfoPro!E125) ->  | D133: =IF(ISBLANK(InfoPro!F125),"",InfoPro!F125) ->  | E133: =IF(ISBLANK(InfoPro!I125),"",YEAR(InfoPro!I125)-$H$3) ->  | F133: =IF(B133="","",VLOOKUP(D133,Tablas!$B$2:$E$13,2,FALSE)) ->  | G133: =IF(B133="","",VLOOKUP(D133,Tablas!$B$2:$H$13,7,FALSE)) -> 
A134: =IF(ISBLANK(InfoPro!A126),"",InfoPro!A126) ->  | B134: =IF(ISBLANK(InfoPro!B126),"",InfoPro!B126) ->  | C134: =IF(ISBLANK(InfoPro!E126),"",InfoPro!E126) ->  | D134: =IF(ISBLANK(InfoPro!F126),"",InfoPro!F126) ->  | E134: =IF(ISBLANK(InfoPro!I126),"",YEAR(InfoPro!I126)-$H$3) ->  | F134: =IF(B134="","",VLOOKUP(D134,Tablas!$B$2:$E$13,2,FALSE)) ->  | G134: =IF(B134="","",VLOOKUP(D134,Tablas!$B$2:$H$13,7,FALSE)) -> 
A135: =IF(ISBLANK(InfoPro!A127),"",InfoPro!A127) ->  | B135: =IF(ISBLANK(InfoPro!B127),"",InfoPro!B127) ->  | C135: =IF(ISBLANK(InfoPro!E127),"",InfoPro!E127) ->  | D135: =IF(ISBLANK(InfoPro!F127),"",InfoPro!F127) ->  | E135: =IF(ISBLANK(InfoPro!I127),"",YEAR(InfoPro!I127)-$H$3) ->  | F135: =IF(B135="","",VLOOKUP(D135,Tablas!$B$2:$E$13,2,FALSE)) ->  | G135: =IF(B135="","",VLOOKUP(D135,Tablas!$B$2:$H$13,7,FALSE)) -> 
A136: =IF(ISBLANK(InfoPro!A128),"",InfoPro!A128) ->  | B136: =IF(ISBLANK(InfoPro!B128),"",InfoPro!B128) ->  | C136: =IF(ISBLANK(InfoPro!E128),"",InfoPro!E128) ->  | D136: =IF(ISBLANK(InfoPro!F128),"",InfoPro!F128) ->  | E136: =IF(ISBLANK(InfoPro!I128),"",YEAR(InfoPro!I128)-$H$3) ->  | F136: =IF(B136="","",VLOOKUP(D136,Tablas!$B$2:$E$13,2,FALSE)) ->  | G136: =IF(B136="","",VLOOKUP(D136,Tablas!$B$2:$H$13,7,FALSE)) -> 
A137: =IF(ISBLANK(InfoPro!A129),"",InfoPro!A129) ->  | B137: =IF(ISBLANK(InfoPro!B129),"",InfoPro!B129) ->  | C137: =IF(ISBLANK(InfoPro!E129),"",InfoPro!E129) ->  | D137: =IF(ISBLANK(InfoPro!F129),"",InfoPro!F129) ->  | E137: =IF(ISBLANK(InfoPro!I129),"",YEAR(InfoPro!I129)-$H$3) ->  | F137: =IF(B137="","",VLOOKUP(D137,Tablas!$B$2:$E$13,2,FALSE)) ->  | G137: =IF(B137="","",VLOOKUP(D137,Tablas!$B$2:$H$13,7,FALSE)) -> 
A138: =IF(ISBLANK(InfoPro!A130),"",InfoPro!A130) ->  | B138: =IF(ISBLANK(InfoPro!B130),"",InfoPro!B130) ->  | C138: =IF(ISBLANK(InfoPro!E130),"",InfoPro!E130) ->  | D138: =IF(ISBLANK(InfoPro!F130),"",InfoPro!F130) ->  | E138: =IF(ISBLANK(InfoPro!I130),"",YEAR(InfoPro!I130)-$H$3) ->  | F138: =IF(B138="","",VLOOKUP(D138,Tablas!$B$2:$E$13,2,FALSE)) ->  | G138: =IF(B138="","",VLOOKUP(D138,Tablas!$B$2:$H$13,7,FALSE)) -> 
A139: =IF(ISBLANK(InfoPro!A131),"",InfoPro!A131) ->  | B139: =IF(ISBLANK(InfoPro!B131),"",InfoPro!B131) ->  | C139: =IF(ISBLANK(InfoPro!E131),"",InfoPro!E131) ->  | D139: =IF(ISBLANK(InfoPro!F131),"",InfoPro!F131) ->  | E139: =IF(ISBLANK(InfoPro!I131),"",YEAR(InfoPro!I131)-$H$3) ->  | F139: =IF(B139="","",VLOOKUP(D139,Tablas!$B$2:$E$13,2,FALSE)) ->  | G139: =IF(B139="","",VLOOKUP(D139,Tablas!$B$2:$H$13,7,FALSE)) -> 
A140: =IF(ISBLANK(InfoPro!A132),"",InfoPro!A132) ->  | B140: =IF(ISBLANK(InfoPro!B132),"",InfoPro!B132) ->  | C140: =IF(ISBLANK(InfoPro!E132),"",InfoPro!E132) ->  | D140: =IF(ISBLANK(InfoPro!F132),"",InfoPro!F132) ->  | E140: =IF(ISBLANK(InfoPro!I132),"",YEAR(InfoPro!I132)-$H$3) ->  | F140: =IF(B140="","",VLOOKUP(D140,Tablas!$B$2:$E$13,2,FALSE)) ->  | G140: =IF(B140="","",VLOOKUP(D140,Tablas!$B$2:$H$13,7,FALSE)) -> 
A141: =IF(ISBLANK(InfoPro!A133),"",InfoPro!A133) ->  | B141: =IF(ISBLANK(InfoPro!B133),"",InfoPro!B133) ->  | C141: =IF(ISBLANK(InfoPro!E133),"",InfoPro!E133) ->  | D141: =IF(ISBLANK(InfoPro!F133),"",InfoPro!F133) ->  | E141: =IF(ISBLANK(InfoPro!I133),"",YEAR(InfoPro!I133)-$H$3) ->  | F141: =IF(B141="","",VLOOKUP(D141,Tablas!$B$2:$E$13,2,FALSE)) ->  | G141: =IF(B141="","",VLOOKUP(D141,Tablas!$B$2:$H$13,7,FALSE)) -> 
A142: =IF(ISBLANK(InfoPro!A134),"",InfoPro!A134) ->  | B142: =IF(ISBLANK(InfoPro!B134),"",InfoPro!B134) ->  | C142: =IF(ISBLANK(InfoPro!E134),"",InfoPro!E134) ->  | D142: =IF(ISBLANK(InfoPro!F134),"",InfoPro!F134) ->  | E142: =IF(ISBLANK(InfoPro!I134),"",YEAR(InfoPro!I134)-$H$3) ->  | F142: =IF(B142="","",VLOOKUP(D142,Tablas!$B$2:$E$13,2,FALSE)) ->  | G142: =IF(B142="","",VLOOKUP(D142,Tablas!$B$2:$H$13,7,FALSE)) -> 
A143: =IF(ISBLANK(InfoPro!A135),"",InfoPro!A135) ->  | B143: =IF(ISBLANK(InfoPro!B135),"",InfoPro!B135) ->  | C143: =IF(ISBLANK(InfoPro!E135),"",InfoPro!E135) ->  | D143: =IF(ISBLANK(InfoPro!F135),"",InfoPro!F135) ->  | E143: =IF(ISBLANK(InfoPro!I135),"",YEAR(InfoPro!I135)-$H$3) ->  | F143: =IF(B143="","",VLOOKUP(D143,Tablas!$B$2:$E$13,2,FALSE)) ->  | G143: =IF(B143="","",VLOOKUP(D143,Tablas!$B$2:$H$13,7,FALSE)) -> 
A144: =IF(ISBLANK(InfoPro!A136),"",InfoPro!A136) ->  | B144: =IF(ISBLANK(InfoPro!B136),"",InfoPro!B136) ->  | C144: =IF(ISBLANK(InfoPro!E136),"",InfoPro!E136) ->  | D144: =IF(ISBLANK(InfoPro!F136),"",InfoPro!F136) ->  | E144: =IF(ISBLANK(InfoPro!I136),"",YEAR(InfoPro!I136)-$H$3) ->  | F144: =IF(B144="","",VLOOKUP(D144,Tablas!$B$2:$E$13,2,FALSE)) ->  | G144: =IF(B144="","",VLOOKUP(D144,Tablas!$B$2:$H$13,7,FALSE)) -> 
A145: =IF(ISBLANK(InfoPro!A137),"",InfoPro!A137) ->  | B145: =IF(ISBLANK(InfoPro!B137),"",InfoPro!B137) ->  | C145: =IF(ISBLANK(InfoPro!E137),"",InfoPro!E137) ->  | D145: =IF(ISBLANK(InfoPro!F137),"",InfoPro!F137) ->  | E145: =IF(ISBLANK(InfoPro!I137),"",YEAR(InfoPro!I137)-$H$3) ->  | F145: =IF(B145="","",VLOOKUP(D145,Tablas!$B$2:$E$13,2,FALSE)) ->  | G145: =IF(B145="","",VLOOKUP(D145,Tablas!$B$2:$H$13,7,FALSE)) -> 
A146: =IF(ISBLANK(InfoPro!A138),"",InfoPro!A138) ->  | B146: =IF(ISBLANK(InfoPro!B138),"",InfoPro!B138) ->  | C146: =IF(ISBLANK(InfoPro!E138),"",InfoPro!E138) ->  | D146: =IF(ISBLANK(InfoPro!F138),"",InfoPro!F138) ->  | E146: =IF(ISBLANK(InfoPro!I138),"",YEAR(InfoPro!I138)-$H$3) ->  | F146: =IF(B146="","",VLOOKUP(D146,Tablas!$B$2:$E$13,2,FALSE)) ->  | G146: =IF(B146="","",VLOOKUP(D146,Tablas!$B$2:$H$13,7,FALSE)) -> 
A147: =IF(ISBLANK(InfoPro!A139),"",InfoPro!A139) ->  | B147: =IF(ISBLANK(InfoPro!B139),"",InfoPro!B139) ->  | C147: =IF(ISBLANK(InfoPro!E139),"",InfoPro!E139) ->  | D147: =IF(ISBLANK(InfoPro!F139),"",InfoPro!F139) ->  | E147: =IF(ISBLANK(InfoPro!I139),"",YEAR(InfoPro!I139)-$H$3) ->  | F147: =IF(B147="","",VLOOKUP(D147,Tablas!$B$2:$E$13,2,FALSE)) ->  | G147: =IF(B147="","",VLOOKUP(D147,Tablas!$B$2:$H$13,7,FALSE)) -> 
A148: =IF(ISBLANK(InfoPro!A140),"",InfoPro!A140) ->  | B148: =IF(ISBLANK(InfoPro!B140),"",InfoPro!B140) ->  | C148: =IF(ISBLANK(InfoPro!E140),"",InfoPro!E140) ->  | D148: =IF(ISBLANK(InfoPro!F140),"",InfoPro!F140) ->  | E148: =IF(ISBLANK(InfoPro!I140),"",YEAR(InfoPro!I140)-$H$3) ->  | F148: =IF(B148="","",VLOOKUP(D148,Tablas!$B$2:$E$13,2,FALSE)) ->  | G148: =IF(B148="","",VLOOKUP(D148,Tablas!$B$2:$H$13,7,FALSE)) ->  | J148: =IF($I148="","",(1/(1+$C$3)^(J$6+$E148))*$I148*$C$2*$H148) -> 
A149: =IF(ISBLANK(InfoPro!A141),"",InfoPro!A141) ->  | B149: =IF(ISBLANK(InfoPro!B141),"",InfoPro!B141) ->  | C149: =IF(ISBLANK(InfoPro!E141),"",InfoPro!E141) ->  | D149: =IF(ISBLANK(InfoPro!F141),"",InfoPro!F141) ->  | E149: =IF(ISBLANK(InfoPro!I141),"",YEAR(InfoPro!I141)-$H$3) ->  | F149: =IF(B149="","",VLOOKUP(D149,Tablas!$B$2:$E$13,2,FALSE)) ->  | G149: =IF(B149="","",VLOOKUP(D149,Tablas!$B$2:$H$13,7,FALSE)) -> 
A150: =IF(ISBLANK(InfoPro!A142),"",InfoPro!A142) ->  | B150: =IF(ISBLANK(InfoPro!B142),"",InfoPro!B142) ->  | C150: =IF(ISBLANK(InfoPro!E142),"",InfoPro!E142) ->  | D150: =IF(ISBLANK(InfoPro!F142),"",InfoPro!F142) ->  | E150: =IF(ISBLANK(InfoPro!I142),"",YEAR(InfoPro!I142)-$H$3) ->  | F150: =IF(B150="","",VLOOKUP(D150,Tablas!$B$2:$E$13,2,FALSE)) ->  | G150: =IF(B150="","",VLOOKUP(D150,Tablas!$B$2:$H$13,7,FALSE)) -> 
A151: =IF(ISBLANK(InfoPro!A143),"",InfoPro!A143) ->  | B151: =IF(ISBLANK(InfoPro!B143),"",InfoPro!B143) ->  | C151: =IF(ISBLANK(InfoPro!E143),"",InfoPro!E143) ->  | D151: =IF(ISBLANK(InfoPro!F143),"",InfoPro!F143) ->  | E151: =IF(ISBLANK(InfoPro!I143),"",YEAR(InfoPro!I143)-$H$3) ->  | F151: =IF(B151="","",VLOOKUP(D151,Tablas!$B$2:$E$13,2,FALSE)) ->  | G151: =IF(B151="","",VLOOKUP(D151,Tablas!$B$2:$H$13,7,FALSE)) -> 
A152: =IF(ISBLANK(InfoPro!A144),"",InfoPro!A144) ->  | B152: =IF(ISBLANK(InfoPro!B144),"",InfoPro!B144) ->  | C152: =IF(ISBLANK(InfoPro!E144),"",InfoPro!E144) ->  | D152: =IF(ISBLANK(InfoPro!F144),"",InfoPro!F144) ->  | E152: =IF(ISBLANK(InfoPro!I144),"",YEAR(InfoPro!I144)-$H$3) ->  | F152: =IF(B152="","",VLOOKUP(D152,Tablas!$B$2:$E$13,2,FALSE)) ->  | G152: =IF(B152="","",VLOOKUP(D152,Tablas!$B$2:$H$13,7,FALSE)) -> 
A153: =IF(ISBLANK(InfoPro!A145),"",InfoPro!A145) ->  | B153: =IF(ISBLANK(InfoPro!B145),"",InfoPro!B145) ->  | C153: =IF(ISBLANK(InfoPro!E145),"",InfoPro!E145) ->  | D153: =IF(ISBLANK(InfoPro!F145),"",InfoPro!F145) ->  | E153: =IF(ISBLANK(InfoPro!I145),"",YEAR(InfoPro!I145)-$H$3) ->  | F153: =IF(B153="","",VLOOKUP(D153,Tablas!$B$2:$E$13,2,FALSE)) ->  | G153: =IF(B153="","",VLOOKUP(D153,Tablas!$B$2:$H$13,7,FALSE)) -> 
A154: =IF(ISBLANK(InfoPro!A146),"",InfoPro!A146) ->  | B154: =IF(ISBLANK(InfoPro!B146),"",InfoPro!B146) ->  | C154: =IF(ISBLANK(InfoPro!E146),"",InfoPro!E146) ->  | D154: =IF(ISBLANK(InfoPro!F146),"",InfoPro!F146) ->  | E154: =IF(ISBLANK(InfoPro!I146),"",YEAR(InfoPro!I146)-$H$3) ->  | F154: =IF(B154="","",VLOOKUP(D154,Tablas!$B$2:$E$13,2,FALSE)) ->  | G154: =IF(B154="","",VLOOKUP(D154,Tablas!$B$2:$H$13,7,FALSE)) -> 
A155: =IF(ISBLANK(InfoPro!A147),"",InfoPro!A147) ->  | B155: =IF(ISBLANK(InfoPro!B147),"",InfoPro!B147) ->  | C155: =IF(ISBLANK(InfoPro!E147),"",InfoPro!E147) ->  | D155: =IF(ISBLANK(InfoPro!F147),"",InfoPro!F147) ->  | E155: =IF(ISBLANK(InfoPro!I147),"",YEAR(InfoPro!I147)-$H$3) ->  | F155: =IF(B155="","",VLOOKUP(D155,Tablas!$B$2:$E$13,2,FALSE)) ->  | G155: =IF(B155="","",VLOOKUP(D155,Tablas!$B$2:$H$13,7,FALSE)) -> 
A156: =IF(ISBLANK(InfoPro!A148),"",InfoPro!A148) ->  | B156: =IF(ISBLANK(InfoPro!B148),"",InfoPro!B148) ->  | C156: =IF(ISBLANK(InfoPro!E148),"",InfoPro!E148) ->  | D156: =IF(ISBLANK(InfoPro!F148),"",InfoPro!F148) ->  | E156: =IF(ISBLANK(InfoPro!I148),"",YEAR(InfoPro!I148)-$H$3) ->  | F156: =IF(B156="","",VLOOKUP(D156,Tablas!$B$2:$E$13,2,FALSE)) ->  | G156: =IF(B156="","",VLOOKUP(D156,Tablas!$B$2:$H$13,7,FALSE)) -> 
A157: =IF(ISBLANK(InfoPro!A149),"",InfoPro!A149) ->  | B157: =IF(ISBLANK(InfoPro!B149),"",InfoPro!B149) ->  | C157: =IF(ISBLANK(InfoPro!E149),"",InfoPro!E149) ->  | D157: =IF(ISBLANK(InfoPro!F149),"",InfoPro!F149) ->  | E157: =IF(ISBLANK(InfoPro!I149),"",YEAR(InfoPro!I149)-$H$3) ->  | F157: =IF(B157="","",VLOOKUP(D157,Tablas!$B$2:$E$13,2,FALSE)) ->  | G157: =IF(B157="","",VLOOKUP(D157,Tablas!$B$2:$H$13,7,FALSE)) -> 
A158: =IF(ISBLANK(InfoPro!A150),"",InfoPro!A150) ->  | B158: =IF(ISBLANK(InfoPro!B150),"",InfoPro!B150) ->  | C158: =IF(ISBLANK(InfoPro!E150),"",InfoPro!E150) ->  | D158: =IF(ISBLANK(InfoPro!F150),"",InfoPro!F150) ->  | E158: =IF(ISBLANK(InfoPro!I150),"",YEAR(InfoPro!I150)-$H$3) ->  | F158: =IF(B158="","",VLOOKUP(D158,Tablas!$B$2:$E$13,2,FALSE)) ->  | G158: =IF(B158="","",VLOOKUP(D158,Tablas!$B$2:$H$13,7,FALSE)) -> 
A159: =IF(ISBLANK(InfoPro!A151),"",InfoPro!A151) ->  | B159: =IF(ISBLANK(InfoPro!B151),"",InfoPro!B151) ->  | C159: =IF(ISBLANK(InfoPro!E151),"",InfoPro!E151) ->  | D159: =IF(ISBLANK(InfoPro!F151),"",InfoPro!F151) ->  | E159: =IF(ISBLANK(InfoPro!I151),"",YEAR(InfoPro!I151)-$H$3) ->  | F159: =IF(B159="","",VLOOKUP(D159,Tablas!$B$2:$E$13,2,FALSE)) ->  | G159: =IF(B159="","",VLOOKUP(D159,Tablas!$B$2:$H$13,7,FALSE)) -> 
A160: =IF(ISBLANK(InfoPro!A152),"",InfoPro!A152) ->  | B160: =IF(ISBLANK(InfoPro!B152),"",InfoPro!B152) ->  | C160: =IF(ISBLANK(InfoPro!E152),"",InfoPro!E152) ->  | D160: =IF(ISBLANK(InfoPro!F152),"",InfoPro!F152) ->  | E160: =IF(ISBLANK(InfoPro!I152),"",YEAR(InfoPro!I152)-$H$3) ->  | F160: =IF(B160="","",VLOOKUP(D160,Tablas!$B$2:$E$13,2,FALSE)) ->  | G160: =IF(B160="","",VLOOKUP(D160,Tablas!$B$2:$H$13,7,FALSE)) -> 
A161: =IF(ISBLANK(InfoPro!A153),"",InfoPro!A153) ->  | B161: =IF(ISBLANK(InfoPro!B153),"",InfoPro!B153) ->  | C161: =IF(ISBLANK(InfoPro!E153),"",InfoPro!E153) ->  | D161: =IF(ISBLANK(InfoPro!F153),"",InfoPro!F153) ->  | E161: =IF(ISBLANK(InfoPro!I153),"",YEAR(InfoPro!I153)-$H$3) ->  | F161: =IF(B161="","",VLOOKUP(D161,Tablas!$B$2:$E$13,2,FALSE)) ->  | G161: =IF(B161="","",VLOOKUP(D161,Tablas!$B$2:$H$13,7,FALSE)) -> 
A162: =IF(ISBLANK(InfoPro!A154),"",InfoPro!A154) ->  | B162: =IF(ISBLANK(InfoPro!B154),"",InfoPro!B154) ->  | C162: =IF(ISBLANK(InfoPro!E154),"",InfoPro!E154) ->  | D162: =IF(ISBLANK(InfoPro!F154),"",InfoPro!F154) ->  | E162: =IF(ISBLANK(InfoPro!I154),"",YEAR(InfoPro!I154)-$H$3) ->  | F162: =IF(B162="","",VLOOKUP(D162,Tablas!$B$2:$E$13,2,FALSE)) ->  | G162: =IF(B162="","",VLOOKUP(D162,Tablas!$B$2:$H$13,7,FALSE)) -> 
A163: =IF(ISBLANK(InfoPro!A155),"",InfoPro!A155) ->  | B163: =IF(ISBLANK(InfoPro!B155),"",InfoPro!B155) ->  | C163: =IF(ISBLANK(InfoPro!E155),"",InfoPro!E155) ->  | D163: =IF(ISBLANK(InfoPro!F155),"",InfoPro!F155) ->  | E163: =IF(ISBLANK(InfoPro!I155),"",YEAR(InfoPro!I155)-$H$3) ->  | F163: =IF(B163="","",VLOOKUP(D163,Tablas!$B$2:$E$13,2,FALSE)) ->  | G163: =IF(B163="","",VLOOKUP(D163,Tablas!$B$2:$H$13,7,FALSE)) -> 
A164: =IF(ISBLANK(InfoPro!A156),"",InfoPro!A156) ->  | B164: =IF(ISBLANK(InfoPro!B156),"",InfoPro!B156) ->  | C164: =IF(ISBLANK(InfoPro!E156),"",InfoPro!E156) ->  | D164: =IF(ISBLANK(InfoPro!F156),"",InfoPro!F156) ->  | E164: =IF(ISBLANK(InfoPro!I156),"",YEAR(InfoPro!I156)-$H$3) ->  | F164: =IF(B164="","",VLOOKUP(D164,Tablas!$B$2:$E$13,2,FALSE)) ->  | G164: =IF(B164="","",VLOOKUP(D164,Tablas!$B$2:$H$13,7,FALSE)) -> 
A165: =IF(ISBLANK(InfoPro!A157),"",InfoPro!A157) ->  | B165: =IF(ISBLANK(InfoPro!B157),"",InfoPro!B157) ->  | C165: =IF(ISBLANK(InfoPro!E157),"",InfoPro!E157) ->  | D165: =IF(ISBLANK(InfoPro!F157),"",InfoPro!F157) ->  | E165: =IF(ISBLANK(InfoPro!I157),"",YEAR(InfoPro!I157)-$H$3) ->  | F165: =IF(B165="","",VLOOKUP(D165,Tablas!$B$2:$E$13,2,FALSE)) ->  | G165: =IF(B165="","",VLOOKUP(D165,Tablas!$B$2:$H$13,7,FALSE)) ->  | J165: =IF($I165="","",(1/(1+$C$3)^(J$6+$E165))*$I165*$C$2*$H165) -> 
A166: =IF(ISBLANK(InfoPro!A158),"",InfoPro!A158) ->  | B166: =IF(ISBLANK(InfoPro!B158),"",InfoPro!B158) ->  | C166: =IF(ISBLANK(InfoPro!E158),"",InfoPro!E158) ->  | D166: =IF(ISBLANK(InfoPro!F158),"",InfoPro!F158) ->  | E166: =IF(ISBLANK(InfoPro!I158),"",YEAR(InfoPro!I158)-$H$3) ->  | F166: =IF(B166="","",VLOOKUP(D166,Tablas!$B$2:$E$13,2,FALSE)) ->  | G166: =IF(B166="","",VLOOKUP(D166,Tablas!$B$2:$H$13,7,FALSE)) -> 
A167: =IF(ISBLANK(InfoPro!A159),"",InfoPro!A159) ->  | B167: =IF(ISBLANK(InfoPro!B159),"",InfoPro!B159) ->  | C167: =IF(ISBLANK(InfoPro!E159),"",InfoPro!E159) ->  | D167: =IF(ISBLANK(InfoPro!F159),"",InfoPro!F159) ->  | E167: =IF(ISBLANK(InfoPro!I159),"",YEAR(InfoPro!I159)-$H$3) ->  | F167: =IF(B167="","",VLOOKUP(D167,Tablas!$B$2:$E$13,2,FALSE)) ->  | G167: =IF(B167="","",VLOOKUP(D167,Tablas!$B$2:$H$13,7,FALSE)) -> 
A168: =IF(ISBLANK(InfoPro!A160),"",InfoPro!A160) ->  | B168: =IF(ISBLANK(InfoPro!B160),"",InfoPro!B160) ->  | C168: =IF(ISBLANK(InfoPro!E160),"",InfoPro!E160) ->  | D168: =IF(ISBLANK(InfoPro!F160),"",InfoPro!F160) ->  | E168: =IF(ISBLANK(InfoPro!I160),"",YEAR(InfoPro!I160)-$H$3) ->  | F168: =IF(B168="","",VLOOKUP(D168,Tablas!$B$2:$E$13,2,FALSE)) ->  | G168: =IF(B168="","",VLOOKUP(D168,Tablas!$B$2:$H$13,7,FALSE)) -> 
A169: =IF(ISBLANK(InfoPro!A161),"",InfoPro!A161) ->  | B169: =IF(ISBLANK(InfoPro!B161),"",InfoPro!B161) ->  | C169: =IF(ISBLANK(InfoPro!E161),"",InfoPro!E161) ->  | D169: =IF(ISBLANK(InfoPro!F161),"",InfoPro!F161) ->  | E169: =IF(ISBLANK(InfoPro!I161),"",YEAR(InfoPro!I161)-$H$3) ->  | F169: =IF(B169="","",VLOOKUP(D169,Tablas!$B$2:$E$13,2,FALSE)) ->  | G169: =IF(B169="","",VLOOKUP(D169,Tablas!$B$2:$H$13,7,FALSE)) -> 
A170: =IF(ISBLANK(InfoPro!A162),"",InfoPro!A162) ->  | B170: =IF(ISBLANK(InfoPro!B162),"",InfoPro!B162) ->  | C170: =IF(ISBLANK(InfoPro!E162),"",InfoPro!E162) ->  | D170: =IF(ISBLANK(InfoPro!F162),"",InfoPro!F162) ->  | E170: =IF(ISBLANK(InfoPro!I162),"",YEAR(InfoPro!I162)-$H$3) ->  | F170: =IF(B170="","",VLOOKUP(D170,Tablas!$B$2:$E$13,2,FALSE)) ->  | G170: =IF(B170="","",VLOOKUP(D170,Tablas!$B$2:$H$13,7,FALSE)) -> 
A171: =IF(ISBLANK(InfoPro!A163),"",InfoPro!A163) ->  | B171: =IF(ISBLANK(InfoPro!B163),"",InfoPro!B163) ->  | C171: =IF(ISBLANK(InfoPro!E163),"",InfoPro!E163) ->  | D171: =IF(ISBLANK(InfoPro!F163),"",InfoPro!F163) ->  | E171: =IF(ISBLANK(InfoPro!I163),"",YEAR(InfoPro!I163)-$H$3) ->  | F171: =IF(B171="","",VLOOKUP(D171,Tablas!$B$2:$E$13,2,FALSE)) ->  | G171: =IF(B171="","",VLOOKUP(D171,Tablas!$B$2:$H$13,7,FALSE)) -> 
A172: =IF(ISBLANK(InfoPro!A164),"",InfoPro!A164) ->  | B172: =IF(ISBLANK(InfoPro!B164),"",InfoPro!B164) ->  | C172: =IF(ISBLANK(InfoPro!E164),"",InfoPro!E164) ->  | D172: =IF(ISBLANK(InfoPro!F164),"",InfoPro!F164) ->  | E172: =IF(ISBLANK(InfoPro!I164),"",YEAR(InfoPro!I164)-$H$3) ->  | F172: =IF(B172="","",VLOOKUP(D172,Tablas!$B$2:$E$13,2,FALSE)) ->  | G172: =IF(B172="","",VLOOKUP(D172,Tablas!$B$2:$H$13,7,FALSE)) ->  | H172: =IF(B172="","",($C$2-(G172))/$C$2) ->  | I172: =IF(C172="","",+C172*F172*24*365) ->  | Y172: =IF(X172="","",SUM(J172:X172)) ->  | Z172: =IF(C172=0,0,IF(Y172="","",Y172/(C172*1000))) -> 
A173: =IF(ISBLANK(InfoPro!A165),"",InfoPro!A165) ->  | B173: =IF(ISBLANK(InfoPro!B165),"",InfoPro!B165) ->  | C173: =IF(ISBLANK(InfoPro!E165),"",InfoPro!E165) ->  | D173: =IF(ISBLANK(InfoPro!F165),"",InfoPro!F165) ->  | E173: =IF(ISBLANK(InfoPro!I165),"",YEAR(InfoPro!I165)-$H$3) ->  | F173: =IF(B173="","",VLOOKUP(D173,Tablas!$B$2:$E$13,2,FALSE)) ->  | G173: =IF(B173="","",VLOOKUP(D173,Tablas!$B$2:$H$13,7,FALSE)) -> 
A174: =IF(ISBLANK(InfoPro!A166),"",InfoPro!A166) ->  | B174: =IF(ISBLANK(InfoPro!B166),"",InfoPro!B166) ->  | C174: =IF(ISBLANK(InfoPro!E166),"",InfoPro!E166) ->  | D174: =IF(ISBLANK(InfoPro!F166),"",InfoPro!F166) ->  | E174: =IF(ISBLANK(InfoPro!I166),"",YEAR(InfoPro!I166)-$H$3) ->  | F174: =IF(B174="","",VLOOKUP(D174,Tablas!$B$2:$E$13,2,FALSE)) ->  | G174: =IF(B174="","",VLOOKUP(D174,Tablas!$B$2:$H$13,7,FALSE)) -> 
A175: =IF(ISBLANK(InfoPro!A167),"",InfoPro!A167) ->  | B175: =IF(ISBLANK(InfoPro!B167),"",InfoPro!B167) ->  | C175: =IF(ISBLANK(InfoPro!E167),"",InfoPro!E167) ->  | D175: =IF(ISBLANK(InfoPro!F167),"",InfoPro!F167) ->  | E175: =IF(ISBLANK(InfoPro!I167),"",YEAR(InfoPro!I167)-$H$3) ->  | F175: =IF(B175="","",VLOOKUP(D175,Tablas!$B$2:$E$13,2,FALSE)) ->  | G175: =IF(B175="","",VLOOKUP(D175,Tablas!$B$2:$H$13,7,FALSE)) -> 
A176: =IF(ISBLANK(InfoPro!A168),"",InfoPro!A168) ->  | B176: =IF(ISBLANK(InfoPro!B168),"",InfoPro!B168) ->  | C176: =IF(ISBLANK(InfoPro!E168),"",InfoPro!E168) ->  | D176: =IF(ISBLANK(InfoPro!F168),"",InfoPro!F168) ->  | E176: =IF(ISBLANK(InfoPro!I168),"",YEAR(InfoPro!I168)-$H$3) ->  | F176: =IF(B176="","",VLOOKUP(D176,Tablas!$B$2:$E$13,2,FALSE)) ->  | G176: =IF(B176="","",VLOOKUP(D176,Tablas!$B$2:$H$13,7,FALSE)) -> 
A177: =IF(ISBLANK(InfoPro!A169),"",InfoPro!A169) ->  | B177: =IF(ISBLANK(InfoPro!B169),"",InfoPro!B169) ->  | C177: =IF(ISBLANK(InfoPro!E169),"",InfoPro!E169) ->  | D177: =IF(ISBLANK(InfoPro!F169),"",InfoPro!F169) ->  | E177: =IF(ISBLANK(InfoPro!I169),"",YEAR(InfoPro!I169)-$H$3) ->  | F177: =IF(B177="","",VLOOKUP(D177,Tablas!$B$2:$E$13,2,FALSE)) ->  | G177: =IF(B177="","",VLOOKUP(D177,Tablas!$B$2:$H$13,7,FALSE)) -> 
A178: =IF(ISBLANK(InfoPro!A170),"",InfoPro!A170) ->  | B178: =IF(ISBLANK(InfoPro!B170),"",InfoPro!B170) ->  | C178: =IF(ISBLANK(InfoPro!E170),"",InfoPro!E170) ->  | D178: =IF(ISBLANK(InfoPro!F170),"",InfoPro!F170) ->  | E178: =IF(ISBLANK(InfoPro!I170),"",YEAR(InfoPro!I170)-$H$3) ->  | F178: =IF(B178="","",VLOOKUP(D178,Tablas!$B$2:$E$13,2,FALSE)) ->  | G178: =IF(B178="","",VLOOKUP(D178,Tablas!$B$2:$H$13,7,FALSE)) -> 
A179: =IF(ISBLANK(InfoPro!A171),"",InfoPro!A171) ->  | B179: =IF(ISBLANK(InfoPro!B171),"",InfoPro!B171) ->  | C179: =IF(ISBLANK(InfoPro!E171),"",InfoPro!E171) ->  | D179: =IF(ISBLANK(InfoPro!F171),"",InfoPro!F171) ->  | E179: =IF(ISBLANK(InfoPro!I171),"",YEAR(InfoPro!I171)-$H$3) ->  | F179: =IF(B179="","",VLOOKUP(D179,Tablas!$B$2:$E$13,2,FALSE)) ->  | G179: =IF(B179="","",VLOOKUP(D179,Tablas!$B$2:$H$13,7,FALSE)) -> 
A180: =IF(ISBLANK(InfoPro!A172),"",InfoPro!A172) ->  | B180: =IF(ISBLANK(InfoPro!B172),"",InfoPro!B172) ->  | C180: =IF(ISBLANK(InfoPro!E172),"",InfoPro!E172) ->  | D180: =IF(ISBLANK(InfoPro!F172),"",InfoPro!F172) ->  | E180: =IF(ISBLANK(InfoPro!I172),"",YEAR(InfoPro!I172)-$H$3) ->  | F180: =IF(B180="","",VLOOKUP(D180,Tablas!$B$2:$E$13,2,FALSE)) ->  | G180: =IF(B180="","",VLOOKUP(D180,Tablas!$B$2:$H$13,7,FALSE)) -> 
A181: =IF(ISBLANK(InfoPro!A173),"",InfoPro!A173) ->  | B181: =IF(ISBLANK(InfoPro!B173),"",InfoPro!B173) ->  | C181: =IF(ISBLANK(InfoPro!E173),"",InfoPro!E173) ->  | D181: =IF(ISBLANK(InfoPro!F173),"",InfoPro!F173) ->  | E181: =IF(ISBLANK(InfoPro!I173),"",YEAR(InfoPro!I173)-$H$3) ->  | F181: =IF(B181="","",VLOOKUP(D181,Tablas!$B$2:$E$13,2,FALSE)) ->  | G181: =IF(B181="","",VLOOKUP(D181,Tablas!$B$2:$H$13,7,FALSE)) -> 
A182: =IF(ISBLANK(InfoPro!A174),"",InfoPro!A174) ->  | B182: =IF(ISBLANK(InfoPro!B174),"",InfoPro!B174) ->  | C182: =IF(ISBLANK(InfoPro!E174),"",InfoPro!E174) ->  | D182: =IF(ISBLANK(InfoPro!F174),"",InfoPro!F174) ->  | E182: =IF(ISBLANK(InfoPro!I174),"",YEAR(InfoPro!I174)-$H$3) ->  | F182: =IF(B182="","",VLOOKUP(D182,Tablas!$B$2:$E$13,2,FALSE)) ->  | G182: =IF(B182="","",VLOOKUP(D182,Tablas!$B$2:$H$13,7,FALSE)) ->  | J182: =IF($I182="","",(1/(1+$C$3)^(J$6+$E182))*$I182*$C$2*$H182) -> 
A183: =IF(ISBLANK(InfoPro!A175),"",InfoPro!A175) ->  | B183: =IF(ISBLANK(InfoPro!B175),"",InfoPro!B175) ->  | C183: =IF(ISBLANK(InfoPro!E175),"",InfoPro!E175) ->  | D183: =IF(ISBLANK(InfoPro!F175),"",InfoPro!F175) ->  | E183: =IF(ISBLANK(InfoPro!I175),"",YEAR(InfoPro!I175)-$H$3) ->  | F183: =IF(B183="","",VLOOKUP(D183,Tablas!$B$2:$E$13,2,FALSE)) ->  | G183: =IF(B183="","",VLOOKUP(D183,Tablas!$B$2:$H$13,7,FALSE)) -> 
A184: =IF(ISBLANK(InfoPro!A176),"",InfoPro!A176) ->  | B184: =IF(ISBLANK(InfoPro!B176),"",InfoPro!B176) ->  | C184: =IF(ISBLANK(InfoPro!E176),"",InfoPro!E176) ->  | D184: =IF(ISBLANK(InfoPro!F176),"",InfoPro!F176) ->  | E184: =IF(ISBLANK(InfoPro!I176),"",YEAR(InfoPro!I176)-$H$3) ->  | F184: =IF(B184="","",VLOOKUP(D184,Tablas!$B$2:$E$13,2,FALSE)) ->  | G184: =IF(B184="","",VLOOKUP(D184,Tablas!$B$2:$H$13,7,FALSE)) -> 
A185: =IF(ISBLANK(InfoPro!A177),"",InfoPro!A177) ->  | B185: =IF(ISBLANK(InfoPro!B177),"",InfoPro!B177) ->  | C185: =IF(ISBLANK(InfoPro!E177),"",InfoPro!E177) ->  | D185: =IF(ISBLANK(InfoPro!F177),"",InfoPro!F177) ->  | E185: =IF(ISBLANK(InfoPro!I177),"",YEAR(InfoPro!I177)-$H$3) ->  | F185: =IF(B185="","",VLOOKUP(D185,Tablas!$B$2:$E$13,2,FALSE)) ->  | G185: =IF(B185="","",VLOOKUP(D185,Tablas!$B$2:$H$13,7,FALSE)) -> 
A186: =IF(ISBLANK(InfoPro!A178),"",InfoPro!A178) ->  | B186: =IF(ISBLANK(InfoPro!B178),"",InfoPro!B178) ->  | C186: =IF(ISBLANK(InfoPro!E178),"",InfoPro!E178) ->  | D186: =IF(ISBLANK(InfoPro!F178),"",InfoPro!F178) ->  | E186: =IF(ISBLANK(InfoPro!I178),"",YEAR(InfoPro!I178)-$H$3) ->  | F186: =IF(B186="","",VLOOKUP(D186,Tablas!$B$2:$E$13,2,FALSE)) ->  | G186: =IF(B186="","",VLOOKUP(D186,Tablas!$B$2:$H$13,7,FALSE)) -> 
A187: =IF(ISBLANK(InfoPro!A179),"",InfoPro!A179) ->  | B187: =IF(ISBLANK(InfoPro!B179),"",InfoPro!B179) ->  | C187: =IF(ISBLANK(InfoPro!E179),"",InfoPro!E179) ->  | D187: =IF(ISBLANK(InfoPro!F179),"",InfoPro!F179) ->  | E187: =IF(ISBLANK(InfoPro!I179),"",YEAR(InfoPro!I179)-$H$3) ->  | F187: =IF(B187="","",VLOOKUP(D187,Tablas!$B$2:$E$13,2,FALSE)) ->  | G187: =IF(B187="","",VLOOKUP(D187,Tablas!$B$2:$H$13,7,FALSE)) -> 
A188: =IF(ISBLANK(InfoPro!A180),"",InfoPro!A180) ->  | B188: =IF(ISBLANK(InfoPro!B180),"",InfoPro!B180) ->  | C188: =IF(ISBLANK(InfoPro!E180),"",InfoPro!E180) ->  | D188: =IF(ISBLANK(InfoPro!F180),"",InfoPro!F180) ->  | E188: =IF(ISBLANK(InfoPro!I180),"",YEAR(InfoPro!I180)-$H$3) ->  | F188: =IF(B188="","",VLOOKUP(D188,Tablas!$B$2:$E$13,2,FALSE)) ->  | G188: =IF(B188="","",VLOOKUP(D188,Tablas!$B$2:$H$13,7,FALSE)) -> 
A189: =IF(ISBLANK(InfoPro!A181),"",InfoPro!A181) ->  | B189: =IF(ISBLANK(InfoPro!B181),"",InfoPro!B181) ->  | C189: =IF(ISBLANK(InfoPro!E181),"",InfoPro!E181) ->  | D189: =IF(ISBLANK(InfoPro!F181),"",InfoPro!F181) ->  | E189: =IF(ISBLANK(InfoPro!I181),"",YEAR(InfoPro!I181)-$H$3) ->  | F189: =IF(B189="","",VLOOKUP(D189,Tablas!$B$2:$E$13,2,FALSE)) ->  | G189: =IF(B189="","",VLOOKUP(D189,Tablas!$B$2:$H$13,7,FALSE)) -> 
A190: =IF(ISBLANK(InfoPro!A182),"",InfoPro!A182) ->  | B190: =IF(ISBLANK(InfoPro!B182),"",InfoPro!B182) ->  | C190: =IF(ISBLANK(InfoPro!E182),"",InfoPro!E182) ->  | D190: =IF(ISBLANK(InfoPro!F182),"",InfoPro!F182) ->  | E190: =IF(ISBLANK(InfoPro!I182),"",YEAR(InfoPro!I182)-$H$3) ->  | F190: =IF(B190="","",VLOOKUP(D190,Tablas!$B$2:$E$13,2,FALSE)) ->  | G190: =IF(B190="","",VLOOKUP(D190,Tablas!$B$2:$H$13,7,FALSE)) -> 
A191: =IF(ISBLANK(InfoPro!A183),"",InfoPro!A183) ->  | B191: =IF(ISBLANK(InfoPro!B183),"",InfoPro!B183) ->  | C191: =IF(ISBLANK(InfoPro!E183),"",InfoPro!E183) ->  | D191: =IF(ISBLANK(InfoPro!F183),"",InfoPro!F183) ->  | E191: =IF(ISBLANK(InfoPro!I183),"",YEAR(InfoPro!I183)-$H$3) ->  | F191: =IF(B191="","",VLOOKUP(D191,Tablas!$B$2:$E$13,2,FALSE)) ->  | G191: =IF(B191="","",VLOOKUP(D191,Tablas!$B$2:$H$13,7,FALSE)) -> 
A192: =IF(ISBLANK(InfoPro!A184),"",InfoPro!A184) ->  | B192: =IF(ISBLANK(InfoPro!B184),"",InfoPro!B184) ->  | C192: =IF(ISBLANK(InfoPro!E184),"",InfoPro!E184) ->  | D192: =IF(ISBLANK(InfoPro!F184),"",InfoPro!F184) ->  | E192: =IF(ISBLANK(InfoPro!I184),"",YEAR(InfoPro!I184)-$H$3) ->  | F192: =IF(B192="","",VLOOKUP(D192,Tablas!$B$2:$E$13,2,FALSE)) ->  | G192: =IF(B192="","",VLOOKUP(D192,Tablas!$B$2:$H$13,7,FALSE)) -> 
A193: =IF(ISBLANK(InfoPro!A185),"",InfoPro!A185) ->  | B193: =IF(ISBLANK(InfoPro!B185),"",InfoPro!B185) ->  | C193: =IF(ISBLANK(InfoPro!E185),"",InfoPro!E185) ->  | D193: =IF(ISBLANK(InfoPro!F185),"",InfoPro!F185) ->  | E193: =IF(ISBLANK(InfoPro!I185),"",YEAR(InfoPro!I185)-$H$3) ->  | F193: =IF(B193="","",VLOOKUP(D193,Tablas!$B$2:$E$13,2,FALSE)) ->  | G193: =IF(B193="","",VLOOKUP(D193,Tablas!$B$2:$H$13,7,FALSE)) -> 
A194: =IF(ISBLANK(InfoPro!A186),"",InfoPro!A186) ->  | B194: =IF(ISBLANK(InfoPro!B186),"",InfoPro!B186) ->  | C194: =IF(ISBLANK(InfoPro!E186),"",InfoPro!E186) ->  | D194: =IF(ISBLANK(InfoPro!F186),"",InfoPro!F186) ->  | E194: =IF(ISBLANK(InfoPro!I186),"",YEAR(InfoPro!I186)-$H$3) ->  | F194: =IF(B194="","",VLOOKUP(D194,Tablas!$B$2:$E$13,2,FALSE)) ->  | G194: =IF(B194="","",VLOOKUP(D194,Tablas!$B$2:$H$13,7,FALSE)) -> 
A195: =IF(ISBLANK(InfoPro!A187),"",InfoPro!A187) ->  | B195: =IF(ISBLANK(InfoPro!B187),"",InfoPro!B187) ->  | C195: =IF(ISBLANK(InfoPro!E187),"",InfoPro!E187) ->  | D195: =IF(ISBLANK(InfoPro!F187),"",InfoPro!F187) ->  | E195: =IF(ISBLANK(InfoPro!I187),"",YEAR(InfoPro!I187)-$H$3) ->  | F195: =IF(B195="","",VLOOKUP(D195,Tablas!$B$2:$E$13,2,FALSE)) ->  | G195: =IF(B195="","",VLOOKUP(D195,Tablas!$B$2:$H$13,7,FALSE)) -> 

Sheet EC-Per
B2: Precio promedio de bolsa | C2: ='EC-RP'!C2*1000 -> 192057000 | D2: COP/GWh
B3: Tasa de descuento | C3: 0.118 | E3: Año de Referencia | F3: 2023
E4: Mínimo | F4: =MIN(W8:W400) -> -500560.8387
G6: 0 | H6: 1 | I6: 2 | J6: 3 | K6: 4 | L6: 5 | M6: 6 | N6: 7 | O6: 8 | P6: 9 | Q6: 10 | R6: 11 | S6: 12 | T6: 13 | U6: 14
A7: Codigo | B7: Nombre | C7: capacidad | D7: Tipo | E7: Año de entrada | F7: Pérdidas STN | G7: Flujo Descontado 0 | H7: Flujo Descontado 1 | I7: Flujo Descontado 2 | J7: Flujo Descontado 3 | K7: Flujo Descontado 4 | L7: Flujo Descontado 5 | M7: Flujo Descontado 6 | N7: Flujo Descontado 7 | O7: Flujo Descontado 8 | P7: Flujo Descontado 9 | Q7: Flujo Descontado 10 | R7: Flujo Descontado 11 | S7: Flujo Descontado 12 | T7: Flujo Descontado 13 | U7: Flujo Descontado 14 | V7: VPN | W7: Beneficio/kW
A8: =IF(ISBLANK(InfoPro!A2),"",InfoPro!A2) -> SC_7_A2 | B8: =IF(ISBLANK(InfoPro!B2),"",InfoPro!B2) -> PSFV TONCHALÁ 19.9MW | C8: =IF(ISBLANK(InfoPro!E2),"",InfoPro!E2) -> 19.9 | D8: =IF(ISBLANK(InfoPro!F2),"",InfoPro!F2) -> Solar FV | E8: =IF(ISBLANK(InfoPro!I2),"",YEAR(InfoPro!I2)-$F$3) -> 3 | F8: =IF(ISBLANK(InfoPro!P2),"",InfoPro!P2) -> -9.416898 | G8: =IF($F8="","",(1/(1+$C$3)^(G$6+$E8))*$F8*$C$2) -> -1294233379 | H8: =IF($F8="","",(1/(1+$C$3)^(H$6+$E8))*$F8*$C$2) -> -1157632719 | I8: =IF($F8="","",(1/(1+$C$3)^(I$6+$E8))*$F8*$C$2) -> -1035449659 | J8: -926162485.5 | K8: -828410094.4 | L8: -740975039.7 | M8: -662768371.8 | N8: -592816075 | O8: -530246936.5 | P8: -474281696.3 | Q8: -424223342 | R8: -379448427.5 | S8: -339399309 | T8: -303577199.5 | U8: -271535956.6 | V8: =IF(U8="","",SUM(G8:U8)) -> -9961160690 | W8: =IF(C8=0,0,IF(V8="","",V8/(C8*1000))) -> -500560.8387
A9: =IF(ISBLANK(InfoPro!A3),"",InfoPro!A3) -> SC_7_A1 | B9: =IF(ISBLANK(InfoPro!B3),"",InfoPro!B3) -> PSFV TONCHALÁ 19.9MW | C9: =IF(ISBLANK(InfoPro!E3),"",InfoPro!E3) -> 19.9 | D9: =IF(ISBLANK(InfoPro!F3),"",InfoPro!F3) -> Solar FV | E9: =IF(ISBLANK(InfoPro!I3),"",YEAR(InfoPro!I3)-$F$3) -> 3 | F9: =IF(ISBLANK(InfoPro!P3),"",InfoPro!P3) -> -9.416898 | G9: -1294233379 | H9: -1157632719 | I9: -1035449659 | J9: -926162485.5 | K9: -828410094.4 | L9: -740975039.7 | M9: -662768371.8 | N9: -592816075 | O9: -530246936.5 | P9: -474281696.3 | Q9: -424223342 | R9: -379448427.5 | S9: -339399309 | T9: -303577199.5 | U9: -271535956.6 | V9: =IF(U9="","",SUM(G9:U9)) -> -9961160690 | W9: =IF(C9=0,0,IF(V9="","",V9/(C9*1000))) -> -500560.8387
A10: =IF(ISBLANK(InfoPro!A4),"",InfoPro!A4) -> SC_38_A2 | B10: =IF(ISBLANK(InfoPro!B4),"",InfoPro!B4) -> SOLENERGY NORTE | C10: =IF(ISBLANK(InfoPro!E4),"",InfoPro!E4) -> 40 | D10: =IF(ISBLANK(InfoPro!F4),"",InfoPro!F4) -> Solar FV | E10: =IF(ISBLANK(InfoPro!I4),"",YEAR(InfoPro!I4)-$F$3) -> 2 | F10: =IF(ISBLANK(InfoPro!P4),"",InfoPro!P4) -> -3.37298 | G10: -518275047 | H10: -463573387.3 | I10: -414645248 | J10: -370881259.4 | K10: -331736368 | L10: -296723048.3 | M10: -265405231 | N10: -237392872.1 | O10: -212337094.9 | P10: -189925845.2 | Q10: -169880004.6 | R10: -151949914.7 | S10: -135912267.2 | T10: -121567323.1 | U10: -108736424.9 | V10: -3988941336 | W10: -99723.5334
A11: =IF(ISBLANK(InfoPro!A5),"",InfoPro!A5) -> SC_38_A1 | B11: =IF(ISBLANK(InfoPro!B5),"",InfoPro!B5) -> SOLENERGY NORTE | C11: =IF(ISBLANK(InfoPro!E5),"",InfoPro!E5) -> 40 | D11: =IF(ISBLANK(InfoPro!F5),"",InfoPro!F5) -> Solar FV | E11: =IF(ISBLANK(InfoPro!I5),"",YEAR(InfoPro!I5)-$F$3) -> 2 | F11: =IF(ISBLANK(InfoPro!P5),"",InfoPro!P5) -> -3.37298 | G11: -518275047 | H11: -463573387.3 | I11: -414645248 | J11: -370881259.4 | K11: -331736368 | L11: -296723048.3 | M11: -265405231 | N11: -237392872.1 | O11: -212337094.9 | P11: -189925845.2 | Q11: -169880004.6 | R11: -151949914.7 | S11: -135912267.2 | T11: -121567323.1 | U11: -108736424.9 | V11: -3988941336 | W11: -99723.5334
A12: =IF(ISBLANK(InfoPro!A6),"",InfoPro!A6) -> SC_485_A2 | B12: =IF(ISBLANK(InfoPro!B6),"",InfoPro!B6) -> Pradera - 40 MW | C12: =IF(ISBLANK(InfoPro!E6),"",InfoPro!E6) -> 40 | D12: =IF(ISBLANK(InfoPro!F6),"",InfoPro!F6) -> Solar FV | E12: =IF(ISBLANK(InfoPro!I6),"",YEAR(InfoPro!I6)-$F$3) -> 2 | F12: =IF(ISBLANK(InfoPro!P6),"",InfoPro!P6) -> -10.845422 | G12: -1666452691 | H12: -1490565913 | I12: -1333243214 | J12: -1192525236 | K12: -1066659424 | L12: -954078196.7 | M12: -853379424.6 | N12: -763308966.6 | O12: -682745050.6 | P12: -610684302.9 | Q12: -546229251.2 | R12: -488577147.8 | S12: -437009971.2 | T12: -390885484.1 | U12: -349629234.4 | V12: -1.282597351e+10 | W12: -320649.3377
A13: =IF(ISBLANK(InfoPro!A7),"",InfoPro!A7) -> SC_488_A2 | B13: =IF(ISBLANK(InfoPro!B7),"",InfoPro!B7) -> Frontera - 50 MW | C13: =IF(ISBLANK(InfoPro!E7),"",InfoPro!E7) -> 50 | D13: =IF(ISBLANK(InfoPro!F7),"",InfoPro!F7) -> Solar FV | E13: =IF(ISBLANK(InfoPro!I7),"",YEAR(InfoPro!I7)-$F$3) -> 2 | F13: =IF(ISBLANK(InfoPro!P7),"",InfoPro!P7) -> -9.416898 | G13: -1446952918 | H13: -1294233379 | I13: -1157632719 | J13: -1035449659 | K13: -926162485.5 | L13: -828410094.4 | M13: -740975039.7 | N13: -662768371.8 | O13: -592816075 | P13: -530246936.5 | Q13: -474281696.3 | R13: -424223342 | S13: -379448427.5 | T13: -339399309 | U13: -303577199.5 | V13: -1.113657765e+10 | W13: -222731.553
A14: =IF(ISBLANK(InfoPro!A8),"",InfoPro!A8) -> SC_488_A1 | B14: =IF(ISBLANK(InfoPro!B8),"",InfoPro!B8) -> Frontera - 50 MW | C14: =IF(ISBLANK(InfoPro!E8),"",InfoPro!E8) -> 50 | D14: =IF(ISBLANK(InfoPro!F8),"",InfoPro!F8) -> Solar FV | E14: =IF(ISBLANK(InfoPro!I8),"",YEAR(InfoPro!I8)-$F$3) -> 2 | F14: =IF(ISBLANK(InfoPro!P8),"",InfoPro!P8) -> -6.28914 | G14: -966357443.3 | H14: -864362650.6 | I14: -773132961.1 | J14: -691532165.6 | K14: -618543976.4 | L14: -553259370.6 | M14: -494865268.9 | N14: -442634408.7 | O14: -395916286.8 | P14: -354129058 | Q14: -316752288 | R14: -283320472.3 | S14: -253417238.2 | T14: -226670159.4 | U14: -202746117.5 | V14: -7437639865 | W14: -148752.7973
A15: =IF(ISBLANK(InfoPro!A9),"",InfoPro!A9) -> SC_485_A1 | B15: =IF(ISBLANK(InfoPro!B9),"",InfoPro!B9) -> Pradera - 40 MW | C15: =IF(ISBLANK(InfoPro!E9),"",InfoPro!E9) -> 40 | D15: =IF(ISBLANK(InfoPro!F9),"",InfoPro!F9) -> Solar FV | E15: =IF(ISBLANK(InfoPro!I9),"",YEAR(InfoPro!I9)-$F$3) -> 2 | F15: =IF(ISBLANK(InfoPro!P9),"",InfoPro!P9) -> -10.838454 | G15: -1665382023 | H15: -1489608250 | I15: -1332386628 | J15: -1191759059 | K15: -1065974113 | L15: -953465217.6 | M15: -852831142.8 | N15: -762818553.5 | O15: -682306398.5 | P15: -610291948.5 | Q15: -545878308.2 | R15: -488263245.2 | S15: -436729199.7 | T15: -390634346.8 | U15: -349404603.5 | V15: -1.281773304e+10 | W15: -320443.3259
A16: =IF(ISBLANK(InfoPro!A10),"",InfoPro!A10) -> SC_767_A2 | B16: =IF(ISBLANK(InfoPro!B10),"",InfoPro!B10) -> Parque Solar Fotovoltaico Alcaraván | C16: =IF(ISBLANK(InfoPro!E10),"",InfoPro!E10) -> 79.6 | D16: =IF(ISBLANK(InfoPro!F10),"",InfoPro!F10) -> Solar FV | E16: =IF(ISBLANK(InfoPro!I10),"",YEAR(InfoPro!I10)-$F$3) -> 2 | F16: =IF(ISBLANK(InfoPro!P10),"",InfoPro!P10) -> -8.92 | G16: -1370602085 | H16: -1225941042 | I16: -1096548338 | J16: -980812466.7 | K16: -877292009.6 | L16: -784697683 | M16: -701876281.8 | N16: -627796316.4 | O16: -561535166.8 | P16: -502267591 | Q16: -449255448.1 | R16: -401838504.6 | S16: -359426211.6 | T16: -321490350.3 | U16: -287558452.9 | V16: -1.054893795e+10 | W16: -132524.3461
A17: =IF(ISBLANK(InfoPro!A11),"",InfoPro!A11) -> SC_767_A1 | B17: =IF(ISBLANK(InfoPro!B11),"",InfoPro!B11) -> Parque Solar Fotovoltaico Alcaraván | C17: =IF(ISBLANK(InfoPro!E11),"",InfoPro!E11) -> 79.6 | D17: =IF(ISBLANK(InfoPro!F11),"",InfoPro!F11) -> Solar FV | E17: =IF(ISBLANK(InfoPro!I11),"",YEAR(InfoPro!I11)-$F$3) -> 2 | F17: =IF(ISBLANK(InfoPro!P11),"",InfoPro!P11) -> -6.54 | G17: -1004903322 | H17: -898840180.8 | I17: -803971539.2 | J17: -719115866.9 | K17: -643216338.9 | L17: -575327673.4 | M17: -514604359.1 | N17: -460290124.4 | O17: -411708519.1 | P17: -368254489.4 | Q17: -329386842 | R17: -294621504.5 | S17: -263525496 | T17: -235711534.9 | U17: -210833215.4 | V17: -7734311006 | W17: -97164.71113
